Workbook

Sheet Arrivées
A1: - | B1: - | C1: - | D1: - | E1: - | W1: - | Y1: - | Z1: -
E2: Dépense | H2: =SUBTOTAL(9,F7:F5856) -> 718 | I2: =SUBTOTAL(9,F7:F5856) -> 718 | L2: =SUBTOTAL(9,F7:F5856) -> 718 | M2: =SUBTOTAL(9,F7:F5856) -> 718 | P2: =SUBTOTAL(9,N7:N5856) -> 2 | Q2: =SUBTOTAL(9,N7:N5856) -> 2 | T2: =SUBTOTAL(9,R7:R5856) -> 2 | U2: =SUBTOTAL(9,R7:R5856) -> 2
E3: Chiffre | H3: =SUBTOTAL(9,H7:H5856) -> 6734.4 | I3: =SUBTOTAL(9,I7:I5856) -> 2048.7 | L3: =SUBTOTAL(9,L7:L5856) -> 1.4 | M3: =SUBTOTAL(9,M7:M5856) -> 2361.3 | P3: =SUBTOTAL(9,P7:P5862) -> 2 | Q3: =SUBTOTAL(9,Q7:Q5862) -> 2496.4 | T3: =SUBTOTAL(9,T7:T5856) -> 0 | U3: =SUBTOTAL(9,U7:U5856) -> 11.7
E4: Diff | H4: =H3-H2 -> 6016.4 | I4: =I3-I2 -> 1330.7 | L4: =L3-L2 -> -716.6 | M4: =M3-M2 -> 1643.3 | P4: =P3-P2 -> 0 | Q4: =Q3-Q2 -> 2494.4 | T4: =T3-T2 -> -2 | U4: =U3-U2 -> 9.7
E5: Pourcent | H5: =(H3-H2)/ABS(H3) -> 0.8933832264 | I5: 0.6495338507 | L5: =(L3-L2)/ABS(L3) -> -511.8571429 | M5: =(M3-M2)/ABS(M3) -> 0.6959302079 | P5: =(P3-P2)/ABS(P3) -> 0 | Q5: 0.9991988463 | U5: 0.8290598291
A6: Date | B6: Hippodrome | C6: Course | D6: Style | E6: Partants | G6: P1 | H6: 1 | I6: 2 | K6: P2 | L6: 1 | M6: 2 | O6: P3 | P6: 1 | Q6: 2 | S6: P4 | T6: 1 | U6: 2 | V6: ZC | W6: Pronos | X6: N° | Y6: Geny | Z6: PT | AA6: C1 | AB6: C2 | AC6: C3 | AD6: C4 | AE6: A | AF6: B
A7: 2017-01-01 | B7: PAU | C7: MAIDEN | D7: MALE | E7: 7 | F7: 1 | G7: 3 | H7: 23.4 | I7: 3.9 | K7: 7 | L7: 0 | M7: 3.2 | N7: 1 | O7: 4 | P7: 0 | Q7: 1.8 | R7: 1 | S7: 2 | T7: 0 | U7: 0 | V7: 3.9 | W7: ESPEJO-AMAR | X7: R2C1 | Y7: NON | Z7: TRUFFE | AA7: 7 | AB7: 4 | AE7: 0 | AF7: 5
A8: 2017-01-01 | B8: PAU | C8: MAIDEN | D8: FEMELLE | E8: 9 | F8: 1 | G8: 1 | H8: 1.8 | I8: 1.1 | K8: 2 | L8: 0 | M8: 1.2 | N8: 1 | O8: 3 | P8: 0 | Q8: 1.2 | R8: 1 | S8: 4 | T8: 0 | U8: 0 | V8: 4.9 | W8: ESPEJO-AMAR | X8: R2C3 | Y8: NON | Z8: TRUFFE | AA8: 1 | AB8: 2 | AC8: 3 | AE8: 1.8 | AF8: 3.5
A9: 2017-01-01 | B9: PAU | C9: H | D9: D | E9: 10 | F9: 1 | G9: 8 | H9: 3.7 | I9: 1.5 | K9: 1 | L9: 0 | M9: 1.7 | O9: 7 | P9: 0 | Q9: 1.8 | S9: 2 | T9: 0 | U9: 0 | V9: 7.5 | W9: ESPEJO-AMAR | X9: R2C7 | Y9: NON | Z9: TRUFFE | AA9: 8 | AB9: 1 | AC9: 7 | AE9: 3.7 | AF9: 5
A10: 2017-01-02 | B10: DEAUVILLE | C10: NON | D10: D | E10: 7 | F10: 1 | G10: 3 | H10: 1.5 | I10: 1.1 | K10: 5 | L10: 0 | M10: 2.1 | O10: 2 | P10: 0 | Q10: 1.5 | S10: 6 | T10: 0 | U10: 0 | V10: 5.2 | W10: GINDRE | X10: R3C1 | Y10: NON | Z10: PUTRINO | AA10: 3 | AB10: 2 | AE10: 1.5 | AF10: 2.6
A11: 2017-01-02 | B11: DEAUVILLE | C11: RECLAMER | D11: E | E11: 9 | F11: 1 | G11: 2 | H11: 3.6 | I11: 2 | K11: 1 | L11: 0 | M11: 2.6 | O11: 8 | P11: 0 | Q11: 1.7 | S11: 4 | T11: 0 | U11: 0 | V11: 6 | W11: GINDRE | X11: R3C2 | Y11: NON | Z11: PUTRINO | AA11: 2 | AB11: 8 | AE11: 3.6 | AF11: 3.7
A12: 2017-01-02 | B12: DEAUVILLE | C12: RECLAMER | D12: E | E12: 10 | F12: 1 | G12: 4 | H12: 3.2 | I12: 1.2 | K12: 2 | L12: 0 | M12: 1.2 | O12: 3 | P12: 0 | Q12: 2 | S12: 1 | T12: 0 | U12: 0 | V12: 11.2 | W12: GINDRE | X12: R3C3 | Y12: NON | Z12: PUTRINO | AA12: 4 | AB12: 2 | AE12: 3.2 | AF12: 2.4
A13: 2017-01-02 | B13: DEAUVILLE | C13: CAVALIERE | D13: E | E13: 9 | F13: 1 | G13: 3 | H13: 2.4 | I13: 1.1 | K13: 5 | L13: 0 | M13: 1.6 | O13: 6 | P13: 0 | Q13: 1.7 | S13: 8 | T13: 0 | U13: 0 | V13: 7.7 | W13: GINDRE | X13: R3C4 | Y13: NON | Z13: PUTRINO | AA13: 3 | AB13: 5 | AE13: 2.4 | AF13: 2.7
A14: 2017-01-02 | B14: DEAUVILLE | C14: NON | D14: D | E14: 9 | F14: 1 | G14: 6 | H14: 4.8 | I14: 1.8 | K14: 1 | L14: 0 | M14: 1.8 | O14: 9 | P14: 0 | Q14: 1.3 | S14: 3 | T14: 0 | U14: 0 | V14: 7.4 | W14: GINDRE | X14: R3C5 | Y14: NON | Z14: PUTRINO | AA14: 1 | AB14: 9 | AE14: 0 | AF14: 3.1
A15: 2017-01-02 | B15: DEAUVILLE | C15: HD | D15: E | E15: 15 | F15: 1 | G15: 1 | H15: 4.3 | I15: 2 | K15: 8 | L15: 0 | M15: 2.7 | O15: 13 | P15: 0 | Q15: 3.9 | S15: 11 | T15: 0 | U15: 0 | V15: 8.2 | W15: GINDRE | X15: R3C6 | Y15: NON | Z15: PUTRINO | AA15: 1 | AE15: 4.3 | AF15: 2
A16: 2017-01-02 | B16: DEAUVILLE | C16: HD | D16: E | E16: 16 | F16: 1 | G16: 7 | H16: 11.1 | I16: 2.7 | K16: 8 | L16: 0 | M16: 6.3 | O16: 2 | P16: 0 | Q16: 2.4 | S16: 14 | T16: 0 | U16: 0 | V16: 18.5 | W16: GINDRE | X16: R3C7 | Y16: NON | Z16: PUTRINO | AA16: 2 | AE16: 0 | AF16: 2.4
A17: 2017-01-02 | B17: DEAUVILLE | C17: HD | D17: E | E17: 16 | F17: 1 | G17: 1 | H17: 3.5 | I17: 1.6 | K17: 11 | L17: 0 | M17: 2.9 | O17: 8 | P17: 0 | Q17: 1.8 | S17: 2 | T17: 0 | U17: 0 | V17: 12.2 | W17: GINDRE | X17: R3C8 | Y17: NON | Z17: PUTRINO | AA17: 1 | AB17: 8 | AE17: 3.5 | AF17: 3.4
A18: 2017-01-02 | B18: DEAUVILLE | C18: HD | D18: E | E18: 16 | F18: 1 | G18: 7 | H18: 5.2 | I18: 2.2 | K18: 5 | L18: 0 | M18: 3.2 | O18: 8 | P18: 0 | Q18: 3.1 | S18: 3 | T18: 0 | U18: 0 | V18: 15.3 | W18: GINDRE | X18: R3C9 | Y18: NON | Z18: PUTRINO | AA18: 7 | AE18: 5.2 | AF18: 2.2
A19: 2017-01-02 | B19: MONS | C19: H | D19: NON | E19: 13 | F19: 1 | G19: 8 | H19: 4.2 | I19: 2 | K19: 14 | L19: 0 | M19: 3.7 | O19: 11 | P19: 0 | Q19: 7.3 | S19: 10 | T19: 0 | U19: 0 | V19: 6.8 | W19: HIRON | X19: R5C1 | Y19: NON | Z19: ROUET
A20: 2017-01-02 | B20: MONS | C20: H | D20: NON | E20: 14 | F20: 1 | G20: 3 | H20: 2.4 | I20: 1.3 | K20: 2 | L20: 0 | M20: 3.5 | O20: 12 | P20: 0 | Q20: 2.6 | S20: 13 | T20: 0 | U20: 11.7 | V20: 1 | W20: HIRON | X20: R5C2 | Y20: NON | Z20: ROUET | AA20: 3 | AE20: 2.4 | AF20: 1.3
A21: 2017-01-02 | B21: MONS | C21: H | D21: NON | E21: 9 | F21: 1 | G21: 6 | H21: 28.5 | I21: 4 | K21: 10 | L21: 0 | M21: 1.9 | O21: 1 | P21: 0 | Q21: 2.6 | S21: 2 | T21: 0 | U21: 0 | V21: 5.5 | W21: HIRON | X21: R5C3 | Y21: NON | Z21: ROUET | AA21: 1 | AB21: 2 | AE21: 0 | AF21: 2.6
A22: 2017-01-02 | B22: MONS | C22: NON | D22: NON | E22: 8 | F22: 1 | G22: 8 | H22: 4.7 | I22: 1.7 | K22: 4 | L22: 0 | M22: 1.5 | O22: 2 | P22: 0 | Q22: 2 | S22: 1 | T22: 0 | U22: 0 | V22: 7.8 | W22: HIRON | X22: R5C4 | Y22: NON | Z22: ROUET | AA22: 2 | AB22: 1 | AE22: 0 | AF22: 2
A23: 2017-01-02 | B23: MONS | C23: RECLAMER | D23: NON | E23: 6 | F23: 1 | G23: 1 | H23: 1.5 | I23: 1.2 | K23: 4 | L23: 0 | M23: 2.5 | O23: 5 | P23: 0 | Q23: 0 | S23: 3 | T23: 0 | U23: 0 | V23: 1 | W23: HIRON | X23: R5C5 | Y23: NON | Z23: ROUET | AA23: 1 | AB23: 3 | AE23: 1.5 | AF23: 1.2
A24: 2017-01-02 | B24: MONS | C24: NON | D24: NON | E24: 7 | F24: 1 | G24: 4 | H24: 1.7 | I24: 1.5 | K24: 6 | L24: 0 | M24: 10.3 | O24: 7 | P24: 0 | Q24: 0 | S24: 5 | T24: 0 | U24: 0 | V24: 1 | W24: HIRON | X24: R5C6 | Y24: NON | Z24: ROUET | AA24: 4 | AB24: 5 | AE24: 1.7 | AF24: 1.5
A25: 2017-01-03 | B25: PORNICHET BAULE | C25: HD | D25: G | E25: 15 | F25: 1 | G25: 4 | H25: 9.4 | I25: 2.5 | K25: 2 | L25: 0 | M25: 2.2 | O25: 5 | P25: 0 | Q25: 4.5 | S25: 7 | T25: 0 | U25: 0 | V25: 12.7 | W25: HIRON | X25: R3C1 | Y25: NON | Z25: BRAMI
A26: 2017-01-03 | B26: PORNICHET BAULE | C26: HD | D26: G | E26: 16 | F26: 1 | G26: 14 | H26: 7.8 | I26: 2.5 | K26: 5 | L26: 0 | M26: 3.8 | O26: 16 | P26: 0 | Q26: 2.6 | S26: 2 | T26: 0 | U26: 0 | V26: 16.8 | W26: HIRON | X26: R3C2 | Y26: NON | Z26: BRAMI
A27: 2017-01-03 | B27: PORNICHET BAULE | C27: H | D27: G | E27: 13 | F27: 1 | G27: 10 | H27: 6.9 | I27: 1.9 | K27: 2 | L27: 0 | M27: 2.2 | O27: 3 | P27: 0 | Q27: 1.3 | S27: 9 | T27: 0 | U27: 0 | V27: 10.7 | W27: HIRON | X27: R3C3 | Y27: NON | Z27: BRAMI | AA27: 10 | AE27: 6.9 | AF27: 1.9
A28: 2017-01-03 | B28: PORNICHET BAULE | C28: HC | D28: G | E28: 16 | F28: 1 | G28: 11 | H28: 43 | I28: 10.9 | K28: 2 | L28: 0 | M28: 4.8 | O28: 10 | P28: 0 | Q28: 1.6 | S28: 14 | T28: 0 | U28: 0 | V28: 6 | W28: HIRON | X28: R3C4 | Y28: NON | Z28: BRAMI | AA28: 10 | AE28: 0 | AF28: 1.6
A29: 2017-01-03 | B29: PORNICHET BAULE | C29: RECLAMER | D29: G | E29: 14 | F29: 1 | G29: 1 | H29: 2.3 | I29: 1.3 | K29: 12 | L29: 0 | M29: 1.9 | O29: 4 | P29: 0 | Q29: 2.6 | S29: 6 | T29: 0 | U29: 0 | V29: 11 | W29: HIRON | X29: R3C5 | Y29: NON | Z29: BRAMI | AA29: 1 | AB29: 12 | AE29: 2.3 | AF29: 3.2
A30: 2017-01-03 | B30: PORNICHET BAULE | C30: RECLAMER | D30: G | E30: 14 | F30: 1 | G30: 14 | H30: 94.3 | I30: 19.9 | K30: 1 | L30: 0 | M30: 2.1 | O30: 4 | P30: 0 | Q30: 6.8 | S30: 12 | T30: 0 | U30: 0 | V30: 23 | W30: HIRON | X30: R3C6 | Y30: NON | Z30: BRAMI | AA30: 1 | AE30: 0 | AF30: 2.1
A31: 2017-01-03 | B31: PORNICHET BAULE | C31: MAIDEN | D31: NON | E31: 10 | F31: 1 | G31: 3 | H31: 2.9 | I31: 1.7 | K31: 5 | L31: 0 | M31: 3.4 | O31: 4 | P31: 0 | Q31: 1.9 | S31: 8 | T31: 0 | U31: 0 | V31: 8.4 | W31: HIRON | X31: R3C7 | Y31: NON | Z31: BRAMI | AA31: 3 | AB31: 4 | AE31: 2.9 | AF31: 3.6
A32: 2017-01-03 | B32: PORNICHET BAULE | C32: RECLAMER | D32: NON | E32: 12 | F32: 1 | G32: 7 | H32: 7.3 | I32: 2.8 | K32: 12 | L32: 0 | M32: 2.7 | O32: 5 | P32: 0 | Q32: 10.1 | S32: 1 | T32: 0 | U32: 0 | V32: 8.9 | W32: HIRON | X32: R3C8 | Y32: NON | Z32: BRAMI | AA32: 7 | AB32: 1 | AE32: 7.3 | AF32: 2.8
A33: 2017-01-03 | B33: PORNICHET BAULE | C33: MAIDEN | D33: NON | E33: 10 | F33: 1 | G33: 3 | H33: 1.8 | I33: 1.1 | K33: 7 | L33: 0 | M33: 1.9 | O33: 8 | P33: 0 | Q33: 1.3 | S33: 5 | T33: 0 | U33: 0 | V33: 6.9 | W33: HIRON | X33: R3C9 | Y33: NON | Z33: BRAMI | AA33: 3 | AB33: 8 | AE33: 1.8 | AF33: 2.4
A34: 2017-01-04 | B34: PAU | C34: H | D34: E | E34: 12 | F34: 1 | G34: 7 | H34: 25.7 | I34: 6.3 | K34: 6 | L34: 0 | M34: 2.2 | O34: 4 | P34: 0 | Q34: 2.7 | S34: 3 | T34: 0 | U34: 0 | V34: 9.3 | W34: DOMANCHE | X34: R1C3 | Y34: NON | Z34: HELLIER | AA34: 3 | AE34: 0 | AF34: 0
A35: 2017-01-04 | B35: PAU | C35: HD | D35: R | E35: 12 | F35: 1 | G35: 8 | H35: 3 | I35: 1.3 | K35: 3 | L35: 0 | M35: 3.7 | O35: 1 | P35: 0 | Q35: 1.5 | S35: 9 | T35: 0 | U35: 0 | V35: 7.4 | W35: DOMANCHE | X35: R1C5 | Y35: NON | Z35: HELLIER | AA35: 1 | AE35: 0 | AF35: 1.5
A36: 2017-01-04 | B36: PAU | C36: HD | D36: E | E36: 17 | F36: 1 | G36: 10 | H36: 20.9 | I36: 6.7 | K36: 15 | L36: 0 | M36: 5.4 | O36: 7 | P36: 0 | Q36: 15.6 | S36: 1 | T36: 0 | U36: 0 | V36: 12.4 | W36: DOMANCHE | X36: R1C7 | Y36: NON | Z36: HELLIER | AA36: 1 | AE36: 0 | AF36: 0
A37: 2017-01-04 | B37: FAIRFIEW | C37: NON | D37: NON | E37: 13 | F37: 1 | G37: 10 | H37: 18.4 | I37: 5.1 | K37: 11 | L37: 0 | M37: 2.5 | O37: 4 | P37: 0 | Q37: 2.1 | S37: 1 | T37: 0 | U37: 0 | W37: BOUGOUIN | X37: R2C1 | Y37: NON | Z37: BARBARIN | AA37: 11 | AB37: 4 | AC37: 1 | AE37: 0 | AF37: 4.6
A38: 2017-01-04 | B38: FAIRFIEW | C38: NON | D38: FEMELLE | E38: 12 | F38: 1 | G38: 8 | H38: 36.3 | I38: 4.6 | K38: 9 | L38: 0 | M38: 4 | O38: 7 | P38: 2 | Q38: 2.2 | S38: 2 | T38: 0 | U38: 0 | W38: BOUGOUIN | X38: R2C2 | Y38: NON | Z38: BARBARIN | AA38: 7 | AB38: 2 | AE38: 2 | AF38: 2.2
A39: 2017-01-04 | B39: FAIRFIEW | C39: H | D39: FEMELLE | E39: 10 | F39: 1 | G39: 6 | H39: 3.9 | I39: 1.6 | K39: 8 | L39: 0 | M39: 2.6 | O39: 9 | P39: 0 | Q39: 2.1 | S39: 3 | T39: 0 | U39: 0 | W39: BOUGOUIN | X39: R2C3 | Y39: NON | Z39: BARBARIN | AA39: 6 | AB39: 8 | AE39: 3.9 | AF39: 4.2
A40: 2017-01-04 | B40: HAPPY VALLEY | C40: H | D40: NON | E40: 12 | F40: 1 | G40: 3 | H40: 17.3 | I40: 7.2 | K40: 2 | L40: 0 | M40: 4 | O40: 5 | P40: 0 | Q40: 10.7 | S40: 7 | T40: 0 | U40: 0 | V40: 12.9 | W40: BOUGOUIN | X40: R3C1 | Y40: NON | Z40: GAREAU | AA40: 7 | AE40: 0 | AF40: 0
A41: 2017-01-04 | B41: HAPPY VALLEY | C41: H | D41: NON | E41: 12 | F41: 1 | G41: 3 | H41: 8 | I41: 1.8 | K41: 8 | L41: 0 | M41: 1.6 | O41: 2 | P41: 0 | Q41: 1.2 | S41: 6 | T41: 0 | U41: 0 | V41: 4.6 | W41: BOUGOUIN | X41: R3C2 | Y41: NON | Z41: GAREAU | AA41: 3 | AB41: 8 | AC41: 2 | AE41: 8 | AF41: 4.6
A42: 2017-01-04 | B42: HAPPY VALLEY | C42: H | D42: NON | E42: 12 | F42: 1 | G42: 5 | H42: 2.5 | I42: 1.3 | K42: 2 | L42: 0 | M42: 2.3 | O42: 12 | P42: 0 | Q42: 1.7 | S42: 9 | T42: 0 | U42: 0 | V42: 10.1 | W42: BOUGOUIN | X42: R3C3 | Y42: NON | Z42: GAREAU | AA42: 5 | AB42: 12 | AE42: 2.5 | AF42: 3
A43: 2017-01-04 | B43: HAPPY VALLEY | C43: H | D43: NON | E43: 12 | F43: 1 | G43: 9 | H43: 10.8 | I43: 2.4 | K43: 7 | L43: 0 | M43: 2.5 | O43: 4 | P43: 0 | Q43: 1.4 | S43: 1 | T43: 0 | U43: 0 | V43: 8.4 | W43: BOUGOUIN | X43: R3C4 | Y43: NON | Z43: GAREAU | AA43: 7 | AB43: 4 | AC43: 1 | AE43: 0 | AF43: 3.9
A44: 2017-01-04 | B44: HAPPY VALLEY | C44: H | D44: NON | E44: 12 | F44: 1 | G44: 12 | H44: 4.2 | I44: 1.7 | K44: 3 | L44: 0 | M44: 2.5 | O44: 7 | P44: 0 | Q44: 2.7 | S44: 1 | T44: 0 | U44: 0 | V44: 8.1 | W44: BOUGOUIN | X44: R3C5 | Y44: NON | Z44: GAREAU
A45: 2017-01-04 | B45: HAPPY VALLEY | C45: H | D45: NON | E45: 12 | F45: 1 | G45: 7 | H45: 32.1 | I45: 4.5 | K45: 11 | L45: 0 | M45: 6.8 | O45: 5 | P45: 0 | Q45: 3 | S45: 10 | T45: 0 | U45: 0 | V45: 3.5 | W45: BOUGOUIN | X45: R3C6 | Y45: NON | Z45: GAREAU | AA45: 5 | AB45: 10 | AE45: 0 | AF45: 3
A46: 2017-01-04 | B46: HAPPY VALLEY | C46: H | D46: III | E46: 12 | F46: 1 | G46: 5 | H46: 8.1 | I46: 4.5 | K46: 4 | L46: 0 | M46: 2.5 | O46: 11 | P46: 0 | Q46: 2.2 | S46: 8 | T46: 0 | U46: 0 | V46: 8.2 | W46: BOUGOUIN | X46: R3C7 | Y46: NON | Z46: GAREAU | AA46: 11 | AE46: 0 | AF46: 2.2
A47: 2017-01-04 | B47: HAPPY VALLEY | C47: H | D47: NON | E47: 12 | F47: 1 | G47: 4 | H47: 6.2 | I47: 2.7 | K47: 9 | L47: 0 | M47: 3.5 | O47: 7 | P47: 0 | Q47: 1.6 | S47: 8 | T47: 0 | U47: 0 | V47: 9.3 | W47: BOUGOUIN | X47: R3C8 | Y47: NON | Z47: GAREAU | AA47: 4 | AB47: 7 | AC47: 8 | AE47: 6.2 | AF47: 4.3
A48: 2017-01-04 | B48: MARSEILLE VIVAUX | C48: HD | D48: E | E48: 11 | F48: 1 | G48: 1 | H48: 9.8 | I48: 3.3 | K48: 10 | L48: 0 | M48: 4.3 | O48: 3 | P48: 0 | Q48: 4.4 | S48: 9 | T48: 0 | U48: 0 | V48: 6.7 | W48: GINDRE | X48: R5C1 | Y48: NON | Z48: BRAMI
A49: 2017-01-04 | B49: MARSEILLE VIVAUX | C49: HD | D49: G | E49: 13 | F49: 1 | G49: 14 | H49: 73.8 | I49: 15.2 | K49: 10 | L49: 0 | M49: 7 | O49: 2 | P49: 0 | Q49: 1.6 | S49: 5 | T49: 0 | U49: 0 | V49: 7.3 | W49: GINDRE | X49: R5C2 | Y49: NON | Z49: BRAMI | AA49: 2 | AB49: 5 | AE49: 0 | AF49: 1.6
A50: 2017-01-04 | B50: MARSEILLE VIVAUX | C50: HD | D50: G | E50: 14 | F50: 1 | G50: 2 | H50: 7.8 | I50: 2.9 | K50: 3 | L50: 0 | M50: 2 | O50: 11 | P50: 0 | Q50: 7.8 | S50: 4 | T50: 0 | U50: 0 | V50: 9.6 | W50: GINDRE | X50: R5C3 | Y50: NON | Z50: BRAMI | AA50: 3 | AE50: 0 | AF50: 2
A51: 2017-01-04 | B51: MARSEILLE VIVAUX | C51: MAIDEN | D51: NON | E51: 8 | F51: 1 | G51: 5 | H51: 2.3 | I51: 1.1 | K51: 3 | L51: 0 | M51: 1.2 | O51: 2 | P51: 0 | Q51: 1.1 | S51: 7 | T51: 0 | U51: 0 | V51: 6.8 | W51: GINDRE | X51: R5C4 | Y51: NON | Z51: BRAMI | AA51: 5 | AB51: 2 | AE51: 2.3 | AF51: 2.2
A52: 2017-01-04 | B52: MARSEILLE VIVAUX | C52: HD | D52: E | E52: 10 | F52: 1 | G52: 1 | H52: 5.7 | I52: 3.3 | K52: 9 | L52: 0 | M52: 6.7 | O52: 4 | P52: 0 | Q52: 3.6 | S52: 3 | T52: 0 | U52: 0 | V52: 7.7 | W52: GINDRE | X52: R5C5 | Y52: NON | Z52: BRAMI
A53: 2017-01-04 | B53: MARSEILLE VIVAUX | C53: RECLAMER | D53: NON | E53: 9 | F53: 1 | G53: 8 | H53: 6.7 | I53: 2.2 | K53: 3 | L53: 0 | M53: 2.9 | O53: 9 | P53: 0 | Q53: 6.8 | S53: 4 | T53: 0 | U53: 0 | V53: 8.8 | W53: GINDRE | X53: R5C6 | Y53: NON | Z53: BRAMI | AA53: 8 | AB53: 4 | AE53: 6.7 | AF53: 2.2
A54: 2017-01-04 | B54: MARSEILLE VIVAUX | C54: NON | D54: E | E54: 9 | F54: 1 | G54: 1 | H54: 6.8 | I54: 1.4 | K54: 9 | L54: 0 | M54: 6.2 | O54: 2 | P54: 0 | Q54: 1.5 | S54: 5 | T54: 0 | U54: 0 | V54: 9.1 | W54: GINDRE | X54: R5C7 | Y54: NON | Z54: BRAMI | AA54: 1 | AB54: 2 | AC54: 5 | AE54: 6.8 | AF54: 2.9
A55: 2017-01-04 | B55: MARSEILLE VIVAUX | C55: NON | D55: E | E55: 7 | F55: 1 | G55: 4 | H55: 4.7 | I55: 1.8 | K55: 6 | L55: 0 | M55: 1.7 | O55: 2 | P55: 0 | Q55: 1.9 | S55: 5 | T55: 0 | U55: 0 | V55: 4.1 | W55: GINDRE | X55: R5C8 | Y55: NON | Z55: BRAMI | AA55: 6 | AB55: 2 | AE55: 0 | AF55: 3.6
A56: 2017-01-05 | B56: VAAL | C56: NON | D56: FEMELLE | E56: 7 | F56: 1 | G56: 4 | H56: 6.7 | I56: 1.4 | K56: 2 | L56: 0 | M56: 1.1 | O56: 1 | P56: 0 | Q56: 2.8 | S56: 8 | T56: 0 | U56: 0 | V56: 3.6 | W56: HIRON | X56: R2C1 | Y56: NON | Z56: BARBARIN | AA56: 4 | AB56: 2 | AC56: 8 | AE56: 6.7 | AF56: 2.5
A57: 2017-01-05 | B57: VAAL | C57: NON | D57: FEMELLE | E57: 13 | F57: 1 | G57: 14 | H57: 1.6 | I57: 1.1 | K57: 6 | L57: 0 | M57: 1.8 | O57: 13 | P57: 0 | Q57: 1.3 | S57: 12 | T57: 0 | U57: 0 | V57: 12 | W57: HIRON | X57: R2C2 | Y57: NON | Z57: BARBARIN | AA57: 14 | AB57: 13 | AE57: 1.6 | AF57: 2.4
A58: 2017-01-05 | B58: VAAL | C58: H | D58: FEMELLE | E58: 8 | F58: 1 | G58: 3 | H58: 3.8 | I58: 1.9 | K58: 7 | L58: 0 | M58: 2.7 | O58: 8 | P58: 0 | Q58: 6.2 | S58: 4 | T58: 0 | U58: 0 | V58: 6.2 | W58: HIRON | X58: R2C3 | Y58: NON | Z58: BARBARIN | AA58: 3 | AE58: 3.8 | AF58: 1.9
A59: 2017-01-05 | B59: VAAL | C59: NON | D59: NON | E59: 8 | F59: 1 | G59: 1 | H59: 1.5 | I59: 1.1 | K59: 3 | L59: 0 | M59: 1.5 | O59: 2 | P59: 0 | Q59: 1.3 | S59: 9 | T59: 0 | U59: 0 | V59: 3.3 | W59: HIRON | X59: R2C4 | Y59: NON | Z59: BARBARIN | AA59: 1 | AB59: 3 | AC59: 2 | AE59: 1.5 | AF59: 3.9
A60: 2017-01-05 | B60: VAAL | C60: H | D60: NON | E60: 14 | F60: 1 | G60: 7 | H60: 51.9 | I60: 15.6 | K60: 10 | L60: 0 | M60: 21.1 | O60: 8 | P60: 0 | Q60: 7.5 | S60: 3 | T60: 0 | U60: 0 | V60: 136 | W60: HIRON | X60: R2C5 | Y60: NON | Z60: BARBARIN | AA60: 3 | AE60: 0 | AF60: 0
A61: 2017-01-05 | B61: DEAUVILLE | C61: NON | D61: D | E61: 8 | F61: 1 | G61: 3 | H61: 3.2 | I61: 1.4 | K61: 7 | L61: 0 | M61: 2.1 | O61: 2 | P61: 0 | Q61: 2.2 | S61: 5 | T61: 0 | U61: 0 | V61: 6.5 | W61: PELLEGRINO | X61: R3C1 | Y61: NON | Z61: MOREAU | AA61: 3 | AB61: 7 | AC61: 5 | AE61: 3.2 | AF61: 3.5
A62: 2017-01-05 | B62: DEAUVILLE | C62: NON | D62: D | E62: 9 | F62: 1 | G62: 6 | H62: 7.4 | I62: 2.6 | K62: 5 | L62: 0 | M62: 1.6 | O62: 7 | P62: 0 | Q62: 3.2 | S62: 3 | T62: 0 | U62: 0 | V62: 5.7 | W62: PELLEGRINO | X62: R3C2 | Y62: NON | Z62: MOREAU | AA62: 5 | AB62: 3 | AE62: 0 | AF62: 1.6
A63: 2017-01-05 | B63: DEAUVILLE | C63: NON | D63: E | E63: 11 | F63: 1 | G63: 12 | H63: 7.9 | I63: 1.8 | K63: 3 | L63: 0 | M63: 1.9 | O63: 7 | P63: 0 | Q63: 1.7 | S63: 10 | T63: 0 | U63: 0 | V63: 7.7 | W63: PELLEGRINO | X63: R3C3 | Y63: NON | Z63: MOREAU | AA63: 12 | AB63: 7 | AE63: 7.9 | AF63: 3.5
A64: 2017-01-05 | B64: DEAUVILLE | C64: NON | D64: E | E64: 16 | F64: 1 | G64: 1 | H64: 8.4 | I64: 2.5 | K64: 4 | L64: 0 | M64: 2.8 | O64: 11 | P64: 0 | Q64: 2.1 | S64: 3 | T64: 0 | U64: 0 | V64: 14.4 | W64: PELLEGRINO | X64: R3C4 | Y64: NON | Z64: MOREAU | AA64: 1 | AB64: 11 | AE64: 8.4 | AF64: 4.6
A65: 2017-01-05 | B65: DEAUVILLE | C65: RECLAMER | D65: G | E65: 14 | F65: 1 | G65: 11 | H65: 6.8 | I65: 2.4 | K65: 4 | L65: 0 | M65: 6.8 | O65: 6 | P65: 0 | Q65: 2.8 | S65: 8 | T65: 0 | U65: 0 | V65: 6.4 | W65: PELLEGRINO | X65: R3C5 | Y65: NON | Z65: MOREAU | AA65: 8 | AE65: 0 | AF65: 0
A66: 2017-01-05 | B66: DEAUVILLE | C66: H | D66: NON | E66: 16 | F66: 1 | G66: 1 | H66: 4.1 | I66: 2.1 | K66: 15 | L66: 0 | M66: 12.1 | O66: 6 | P66: 0 | Q66: 4 | S66: 4 | T66: 0 | U66: 0 | V66: 24.7 | W66: PELLEGRINO | X66: R3C6 | Y66: NON | Z66: MOREAU | AA66: 1 | AE66: 4.1 | AF66: 2.1
A67: 2017-01-05 | B67: DEAUVILLE | C67: RECLAMER | D67: G | E67: 16 | F67: 1 | G67: 8 | H67: 9.8 | I67: 3.3 | K67: 12 | L67: 0 | M67: 4 | O67: 14 | P67: 0 | Q67: 6.4 | S67: 4 | T67: 0 | U67: 0 | V67: 17.6 | W67: PELLEGRINO | X67: R3C7 | Y67: NON | Z67: MOREAU
A68: 2017-01-05 | B68: DEAUVILLE | C68: HD | D68: E | E68: 16 | F68: 1 | G68: 12 | H68: 10.1 | I68: 3.1 | K68: 5 | L68: 0 | M68: 4.6 | O68: 4 | P68: 0 | Q68: 3.2 | S68: 13 | T68: 0 | U68: 0 | V68: 11.7 | W68: PELLEGRINO | X68: R3C8 | Y68: NON | Z68: MOREAU
A69: 2017-01-05 | B69: DEAUVILLE | C69: HD | D69: E | E69: 16 | F69: 1 | G69: 3 | H69: 3.4 | I69: 1.6 | K69: 16 | L69: 0 | M69: 6.2 | O69: 10 | P69: 0 | Q69: 4.4 | S69: 1 | T69: 0 | U69: 0 | V69: 9 | W69: PELLEGRINO | X69: R3C9 | Y69: NON | Z69: MOREAU | AA69: 3 | AB69: 1 | AE69: 3.4 | AF69: 1.6
A70: 2017-01-05 | B70: MEYDAN | C70: ARABES | D70: I | E70: 11 | F70: 1 | G70: 2 | H70: 1.8 | I70: 1.2 | K70: 6 | L70: 0 | M70: 1.3 | O70: 10 | P70: 0 | Q70: 1.8 | S70: 11 | T70: 0 | U70: 0 | V70: 12.9 | W70: BOUGOUIN | X70: R4C1 | Y70: NON | Z70: BROUSSE | AA70: 2 | AB70: 6 | AC70: 10 | AE70: 1.8 | AF70: 4.3
A71: 2017-01-05 | B71: MEYDAN | C71: H | D71: NON | E71: 11 | F71: 1 | G71: 4 | H71: 11.5 | I71: 3.1 | K71: 9 | L71: 0 | M71: 2.4 | O71: 3 | P71: 0 | Q71: 5.9 | S71: 8 | T71: 0 | U71: 0 | V71: 10.8 | W71: BOUGOUIN | X71: R4C2 | Y71: NON | Z71: BROUSSE | AA71: 9 | AE71: 0 | AF71: 2.4
A72: 2017-01-05 | B72: MEYDAN | C72: H | D72: NON | E72: 9 | F72: 1 | G72: 6 | H72: 15.8 | I72: 3.5 | K72: 4 | L72: 0 | M72: 5.8 | O72: 3 | P72: 0 | Q72: 4 | S72: 9 | T72: 0 | U72: 0 | V72: 6.4 | W72: BOUGOUIN | X72: R4C3 | Y72: NON | Z72: BROUSSE | AA72: 3 | AE72: 0 | AF72: 4
A73: 2017-01-05 | B73: MEYDAN | C73: H | D73: NON | E73: 16 | F73: 1 | G73: 1 | H73: 1.5 | I73: 1.2 | K73: 3 | L73: 0 | M73: 2.8 | O73: 4 | P73: 0 | Q73: 2.9 | S73: 2 | T73: 0 | U73: 0 | V73: 8.4 | W73: BOUGOUIN | X73: R4C4 | Y73: NON | Z73: BROUSSE | AA73: 1 | AE73: 1.5 | AF73: 1.2
A74: 2017-01-05 | B74: MEYDAN | C74: NON | D74: II | E74: 10 | F74: 1 | G74: 1 | H74: 9 | I74: 2.8 | K74: 6 | L74: 0 | M74: 6.4 | O74: 3 | P74: 0 | Q74: 4 | S74: 5 | T74: 0 | U74: 0 | V74: 12.7 | W74: BOUGOUIN | X74: R4C5 | Y74: NON | Z74: BROUSSE | AA74: 1 | AE74: 9 | AF74: 2.8
A75: 2017-01-05 | B75: MEYDAN | C75: LISTE RACED | D75: NON | E75: 12 | F75: 1 | G75: 2 | H75: 6.6 | I75: 1.8 | K75: 6 | L75: 0 | M75: 2.4 | O75: 8 | P75: 0 | Q75: 3.6 | S75: 11 | T75: 0 | U75: 0 | V75: 11.9 | W75: BOUGOUIN | X75: R4C6 | Y75: NON | Z75: BROUSSE | AA75: 2 | AE75: 6.6 | AF75: 1.8
A76: 2017-01-05 | B76: MEYDAN | C76: H | D76: NON | E76: 16 | F76: 1 | G76: 6 | H76: 11.5 | I76: 5.2 | K76: 13 | L76: 0 | M76: 15 | O76: 1 | P76: 0 | Q76: 2.2 | S76: 12 | T76: 0 | U76: 0 | V76: 17 | W76: BOUGOUIN | X76: R4C7 | Y76: NON | Z76: BROUSSE | AA76: 1 | AE76: 0 | AF76: 2.2
A77: 2017-01-06 | B77: DEAUVILLE | C77: MAIDEN | D77: MALE | E77: 10 | F77: 1 | G77: 5 | H77: 13.7 | I77: 4.3 | K77: 4 | L77: 0 | M77: 2.3 | O77: 2 | P77: 0 | Q77: 1.2 | S77: 8 | T77: 0 | U77: 0 | V77: 9.9 | W77: ESPEJO-AMAR | X77: R1C1 | Y77: NON | Z77: PUTRINO | AA77: 4 | AB77: 2 | AC77: 8 | AE77: 0 | AF77: 3.5
A78: 2017-01-06 | B78: DEAUVILLE | C78: MAIDEN | D78: FEMELLE | E78: 16 | F78: 1 | G78: 5 | H78: 1.7 | I78: 1.2 | K78: 9 | L78: 0 | M78: 2 | O78: 11 | P78: 0 | Q78: 3.9 | S78: 3 | T78: 0 | U78: 0 | V78: 21.3 | W78: ESPEJO-AMAR | X78: R1C2 | Y78: NON | Z78: PUTRINO | AA78: 5 | AE78: 1.7 | AF78: 1.2
A79: 2017-01-06 | B79: DEAUVILLE | C79: HD | D79: D | E79: 16 | F79: 1 | G79: 2 | H79: 14 | I79: 4 | K79: 14 | L79: 0 | M79: 8 | O79: 4 | P79: 0 | Q79: 6.5 | S79: 6 | T79: 0 | U79: 0 | V79: 14.2 | W79: ESPEJO-AMAR | X79: R1C3 | Y79: DIEHL | Z79: PUTRINO
A80: 2017-01-06 | B80: DEAUVILLE | C80: RECLAMER | D80: NON | E80: 10 | F80: 1 | G80: 7 | H80: 13.3 | I80: 2.4 | K80: 5 | L80: 0 | M80: 1.5 | O80: 1 | P80: 0 | Q80: 2.4 | S80: 6 | T80: 0 | U80: 0 | V80: 4.9 | W80: ESPEJO-AMAR | X80: R1C4 | Y80: NON | Z80: PUTRINO | AA80: 5 | AB80: 6 | AE80: 0 | AF80: 1.5
A81: 2017-01-06 | B81: DEAUVILLE | C81: HD | D81: E | E81: 16 | F81: 1 | G81: 5 | H81: 17.9 | I81: 5.7 | K81: 4 | L81: 0 | M81: 2.2 | O81: 12 | P81: 0 | Q81: 1.8 | S81: 1 | T81: 0 | U81: 0 | V81: 12.8 | W81: ESPEJO-AMAR | X81: R1C5 | Y81: NON | Z81: PUTRINO | AA81: 12 | AE81: 0 | AF81: 1.8
A82: 2017-01-06 | B82: DEAUVILLE | C82: RECLAMER | D82: G | E82: 15 | F82: 1 | G82: 13 | H82: 11.3 | I82: 3.7 | K82: 1 | L82: 0 | M82: 1.8 | O82: 9 | P82: 0 | Q82: 2.7 | S82: 14 | T82: 0 | U82: 0 | V82: 9.9 | W82: ESPEJO-AMAR | X82: R1C6 | Y82: NON | Z82: PUTRINO | AA82: 1 | AE82: 0 | AF82: 1.8
A83: 2017-01-06 | B83: DEAUVILLE | C83: HD | D83: E | E83: 16 | F83: 1 | G83: 9 | H83: 20.4 | I83: 4.1 | K83: 2 | L83: 0 | M83: 3.1 | O83: 8 | P83: 0 | Q83: 2.1 | S83: 16 | T83: 0 | U83: 0 | V83: 20.6 | W83: ESPEJO-AMAR | X83: R1C7 | Y83: NON | Z83: PUTRINO | AA83: 8 | AE83: 0 | AF83: 2.1
A84: 2017-01-06 | B84: DEAUVILLE | C84: RECLAMER | D84: NON | E84: 14 | F84: 1 | G84: 11 | H84: 2.2 | I84: 1.3 | K84: 3 | L84: 0 | M84: 11.9 | O84: 4 | P84: 0 | Q84: 7.6 | S84: 10 | T84: 0 | U84: 0 | V84: 5.6 | W84: ESPEJO-AMAR | X84: R1C8 | Y84: NON | Z84: PUTRINO | AA84: 11 | AB84: 10 | AE84: 2.2 | AF84: 1.3
A85: 2017-01-06 | B85: DEAUVILLE | C85: HD | D85: E | E85: 15 | F85: 1 | G85: 5 | H85: 4.2 | I85: 2.1 | K85: 2 | L85: 0 | M85: 3.7 | O85: 10 | P85: 0 | Q85: 22 | S85: 13 | T85: 0 | U85: 0 | V85: 9.9 | W85: ESPEJO-AMAR | X85: R1C9 | Y85: NON | Z85: PUTRINO | AA85: 5 | AB85: 13 | AE85: 4.2 | AF85: 2.1
A86: 2017-01-06 | B86: KENILWORTH | C86: NON | D86: FEMELLE | E86: 10 | F86: 1 | G86: 5 | H86: 6.2 | I86: 2 | K86: 11 | L86: 0 | M86: 2.7 | O86: 9 | P86: 0 | Q86: 4.2 | S86: 1 | T86: 0 | U86: 0 | V86: 5.9 | W86: HIRON | X86: R2C1 | Y86: NON | Z86: BARBARIN | AA86: 1 | AE86: 0 | AF86: 0
A87: 2017-01-06 | B87: KENILWORTH | C87: NON | D87: NON | E87: 16 | F87: 1 | G87: 10 | H87: 6 | I87: 2 | K87: 6 | L87: 0 | M87: 2.2 | O87: 1 | P87: 0 | Q87: 4.3 | S87: 4 | T87: 0 | U87: 0 | V87: 8.6 | W87: HIRON | X87: R2C2 | Y87: NON | Z87: BARBARIN | AA87: 6 | AE87: 0 | AF87: 2.2
A88: 2017-01-06 | B88: KENILWORTH | C88: NON | D88: FEMELLE | E88: 14 | F88: 1 | G88: 2 | H88: 4.1 | I88: 1.7 | K88: 1 | L88: 0 | M88: 7.2 | O88: 12 | P88: 0 | Q88: 2.1 | S88: 14 | T88: 0 | U88: 0 | V88: 19.1 | W88: HIRON | X88: R2C3 | Y88: NON | Z88: BARBARIN | AA88: 2 | AB88: 12 | AE88: 4.1 | AF88: 3.8
A89: 2017-01-06 | B89: GREYVILLE | C89: NON | D89: FEMELLE | E89: 12 | F89: 1 | G89: 1 | H89: 1.8 | I89: 1.2 | K89: 9 | L89: 0 | M89: 3.1 | O89: 11 | P89: 0 | Q89: 1.6 | S89: 7 | T89: 0 | U89: 0 | V89: 7.7 | W89: HIRON | X89: R5C2 | Y89: NON | Z89: BARBARIN | AA89: 1 | AB89: 11 | AC89: 7 | AE89: 1.8 | AF89: 2.8
A90: 2017-01-06 | B90: GREYVILLE | C90: NON | D90: FEMELLE | E90: 9 | F90: 1 | G90: 8 | H90: 28 | I90: 6.5 | K90: 3 | L90: 0 | M90: 5.4 | O90: 7 | P90: 0 | Q90: 1.7 | S90: 1 | T90: 0 | U90: 0 | V90: 10.9 | W90: HIRON | X90: R5C3 | Y90: NON | Z90: BARBARIN | AA90: 1 | AE90: 0 | AF90: 0
A91: 2017-01-06 | B91: GREYVILLE | C91: H | D91: FEMELLE | E91: 12 | F91: 1 | G91: 9 | H91: 17.9 | I91: 3.8 | K91: 4 | L91: 0 | M91: 5.6 | O91: 12 | P91: 0 | Q91: 4.3 | S91: 7 | T91: 0 | U91: 0 | V91: 10 | W91: HIRON | X91: R5C4 | Y91: NON | Z91: BARBARIN
A92: 2017-01-06 | B92: GREYVILLE | C92: H | D92: NON | E92: 12 | F92: 1 | G92: 6 | H92: 5.9 | I92: 4 | K92: 7 | L92: 0 | M92: 4 | O92: 8 | P92: 0 | Q92: 4.2 | S92: 12 | T92: 0 | U92: 0 | V92: 8.1 | W92: HIRON | X92: R5C5 | Y92: NON | Z92: BARBARIN
A93: 2017-01-06 | B93: GREYVILLE | C93: H | D93: FEMELLE | E93: 9 | F93: 1 | G93: 1 | H93: 6.1 | I93: 2.3 | K93: 6 | L93: 0 | M93: 2.2 | O93: 7 | P93: 0 | Q93: 3.3 | S93: 3 | T93: 0 | U93: 0 | V93: 5.9 | W93: HIRON | X93: R5C6 | Y93: NON | Z93: BARBARIN | AA93: 3 | AE93: 0 | AF93: 0
A94: 2017-01-06 | B94: GREYVILLE | C94: NON | D94: NON | E94: 9 | F94: 1 | G94: 1 | H94: 1.4 | I94: 1.3 | K94: 2 | L94: 1.4 | M94: 1.4 | O94: 7 | P94: 0 | Q94: 1.7 | S94: 8 | T94: 0 | U94: 0 | V94: 6.6 | W94: HIRON | X94: R5C7 | Y94: NON | Z94: BARBARIN | AA94: 2 | AB94: 7 | AE94: 1.4 | AF94: 3.1
A95: 2017-01-06 | B95: GREYVILLE | C95: NON | D95: NON | E95: 12 | F95: 1 | G95: 1 | H95: 8.6 | I95: 2.2 | K95: 10 | L95: 0 | M95: 17.9 | O95: 2 | P95: 0 | Q95: 1.7 | S95: 7 | T95: 0 | U95: 0 | V95: 12.4 | W95: HIRON | X95: R5C8 | Y95: NON | Z95: BARBARIN | AA95: 1 | AB95: 2 | AE95: 8.6 | AF95: 3.9
A96: 2017-01-07 | B96: DEAUVILLE | C96: NON | D96: NON | E96: 9 | F96: 1 | G96: 9 | H96: 5.3 | I96: 1.7 | K96: 1 | L96: 0 | M96: 2.5 | O96: 2 | P96: 0 | Q96: 1.2 | S96: 4 | T96: 0 | U96: 0 | V96: 4.6 | W96: DOMANCHE | X96: R3C1 | Y96: NON | Z96: VOEGELIN | AA96: 9 | AB96: 2 | AE96: 5.3 | AF96: 2.9
A97: 2017-01-07 | B97: DEAUVILLE | C97: NON | D97: E | E97: 13 | F97: 1 | G97: 1 | H97: 4.4 | I97: 1.4 | K97: 4 | L97: 0 | M97: 1.3 | O97: 2 | P97: 0 | Q97: 1.5 | S97: 3 | T97: 0 | U97: 0 | V97: 7.7 | W97: DOMANCHE | X97: R3C2 | Y97: NON | Z97: VOEGELIN | AA97: 1 | AB97: 4 | AC97: 2 | AD97: 3 | AE97: 4.4 | AF97: 4.2
A98: 2017-01-07 | B98: DEAUVILLE | C98: HD | D98: E | E98: 12 | F98: 1 | G98: 2 | H98: 8.3 | I98: 2.6 | K98: 8 | L98: 0 | M98: 1.7 | O98: 9 | P98: 0 | Q98: 4.3 | S98: 5 | T98: 0 | U98: 0 | V98: 12.2 | W98: DOMANCHE | X98: R3C3 | Y98: NON | Z98: VOEGELIN | AA98: 2 | AE98: 8.3 | AF98: 2.6
A99: 2017-01-07 | B99: DEAUVILLE | C99: HD | D99: E | E99: 12 | F99: 1 | G99: 9 | H99: 25.8 | I99: 4.6 | K99: 8 | L99: 0 | M99: 1.8 | O99: 4 | P99: 0 | Q99: 3.2 | S99: 1 | T99: 0 | U99: 0 | V99: 7.4 | W99: DOMANCHE | X99: R3C4 | Y99: NON | Z99: VOEGELIN | AA99: 8 | AB99: 1 | AE99: 0 | AF99: 1.8
A100: 2017-01-07 | B100: DEAUVILLE | C100: HD | D100: E | E100: 14 | F100: 1 | G100: 11 | H100: 4.5 | I100: 1.9 | K100: 4 | L100: 0 | M100: 2.7 | O100: 10 | P100: 0 | Q100: 2.2 | S100: 16 | T100: 0 | U100: 0 | V100: 10.9 | W100: DOMANCHE | X100: R3C5 | Y100: NON | Z100: VOEGELIN | AA100: 11 | AE100: 4.5 | AF100: 1.9
A101: 2017-01-07 | B101: DEAUVILLE | C101: HD | D101: G | E101: 16 | F101: 1 | G101: 11 | H101: 6.6 | I101: 2.2 | K101: 10 | L101: 0 | M101: 4.8 | O101: 12 | P101: 0 | Q101: 9 | S101: 7 | T101: 0 | U101: 0 | V101: 12.8 | W101: DOMANCHE | X101: R3C6 | Y101: NON | Z101: VOEGELIN | AA101: 7 | AE101: 0 | AF101: 0
A102: 2017-01-07 | B102: DEAUVILLE | C102: HD | D102: G | E102: 16 | F102: 1 | G102: 12 | H102: 7 | I102: 2.2 | K102: 2 | L102: 0 | M102: 2.3 | O102: 1 | P102: 0 | Q102: 3.7 | S102: 4 | T102: 0 | U102: 0 | V102: 10.5 | W102: DOMANCHE | X102: R3C7 | Y102: NON | Z102: VOEGELIN | AA102: 2 | AE102: 0 | AF102: 2.3
A103: 2017-01-07 | B103: DEAUVILLE | C103: HD | D103: E | E103: 13 | F103: 1 | G103: 3 | H103: 7.9 | I103: 2.3 | K103: 5 | L103: 0 | M103: 5 | O103: 1 | P103: 0 | Q103: 5.1 | S103: 14 | T103: 0 | U103: 0 | V103: 28.6 | W103: DOMANCHE | X103: R3C8 | Y103: NON | Z103: VOEGELIN | AA103: 3 | AB103: 1 | AE103: 7.9 | AF103: 7.4
A104: 2017-01-07 | B104: DEAUVILLE | C104: HD | D104: E | E104: 15 | F104: 1 | G104: 2 | H104: 3.6 | I104: 1.6 | K104: 1 | L104: 0 | M104: 2.1 | O104: 3 | P104: 0 | Q104: 2.3 | S104: 9 | T104: 0 | U104: 0 | V104: 8.5 | W104: DOMANCHE | X104: R3C9 | Y104: NON | Z104: VOEGELIN
A105: 2017-01-07 | B105: LYON LA SOIE | C105: H | D105: E | E105: 14 | F105: 1 | G105: 2 | H105: 4.8 | I105: 1.6 | K105: 12 | L105: 0 | M105: 4.9 | O105: 1 | P105: 0 | Q105: 3.7 | S105: 9 | T105: 0 | U105: 0 | V105: 25.4 | W105: GINDRE | X105: R4C1 | Y105: NON | Z105: BRAMI | AA105: 2 | AE105: 4.8 | AF105: 1.6
A106: 2017-01-07 | B106: LYON LA SOIE | C106: HD | D106: E | E106: 11 | F106: 1 | G106: 10 | H106: 41.2 | I106: 12.7 | K106: 1 | L106: 0 | M106: 5.3 | O106: 3 | P106: 0 | Q106: 2.6 | S106: 2 | T106: 0 | U106: 0 | V106: 5.6 | W106: GINDRE | X106: R4C2 | Y106: NON | Z106: BRAMI | AA106: 1 | AB106: 2 | AE106: 0 | AF106: 5.3
A107: 2017-01-07 | B107: LYON LA SOIE | C107: HD | D107: G | E107: 11 | F107: 1 | G107: 10 | H107: 4.9 | I107: 1.5 | K107: 5 | L107: 0 | M107: 6.3 | O107: 6 | P107: 0 | Q107: 2.1 | S107: 2 | T107: 0 | U107: 0 | V107: 8.3 | W107: GINDRE | X107: R4C3 | Y107: NON | Z107: BRAMI | AA107: 10 | AE107: 4.9 | AF107: 1.5
A108: 2017-01-07 | B108: LYON LA SOIE | C108: H | D108: E | E108: 13 | F108: 1 | G108: 4 | H108: 7.1 | I108: 3.6 | K108: 1 | L108: 0 | M108: 2 | O108: 5 | P108: 0 | Q108: 2.9 | S108: 11 | T108: 0 | U108: 0 | V108: 8.3 | W108: GINDRE | X108: R4C4 | Y108: NON | Z108: BRAMI | AA108: 11 | AE108: 0 | AF108: 0
A109: 2017-01-07 | B109: LYON LA SOIE | C109: RECLAMER | D109: NON | E109: 12 | F109: 1 | G109: 8 | H109: 9.4 | I109: 3.7 | K109: 1 | L109: 0 | M109: 9.6 | O109: 6 | P109: 0 | Q109: 1.7 | S109: 2 | T109: 0 | U109: 0 | V109: 7.3 | W109: GINDRE | X109: R4C5 | Y109: NON | Z109: BRAMI | AA109: 6 | AE109: 0 | AF109: 1.7
A110: 2017-01-07 | B110: LYON LA SOIE | C110: MAIDEN | D110: FEMELLE | E110: 7 | F110: 1 | G110: 8 | H110: 1.6 | I110: 1.1 | K110: 3 | L110: 0 | M110: 1.5 | O110: 4 | P110: 0 | Q110: 1.4 | S110: 5 | T110: 0 | U110: 0 | V110: 6.9 | W110: GINDRE | X110: R4C6 | Y110: NON | Z110: BRAMI | AA110: 8 | AB110: 3 | AC110: 4 | AE110: 1.6 | AF110: 4
A111: 2017-01-07 | B111: LYON LA SOIE | C111: MAIDEN | D111: MALE | E111: 8 | F111: 1 | G111: 6 | H111: 22.3 | I111: 6.3 | K111: 1 | L111: 0 | M111: 7 | O111: 8 | P111: 0 | Q111: 2.9 | S111: 4 | T111: 0 | U111: 0 | V111: 7.9 | W111: GINDRE | X111: R4C7 | Y111: NON | Z111: BRAMI | AA111: 4 | AE111: 0 | AF111: 0
A112: 2017-01-07 | B112: NEUSS | C112: H | D112: NON | E112: 12 | F112: 1 | G112: 6 | H112: 12.3 | I112: 4 | K112: 9 | L112: 0 | M112: 2 | O112: 10 | P112: 0 | Q112: 6 | S112: 12 | T112: 0 | U112: 0 | V112: 11.2 | W112: BOUGOUIN | X112: R5C1 | Y112: NON | Z112: BROUSSE | AA112: 9 | AE112: 0 | AF112: 2
A113: 2017-01-07 | B113: NEUSS | C113: H | D113: NON | E113: 13 | F113: 1 | G113: 7 | H113: 17.8 | I113: 5.4 | K113: 9 | L113: 0 | M113: 2.7 | O113: 6 | P113: 0 | Q113: 2.8 | S113: 4 | T113: 0 | U113: 0 | V113: 8.3 | W113: BOUGOUIN | X113: R5C2 | Y113: NON | Z113: BROUSSE | AA113: 6 | AB113: 4 | AE113: 0 | AF113: 2.8
A114: 2017-01-07 | B114: NEUSS | C114: H | D114: NON | E114: 11 | F114: 1 | G114: 10 | H114: 13.9 | I114: 3.9 | K114: 7 | L114: 0 | M114: 1.4 | O114: 8 | P114: 0 | Q114: 3 | S114: 5 | T114: 0 | U114: 0 | V114: 9.1 | W114: BOUGOUIN | X114: R5C3 | Y114: NON | Z114: BROUSSE
A115: 2017-01-07 | B115: NEUSS | C115: NON | D115: NON | E115: 11 | F115: 1 | G115: 7 | H115: 13 | I115: 3.5 | K115: 10 | L115: 0 | M115: 4.7 | O115: 6 | P115: 0 | Q115: 2.3 | S115: 1 | T115: 0 | U115: 0 | V115: 5.7 | W115: BOUGOUIN | X115: R5C4 | Y115: NON | Z115: BROUSSE | AA115: 10 | AB115: 1 | AE115: 0 | AF115: 4.7
A116: 2017-01-07 | B116: NEUSS | C116: H | D116: NON | E116: 9 | F116: 1 | G116: 2 | H116: 5 | I116: 1.6 | K116: 9 | L116: 0 | M116: 1.8 | O116: 4 | P116: 0 | Q116: 1.4 | S116: 6 | T116: 0 | U116: 0 | V116: 10.4 | W116: BOUGOUIN | X116: R5C5 | Y116: NON | Z116: BROUSSE | AA116: 2 | AE116: 5 | AF116: 1.6
A117: 2017-01-07 | B117: NEUSS | C117: NON | D117: NON | E117: 9 | F117: 1 | G117: 9 | H117: 1.5 | I117: 1.1 | K117: 1 | L117: 0 | M117: 2.3 | O117: 8 | P117: 0 | Q117: 2.2 | S117: 3 | T117: 0 | U117: 0 | V117: 5.3 | W117: BOUGOUIN | X117: R5C6 | Y117: NON | Z117: BROUSSE | AA117: 9 | AB117: 1 | AC117: 8 | AE117: 1.5 | AF117: 5.6
A118: 2017-01-07 | B118: NEUSS | C118: H | D118: NON | E118: 6 | F118: 1 | G118: 4 | H118: 9.6 | I118: 1.5 | K118: 5 | L118: 0 | M118: 1.2 | O118: 6 | P118: 0 | Q118: 2.6 | S118: 2 | T118: 0 | U118: 0 | V118: 6.5 | W118: BOUGOUIN | X118: R5C7 | Y118: NON | Z118: BROUSSE | AA118: 5 | AB118: 2 | AE118: 0 | AF118: 1.2
A119: 2017-01-07 | B119: NEUSS | C119: H | D119: NON | E119: 8 | F119: 1 | G119: 2 | H119: 4 | I119: 1.4 | K119: 1 | L119: 0 | M119: 2.3 | O119: 7 | P119: 0 | Q119: 1.8 | S119: 9 | T119: 0 | U119: 0 | V119: 6.9 | W119: BOUGOUIN | X119: R5C8 | Y119: NON | Z119: BROUSSE | AA119: 2 | AB119: 9 | AE119: 4 | AF119: 1.4
A120: 2017-01-08 | B120: CARRERE | C120: H | D120: NON | E120: 12 | F120: 1 | G120: 4 | H120: 16.9 | I120: 4.7 | K120: 3 | L120: 0 | M120: 1.2 | O120: 13 | P120: 0 | Q120: 10.3 | S120: 6 | T120: 0 | U120: 0 | V120: 13.3 | W120: BOUGOUIN | X120: R4C1 | Y120: NON | Z120: AGENCE TIP | AA120: 3 | AE120: 0 | AF120: 1.2
A121: 2017-01-08 | B121: CARRERE | C121: H | D121: NON | E121: 14 | F121: 1 | G121: 5 | H121: 10.6 | I121: 5 | K121: 2 | L121: 0 | M121: 2.3 | O121: 8 | P121: 0 | Q121: 6.7 | S121: 11 | T121: 0 | U121: 0 | V121: 9.4 | W121: BOUGOUIN | X121: R4C2 | Y121: NON | Z121: AGENCE TIP | AA121: 2 | AB121: 11 | AE121: 0 | AF121: 2.3
A122: 2017-01-08 | B122: CARRERE | C122: NON | D122: NON | E122: 12 | F122: 1 | G122: 10 | H122: 25.8 | I122: 8.4 | K122: 4 | L122: 0 | M122: 20.8 | O122: 13 | P122: 0 | Q122: 9.5 | S122: 11 | T122: 0 | U122: 0 | V122: 11.1 | W122: BOUGOUIN | X122: R4C3 | Y122: NON | Z122: AGENCE TIP
A123: 2017-01-08 | B123: CARRERE | C123: NON | D123: NON | E123: 14 | F123: 1 | G123: 8 | H123: 7.1 | I123: 3.3 | K123: 3 | L123: 0 | M123: 5.6 | O123: 6 | P123: 0 | Q123: 2.9 | S123: 5 | T123: 0 | U123: 0 | V123: 11.7 | W123: BOUGOUIN | X123: R4C4 | Y123: NON | Z123: AGENCE TIP | AA123: 6 | AB123: 5 | AE123: 0 | AF123: 2.9
A124: 2017-01-08 | B124: CARRERE | C124: NON | D124: NON | E124: 9 | F124: 1 | G124: 6 | H124: 28.5 | I124: 6.1 | K124: 1 | L124: 0 | M124: 2.1 | O124: 5 | P124: 0 | Q124: 3.1 | S124: 2 | T124: 0 | U124: 0 | V124: 10.2 | W124: BOUGOUIN | X124: R4C5 | Y124: NON | Z124: AGENCE TIP | AA124: 1 | AE124: 0 | AF124: 2.1
A125: 2017-01-08 | B125: CARRERE | C125: NON | D125: NON | E125: 7 | F125: 1 | G125: 4 | H125: 2.8 | I125: 1.8 | K125: 2 | L125: 0 | M125: 2.6 | O125: 3 | P125: 0 | Q125: 0 | S125: 6 | T125: 0 | U125: 0 | V125: 1 | W125: BOUGOUIN | X125: R4C6 | Y125: NON | Z125: AGENCE TIP | AA125: 4 | AB125: 2 | AC125: 3 | AD125: 6 | AE125: 2.8 | AF125: 4.4
A126: 2017-01-10 | B126: MARSEILLE VIVAUX | C126: HD | D126: E | E126: 11 | F126: 1 | G126: 5 | H126: 5.1 | I126: 1.9 | K126: 11 | L126: 0 | M126: 7.1 | O126: 4 | P126: 0 | Q126: 2.5 | S126: 6 | T126: 0 | U126: 0 | V126: 6.1 | W126: ESPEJO-AMAR | X126: R3C1 | Y126: NON | Z126: MIRALLES | AA126: 5 | AE126: 5.1 | AF126: 1.9
A127: 2017-01-10 | B127: MARSEILLE VIVAUX | C127: HD | D127: G | E127: 10 | F127: 1 | G127: 10 | H127: 8.3 | I127: 2.9 | K127: 9 | L127: 0 | M127: 3.5 | O127: 5 | P127: 0 | Q127: 3.3 | S127: 4 | T127: 0 | U127: 0 | V127: 7 | W127: ESPEJO-AMAR | X127: R3C2 | Y127: NON | Z127: MIRALLES | AA127: 4 | AE127: 0 | AF127: 0
A128: 2017-01-10 | B128: MARSEILLE VIVAUX | C128: HD | D128: G | E128: 10 | F128: 1 | G128: 2 | H128: 2.5 | I128: 1.2 | K128: 8 | L128: 0 | M128: 1.6 | O128: 7 | P128: 0 | Q128: 1.9 | S128: 10 | T128: 0 | U128: 0 | V128: 9.7 | W128: ESPEJO-AMAR | X128: R3C3 | Y128: NON | Z128: MIRALLES | AA128: 2 | AB128: 7 | AE128: 2.5 | AF128: 3.1
A129: 2017-01-10 | B129: MARSEILLE VIVAUX | C129: MAIDEN | D129: NON | E129: 9 | F129: 1 | G129: 4 | H129: 8.7 | I129: 3.6 | K129: 1 | L129: 0 | M129: 2 | O129: 3 | P129: 0 | Q129: 1.5 | S129: 7 | T129: 0 | U129: 0 | V129: 7.6 | W129: ESPEJO-AMAR | X129: R3C4 | Y129: NON | Z129: MIRALLES | AA129: 1 | AB129: 3 | AC129: 7 | AE129: 0 | AF129: 3.5
A130: 2017-01-10 | B130: MARSEILLE VIVAUX | C130: RECLAMER | D130: NON | E130: 9 | F130: 1 | G130: 5 | H130: 2.9 | I130: 1.2 | K130: 3 | L130: 0 | M130: 2.6 | O130: 4 | P130: 0 | Q130: 1.6 | S130: 2 | T130: 0 | U130: 0 | V130: 9.6 | W130: ESPEJO-AMAR | X130: R3C5 | Y130: NON | Z130: MIRALLES | AA130: 5 | AB130: 4 | AC130: 2 | AE130: 2.9 | AF130: 2.8
A131: 2017-01-10 | B131: MARSEILLE VIVAUX | C131: RECLAMER | D131: G | E131: 9 | F131: 1 | G131: 1 | H131: 4.3 | I131: 1.6 | K131: 2 | L131: 0 | M131: 2.7 | O131: 9 | P131: 0 | Q131: 3.2 | S131: 3 | T131: 0 | U131: 0 | V131: 6.6 | W131: ESPEJO-AMAR | X131: R3C6 | Y131: NON | Z131: MIRALLES | AA131: 1 | AB131: 2 | AC131: 3 | AE131: 4.3 | AF131: 4.3
A132: 2017-01-10 | B132: MARSEILLE VIVAUX | C132: RECLAMER | D132: G | E132: 10 | F132: 1 | G132: 10 | H132: 8.4 | I132: 2 | K132: 4 | L132: 0 | M132: 2 | O132: 1 | P132: 0 | Q132: 1.3 | S132: 9 | T132: 0 | U132: 0 | V132: 7.6 | W132: ESPEJO-AMAR | X132: R3C7 | Y132: NON | Z132: MIRALLES | AA132: 1 | AE132: 0 | AF132: 1.3
A133: 2017-01-10 | B133: MARSEILLE VIVAUX | C133: NON | D133: E | E133: 7 | F133: 1 | G133: 1 | H133: 1.3 | I133: 1.3 | K133: 6 | L133: 0 | M133: 3.5 | O133: 2 | P133: 0 | Q133: 0 | S133: 4 | T133: 0 | U133: 0 | V133: 1 | W133: ESPEJO-AMAR | X133: R3C8 | Y133: NON | Z133: MIRALLES | AA133: 1 | AB133: 4 | AE133: 1.3 | AF133: 1.3
A134: 2017-01-11 | B134: KENILWORTH | C134: NON | D134: NON | E134: 9 | F134: 1 | G134: 7 | H134: 1.5 | I134: 1.1 | K134: 9 | L134: 0 | M134: 2.7 | O134: 2 | P134: 0 | Q134: 1.6 | S134: 1 | T134: 0 | U134: 0 | V134: 6 | W134: BOUGOUIN | X134: R2C1 | Y134: NON | Z134: BARBARIN | AA134: 7 | AB134: 2 | AC134: 1 | AE134: 1.5 | AF134: 2.7
A135: 2017-01-11 | B135: KENILWORTH | C135: NON | D135: FEMELLE | E135: 11 | F135: 1 | G135: 10 | H135: 4.7 | I135: 1.7 | K135: 3 | L135: 0 | M135: 2 | O135: 6 | P135: 0 | Q135: 3 | S135: 4 | T135: 0 | U135: 0 | V135: 4.3 | W135: BOUGOUIN | X135: R2C2 | Y135: NON | Z135: BARBARIN | AA135: 10 | AB135: 3 | AC135: 4 | AE135: 4.7 | AF135: 3.7
A136: 2017-01-11 | B136: KENILWORTH | C136: NON | D136: NON | E136: 10 | F136: 1 | G136: 3 | H136: 3.8 | I136: 1.9 | K136: 10 | L136: 0 | M136: 1.5 | O136: 6 | P136: 0 | Q136: 5.5 | S136: 9 | T136: 0 | U136: 0 | V136: 7.6 | W136: BOUGOUIN | X136: R2C3 | Y136: NON | Z136: BARBARIN | AA136: 3 | AB136: 10 | AE136: 3.8 | AF136: 3.4
A137: 2017-01-11 | B137: HAPPY VALLEY | C137: H | D137: NON | E137: 12 | F137: 1 | G137: 4 | H137: 3.8 | I137: 1.5 | K137: 12 | L137: 0 | M137: 4.3 | O137: 1 | P137: 0 | Q137: 1.5 | S137: 11 | T137: 0 | U137: 0 | V137: 8.9 | W137: HIRON | X137: R3C1 | Y137: NON | Z137: BROUSSE | AA137: 4 | AB137: 1 | AE137: 3.8 | AF137: 3
A138: 2017-01-11 | B138: HAPPY VALLEY | C138: H | D138: NON | E138: 11 | F138: 1 | G138: 6 | H138: 7.4 | I138: 3.1 | K138: 9 | L138: 0 | M138: 3.7 | O138: 10 | P138: 0 | Q138: 5.4 | S138: 2 | T138: 0 | U138: 0 | V138: 9.1 | W138: HIRON | X138: R3C2 | Y138: NON | Z138: BROUSSE
A139: 2017-01-11 | B139: HAPPY VALLEY | C139: H | D139: NON | E139: 12 | F139: 1 | G139: 5 | H139: 6.2 | I139: 2.7 | K139: 2 | L139: 0 | M139: 3.3 | O139: 3 | P139: 0 | Q139: 1.7 | S139: 11 | T139: 0 | U139: 0 | V139: 7.2 | W139: HIRON | X139: R3C3 | Y139: NON | Z139: BROUSSE | AA139: 3 | AE139: 0 | AF139: 1.7
A140: 2017-01-11 | B140: HAPPY VALLEY | C140: H | D140: NON | E140: 12 | F140: 1 | G140: 4 | H140: 3.9 | I140: 2.1 | K140: 5 | L140: 0 | M140: 4.9 | O140: 2 | P140: 0 | Q140: 6.1 | S140: 3 | T140: 0 | U140: 0 | V140: 6.4 | W140: HIRON | X140: R3C4 | Y140: NON | Z140: BROUSSE | AA140: 4 | AB140: 3 | AE140: 3.9 | AF140: 2.1
A141: 2017-01-11 | B141: HAPPY VALLEY | C141: H | D141: NON | E141: 12 | F141: 1 | G141: 6 | H141: 16.4 | I141: 7.8 | K141: 12 | L141: 0 | M141: 9.6 | O141: 10 | P141: 0 | Q141: 4 | S141: 8 | T141: 0 | U141: 0 | V141: 9 | W141: HIRON | X141: R3C5 | Y141: NON | Z141: BROUSSE
A142: 2017-01-11 | B142: HAPPY VALLEY | C142: H | D142: NON | E142: 12 | F142: 1 | G142: 11 | H142: 3.1 | I142: 1.5 | K142: 3 | L142: 0 | M142: 1.2 | O142: 4 | P142: 0 | Q142: 1.1 | S142: 1 | T142: 0 | U142: 0 | V142: 33.6 | W142: HIRON | X142: R3C6 | Y142: NON | Z142: BROUSSE | AA142: 11 | AB142: 3 | AE142: 3.1 | AF142: 2.7
A143: 2017-01-11 | B143: HAPPY VALLEY | C143: H | D143: NON | E143: 12 | F143: 1 | G143: 5 | H143: 22.5 | I143: 5 | K143: 1 | L143: 0 | M143: 3 | O143: 3 | P143: 0 | Q143: 3.3 | S143: 2 | T143: 0 | U143: 0 | V143: 11.3 | W143: HIRON | X143: R3C7 | Y143: NON | Z143: BROUSSE | AA143: 3 | AE143: 0 | AF143: 3.3
A144: 2017-01-11 | B144: HAPPY VALLEY | C144: H | D144: NON | E144: 11 | F144: 1 | G144: 11 | H144: 2.6 | I144: 1.1 | K144: 9 | L144: 0 | M144: 1.5 | O144: 5 | P144: 0 | Q144: 1.2 | S144: 3 | T144: 0 | U144: 0 | V144: 7 | W144: HIRON | X144: R3C8 | Y144: NON | Z144: BROUSSE | AA144: 5 | AE144: 0 | AF144: 1.2
A145: 2017-01-11 | B145: PAU | C145: NON | D145: E | E145: 6 | F145: 1 | G145: 4 | H145: 5.1 | I145: 1.6 | K145: 2 | L145: 0 | M145: 1.1 | O145: 3 | P145: 0 | Q145: 0 | S145: 5 | T145: 0 | U145: 0 | V145: 1 | W145: PELLEGRINO | X145: R4C3 | Y145: NON | Z145: DEBRUYNE | AA145: 4 | AB145: 2 | AE145: 5.1 | AF145: 2.7
A146: 2017-01-11 | B146: PAU | C146: HD | D146: E | E146: 18 | F146: 1 | G146: 10 | H146: 3.6 | I146: 1.3 | K146: 7 | L146: 0 | M146: 2.7 | O146: 16 | P146: 0 | Q146: 3.6 | S146: 12 | T146: 0 | U146: 0 | V146: 10.9 | W146: PELLEGRINO | X146: R4C5 | Y146: NON | Z146: DEBRUYNE | AA146: 10 | AB146: 16 | AE146: 3.6 | AF146: 4.9
A147: 2017-01-11 | B147: PAU | C147: HD | D147: E | E147: 16 | F147: 1 | G147: 13 | H147: 7.9 | I147: 3.3 | K147: 11 | L147: 0 | M147: 3.4 | O147: 15 | P147: 0 | Q147: 3.1 | S147: 3 | T147: 0 | U147: 0 | V147: 11.2 | W147: PELLEGRINO | X147: R4C8 | Y147: NON | Z147: DEBRUYNE | AA147: 11 | AB147: 3 | AE147: 0 | AF147: 3.4
A148: 2017-01-12 | B148: VAAL | C148: NON | D148: NON | E148: 12 | F148: 1 | G148: 7 | H148: 2.5 | I148: 1.2 | K148: 5 | L148: 0 | M148: 1.1 | O148: 6 | P148: 0 | Q148: 1.4 | S148: 11 | T148: 0 | U148: 0 | V148: 9.2 | W148: BOUGOUIN | X148: R2C1 | Y148: NON | Z148: BARBARIN | AA148: 7 | AB148: 5 | AC148: 6 | AE148: 2.5 | AF148: 3.7
A149: 2017-01-12 | B149: VAAL | C149: NON | D149: FEMELLE | E149: 7 | F149: 1 | G149: 6 | H149: 4.3 | I149: 1.2 | K149: 2 | L149: 0 | M149: 1.1 | O149: 5 | P149: 0 | Q149: 1.3 | S149: 3 | T149: 0 | U149: 0 | V149: 4.9 | W149: BOUGOUIN | X149: R2C2 | Y149: NON | Z149: BARBARIN | AA149: 6 | AB149: 2 | AC149: 5 | AE149: 4.3 | AF149: 3.6
A150: 2017-01-12 | B150: VAAL | C150: NON | D150: FEMELLE | E150: 14 | F150: 1 | G150: 4 | H150: 11.7 | I150: 2.1 | K150: 10 | L150: 0 | M150: 1.5 | O150: 1 | P150: 0 | Q150: 1.7 | S150: 14 | T150: 0 | U150: 0 | V150: 7.9 | W150: BOUGOUIN | X150: R2C3 | Y150: NON | Z150: BARBARIN | AA150: 10 | AB150: 1 | AE150: 0 | AF150: 3.2
A151: 2017-01-12 | B151: VAAL | C151: NON | D151: FEMELLE | E151: 12 | F151: 1 | G151: 7 | H151: 3.4 | I151: 1.8 | K151: 10 | L151: 0 | M151: 4.7 | O151: 1 | P151: 0 | Q151: 5.5 | S151: 2 | T151: 0 | U151: 0 | V151: 13.4 | W151: BOUGOUIN | X151: R2C4 | Y151: NON | Z151: BARBARIN | AA151: 7 | AE151: 3.4 | AF151: 1.8
A152: 2017-01-12 | B152: VAAL | C152: H | D152: NON | E152: 9 | F152: 1 | G152: 5 | H152: 5.3 | I152: 2.6 | K152: 1 | L152: 0 | M152: 6.8 | O152: 3 | P152: 0 | Q152: 4.9 | S152: 4 | T152: 0 | U152: 0 | V152: 12.9 | W152: BOUGOUIN | X152: R2C5 | Y152: NON | Z152: BARBARIN | AA152: 4 | AE152: 0 | AF152: 0
A153: 2017-01-12 | B153: MEYDAN | C153: NON | D153: NON | E153: 9 | F153: 1 | G153: 5 | H153: 3.2 | I153: 1.7 | K153: 1 | L153: 0 | M153: 1.3 | O153: 7 | P153: 0 | Q153: 1.2 | S153: 4 | T153: 0 | U153: 0 | V153: 7.7 | W153: BOUGOUIN | X153: R4C1 | Y153: NON | Z153: BRAMI | AA153: 5 | AB153: 1 | AC153: 7 | AE153: 3.2 | AF153: 4.2
A154: 2017-01-12 | B154: MEYDAN | C154: H | D154: NON | E154: 7 | F154: 1 | G154: 6 | H154: 4.3 | I154: 2.1 | K154: 4 | L154: 0 | M154: 1.6 | O154: 2 | P154: 0 | Q154: 0 | S154: 7 | T154: 0 | U154: 0 | V154: 1 | W154: BOUGOUIN | X154: R4C2 | Y154: NON | Z154: BRAMI | AA154: 6 | AB154: 4 | AC154: 2 | AE154: 4.3 | AF154: 3.7
A155: 2017-01-12 | B155: MEYDAN | C155: H | D155: NON | E155: 14 | F155: 1 | G155: 10 | H155: 5.4 | I155: 2.7 | K155: 13 | L155: 0 | M155: 3.3 | O155: 7 | P155: 0 | Q155: 18.2 | S155: 1 | T155: 0 | U155: 0 | V155: 13.4 | W155: BOUGOUIN | X155: R4C3 | Y155: NON | Z155: BRAMI | AA155: 13 | AB155: 1 | AE155: 0 | AF155: 3.3
A156: 2017-01-12 | B156: MEYDAN | C156: H | D156: NON | E156: 15 | F156: 1 | G156: 4 | H156: 3 | I156: 1.5 | K156: 8 | L156: 0 | M156: 2.1 | O156: 5 | P156: 0 | Q156: 2.2 | S156: 12 | T156: 0 | U156: 0 | V156: 9.6 | W156: BOUGOUIN | X156: R4C4 | Y156: NON | Z156: BRAMI | AA156: 4 | AB156: 8 | AE156: 3 | AF156: 3.6
A157: 2017-01-12 | B157: MEYDAN | C157: H | D157: NON | E157: 16 | F157: 1 | G157: 5 | H157: 6.9 | I157: 2.6 | K157: 8 | L157: 0 | M157: 8.9 | O157: 10 | P157: 0 | Q157: 7.2 | S157: 6 | T157: 0 | U157: 0 | V157: 11.5 | W157: BOUGOUIN | X157: R4C5 | Y157: NON | Z157: BRAMI
A158: 2017-01-12 | B158: MEYDAN | C158: LISTE RACED | D158: NON | E158: 7 | F158: 1 | G158: 6 | H158: 9.4 | I158: 2.2 | K158: 4 | L158: 0 | M158: 1.4 | O158: 1 | P158: 0 | Q158: 0 | S158: 7 | T158: 0 | U158: 0 | V158: 1 | W158: BOUGOUIN | X158: R4C6 | Y158: NON | Z158: BRAMI | AA158: 6 | AB158: 4 | AE158: 9.4 | AF158: 3.6
A159: 2017-01-12 | B159: MEYDAN | C159: H | D159: NON | E159: 15 | F159: 1 | G159: 10 | H159: 10.4 | I159: 3 | K159: 16 | L159: 0 | M159: 2.4 | O159: 13 | P159: 0 | Q159: 9.3 | S159: 14 | T159: 0 | U159: 0 | V159: 13.2 | W159: BOUGOUIN | X159: R4C7 | Y159: NON | Z159: BRAMI
A160: 2017-01-12 | B160: PORNICHET BAULE | C160: HC | D160: G | E160: 16 | F160: 1 | G160: 1 | H160: 1.9 | I160: 1.4 | K160: 13 | L160: 0 | M160: 3.5 | O160: 16 | P160: 0 | Q160: 9.2 | S160: 15 | T160: 0 | U160: 0 | V160: 8.1 | W160: RODON | X160: R5C1 | Y160: NON | Z160: VOEGELIN | AA160: 1 | AE160: 1.9 | AF160: 1.4
A161: 2017-01-12 | B161: PORNICHET BAULE | C161: NON | D161: E | E161: 15 | F161: 1 | G161: 4 | H161: 9.6 | I161: 2.5 | K161: 7 | L161: 0 | M161: 4.2 | O161: 3 | P161: 0 | Q161: 2.4 | S161: 5 | T161: 0 | U161: 0 | V161: 9.2 | W161: RODON | X161: R5C2 | Y161: NON | Z161: VOEGELIN | AA161: 3 | AB161: 5 | AE161: 0 | AF161: 2.4
A162: 2017-01-12 | B162: PORNICHET BAULE | C162: HD | D162: G | E162: 15 | F162: 1 | G162: 5 | H162: 6.1 | I162: 1.9 | K162: 3 | L162: 0 | M162: 1.6 | O162: 6 | P162: 0 | Q162: 2.8 | S162: 12 | T162: 0 | U162: 0 | V162: 14.8 | W162: RODON | X162: R5C3 | Y162: NON | Z162: VOEGELIN | AA162: 3 | AE162: 0 | AF162: 1.6
A163: 2017-01-12 | B163: PORNICHET BAULE | C163: RECLAMER | D163: G | E163: 16 | F163: 1 | G163: 1 | H163: 3.1 | I163: 1.5 | K163: 3 | L163: 0 | M163: 2.8 | O163: 2 | P163: 0 | Q163: 1.8 | S163: 14 | T163: 0 | U163: 0 | V163: 8.6 | W163: RODON | X163: R5C4 | Y163: NON | Z163: VOEGELIN | AA163: 1 | AE163: 3.1 | AF163: 1.5
A164: 2017-01-12 | B164: PORNICHET BAULE | C164: HD | D164: G | E164: 15 | F164: 1 | G164: 3 | H164: 3.8 | I164: 1.8 | K164: 12 | L164: 0 | M164: 5.3 | O164: 4 | P164: 0 | Q164: 2.6 | S164: 15 | T164: 0 | U164: 0 | V164: 16.4 | W164: RODON | X164: R5C5 | Y164: NON | Z164: VOEGELIN | AA164: 3 | AB164: 4 | AE164: 3.8 | AF164: 4.4
A165: 2017-01-12 | B165: PORNICHET BAULE | C165: RECLAMER | D165: G | E165: 13 | F165: 1 | G165: 3 | H165: 4.1 | I165: 1.7 | K165: 2 | L165: 0 | M165: 1.4 | O165: 11 | P165: 0 | Q165: 3.7 | S165: 7 | T165: 0 | U165: 0 | V165: 10.1 | W165: RODON | X165: R5C6 | Y165: NON | Z165: VOEGELIN | AA165: 2 | AE165: 0 | AF165: 1.4
A166: 2017-01-12 | B166: PORNICHET BAULE | C166: NON | D166: E | E166: 13 | F166: 1 | G166: 4 | H166: 1.3 | I166: 1.1 | K166: 2 | L166: 0 | M166: 3.9 | O166: 1 | P166: 0 | Q166: 1.5 | S166: 12 | T166: 0 | U166: 0 | V166: 6.2 | W166: RODON | X166: R5C7 | Y166: NON | Z166: VOEGELIN | AA166: 4 | AB166: 1 | AC166: 12 | AE166: 1.3 | AF166: 2.6
A167: 2017-01-12 | B167: PORNICHET BAULE | C167: HC | D167: G | E167: 11 | F167: 1 | G167: 2 | H167: 5.6 | I167: 3.2 | K167: 1 | L167: 0 | M167: 3.6 | O167: 7 | P167: 0 | Q167: 1.9 | S167: 3 | T167: 0 | U167: 0 | V167: 8.3 | W167: RODON | X167: R5C8 | Y167: NON | Z167: VOEGELIN | AA167: 7 | AE167: 0 | AF167: 1.9
A168: 2017-01-13 | B168: FAIRFIEW | C168: NON | D168: NON | E168: 9 | F168: 1 | G168: 1 | H168: 2.4 | I168: 1.1 | K168: 7 | L168: 0 | M168: 1.2 | O168: 8 | P168: 0 | Q168: 1.8 | S168: 3 | T168: 0 | U168: 0 | V168: 5 | W168: BOUGOUIN | X168: R2C1 | Y168: NON | Z168: BARBARIN | AA168: 1 | AB168: 3 | AE168: 2.4 | AF168: 1.1
A169: 2017-01-13 | B169: FAIRFIEW | C169: H | D169: NON | E169: 14 | F169: 1 | G169: 14 | H169: 4.5 | I169: 1.6 | K169: 11 | L169: 0 | M169: 2.5 | O169: 9 | P169: 0 | Q169: 2.2 | S169: 10 | T169: 0 | U169: 0 | V169: 10.9 | W169: BOUGOUIN | X169: R2C2 | Y169: NON | Z169: BARBARIN | AA169: 14 | AB169: 11 | AC169: 9 | AE169: 4.5 | AF169: 6.3
A170: 2017-01-13 | B170: FAIRFIEW | C170: H | D170: NON | E170: 12 | F170: 1 | G170: 4 | H170: 5.5 | I170: 1.3 | K170: 3 | L170: 0 | M170: 1.7 | O170: 1 | P170: 0 | Q170: 1.2 | S170: 7 | T170: 0 | U170: 0 | V170: 13.1 | W170: BOUGOUIN | X170: R2C3 | Y170: NON | Z170: BARBARIN | AA170: 4 | AB170: 3 | AC170: 1 | AE170: 5.5 | AF170: 4.2
A171: 2017-01-13 | B171: FAIRFIEW | C171: NON | D171: FEMELLE | E171: 14 | F171: 1 | G171: 16 | H171: 32.3 | I171: 8.3 | K171: 9 | L171: 0 | M171: 3.1 | O171: 3 | P171: 0 | Q171: 2 | S171: 11 | T171: 0 | U171: 0 | V171: 17.6 | W171: BOUGOUIN | X171: R2C4 | Y171: NON | Z171: BARBARIN | AA171: 3 | AE171: 0 | AF171: 2
A172: 2017-01-13 | B172: FAIRFIEW | C172: H | D172: NON | E172: 9 | F172: 1 | G172: 8 | H172: 13 | I172: 3.4 | K172: 4 | L172: 0 | M172: 1.3 | O172: 3 | P172: 0 | Q172: 2.3 | S172: 7 | T172: 0 | U172: 0 | V172: 6.1 | W172: BOUGOUIN | X172: R2C5 | Y172: NON | Z172: BARBARIN | AA172: 4 | AE172: 0 | AF172: 1.3
A173: 2017-01-13 | B173: PAU | C173: RECLAMER | D173: G | E173: 11 | F173: 1 | G173: 1 | H173: 2.2 | I173: 1.2 | K173: 2 | L173: 0 | M173: 2.7 | O173: 11 | P173: 0 | Q173: 3.2 | S173: 6 | T173: 0 | U173: 0 | V173: 12 | W173: ESPEJO-AMAR | X173: R3C6 | Y173: NON | Z173: HELLIER | AA173: 1 | AB173: 2 | AE173: 2.2 | AF173: 3.9
A174: 2017-01-13 | B174: PAU | C174: H | D174: E | E174: 12 | F174: 1 | G174: 4 | H174: 15.4 | I174: 5.5 | K174: 1 | L174: 0 | M174: 4.8 | O174: 12 | P174: 0 | Q174: 17.5 | S174: 10 | T174: 0 | U174: 0 | V174: 8.3 | W174: ESPEJO-AMAR | X174: R3C8 | Y174: NON | Z174: HELLIER | AA174: 10 | AE174: 0 | AF174: 0
A175: 2017-01-13 | B175: GREYVILLE | C175: MAIDEN | D175: FEMELLE | E175: 10 | F175: 1 | G175: 1 | H175: 5.2 | I175: 1.4 | K175: 5 | L175: 0 | M175: 1.1 | O175: 8 | P175: 0 | Q175: 2.5 | S175: 7 | T175: 0 | U175: 0 | V175: 5.9 | W175: BOUGOUIN | X175: R5C3 | Y175: NON | Z175: BARBARIN | AA175: 1 | AB175: 5 | AC175: 7 | AE175: 5.2 | AF175: 2.5
A176: 2017-01-13 | B176: GREYVILLE | C176: H | D176: NON | E176: 11 | F176: 1 | G176: 3 | H176: 3.7 | I176: 1.6 | K176: 12 | L176: 0 | M176: 4 | O176: 10 | P176: 0 | Q176: 7.3 | S176: 6 | T176: 0 | U176: 0 | V176: 8 | W176: BOUGOUIN | X176: R5C4 | Y176: NON | Z176: BARBARIN | AA176: 3 | AE176: 3.7 | AF176: 1.6
A177: 2017-01-13 | B177: GREYVILLE | C177: H | D177: NON | E177: 11 | F177: 1 | G177: 2 | H177: 2.8 | I177: 2.1 | K177: 9 | L177: 0 | M177: 3.8 | O177: 4 | P177: 0 | Q177: 11 | S177: 1 | T177: 0 | U177: 0 | V177: 8.5 | W177: BOUGOUIN | X177: R5C5 | Y177: NON | Z177: BARBARIN | AA177: 2 | AB177: 1 | AE177: 2.8 | AF177: 2.1
A178: 2017-01-13 | B178: GREYVILLE | C178: H | D178: NON | E178: 10 | F178: 1 | G178: 4 | H178: 4.8 | I178: 1.7 | K178: 5 | L178: 0 | M178: 2.9 | O178: 6 | P178: 0 | Q178: 3.2 | S178: 1 | T178: 0 | U178: 0 | V178: 7.8 | W178: BOUGOUIN | X178: R5C6 | Y178: NON | Z178: BARBARIN | AA178: 5 | AB178: 1 | AE178: 0 | AF178: 2.9
A179: 2017-01-13 | B179: GREYVILLE | C179: H | D179: NON | E179: 12 | F179: 1 | G179: 4 | H179: 11.8 | I179: 2.2 | K179: 12 | L179: 0 | M179: 2.3 | O179: 8 | P179: 0 | Q179: 2.8 | S179: 10 | T179: 0 | U179: 0 | V179: 8.9 | W179: BOUGOUIN | X179: R5C7 | Y179: NON | Z179: BARBARIN | AA179: 4 | AB179: 12 | AC179: 10 | AE179: 11.8 | AF179: 4.5
A180: 2017-01-13 | B180: GREYVILLE | C180: H | D180: NON | E180: 12 | F180: 1 | G180: 5 | H180: 4 | I180: 2.2 | K180: 14 | L180: 0 | M180: 10 | O180: 8 | P180: 0 | Q180: 8.6 | S180: 10 | T180: 0 | U180: 0 | V180: 10.4 | W180: BOUGOUIN | X180: R5C8 | Y180: NON | Z180: BARBARIN | AA180: 5 | AE180: 4 | AF180: 2.2
A181: 2017-01-13 | B181: GREYVILLE | C181: MAIDEN | D181: FEMELLE | E181: 12 | F181: 1 | G181: 1 | H181: 4.4 | I181: 1.7 | K181: 7 | L181: 0 | M181: 4.7 | O181: 6 | P181: 0 | Q181: 3.3 | S181: 3 | T181: 0 | U181: 0 | V181: 11.9 | W181: BOUGOUIN | X181: R5C9 | Y181: NON | Z181: BARBARIN | AA181: 1 | AB181: 6 | AC181: 3 | AE181: 4.4 | AF181: 5
A182: 2017-01-14 | B182: CAGNES MER | C182: NON | D182: I | E182: 6 | F182: 1 | G182: 3 | H182: 3.3 | I182: 2 | K182: 1 | L182: 0 | M182: 1.3 | O182: 4 | P182: 0 | Q182: 0 | S182: 7 | T182: 0 | U182: 0 | V182: 1 | W182: PELLEGRINO | X182: R3C1 | Y182: NON | Z182: MOREAU | AA182: 3 | AB182: 1 | AC182: 4 | AE182: 3.3 | AF182: 3.3
A183: 2017-01-14 | B183: CAGNES MER | C183: MAIDEN | D183: MALE | E183: 10 | F183: 1 | G183: 5 | H183: 2.2 | I183: 1.3 | K183: 6 | L183: 0 | M183: 1.9 | O183: 8 | P183: 0 | Q183: 1.4 | S183: 4 | T183: 0 | U183: 0 | V183: 4.8 | W183: PELLEGRINO | X183: R3C2 | Y183: NON | Z183: MOREAU | AA183: 5 | AB183: 8 | AE183: 2.2 | AF183: 2.7
A184: 2017-01-14 | B184: CAGNES MER | C184: MAIDEN | D184: FEMELLE | E184: 11 | F184: 1 | G184: 9 | H184: 2.5 | I184: 1.4 | K184: 10 | L184: 0 | M184: 3 | O184: 8 | P184: 0 | Q184: 2.5 | S184: 6 | T184: 0 | U184: 0 | V184: 9.5 | W184: PELLEGRINO | X184: R3C3 | Y184: NON | Z184: MOREAU | AA184: 10 | AE184: 0 | AF184: 3
A185: 2017-01-14 | B185: CAGNES MER | C185: HC | D185: E | E185: 18 | F185: 1 | G185: 5 | H185: 16.5 | I185: 4.3 | K185: 9 | L185: 0 | M185: 2.1 | O185: 4 | P185: 0 | Q185: 2 | S185: 1 | T185: 0 | U185: 0 | V185: 7.4 | W185: PELLEGRINO | X185: R3C4 | Y185: NON | Z185: MOREAU | AA185: 9 | AB185: 4 | AC185: 1 | AE185: 0 | AF185: 4.1
A186: 2017-01-14 | B186: CAGNES MER | C186: NON | D186: D | E186: 9 | F186: 1 | G186: 4 | H186: 5.5 | I186: 2.5 | K186: 3 | L186: 0 | M186: 2 | O186: 2 | P186: 0 | Q186: 2.7 | S186: 9 | T186: 0 | U186: 0 | V186: 7.2 | W186: PELLEGRINO | X186: R3C5 | Y186: NON | Z186: MOREAU | AA186: 3 | AB186: 9 | AE186: 0 | AF186: 2
A187: 2017-01-14 | B187: CAGNES MER | C187: HD | D187: E | E187: 18 | F187: 1 | G187: 2 | H187: 11.8 | I187: 3.5 | K187: 4 | L187: 0 | M187: 2.2 | O187: 9 | P187: 0 | Q187: 15.2 | S187: 14 | T187: 0 | U187: 0 | V187: 14 | W187: PELLEGRINO | X187: R3C6 | Y187: NON | Z187: MOREAU
A188: 2017-01-14 | B188: CAGNES MER | C188: HD | D188: E | E188: 18 | F188: 1 | G188: 3 | H188: 6.4 | I188: 2.8 | K188: 16 | L188: 0 | M188: 7.9 | O188: 9 | P188: 0 | Q188: 3.8 | S188: 13 | T188: 0 | U188: 0 | V188: 17.4 | W188: PELLEGRINO | X188: R3C7 | Y188: NON | Z188: MOREAU
A189: 2017-01-14 | B189: NEUSS | C189: NON | D189: NON | E189: 7 | F189: 1 | G189: 4 | H189: 2.9 | I189: 1.2 | K189: 6 | L189: 0 | M189: 1.4 | O189: 1 | P189: 0 | Q189: 1.1 | S189: 7 | T189: 0 | U189: 0 | V189: 4.4 | W189: BOUGOUIN | X189: R4C1 | Y189: NON | Z189: BROUSSE | AA189: 4 | AB189: 6 | AC189: 1 | AE189: 2.9 | AF189: 3.7
A190: 2017-01-14 | B190: NEUSS | C190: H | D190: NON | E190: 12 | F190: 1 | G190: 11 | H190: 73.4 | I190: 9.4 | K190: 1 | L190: 0 | M190: 5.6 | O190: 7 | P190: 0 | Q190: 9.7 | S190: 4 | T190: 0 | U190: 0 | V190: 12.5 | W190: BOUGOUIN | X190: R4C2 | Y190: NON | Z190: BROUSSE | AA190: 4 | AE190: 0 | AF190: 0
A191: 2017-01-14 | B191: NEUSS | C191: H | D191: NON | E191: 10 | F191: 1 | G191: 10 | H191: 3.1 | I191: 1.4 | K191: 6 | L191: 0 | M191: 1.7 | O191: 1 | P191: 0 | Q191: 1.7 | S191: 3 | T191: 0 | U191: 0 | V191: 14.4 | W191: BOUGOUIN | X191: R4C3 | Y191: NON | Z191: BROUSSE | AA191: 10 | AB191: 1 | AE191: 3.1 | AF191: 3.1
A192: 2017-01-14 | B192: NEUSS | C192: H | D192: NON | E192: 14 | F192: 1 | G192: 14 | H192: 13.5 | I192: 2.5 | K192: 2 | L192: 0 | M192: 6.4 | O192: 5 | P192: 0 | Q192: 2.9 | S192: 11 | T192: 0 | U192: 0 | V192: 6.6 | W192: BOUGOUIN | X192: R4C4 | Y192: NON | Z192: BROUSSE | AA192: 5 | AE192: 0 | AF192: 2.9
A193: 2017-01-14 | B193: NEUSS | C193: H | D193: NON | E193: 9 | F193: 1 | G193: 1 | H193: 4.2 | I193: 1.6 | K193: 3 | L193: 0 | M193: 1.7 | O193: 5 | P193: 0 | Q193: 4 | S193: 4 | T193: 0 | U193: 0 | V193: 6.7 | W193: BOUGOUIN | X193: R4C5 | Y193: NON | Z193: BROUSSE | AA193: 1 | AE193: 4.2 | AF193: 1.6
A194: 2017-01-14 | B194: NEUSS | C194: H | D194: NON | E194: 8 | F194: 1 | G194: 1 | H194: 3.1 | I194: 1.4 | K194: 5 | L194: 0 | M194: 1.5 | O194: 7 | P194: 0 | Q194: 3.7 | S194: 8 | T194: 0 | U194: 0 | V194: 4.4 | W194: BOUGOUIN | X194: R4C6 | Y194: NON | Z194: BROUSSE | AA194: 1 | AB194: 5 | AE194: 3.1 | AF194: 2.9
A195: 2017-01-14 | B195: NEUSS | C195: H | D195: NON | E195: 8 | F195: 1 | G195: 3 | H195: 3.9 | I195: 1.5 | K195: 1 | L195: 0 | M195: 1.3 | O195: 2 | P195: 0 | Q195: 1.7 | S195: 8 | T195: 0 | U195: 0 | V195: 4.8 | W195: BOUGOUIN | X195: R4C7 | Y195: NON | Z195: BROUSSE | AA195: 3 | AB195: 1 | AC195: 2 | AE195: 3.9 | AF195: 4.5
A196: 2017-01-14 | B196: NEUSS | C196: NON | D196: NON | E196: 6 | F196: 1 | G196: 4 | H196: 2.2 | I196: 1.6 | K196: 1 | L196: 0 | M196: 1.5 | O196: 5 | P196: 0 | Q196: 0 | S196: 3 | T196: 0 | U196: 0 | V196: 1 | W196: BOUGOUIN | X196: R4C8 | Y196: NON | Z196: BROUSSE | AA196: 4 | AB196: 1 | AC196: 3 | AE196: 2.2 | AF196: 3.1
A197: 2017-01-14 | B197: CHILE | C197: H | D197: NON | E197: 15 | F197: 1 | G197: 2 | H197: 17 | I197: 4.2 | K197: 8 | L197: 0 | M197: 9.5 | O197: 4 | P197: 0 | Q197: 3.2 | S197: 5 | T197: 0 | U197: 0 | V197: 6.5 | W197: HIRON | X197: R5C1 | Y197: NON | Z197: BROUSSE
A198: 2017-01-14 | B198: CHILE | C198: NON | D198: FEMELLE | E198: 15 | F198: 1 | G198: 1 | H198: 4.8 | I198: 2 | K198: 3 | L198: 0 | M198: 1.9 | O198: 14 | P198: 0 | Q198: 2.5 | S198: 2 | T198: 0 | U198: 0 | V198: 20.1 | W198: HIRON | X198: R5C2 | Y198: NON | Z198: BROUSSE | AA198: 14 | AE198: 0 | AF198: 2.5
A199: 2017-01-14 | B199: CHILE | C199: H | D199: NON | E199: 10 | F199: 1 | G199: 7 | H199: 2.5 | I199: 1.6 | K199: 5 | L199: 0 | M199: 2.1 | O199: 2 | P199: 0 | Q199: 4.1 | S199: 4 | T199: 0 | U199: 0 | V199: 7 | W199: HIRON | X199: R5C3 | Y199: NON | Z199: BROUSSE | AA199: 7 | AB199: 5 | AE199: 2.5 | AF199: 3.7
A200: 2017-01-14 | B200: CHILE | C200: H | D200: NON | E200: 15 | F200: 1 | G200: 10 | H200: 5.7 | I200: 1.9 | K200: 2 | L200: 0 | M200: 1.7 | O200: 1 | P200: 0 | Q200: 6.6 | S200: 7 | T200: 0 | U200: 0 | V200: 12.8 | W200: HIRON | X200: R5C4 | Y200: NON | Z200: BROUSSE | AA200: 10 | AB200: 7 | AE200: 5.7 | AF200: 1.9
... 529 more rows

Sheet ZETURF
A1: - | B1: - | C1: - | D1: - | E1: - | W1: -
E2: Dépense | H2: =SUBTOTAL(9,F7:F5856) -> 718 | I2: =SUBTOTAL(9,F7:F5856) -> 718 | L2: =SUBTOTAL(9,F7:F5856) -> 718 | M2: =SUBTOTAL(9,F7:F5856) -> 718 | P2: =SUBTOTAL(9,N7:N5856) -> 718 | Q2: =SUBTOTAL(9,N7:N5856) -> 718 | T2: =SUBTOTAL(9,R7:R5856) -> 718 | U2: =SUBTOTAL(9,R7:R5856) -> 718
E3: Chiffre | H3: =SUBTOTAL(9,H7:H5856) -> 509.9 | I3: =SUBTOTAL(9,I7:I5856) -> 572.5 | L3: =SUBTOTAL(9,L7:L5856) -> 749 | M3: =SUBTOTAL(9,M7:M5856) -> 618.6 | P3: =SUBTOTAL(9,P7:P5862) -> 687.2 | Q3: =SUBTOTAL(9,Q7:Q5862) -> 645.6 | T3: =SUBTOTAL(9,T7:T5856) -> 499.4 | U3: =SUBTOTAL(9,U7:U5856) -> 585.2
E4: Diff | H4: =H3-H2 -> -208.1 | I4: =I3-I2 -> -145.5 | L4: =L3-L2 -> 31 | M4: =M3-M2 -> -99.4 | P4: =P3-P2 -> -30.8 | Q4: =Q3-Q2 -> -72.4 | T4: =T3-T2 -> -218.6 | U4: =U3-U2 -> -132.8
E5: Pourcent | H5: =(H3-H2)/ABS(H3) -> -0.4081192391 | I5: -0.2541484716 | L5: =(L3-L2)/ABS(L3) -> 0.04138851802 | M5: =(M3-M2)/ABS(M3) -> -0.1606854187 | P5: =(P3-P2)/ABS(P3) -> -0.04481955763 | Q5: -0.1121437423 | T5: -0.4377252703 | U5: -0.2269309638
A6: Date | B6: Hippodrome | C6: Course | D6: Style | E6: Partants | G6: P1 | H6: 1 | I6: 2 | K6: P2 | L6: 1 | M6: 2 | O6: P3 | P6: 1 | Q6: 2 | S6: P4 | T6: 1 | U6: 2 | W6: Pronos | X6: N°
A7: =Arrivées!A7 -> 2017-01-01 | B7: =Arrivées!B7 -> PAU | C7: =Arrivées!C7 -> MAIDEN | D7: =Arrivées!D7 -> MALE | E7: =Arrivées!E7 -> 7 | F7: =Arrivées!F7 -> 1 | G7: 4 | H7: =IF(G7=Arrivées!G7,Arrivées!H7,IF(G7=Arrivées!K7,Arrivées!L7,IF(G7=Arrivées!O7,Arrivées!P7,IF(G7=Arrivées!S7,Arrivées!T7,"0")))) -> 0 | I7: =IF(G7=Arrivées!G7,Arrivées!I7,IF(G7=Arrivées!K7,Arrivées!M7,IF(G7=Arrivées!O7,Arrivées!Q7,IF(G7=Arrivées!S7,Arrivées!U7,"0")))) -> 1.8 | K7: 6 | L7: =IF(K7=Arrivées!G7,Arrivées!H7,IF(K7=Arrivées!K7,Arrivées!L7,IF(K7=Arrivées!O7,Arrivées!P7,IF(K7=Arrivées!S7,Arrivées!T7,"0")))) -> 0 | M7: =IF(K7=Arrivées!G7,Arrivées!I7,IF(K7=Arrivées!K7,Arrivées!M7,IF(K7=Arrivées!O7,Arrivées!Q7,IF(K7=Arrivées!S7,Arrivées!U7,"0")))) -> 0 | N7: =Arrivées!F7 -> 1 | O7: 1 | P7: =IF(O7=Arrivées!G7,Arrivées!H7,IF(O7=Arrivées!K7,Arrivées!L7,IF(O7=Arrivées!O7,Arrivées!P7,IF(O7=Arrivées!S7,Arrivées!T7,"0")))) -> 0 | Q7: =IF(O7=Arrivées!G7,Arrivées!I7,IF(O7=Arrivées!K7,Arrivées!M7,IF(O7=Arrivées!O7,Arrivées!Q7,IF(O7=Arrivées!S7,Arrivées!U7,"0")))) -> 0 | R7: =Arrivées!F7 -> 1 | S7: 7 | T7: =IF(S7=Arrivées!G7,Arrivées!H7,IF(S7=Arrivées!K7,Arrivées!L7,IF(S7=Arrivées!O7,Arrivées!P7,IF(S7=Arrivées!S7,Arrivées!T7,"0")))) -> 0 | U7: =IF(S7=Arrivées!G7,Arrivées!I7,IF(S7=Arrivées!K7,Arrivées!M7,IF(S7=Arrivées!O7,Arrivées!Q7,IF(S7=Arrivées!S7,Arrivées!U7,"0")))) -> 3.2 | W7: =Arrivées!W7 -> ESPEJO-AMAR | X7: =Arrivées!X7 -> R2C1
A8: =Arrivées!A8 -> 2017-01-01 | B8: =Arrivées!B8 -> PAU | C8: =Arrivées!C8 -> MAIDEN | D8: =Arrivées!D8 -> FEMELLE | E8: =Arrivées!E8 -> 9 | F8: =Arrivées!F8 -> 1 | G8: 1 | H8: =IF(G8=Arrivées!G8,Arrivées!H8,IF(G8=Arrivées!K8,Arrivées!L8,IF(G8=Arrivées!O8,Arrivées!P8,IF(G8=Arrivées!S8,Arrivées!T8,"0")))) -> 1.8 | I8: =IF(G8=Arrivées!G8,Arrivées!I8,IF(G8=Arrivées!K8,Arrivées!M8,IF(G8=Arrivées!O8,Arrivées!Q8,IF(G8=Arrivées!S8,Arrivées!U8,"0")))) -> 1.1 | K8: 2 | L8: =IF(K8=Arrivées!G8,Arrivées!H8,IF(K8=Arrivées!K8,Arrivées!L8,IF(K8=Arrivées!O8,Arrivées!P8,IF(K8=Arrivées!S8,Arrivées!T8,"0")))) -> 0 | M8: =IF(K8=Arrivées!G8,Arrivées!I8,IF(K8=Arrivées!K8,Arrivées!M8,IF(K8=Arrivées!O8,Arrivées!Q8,IF(K8=Arrivées!S8,Arrivées!U8,"0")))) -> 1.2 | N8: =Arrivées!F8 -> 1 | O8: 3 | P8: =IF(O8=Arrivées!G8,Arrivées!H8,IF(O8=Arrivées!K8,Arrivées!L8,IF(O8=Arrivées!O8,Arrivées!P8,IF(O8=Arrivées!S8,Arrivées!T8,"0")))) -> 0 | Q8: =IF(O8=Arrivées!G8,Arrivées!I8,IF(O8=Arrivées!K8,Arrivées!M8,IF(O8=Arrivées!O8,Arrivées!Q8,IF(O8=Arrivées!S8,Arrivées!U8,"0")))) -> 1.2 | R8: =Arrivées!F8 -> 1 | S8: 7 | T8: =IF(S8=Arrivées!G8,Arrivées!H8,IF(S8=Arrivées!K8,Arrivées!L8,IF(S8=Arrivées!O8,Arrivées!P8,IF(S8=Arrivées!S8,Arrivées!T8,"0")))) -> 0 | U8: =IF(S8=Arrivées!G8,Arrivées!I8,IF(S8=Arrivées!K8,Arrivées!M8,IF(S8=Arrivées!O8,Arrivées!Q8,IF(S8=Arrivées!S8,Arrivées!U8,"0")))) -> 0 | W8: =Arrivées!W8 -> ESPEJO-AMAR | X8: =Arrivées!X8 -> R2C3
A9: =Arrivées!A9 -> 2017-01-01 | B9: =Arrivées!B9 -> PAU | C9: =Arrivées!C9 -> H | D9: =Arrivées!D9 -> D | E9: =Arrivées!E9 -> 10 | F9: =Arrivées!F9 -> 1 | G9: 8 | H9: =IF(G9=Arrivées!G9,Arrivées!H9,IF(G9=Arrivées!K9,Arrivées!L9,IF(G9=Arrivées!O9,Arrivées!P9,IF(G9=Arrivées!S9,Arrivées!T9,"0")))) -> 3.7 | I9: =IF(G9=Arrivées!G9,Arrivées!I9,IF(G9=Arrivées!K9,Arrivées!M9,IF(G9=Arrivées!O9,Arrivées!Q9,IF(G9=Arrivées!S9,Arrivées!U9,"0")))) -> 1.5 | K9: 7 | L9: =IF(K9=Arrivées!G9,Arrivées!H9,IF(K9=Arrivées!K9,Arrivées!L9,IF(G9=Arrivées!O9,Arrivées!P9,IF(K9=Arrivées!S9,Arrivées!T9,"0")))) -> 0 | M9: =IF(K9=Arrivées!G9,Arrivées!I9,IF(K9=Arrivées!K9,Arrivées!M9,IF(K9=Arrivées!O9,Arrivées!Q9,IF(K9=Arrivées!S9,Arrivées!U9,"0")))) -> 1.8 | N9: =Arrivées!F9 -> 1 | O9: 3 | P9: =IF(O9=Arrivées!G9,Arrivées!H9,IF(O9=Arrivées!K9,Arrivées!L9,IF(O9=Arrivées!O9,Arrivées!P9,IF(O9=Arrivées!S9,Arrivées!T9,"0")))) -> 0 | Q9: =IF(O9=Arrivées!G9,Arrivées!I9,IF(O9=Arrivées!K9,Arrivées!M9,IF(O9=Arrivées!O9,Arrivées!Q9,IF(O9=Arrivées!S9,Arrivées!U9,"0")))) -> 0 | R9: =Arrivées!F9 -> 1 | S9: 1 | T9: =IF(S9=Arrivées!G9,Arrivées!H9,IF(S9=Arrivées!K9,Arrivées!L9,IF(S9=Arrivées!O9,Arrivées!P9,IF(S9=Arrivées!S9,Arrivées!T9,"0")))) -> 0 | U9: =IF(S9=Arrivées!G9,Arrivées!I9,IF(S9=Arrivées!K9,Arrivées!M9,IF(S9=Arrivées!O9,Arrivées!Q9,IF(S9=Arrivées!S9,Arrivées!U9,"0")))) -> 1.7 | W9: =Arrivées!W9 -> ESPEJO-AMAR | X9: =Arrivées!X9 -> R2C7
A10: =Arrivées!A10 -> 2017-01-02 | B10: =Arrivées!B10 -> DEAUVILLE | C10: =Arrivées!C10 -> NON | D10: =Arrivées!D10 -> D | E10: =Arrivées!E10 -> 7 | F10: =Arrivées!F10 -> 1 | G10: 3 | H10: =IF(G10=Arrivées!G10,Arrivées!H10,IF(G10=Arrivées!K10,Arrivées!L10,IF(G10=Arrivées!O10,Arrivées!P10,IF(G10=Arrivées!S10,Arrivées!T10,"0")))) -> 1.5 | I10: =IF(G10=Arrivées!G10,Arrivées!I10,IF(G10=Arrivées!K10,Arrivées!M10,IF(G10=Arrivées!O10,Arrivées!Q10,IF(G10=Arrivées!S10,Arrivées!U10,"0")))) -> 1.1 | K10: 1 | L10: =IF(K10=Arrivées!G10,Arrivées!H10,IF(K10=Arrivées!K10,Arrivées!L10,IF(G10=Arrivées!O10,Arrivées!P10,IF(K10=Arrivées!S10,Arrivées!T10,"0")))) -> 0 | M10: =IF(K10=Arrivées!G10,Arrivées!I10,IF(K10=Arrivées!K10,Arrivées!M10,IF(K10=Arrivées!O10,Arrivées!Q10,IF(K10=Arrivées!S10,Arrivées!U10,"0")))) -> 0 | N10: =Arrivées!F10 -> 1 | O10: 2 | P10: =IF(O10=Arrivées!G10,Arrivées!H10,IF(O10=Arrivées!K10,Arrivées!L10,IF(O10=Arrivées!O10,Arrivées!P10,IF(O10=Arrivées!S10,Arrivées!T10,"0")))) -> 0 | Q10: =IF(O10=Arrivées!G10,Arrivées!I10,IF(O10=Arrivées!K10,Arrivées!M10,IF(O10=Arrivées!O10,Arrivées!Q10,IF(O10=Arrivées!S10,Arrivées!U10,"0")))) -> 1.5 | R10: =Arrivées!F10 -> 1 | S10: 4 | T10: =IF(S10=Arrivées!G10,Arrivées!H10,IF(S10=Arrivées!K10,Arrivées!L10,IF(S10=Arrivées!O10,Arrivées!P10,IF(S10=Arrivées!S10,Arrivées!T10,"0")))) -> 0 | U10: =IF(S10=Arrivées!G10,Arrivées!I10,IF(S10=Arrivées!K10,Arrivées!M10,IF(S10=Arrivées!O10,Arrivées!Q10,IF(S10=Arrivées!S10,Arrivées!U10,"0")))) -> 0 | W10: =Arrivées!W10 -> GINDRE | X10: =Arrivées!X10 -> R3C1
A11: =Arrivées!A11 -> 2017-01-02 | B11: =Arrivées!B11 -> DEAUVILLE | C11: =Arrivées!C11 -> RECLAMER | D11: =Arrivées!D11 -> E | E11: =Arrivées!E11 -> 9 | F11: =Arrivées!F11 -> 1 | G11: 1 | H11: =IF(G11=Arrivées!G11,Arrivées!H11,IF(G11=Arrivées!K11,Arrivées!L11,IF(G11=Arrivées!O11,Arrivées!P11,IF(G11=Arrivées!S11,Arrivées!T11,"0")))) -> 0 | I11: =IF(G11=Arrivées!G11,Arrivées!I11,IF(G11=Arrivées!K11,Arrivées!M11,IF(G11=Arrivées!O11,Arrivées!Q11,IF(G11=Arrivées!S11,Arrivées!U11,"0")))) -> 2.6 | K11: 3 | L11: =IF(K11=Arrivées!G11,Arrivées!H11,IF(K11=Arrivées!K11,Arrivées!L11,IF(G11=Arrivées!O11,Arrivées!P11,IF(K11=Arrivées!S11,Arrivées!T11,"0")))) -> 0 | M11: =IF(K11=Arrivées!G11,Arrivées!I11,IF(K11=Arrivées!K11,Arrivées!M11,IF(K11=Arrivées!O11,Arrivées!Q11,IF(K11=Arrivées!S11,Arrivées!U11,"0")))) -> 0 | N11: =Arrivées!F11 -> 1 | O11: 8 | P11: =IF(O11=Arrivées!G11,Arrivées!H11,IF(O11=Arrivées!K11,Arrivées!L11,IF(O11=Arrivées!O11,Arrivées!P11,IF(O11=Arrivées!S11,Arrivées!T11,"0")))) -> 0 | Q11: =IF(O11=Arrivées!G11,Arrivées!I11,IF(O11=Arrivées!K11,Arrivées!M11,IF(O11=Arrivées!O11,Arrivées!Q11,IF(O11=Arrivées!S11,Arrivées!U11,"0")))) -> 1.7 | R11: =Arrivées!F11 -> 1 | S11: 2 | T11: =IF(S11=Arrivées!G11,Arrivées!H11,IF(S11=Arrivées!K11,Arrivées!L11,IF(S11=Arrivées!O11,Arrivées!P11,IF(S11=Arrivées!S11,Arrivées!T11,"0")))) -> 3.6 | U11: =IF(S11=Arrivées!G11,Arrivées!I11,IF(S11=Arrivées!K11,Arrivées!M11,IF(S11=Arrivées!O11,Arrivées!Q11,IF(S11=Arrivées!S11,Arrivées!U11,"0")))) -> 2 | W11: =Arrivées!W11 -> GINDRE | X11: =Arrivées!X11 -> R3C2
A12: =Arrivées!A12 -> 2017-01-02 | B12: =Arrivées!B12 -> DEAUVILLE | C12: =Arrivées!C12 -> RECLAMER | D12: =Arrivées!D12 -> E | E12: =Arrivées!E12 -> 10 | F12: =Arrivées!F12 -> 1 | G12: 2 | H12: =IF(G12=Arrivées!G12,Arrivées!H12,IF(G12=Arrivées!K12,Arrivées!L12,IF(G12=Arrivées!O12,Arrivées!P12,IF(G12=Arrivées!S12,Arrivées!T12,"0")))) -> 0 | I12: =IF(G12=Arrivées!G12,Arrivées!I12,IF(G12=Arrivées!K12,Arrivées!M12,IF(G12=Arrivées!O12,Arrivées!Q12,IF(G12=Arrivées!S12,Arrivées!U12,"0")))) -> 1.2 | K12: 4 | L12: =IF(K12=Arrivées!G12,Arrivées!H12,IF(K12=Arrivées!K12,Arrivées!L12,IF(G12=Arrivées!O12,Arrivées!P12,IF(K12=Arrivées!S12,Arrivées!T12,"0")))) -> 3.2 | M12: =IF(K12=Arrivées!G12,Arrivées!I12,IF(K12=Arrivées!K12,Arrivées!M12,IF(K12=Arrivées!O12,Arrivées!Q12,IF(K12=Arrivées!S12,Arrivées!U12,"0")))) -> 1.2 | N12: =Arrivées!F12 -> 1 | O12: 1 | P12: =IF(O12=Arrivées!G12,Arrivées!H12,IF(O12=Arrivées!K12,Arrivées!L12,IF(O12=Arrivées!O12,Arrivées!P12,IF(O12=Arrivées!S12,Arrivées!T12,"0")))) -> 0 | Q12: =IF(O12=Arrivées!G12,Arrivées!I12,IF(O12=Arrivées!K12,Arrivées!M12,IF(O12=Arrivées!O12,Arrivées!Q12,IF(O12=Arrivées!S12,Arrivées!U12,"0")))) -> 0 | R12: =Arrivées!F12 -> 1 | S12: 5 | T12: =IF(S12=Arrivées!G12,Arrivées!H12,IF(S12=Arrivées!K12,Arrivées!L12,IF(S12=Arrivées!O12,Arrivées!P12,IF(S12=Arrivées!S12,Arrivées!T12,"0")))) -> 0 | U12: =IF(S12=Arrivées!G12,Arrivées!I12,IF(S12=Arrivées!K12,Arrivées!M12,IF(S12=Arrivées!O12,Arrivées!Q12,IF(S12=Arrivées!S12,Arrivées!U12,"0")))) -> 0 | W12: =Arrivées!W12 -> GINDRE | X12: =Arrivées!X12 -> R3C3
A13: =Arrivées!A13 -> 2017-01-02 | B13: =Arrivées!B13 -> DEAUVILLE | C13: =Arrivées!C13 -> CAVALIERE | D13: =Arrivées!D13 -> E | E13: =Arrivées!E13 -> 9 | F13: =Arrivées!F13 -> 1 | G13: 3 | H13: =IF(G13=Arrivées!G13,Arrivées!H13,IF(G13=Arrivées!K13,Arrivées!L13,IF(G13=Arrivées!O13,Arrivées!P13,IF(G13=Arrivées!S13,Arrivées!T13,"0")))) -> 2.4 | I13: =IF(G13=Arrivées!G13,Arrivées!I13,IF(G13=Arrivées!K13,Arrivées!M13,IF(G13=Arrivées!O13,Arrivées!Q13,IF(G13=Arrivées!S13,Arrivées!U13,"0")))) -> 1.1 | K13: 2 | L13: =IF(K13=Arrivées!G13,Arrivées!H13,IF(K13=Arrivées!K13,Arrivées!L13,IF(G13=Arrivées!O13,Arrivées!P13,IF(K13=Arrivées!S13,Arrivées!T13,"0")))) -> 0 | M13: =IF(K13=Arrivées!G13,Arrivées!I13,IF(K13=Arrivées!K13,Arrivées!M13,IF(K13=Arrivées!O13,Arrivées!Q13,IF(K13=Arrivées!S13,Arrivées!U13,"0")))) -> 0 | N13: =Arrivées!F13 -> 1 | O13: 1 | P13: =IF(O13=Arrivées!G13,Arrivées!H13,IF(O13=Arrivées!K13,Arrivées!L13,IF(O13=Arrivées!O13,Arrivées!P13,IF(O13=Arrivées!S13,Arrivées!T13,"0")))) -> 0 | Q13: =IF(O13=Arrivées!G13,Arrivées!I13,IF(O13=Arrivées!K13,Arrivées!M13,IF(O13=Arrivées!O13,Arrivées!Q13,IF(O13=Arrivées!S13,Arrivées!U13,"0")))) -> 0 | R13: =Arrivées!F13 -> 1 | S13: 5 | T13: =IF(S13=Arrivées!G13,Arrivées!H13,IF(S13=Arrivées!K13,Arrivées!L13,IF(S13=Arrivées!O13,Arrivées!P13,IF(S13=Arrivées!S13,Arrivées!T13,"0")))) -> 0 | U13: =IF(S13=Arrivées!G13,Arrivées!I13,IF(S13=Arrivées!K13,Arrivées!M13,IF(S13=Arrivées!O13,Arrivées!Q13,IF(S13=Arrivées!S13,Arrivées!U13,"0")))) -> 1.6 | W13: =Arrivées!W13 -> GINDRE | X13: =Arrivées!X13 -> R3C4
A14: =Arrivées!A14 -> 2017-01-02 | B14: =Arrivées!B14 -> DEAUVILLE | C14: =Arrivées!C14 -> NON | D14: =Arrivées!D14 -> D | E14: =Arrivées!E14 -> 9 | F14: =Arrivées!F14 -> 1 | G14: 1 | H14: =IF(G14=Arrivées!G14,Arrivées!H14,IF(G14=Arrivées!K14,Arrivées!L14,IF(G14=Arrivées!O14,Arrivées!P14,IF(G14=Arrivées!S14,Arrivées!T14,"0")))) -> 0 | I14: =IF(G14=Arrivées!G14,Arrivées!I14,IF(G14=Arrivées!K14,Arrivées!M14,IF(G14=Arrivées!O14,Arrivées!Q14,IF(G14=Arrivées!S14,Arrivées!U14,"0")))) -> 1.8 | K14: 6 | L14: =IF(K14=Arrivées!G14,Arrivées!H14,IF(K14=Arrivées!K14,Arrivées!L14,IF(G14=Arrivées!O14,Arrivées!P14,IF(K14=Arrivées!S14,Arrivées!T14,"0")))) -> 4.8 | M14: =IF(K14=Arrivées!G14,Arrivées!I14,IF(K14=Arrivées!K14,Arrivées!M14,IF(K14=Arrivées!O14,Arrivées!Q14,IF(K14=Arrivées!S14,Arrivées!U14,"0")))) -> 1.8 | N14: =Arrivées!F14 -> 1 | O14: 2 | P14: =IF(O14=Arrivées!G14,Arrivées!H14,IF(O14=Arrivées!K14,Arrivées!L14,IF(O14=Arrivées!O14,Arrivées!P14,IF(O14=Arrivées!S14,Arrivées!T14,"0")))) -> 0 | Q14: =IF(O14=Arrivées!G14,Arrivées!I14,IF(O14=Arrivées!K14,Arrivées!M14,IF(O14=Arrivées!O14,Arrivées!Q14,IF(O14=Arrivées!S14,Arrivées!U14,"0")))) -> 0 | R14: =Arrivées!F14 -> 1 | S14: 9 | T14: =IF(S14=Arrivées!G14,Arrivées!H14,IF(S14=Arrivées!K14,Arrivées!L14,IF(S14=Arrivées!O14,Arrivées!P14,IF(S14=Arrivées!S14,Arrivées!T14,"0")))) -> 0 | U14: =IF(S14=Arrivées!G14,Arrivées!I14,IF(S14=Arrivées!K14,Arrivées!M14,IF(S14=Arrivées!O14,Arrivées!Q14,IF(S14=Arrivées!S14,Arrivées!U14,"0")))) -> 1.3 | W14: =Arrivées!W14 -> GINDRE | X14: =Arrivées!X14 -> R3C5
A15: =Arrivées!A15 -> 2017-01-02 | B15: =Arrivées!B15 -> DEAUVILLE | C15: =Arrivées!C15 -> HD | D15: =Arrivées!D15 -> E | E15: =Arrivées!E15 -> 15 | F15: =Arrivées!F15 -> 1 | G15: 1 | H15: =IF(G15=Arrivées!G15,Arrivées!H15,IF(G15=Arrivées!K15,Arrivées!L15,IF(G15=Arrivées!O15,Arrivées!P15,IF(G15=Arrivées!S15,Arrivées!T15,"0")))) -> 4.3 | I15: =IF(G15=Arrivées!G15,Arrivées!I15,IF(G15=Arrivées!K15,Arrivées!M15,IF(G15=Arrivées!O15,Arrivées!Q15,IF(G15=Arrivées!S15,Arrivées!U15,"0")))) -> 2 | K15: 7 | L15: =IF(K15=Arrivées!G15,Arrivées!H15,IF(K15=Arrivées!K15,Arrivées!L15,IF(G15=Arrivées!O15,Arrivées!P15,IF(K15=Arrivées!S15,Arrivées!T15,"0")))) -> 0 | M15: =IF(K15=Arrivées!G15,Arrivées!I15,IF(K15=Arrivées!K15,Arrivées!M15,IF(K15=Arrivées!O15,Arrivées!Q15,IF(K15=Arrivées!S15,Arrivées!U15,"0")))) -> 0 | N15: =Arrivées!F15 -> 1 | O15: 11 | P15: =IF(O15=Arrivées!G15,Arrivées!H15,IF(O15=Arrivées!K15,Arrivées!L15,IF(O15=Arrivées!O15,Arrivées!P15,IF(O15=Arrivées!S15,Arrivées!T15,"0")))) -> 0 | Q15: =IF(O15=Arrivées!G15,Arrivées!I15,IF(O15=Arrivées!K15,Arrivées!M15,IF(O15=Arrivées!O15,Arrivées!Q15,IF(O15=Arrivées!S15,Arrivées!U15,"0")))) -> 0 | R15: =Arrivées!F15 -> 1 | S15: 5 | T15: =IF(S15=Arrivées!G15,Arrivées!H15,IF(S15=Arrivées!K15,Arrivées!L15,IF(S15=Arrivées!O15,Arrivées!P15,IF(S15=Arrivées!S15,Arrivées!T15,"0")))) -> 0 | U15: =IF(S15=Arrivées!G15,Arrivées!I15,IF(S15=Arrivées!K15,Arrivées!M15,IF(S15=Arrivées!O15,Arrivées!Q15,IF(S15=Arrivées!S15,Arrivées!U15,"0")))) -> 0 | W15: =Arrivées!W15 -> GINDRE | X15: =Arrivées!X15 -> R3C6
A16: =Arrivées!A16 -> 2017-01-02 | B16: =Arrivées!B16 -> DEAUVILLE | C16: =Arrivées!C16 -> HD | D16: =Arrivées!D16 -> E | E16: =Arrivées!E16 -> 16 | F16: =Arrivées!F16 -> 1 | G16: 1 | H16: =IF(G16=Arrivées!G16,Arrivées!H16,IF(G16=Arrivées!K16,Arrivées!L16,IF(G16=Arrivées!O16,Arrivées!P16,IF(G16=Arrivées!S16,Arrivées!T16,"0")))) -> 0 | I16: =IF(G16=Arrivées!G16,Arrivées!I16,IF(G16=Arrivées!K16,Arrivées!M16,IF(G16=Arrivées!O16,Arrivées!Q16,IF(G16=Arrivées!S16,Arrivées!U16,"0")))) -> 0 | K16: 2 | L16: =IF(K16=Arrivées!G16,Arrivées!H16,IF(K16=Arrivées!K16,Arrivées!L16,IF(G16=Arrivées!O16,Arrivées!P16,IF(K16=Arrivées!S16,Arrivées!T16,"0")))) -> 0 | M16: =IF(K16=Arrivées!G16,Arrivées!I16,IF(K16=Arrivées!K16,Arrivées!M16,IF(K16=Arrivées!O16,Arrivées!Q16,IF(K16=Arrivées!S16,Arrivées!U16,"0")))) -> 2.4 | N16: =Arrivées!F16 -> 1 | O16: 5 | P16: =IF(O16=Arrivées!G16,Arrivées!H16,IF(O16=Arrivées!K16,Arrivées!L16,IF(O16=Arrivées!O16,Arrivées!P16,IF(O16=Arrivées!S16,Arrivées!T16,"0")))) -> 0 | Q16: =IF(O16=Arrivées!G16,Arrivées!I16,IF(O16=Arrivées!K16,Arrivées!M16,IF(O16=Arrivées!O16,Arrivées!Q16,IF(O16=Arrivées!S16,Arrivées!U16,"0")))) -> 0 | R16: =Arrivées!F16 -> 1 | S16: 6 | T16: =IF(S16=Arrivées!G16,Arrivées!H16,IF(S16=Arrivées!K16,Arrivées!L16,IF(S16=Arrivées!O16,Arrivées!P16,IF(S16=Arrivées!S16,Arrivées!T16,"0")))) -> 0 | U16: =IF(S16=Arrivées!G16,Arrivées!I16,IF(S16=Arrivées!K16,Arrivées!M16,IF(S16=Arrivées!O16,Arrivées!Q16,IF(S16=Arrivées!S16,Arrivées!U16,"0")))) -> 0 | W16: =Arrivées!W16 -> GINDRE | X16: =Arrivées!X16 -> R3C7
A17: =Arrivées!A17 -> 2017-01-02 | B17: =Arrivées!B17 -> DEAUVILLE | C17: =Arrivées!C17 -> HD | D17: =Arrivées!D17 -> E | E17: =Arrivées!E17 -> 16 | F17: =Arrivées!F17 -> 1 | G17: 1 | H17: =IF(G17=Arrivées!G17,Arrivées!H17,IF(G17=Arrivées!K17,Arrivées!L17,IF(G17=Arrivées!O17,Arrivées!P17,IF(G17=Arrivées!S17,Arrivées!T17,"0")))) -> 3.5 | I17: =IF(G17=Arrivées!G17,Arrivées!I17,IF(G17=Arrivées!K17,Arrivées!M17,IF(G17=Arrivées!O17,Arrivées!Q17,IF(G17=Arrivées!S17,Arrivées!U17,"0")))) -> 1.6 | K17: 8 | L17: =IF(K17=Arrivées!G17,Arrivées!H17,IF(K17=Arrivées!K17,Arrivées!L17,IF(G17=Arrivées!O17,Arrivées!P17,IF(K17=Arrivées!S17,Arrivées!T17,"0")))) -> 0 | M17: =IF(K17=Arrivées!G17,Arrivées!I17,IF(K17=Arrivées!K17,Arrivées!M17,IF(K17=Arrivées!O17,Arrivées!Q17,IF(K17=Arrivées!S17,Arrivées!U17,"0")))) -> 1.8 | N17: =Arrivées!F17 -> 1 | O17: 3 | P17: =IF(O17=Arrivées!G17,Arrivées!H17,IF(O17=Arrivées!K17,Arrivées!L17,IF(O17=Arrivées!O17,Arrivées!P17,IF(O17=Arrivées!S17,Arrivées!T17,"0")))) -> 0 | Q17: =IF(O17=Arrivées!G17,Arrivées!I17,IF(O17=Arrivées!K17,Arrivées!M17,IF(O17=Arrivées!O17,Arrivées!Q17,IF(O17=Arrivées!S17,Arrivées!U17,"0")))) -> 0 | R17: =Arrivées!F17 -> 1 | S17: 4 | T17: =IF(S17=Arrivées!G17,Arrivées!H17,IF(S17=Arrivées!K17,Arrivées!L17,IF(S17=Arrivées!O17,Arrivées!P17,IF(S17=Arrivées!S17,Arrivées!T17,"0")))) -> 0 | U17: =IF(S17=Arrivées!G17,Arrivées!I17,IF(S17=Arrivées!K17,Arrivées!M17,IF(S17=Arrivées!O17,Arrivées!Q17,IF(S17=Arrivées!S17,Arrivées!U17,"0")))) -> 0 | W17: =Arrivées!W17 -> GINDRE | X17: =Arrivées!X17 -> R3C8
A18: =Arrivées!A18 -> 2017-01-02 | B18: =Arrivées!B18 -> DEAUVILLE | C18: =Arrivées!C18 -> HD | D18: =Arrivées!D18 -> E | E18: =Arrivées!E18 -> 16 | F18: =Arrivées!F18 -> 1 | G18: 6 | H18: =IF(G18=Arrivées!G18,Arrivées!H18,IF(G18=Arrivées!K18,Arrivées!L18,IF(G18=Arrivées!O18,Arrivées!P18,IF(G18=Arrivées!S18,Arrivées!T18,"0")))) -> 0 | I18: =IF(G18=Arrivées!G18,Arrivées!I18,IF(G18=Arrivées!K18,Arrivées!M18,IF(G18=Arrivées!O18,Arrivées!Q18,IF(G18=Arrivées!S18,Arrivées!U18,"0")))) -> 0 | K18: 7 | L18: =IF(K18=Arrivées!G18,Arrivées!H18,IF(K18=Arrivées!K18,Arrivées!L18,IF(G18=Arrivées!O18,Arrivées!P18,IF(K18=Arrivées!S18,Arrivées!T18,"0")))) -> 5.2 | M18: =IF(K18=Arrivées!G18,Arrivées!I18,IF(K18=Arrivées!K18,Arrivées!M18,IF(K18=Arrivées!O18,Arrivées!Q18,IF(K18=Arrivées!S18,Arrivées!U18,"0")))) -> 2.2 | N18: =Arrivées!F18 -> 1 | O18: 9 | P18: =IF(O18=Arrivées!G18,Arrivées!H18,IF(O18=Arrivées!K18,Arrivées!L18,IF(O18=Arrivées!O18,Arrivées!P18,IF(O18=Arrivées!S18,Arrivées!T18,"0")))) -> 0 | Q18: =IF(O18=Arrivées!G18,Arrivées!I18,IF(O18=Arrivées!K18,Arrivées!M18,IF(O18=Arrivées!O18,Arrivées!Q18,IF(O18=Arrivées!S18,Arrivées!U18,"0")))) -> 0 | R18: =Arrivées!F18 -> 1 | S18: 4 | T18: =IF(S18=Arrivées!G18,Arrivées!H18,IF(S18=Arrivées!K18,Arrivées!L18,IF(S18=Arrivées!O18,Arrivées!P18,IF(S18=Arrivées!S18,Arrivées!T18,"0")))) -> 0 | U18: =IF(S18=Arrivées!G18,Arrivées!I18,IF(S18=Arrivées!K18,Arrivées!M18,IF(S18=Arrivées!O18,Arrivées!Q18,IF(S18=Arrivées!S18,Arrivées!U18,"0")))) -> 0 | W18: =Arrivées!W18 -> GINDRE | X18: =Arrivées!X18 -> R3C9
A19: =Arrivées!A19 -> 2017-01-02 | B19: =Arrivées!B19 -> MONS | C19: =Arrivées!C19 -> H | D19: =Arrivées!D19 -> NON | E19: =Arrivées!E19 -> 13 | F19: =Arrivées!F19 -> 1 | G19: 7 | H19: =IF(G19=Arrivées!G19,Arrivées!H19,IF(G19=Arrivées!K19,Arrivées!L19,IF(G19=Arrivées!O19,Arrivées!P19,IF(G19=Arrivées!S19,Arrivées!T19,"0")))) -> 0 | I19: =IF(G19=Arrivées!G19,Arrivées!I19,IF(G19=Arrivées!K19,Arrivées!M19,IF(G19=Arrivées!O19,Arrivées!Q19,IF(G19=Arrivées!S19,Arrivées!U19,"0")))) -> 0 | K19: 5 | L19: =IF(K19=Arrivées!G19,Arrivées!H19,IF(K19=Arrivées!K19,Arrivées!L19,IF(G19=Arrivées!O19,Arrivées!P19,IF(K19=Arrivées!S19,Arrivées!T19,"0")))) -> 0 | M19: =IF(K19=Arrivées!G19,Arrivées!I19,IF(K19=Arrivées!K19,Arrivées!M19,IF(K19=Arrivées!O19,Arrivées!Q19,IF(K19=Arrivées!S19,Arrivées!U19,"0")))) -> 0 | N19: =Arrivées!F19 -> 1 | O19: 1 | P19: =IF(O19=Arrivées!G19,Arrivées!H19,IF(O19=Arrivées!K19,Arrivées!L19,IF(O19=Arrivées!O19,Arrivées!P19,IF(O19=Arrivées!S19,Arrivées!T19,"0")))) -> 0 | Q19: =IF(O19=Arrivées!G19,Arrivées!I19,IF(O19=Arrivées!K19,Arrivées!M19,IF(O19=Arrivées!O19,Arrivées!Q19,IF(O19=Arrivées!S19,Arrivées!U19,"0")))) -> 0 | R19: =Arrivées!F19 -> 1 | S19: 3 | T19: =IF(S19=Arrivées!G19,Arrivées!H19,IF(S19=Arrivées!K19,Arrivées!L19,IF(S19=Arrivées!O19,Arrivées!P19,IF(S19=Arrivées!S19,Arrivées!T19,"0")))) -> 0 | U19: =IF(S19=Arrivées!G19,Arrivées!I19,IF(S19=Arrivées!K19,Arrivées!M19,IF(S19=Arrivées!O19,Arrivées!Q19,IF(S19=Arrivées!S19,Arrivées!U19,"0")))) -> 0 | W19: =Arrivées!W19 -> HIRON | X19: =Arrivées!X19 -> R5C1
A20: =Arrivées!A20 -> 2017-01-02 | B20: =Arrivées!B20 -> MONS | C20: =Arrivées!C20 -> H | D20: =Arrivées!D20 -> NON | E20: =Arrivées!E20 -> 14 | F20: =Arrivées!F20 -> 1 | G20: 3 | H20: =IF(G20=Arrivées!G20,Arrivées!H20,IF(G20=Arrivées!K20,Arrivées!L20,IF(G20=Arrivées!O20,Arrivées!P20,IF(G20=Arrivées!S20,Arrivées!T20,"0")))) -> 2.4 | I20: =IF(G20=Arrivées!G20,Arrivées!I20,IF(G20=Arrivées!K20,Arrivées!M20,IF(G20=Arrivées!O20,Arrivées!Q20,IF(G20=Arrivées!S20,Arrivées!U20,"0")))) -> 1.3 | K20: 1 | L20: =IF(K20=Arrivées!G20,Arrivées!H20,IF(K20=Arrivées!K20,Arrivées!L20,IF(G20=Arrivées!O20,Arrivées!P20,IF(K20=Arrivées!S20,Arrivées!T20,"0")))) -> 0 | M20: =IF(K20=Arrivées!G20,Arrivées!I20,IF(K20=Arrivées!K20,Arrivées!M20,IF(K20=Arrivées!O20,Arrivées!Q20,IF(K20=Arrivées!S20,Arrivées!U20,"0")))) -> 0 | N20: =Arrivées!F20 -> 1 | O20: 12 | P20: =IF(O20=Arrivées!G20,Arrivées!H20,IF(O20=Arrivées!K20,Arrivées!L20,IF(O20=Arrivées!O20,Arrivées!P20,IF(O20=Arrivées!S20,Arrivées!T20,"0")))) -> 0 | Q20: =IF(O20=Arrivées!G20,Arrivées!I20,IF(O20=Arrivées!K20,Arrivées!M20,IF(O20=Arrivées!O20,Arrivées!Q20,IF(O20=Arrivées!S20,Arrivées!U20,"0")))) -> 2.6 | R20: =Arrivées!F20 -> 1 | S20: 2 | T20: =IF(S20=Arrivées!G20,Arrivées!H20,IF(S20=Arrivées!K20,Arrivées!L20,IF(S20=Arrivées!O20,Arrivées!P20,IF(S20=Arrivées!S20,Arrivées!T20,"0")))) -> 0 | U20: =IF(S20=Arrivées!G20,Arrivées!I20,IF(S20=Arrivées!K20,Arrivées!M20,IF(S20=Arrivées!O20,Arrivées!Q20,IF(S20=Arrivées!S20,Arrivées!U20,"0")))) -> 3.5 | W20: =Arrivées!W20 -> HIRON | X20: =Arrivées!X20 -> R5C2
A21: =Arrivées!A21 -> 2017-01-02 | B21: =Arrivées!B21 -> MONS | C21: =Arrivées!C21 -> H | D21: =Arrivées!D21 -> NON | E21: =Arrivées!E21 -> 9 | F21: =Arrivées!F21 -> 1 | G21: 10 | H21: =IF(G21=Arrivées!G21,Arrivées!H21,IF(G21=Arrivées!K21,Arrivées!L21,IF(G21=Arrivées!O21,Arrivées!P21,IF(G21=Arrivées!S21,Arrivées!T21,"0")))) -> 0 | I21: =IF(G21=Arrivées!G21,Arrivées!I21,IF(G21=Arrivées!K21,Arrivées!M21,IF(G21=Arrivées!O21,Arrivées!Q21,IF(G21=Arrivées!S21,Arrivées!U21,"0")))) -> 1.9 | K21: 5 | L21: =IF(K21=Arrivées!G21,Arrivées!H21,IF(K21=Arrivées!K21,Arrivées!L21,IF(G21=Arrivées!O21,Arrivées!P21,IF(K21=Arrivées!S21,Arrivées!T21,"0")))) -> 0 | M21: =IF(K21=Arrivées!G21,Arrivées!I21,IF(K21=Arrivées!K21,Arrivées!M21,IF(K21=Arrivées!O21,Arrivées!Q21,IF(K21=Arrivées!S21,Arrivées!U21,"0")))) -> 0 | N21: =Arrivées!F21 -> 1 | O21: 1 | P21: =IF(O21=Arrivées!G21,Arrivées!H21,IF(O21=Arrivées!K21,Arrivées!L21,IF(O21=Arrivées!O21,Arrivées!P21,IF(O21=Arrivées!S21,Arrivées!T21,"0")))) -> 0 | Q21: =IF(O21=Arrivées!G21,Arrivées!I21,IF(O21=Arrivées!K21,Arrivées!M21,IF(O21=Arrivées!O21,Arrivées!Q21,IF(O21=Arrivées!S21,Arrivées!U21,"0")))) -> 2.6 | R21: =Arrivées!F21 -> 1 | S21: 2 | T21: =IF(S21=Arrivées!G21,Arrivées!H21,IF(S21=Arrivées!K21,Arrivées!L21,IF(S21=Arrivées!O21,Arrivées!P21,IF(S21=Arrivées!S21,Arrivées!T21,"0")))) -> 0 | U21: =IF(S21=Arrivées!G21,Arrivées!I21,IF(S21=Arrivées!K21,Arrivées!M21,IF(S21=Arrivées!O21,Arrivées!Q21,IF(S21=Arrivées!S21,Arrivées!U21,"0")))) -> 0 | W21: =Arrivées!W21 -> HIRON | X21: =Arrivées!X21 -> R5C3
A22: =Arrivées!A22 -> 2017-01-02 | B22: =Arrivées!B22 -> MONS | C22: =Arrivées!C22 -> NON | D22: =Arrivées!D22 -> NON | E22: =Arrivées!E22 -> 8 | F22: =Arrivées!F22 -> 1 | G22: 4 | H22: =IF(G22=Arrivées!G22,Arrivées!H22,IF(G22=Arrivées!K22,Arrivées!L22,IF(G22=Arrivées!O22,Arrivées!P22,IF(G22=Arrivées!S22,Arrivées!T22,"0")))) -> 0 | I22: =IF(G22=Arrivées!G22,Arrivées!I22,IF(G22=Arrivées!K22,Arrivées!M22,IF(G22=Arrivées!O22,Arrivées!Q22,IF(G22=Arrivées!S22,Arrivées!U22,"0")))) -> 1.5 | K22: 2 | L22: =IF(K22=Arrivées!G22,Arrivées!H22,IF(K22=Arrivées!K22,Arrivées!L22,IF(G22=Arrivées!O22,Arrivées!P22,IF(K22=Arrivées!S22,Arrivées!T22,"0")))) -> 0 | M22: =IF(K22=Arrivées!G22,Arrivées!I22,IF(K22=Arrivées!K22,Arrivées!M22,IF(K22=Arrivées!O22,Arrivées!Q22,IF(K22=Arrivées!S22,Arrivées!U22,"0")))) -> 2 | N22: =Arrivées!F22 -> 1 | O22: 1 | P22: =IF(O22=Arrivées!G22,Arrivées!H22,IF(O22=Arrivées!K22,Arrivées!L22,IF(O22=Arrivées!O22,Arrivées!P22,IF(O22=Arrivées!S22,Arrivées!T22,"0")))) -> 0 | Q22: =IF(O22=Arrivées!G22,Arrivées!I22,IF(O22=Arrivées!K22,Arrivées!M22,IF(O22=Arrivées!O22,Arrivées!Q22,IF(O22=Arrivées!S22,Arrivées!U22,"0")))) -> 0 | R22: =Arrivées!F22 -> 1 | S22: 5 | T22: =IF(S22=Arrivées!G22,Arrivées!H22,IF(S22=Arrivées!K22,Arrivées!L22,IF(S22=Arrivées!O22,Arrivées!P22,IF(S22=Arrivées!S22,Arrivées!T22,"0")))) -> 0 | U22: =IF(S22=Arrivées!G22,Arrivées!I22,IF(S22=Arrivées!K22,Arrivées!M22,IF(S22=Arrivées!O22,Arrivées!Q22,IF(S22=Arrivées!S22,Arrivées!U22,"0")))) -> 0 | W22: =Arrivées!W22 -> HIRON | X22: =Arrivées!X22 -> R5C4
A23: =Arrivées!A23 -> 2017-01-02 | B23: =Arrivées!B23 -> MONS | C23: =Arrivées!C23 -> RECLAMER | D23: =Arrivées!D23 -> NON | E23: =Arrivées!E23 -> 6 | F23: =Arrivées!F23 -> 1 | G23: 2 | H23: =IF(G23=Arrivées!G23,Arrivées!H23,IF(G23=Arrivées!K23,Arrivées!L23,IF(G23=Arrivées!O23,Arrivées!P23,IF(G23=Arrivées!S23,Arrivées!T23,"0")))) -> 0 | I23: =IF(G23=Arrivées!G23,Arrivées!I23,IF(G23=Arrivées!K23,Arrivées!M23,IF(G23=Arrivées!O23,Arrivées!Q23,IF(G23=Arrivées!S23,Arrivées!U23,"0")))) -> 0 | K23: 1 | L23: =IF(K23=Arrivées!G23,Arrivées!H23,IF(K23=Arrivées!K23,Arrivées!L23,IF(G23=Arrivées!O23,Arrivées!P23,IF(K23=Arrivées!S23,Arrivées!T23,"0")))) -> 1.5 | M23: =IF(K23=Arrivées!G23,Arrivées!I23,IF(K23=Arrivées!K23,Arrivées!M23,IF(K23=Arrivées!O23,Arrivées!Q23,IF(K23=Arrivées!S23,Arrivées!U23,"0")))) -> 1.2 | N23: =Arrivées!F23 -> 1 | O23: 5 | P23: =IF(O23=Arrivées!G23,Arrivées!H23,IF(O23=Arrivées!K23,Arrivées!L23,IF(O23=Arrivées!O23,Arrivées!P23,IF(O23=Arrivées!S23,Arrivées!T23,"0")))) -> 0 | Q23: =IF(O23=Arrivées!G23,Arrivées!I23,IF(O23=Arrivées!K23,Arrivées!M23,IF(O23=Arrivées!O23,Arrivées!Q23,IF(O23=Arrivées!S23,Arrivées!U23,"0")))) -> 0 | R23: =Arrivées!F23 -> 1 | S23: 3 | T23: =IF(S23=Arrivées!G23,Arrivées!H23,IF(S23=Arrivées!K23,Arrivées!L23,IF(S23=Arrivées!O23,Arrivées!P23,IF(S23=Arrivées!S23,Arrivées!T23,"0")))) -> 0 | U23: =IF(S23=Arrivées!G23,Arrivées!I23,IF(S23=Arrivées!K23,Arrivées!M23,IF(S23=Arrivées!O23,Arrivées!Q23,IF(S23=Arrivées!S23,Arrivées!U23,"0")))) -> 0 | W23: =Arrivées!W23 -> HIRON | X23: =Arrivées!X23 -> R5C5
A24: =Arrivées!A24 -> 2017-01-02 | B24: =Arrivées!B24 -> MONS | C24: =Arrivées!C24 -> NON | D24: =Arrivées!D24 -> NON | E24: =Arrivées!E24 -> 7 | F24: =Arrivées!F24 -> 1 | G24: 1 | H24: =IF(G24=Arrivées!G24,Arrivées!H24,IF(G24=Arrivées!K24,Arrivées!L24,IF(G24=Arrivées!O24,Arrivées!P24,IF(G24=Arrivées!S24,Arrivées!T24,"0")))) -> 0 | I24: =IF(G24=Arrivées!G24,Arrivées!I24,IF(G24=Arrivées!K24,Arrivées!M24,IF(G24=Arrivées!O24,Arrivées!Q24,IF(G24=Arrivées!S24,Arrivées!U24,"0")))) -> 0 | K24: 3 | L24: =IF(K24=Arrivées!G24,Arrivées!H24,IF(K24=Arrivées!K24,Arrivées!L24,IF(G24=Arrivées!O24,Arrivées!P24,IF(K24=Arrivées!S24,Arrivées!T24,"0")))) -> 0 | M24: =IF(K24=Arrivées!G24,Arrivées!I24,IF(K24=Arrivées!K24,Arrivées!M24,IF(K24=Arrivées!O24,Arrivées!Q24,IF(K24=Arrivées!S24,Arrivées!U24,"0")))) -> 0 | N24: =Arrivées!F24 -> 1 | O24: 5 | P24: =IF(O24=Arrivées!G24,Arrivées!H24,IF(O24=Arrivées!K24,Arrivées!L24,IF(O24=Arrivées!O24,Arrivées!P24,IF(O24=Arrivées!S24,Arrivées!T24,"0")))) -> 0 | Q24: =IF(O24=Arrivées!G24,Arrivées!I24,IF(O24=Arrivées!K24,Arrivées!M24,IF(O24=Arrivées!O24,Arrivées!Q24,IF(O24=Arrivées!S24,Arrivées!U24,"0")))) -> 0 | R24: =Arrivées!F24 -> 1 | S24: 4 | T24: =IF(S24=Arrivées!G24,Arrivées!H24,IF(S24=Arrivées!K24,Arrivées!L24,IF(S24=Arrivées!O24,Arrivées!P24,IF(S24=Arrivées!S24,Arrivées!T24,"0")))) -> 1.7 | U24: =IF(S24=Arrivées!G24,Arrivées!I24,IF(S24=Arrivées!K24,Arrivées!M24,IF(S24=Arrivées!O24,Arrivées!Q24,IF(S24=Arrivées!S24,Arrivées!U24,"0")))) -> 1.5 | W24: =Arrivées!W24 -> HIRON | X24: =Arrivées!X24 -> R5C6
A25: =Arrivées!A25 -> 2017-01-03 | B25: =Arrivées!B25 -> PORNICHET BAULE | C25: =Arrivées!C25 -> HD | D25: =Arrivées!D25 -> G | E25: =Arrivées!E25 -> 15 | F25: =Arrivées!F25 -> 1 | G25: 7 | H25: =IF(G25=Arrivées!G25,Arrivées!H25,IF(G25=Arrivées!K25,Arrivées!L25,IF(G25=Arrivées!O25,Arrivées!P25,IF(G25=Arrivées!S25,Arrivées!T25,"0")))) -> 0 | I25: =IF(G25=Arrivées!G25,Arrivées!I25,IF(G25=Arrivées!K25,Arrivées!M25,IF(G25=Arrivées!O25,Arrivées!Q25,IF(G25=Arrivées!S25,Arrivées!U25,"0")))) -> 0 | K25: 1 | L25: =IF(K25=Arrivées!G25,Arrivées!H25,IF(K25=Arrivées!K25,Arrivées!L25,IF(G25=Arrivées!O25,Arrivées!P25,IF(K25=Arrivées!S25,Arrivées!T25,"0")))) -> 0 | M25: =IF(K25=Arrivées!G25,Arrivées!I25,IF(K25=Arrivées!K25,Arrivées!M25,IF(K25=Arrivées!O25,Arrivées!Q25,IF(K25=Arrivées!S25,Arrivées!U25,"0")))) -> 0 | N25: =Arrivées!F25 -> 1 | O25: 4 | P25: =IF(O25=Arrivées!G25,Arrivées!H25,IF(O25=Arrivées!K25,Arrivées!L25,IF(O25=Arrivées!O25,Arrivées!P25,IF(O25=Arrivées!S25,Arrivées!T25,"0")))) -> 9.4 | Q25: =IF(O25=Arrivées!G25,Arrivées!I25,IF(O25=Arrivées!K25,Arrivées!M25,IF(O25=Arrivées!O25,Arrivées!Q25,IF(O25=Arrivées!S25,Arrivées!U25,"0")))) -> 2.5 | R25: =Arrivées!F25 -> 1 | S25: 13 | T25: =IF(S25=Arrivées!G25,Arrivées!H25,IF(S25=Arrivées!K25,Arrivées!L25,IF(S25=Arrivées!O25,Arrivées!P25,IF(S25=Arrivées!S25,Arrivées!T25,"0")))) -> 0 | U25: =IF(S25=Arrivées!G25,Arrivées!I25,IF(S25=Arrivées!K25,Arrivées!M25,IF(S25=Arrivées!O25,Arrivées!Q25,IF(S25=Arrivées!S25,Arrivées!U25,"0")))) -> 0 | W25: =Arrivées!W25 -> HIRON | X25: =Arrivées!X25 -> R3C1
A26: =Arrivées!A26 -> 2017-01-03 | B26: =Arrivées!B26 -> PORNICHET BAULE | C26: =Arrivées!C26 -> HD | D26: =Arrivées!D26 -> G | E26: =Arrivées!E26 -> 16 | F26: =Arrivées!F26 -> 1 | G26: 10 | H26: =IF(G26=Arrivées!G26,Arrivées!H26,IF(G26=Arrivées!K26,Arrivées!L26,IF(G26=Arrivées!O26,Arrivées!P26,IF(G26=Arrivées!S26,Arrivées!T26,"0")))) -> 0 | I26: =IF(G26=Arrivées!G26,Arrivées!I26,IF(G26=Arrivées!K26,Arrivées!M26,IF(G26=Arrivées!O26,Arrivées!Q26,IF(G26=Arrivées!S26,Arrivées!U26,"0")))) -> 0 | K26: 6 | L26: =IF(K26=Arrivées!G26,Arrivées!H26,IF(K26=Arrivées!K26,Arrivées!L26,IF(G26=Arrivées!O26,Arrivées!P26,IF(K26=Arrivées!S26,Arrivées!T26,"0")))) -> 0 | M26: =IF(K26=Arrivées!G26,Arrivées!I26,IF(K26=Arrivées!K26,Arrivées!M26,IF(K26=Arrivées!O26,Arrivées!Q26,IF(K26=Arrivées!S26,Arrivées!U26,"0")))) -> 0 | N26: =Arrivées!F26 -> 1 | O26: 3 | P26: =IF(O26=Arrivées!G26,Arrivées!H26,IF(O26=Arrivées!K26,Arrivées!L26,IF(O26=Arrivées!O26,Arrivées!P26,IF(O26=Arrivées!S26,Arrivées!T26,"0")))) -> 0 | Q26: =IF(O26=Arrivées!G26,Arrivées!I26,IF(O26=Arrivées!K26,Arrivées!M26,IF(O26=Arrivées!O26,Arrivées!Q26,IF(O26=Arrivées!S26,Arrivées!U26,"0")))) -> 0 | R26: =Arrivées!F26 -> 1 | S26: 16 | T26: =IF(S26=Arrivées!G26,Arrivées!H26,IF(S26=Arrivées!K26,Arrivées!L26,IF(S26=Arrivées!O26,Arrivées!P26,IF(S26=Arrivées!S26,Arrivées!T26,"0")))) -> 0 | U26: =IF(S26=Arrivées!G26,Arrivées!I26,IF(S26=Arrivées!K26,Arrivées!M26,IF(S26=Arrivées!O26,Arrivées!Q26,IF(S26=Arrivées!S26,Arrivées!U26,"0")))) -> 2.6 | W26: =Arrivées!W26 -> HIRON | X26: =Arrivées!X26 -> R3C2
A27: =Arrivées!A27 -> 2017-01-03 | B27: =Arrivées!B27 -> PORNICHET BAULE | C27: =Arrivées!C27 -> H | D27: =Arrivées!D27 -> G | E27: =Arrivées!E27 -> 13 | F27: =Arrivées!F27 -> 1 | G27: 10 | H27: =IF(G27=Arrivées!G27,Arrivées!H27,IF(G27=Arrivées!K27,Arrivées!L27,IF(G27=Arrivées!O27,Arrivées!P27,IF(G27=Arrivées!S27,Arrivées!T27,"0")))) -> 6.9 | I27: =IF(G27=Arrivées!G27,Arrivées!I27,IF(G27=Arrivées!K27,Arrivées!M27,IF(G27=Arrivées!O27,Arrivées!Q27,IF(G27=Arrivées!S27,Arrivées!U27,"0")))) -> 1.9 | K27: 7 | L27: =IF(K27=Arrivées!G27,Arrivées!H27,IF(K27=Arrivées!K27,Arrivées!L27,IF(G27=Arrivées!O27,Arrivées!P27,IF(K27=Arrivées!S27,Arrivées!T27,"0")))) -> 0 | M27: =IF(K27=Arrivées!G27,Arrivées!I27,IF(K27=Arrivées!K27,Arrivées!M27,IF(K27=Arrivées!O27,Arrivées!Q27,IF(K27=Arrivées!S27,Arrivées!U27,"0")))) -> 0 | N27: =Arrivées!F27 -> 1 | O27: 8 | P27: =IF(O27=Arrivées!G27,Arrivées!H27,IF(O27=Arrivées!K27,Arrivées!L27,IF(O27=Arrivées!O27,Arrivées!P27,IF(O27=Arrivées!S27,Arrivées!T27,"0")))) -> 0 | Q27: =IF(O27=Arrivées!G27,Arrivées!I27,IF(O27=Arrivées!K27,Arrivées!M27,IF(O27=Arrivées!O27,Arrivées!Q27,IF(O27=Arrivées!S27,Arrivées!U27,"0")))) -> 0 | R27: =Arrivées!F27 -> 1 | S27: 9 | T27: =IF(S27=Arrivées!G27,Arrivées!H27,IF(S27=Arrivées!K27,Arrivées!L27,IF(S27=Arrivées!O27,Arrivées!P27,IF(S27=Arrivées!S27,Arrivées!T27,"0")))) -> 0 | U27: =IF(S27=Arrivées!G27,Arrivées!I27,IF(S27=Arrivées!K27,Arrivées!M27,IF(S27=Arrivées!O27,Arrivées!Q27,IF(S27=Arrivées!S27,Arrivées!U27,"0")))) -> 0 | W27: =Arrivées!W27 -> HIRON | X27: =Arrivées!X27 -> R3C3
A28: =Arrivées!A28 -> 2017-01-03 | B28: =Arrivées!B28 -> PORNICHET BAULE | C28: =Arrivées!C28 -> HC | D28: =Arrivées!D28 -> G | E28: =Arrivées!E28 -> 16 | F28: =Arrivées!F28 -> 1 | G28: 14 | H28: =IF(G28=Arrivées!G28,Arrivées!H28,IF(G28=Arrivées!K28,Arrivées!L28,IF(G28=Arrivées!O28,Arrivées!P28,IF(G28=Arrivées!S28,Arrivées!T28,"0")))) -> 0 | I28: =IF(G28=Arrivées!G28,Arrivées!I28,IF(G28=Arrivées!K28,Arrivées!M28,IF(G28=Arrivées!O28,Arrivées!Q28,IF(G28=Arrivées!S28,Arrivées!U28,"0")))) -> 0 | K28: 10 | L28: =IF(K28=Arrivées!G28,Arrivées!H28,IF(K28=Arrivées!K28,Arrivées!L28,IF(G28=Arrivées!O28,Arrivées!P28,IF(K28=Arrivées!S28,Arrivées!T28,"0")))) -> 0 | M28: =IF(K28=Arrivées!G28,Arrivées!I28,IF(K28=Arrivées!K28,Arrivées!M28,IF(K28=Arrivées!O28,Arrivées!Q28,IF(K28=Arrivées!S28,Arrivées!U28,"0")))) -> 1.6 | N28: =Arrivées!F28 -> 1 | O28: 5 | P28: =IF(O28=Arrivées!G28,Arrivées!H28,IF(O28=Arrivées!K28,Arrivées!L28,IF(O28=Arrivées!O28,Arrivées!P28,IF(O28=Arrivées!S28,Arrivées!T28,"0")))) -> 0 | Q28: =IF(O28=Arrivées!G28,Arrivées!I28,IF(O28=Arrivées!K28,Arrivées!M28,IF(O28=Arrivées!O28,Arrivées!Q28,IF(O28=Arrivées!S28,Arrivées!U28,"0")))) -> 0 | R28: =Arrivées!F28 -> 1 | S28: 8 | T28: =IF(S28=Arrivées!G28,Arrivées!H28,IF(S28=Arrivées!K28,Arrivées!L28,IF(S28=Arrivées!O28,Arrivées!P28,IF(S28=Arrivées!S28,Arrivées!T28,"0")))) -> 0 | U28: =IF(S28=Arrivées!G28,Arrivées!I28,IF(S28=Arrivées!K28,Arrivées!M28,IF(S28=Arrivées!O28,Arrivées!Q28,IF(S28=Arrivées!S28,Arrivées!U28,"0")))) -> 0 | W28: =Arrivées!W28 -> HIRON | X28: =Arrivées!X28 -> R3C4
A29: =Arrivées!A29 -> 2017-01-03 | B29: =Arrivées!B29 -> PORNICHET BAULE | C29: =Arrivées!C29 -> RECLAMER | D29: =Arrivées!D29 -> G | E29: =Arrivées!E29 -> 14 | F29: =Arrivées!F29 -> 1 | G29: 5 | H29: =IF(G29=Arrivées!G29,Arrivées!H29,IF(G29=Arrivées!K29,Arrivées!L29,IF(G29=Arrivées!O29,Arrivées!P29,IF(G29=Arrivées!S29,Arrivées!T29,"0")))) -> 0 | I29: =IF(G29=Arrivées!G29,Arrivées!I29,IF(G29=Arrivées!K29,Arrivées!M29,IF(G29=Arrivées!O29,Arrivées!Q29,IF(G29=Arrivées!S29,Arrivées!U29,"0")))) -> 0 | K29: 1 | L29: =IF(K29=Arrivées!G29,Arrivées!H29,IF(K29=Arrivées!K29,Arrivées!L29,IF(G29=Arrivées!O29,Arrivées!P29,IF(K29=Arrivées!S29,Arrivées!T29,"0")))) -> 2.3 | M29: =IF(K29=Arrivées!G29,Arrivées!I29,IF(K29=Arrivées!K29,Arrivées!M29,IF(K29=Arrivées!O29,Arrivées!Q29,IF(K29=Arrivées!S29,Arrivées!U29,"0")))) -> 1.3 | N29: =Arrivées!F29 -> 1 | O29: 15 | P29: =IF(O29=Arrivées!G29,Arrivées!H29,IF(O29=Arrivées!K29,Arrivées!L29,IF(O29=Arrivées!O29,Arrivées!P29,IF(O29=Arrivées!S29,Arrivées!T29,"0")))) -> 0 | Q29: =IF(O29=Arrivées!G29,Arrivées!I29,IF(O29=Arrivées!K29,Arrivées!M29,IF(O29=Arrivées!O29,Arrivées!Q29,IF(O29=Arrivées!S29,Arrivées!U29,"0")))) -> 0 | R29: =Arrivées!F29 -> 1 | S29: 12 | T29: =IF(S29=Arrivées!G29,Arrivées!H29,IF(S29=Arrivées!K29,Arrivées!L29,IF(S29=Arrivées!O29,Arrivées!P29,IF(S29=Arrivées!S29,Arrivées!T29,"0")))) -> 0 | U29: =IF(S29=Arrivées!G29,Arrivées!I29,IF(S29=Arrivées!K29,Arrivées!M29,IF(S29=Arrivées!O29,Arrivées!Q29,IF(S29=Arrivées!S29,Arrivées!U29,"0")))) -> 1.9 | W29: =Arrivées!W29 -> HIRON | X29: =Arrivées!X29 -> R3C5
A30: =Arrivées!A30 -> 2017-01-03 | B30: =Arrivées!B30 -> PORNICHET BAULE | C30: =Arrivées!C30 -> RECLAMER | D30: =Arrivées!D30 -> G | E30: =Arrivées!E30 -> 14 | F30: =Arrivées!F30 -> 1 | G30: 1 | H30: =IF(G30=Arrivées!G30,Arrivées!H30,IF(G30=Arrivées!K30,Arrivées!L30,IF(G30=Arrivées!O30,Arrivées!P30,IF(G30=Arrivées!S30,Arrivées!T30,"0")))) -> 0 | I30: =IF(G30=Arrivées!G30,Arrivées!I30,IF(G30=Arrivées!K30,Arrivées!M30,IF(G30=Arrivées!O30,Arrivées!Q30,IF(G30=Arrivées!S30,Arrivées!U30,"0")))) -> 2.1 | K30: 11 | L30: =IF(K30=Arrivées!G30,Arrivées!H30,IF(K30=Arrivées!K30,Arrivées!L30,IF(G30=Arrivées!O30,Arrivées!P30,IF(K30=Arrivées!S30,Arrivées!T30,"0")))) -> 0 | M30: =IF(K30=Arrivées!G30,Arrivées!I30,IF(K30=Arrivées!K30,Arrivées!M30,IF(K30=Arrivées!O30,Arrivées!Q30,IF(K30=Arrivées!S30,Arrivées!U30,"0")))) -> 0 | N30: =Arrivées!F30 -> 1 | O30: 2 | P30: =IF(O30=Arrivées!G30,Arrivées!H30,IF(O30=Arrivées!K30,Arrivées!L30,IF(O30=Arrivées!O30,Arrivées!P30,IF(O30=Arrivées!S30,Arrivées!T30,"0")))) -> 0 | Q30: =IF(O30=Arrivées!G30,Arrivées!I30,IF(O30=Arrivées!K30,Arrivées!M30,IF(O30=Arrivées!O30,Arrivées!Q30,IF(O30=Arrivées!S30,Arrivées!U30,"0")))) -> 0 | R30: =Arrivées!F30 -> 1 | S30: 10 | T30: =IF(S30=Arrivées!G30,Arrivées!H30,IF(S30=Arrivées!K30,Arrivées!L30,IF(S30=Arrivées!O30,Arrivées!P30,IF(S30=Arrivées!S30,Arrivées!T30,"0")))) -> 0 | U30: =IF(S30=Arrivées!G30,Arrivées!I30,IF(S30=Arrivées!K30,Arrivées!M30,IF(S30=Arrivées!O30,Arrivées!Q30,IF(S30=Arrivées!S30,Arrivées!U30,"0")))) -> 0 | W30: =Arrivées!W30 -> HIRON | X30: =Arrivées!X30 -> R3C6
A31: =Arrivées!A31 -> 2017-01-03 | B31: =Arrivées!B31 -> PORNICHET BAULE | C31: =Arrivées!C31 -> MAIDEN | D31: =Arrivées!D31 -> NON | E31: =Arrivées!E31 -> 10 | F31: =Arrivées!F31 -> 1 | G31: 7 | H31: =IF(G31=Arrivées!G31,Arrivées!H31,IF(G31=Arrivées!K31,Arrivées!L31,IF(G31=Arrivées!O31,Arrivées!P31,IF(G31=Arrivées!S31,Arrivées!T31,"0")))) -> 0 | I31: =IF(G31=Arrivées!G31,Arrivées!I31,IF(G31=Arrivées!K31,Arrivées!M31,IF(G31=Arrivées!O31,Arrivées!Q31,IF(G31=Arrivées!S31,Arrivées!U31,"0")))) -> 0 | K31: 3 | L31: =IF(K31=Arrivées!G31,Arrivées!H31,IF(K31=Arrivées!K31,Arrivées!L31,IF(G31=Arrivées!O31,Arrivées!P31,IF(K31=Arrivées!S31,Arrivées!T31,"0")))) -> 2.9 | M31: =IF(K31=Arrivées!G31,Arrivées!I31,IF(K31=Arrivées!K31,Arrivées!M31,IF(K31=Arrivées!O31,Arrivées!Q31,IF(K31=Arrivées!S31,Arrivées!U31,"0")))) -> 1.7 | N31: =Arrivées!F31 -> 1 | O31: 4 | P31: =IF(O31=Arrivées!G31,Arrivées!H31,IF(O31=Arrivées!K31,Arrivées!L31,IF(O31=Arrivées!O31,Arrivées!P31,IF(O31=Arrivées!S31,Arrivées!T31,"0")))) -> 0 | Q31: =IF(O31=Arrivées!G31,Arrivées!I31,IF(O31=Arrivées!K31,Arrivées!M31,IF(O31=Arrivées!O31,Arrivées!Q31,IF(O31=Arrivées!S31,Arrivées!U31,"0")))) -> 1.9 | R31: =Arrivées!F31 -> 1 | S31: 5 | T31: =IF(S31=Arrivées!G31,Arrivées!H31,IF(S31=Arrivées!K31,Arrivées!L31,IF(S31=Arrivées!O31,Arrivées!P31,IF(S31=Arrivées!S31,Arrivées!T31,"0")))) -> 0 | U31: =IF(S31=Arrivées!G31,Arrivées!I31,IF(S31=Arrivées!K31,Arrivées!M31,IF(S31=Arrivées!O31,Arrivées!Q31,IF(S31=Arrivées!S31,Arrivées!U31,"0")))) -> 3.4 | W31: =Arrivées!W31 -> HIRON | X31: =Arrivées!X31 -> R3C7
A32: =Arrivées!A32 -> 2017-01-03 | B32: =Arrivées!B32 -> PORNICHET BAULE | C32: =Arrivées!C32 -> RECLAMER | D32: =Arrivées!D32 -> NON | E32: =Arrivées!E32 -> 12 | F32: =Arrivées!F32 -> 1 | G32: 1 | H32: =IF(G32=Arrivées!G32,Arrivées!H32,IF(G32=Arrivées!K32,Arrivées!L32,IF(G32=Arrivées!O32,Arrivées!P32,IF(G32=Arrivées!S32,Arrivées!T32,"0")))) -> 0 | I32: =IF(G32=Arrivées!G32,Arrivées!I32,IF(G32=Arrivées!K32,Arrivées!M32,IF(G32=Arrivées!O32,Arrivées!Q32,IF(G32=Arrivées!S32,Arrivées!U32,"0")))) -> 0 | K32: 2 | L32: =IF(K32=Arrivées!G32,Arrivées!H32,IF(K32=Arrivées!K32,Arrivées!L32,IF(G32=Arrivées!O32,Arrivées!P32,IF(K32=Arrivées!S32,Arrivées!T32,"0")))) -> 0 | M32: =IF(K32=Arrivées!G32,Arrivées!I32,IF(K32=Arrivées!K32,Arrivées!M32,IF(K32=Arrivées!O32,Arrivées!Q32,IF(K32=Arrivées!S32,Arrivées!U32,"0")))) -> 0 | N32: =Arrivées!F32 -> 1 | O32: 7 | P32: =IF(O32=Arrivées!G32,Arrivées!H32,IF(O32=Arrivées!K32,Arrivées!L32,IF(O32=Arrivées!O32,Arrivées!P32,IF(O32=Arrivées!S32,Arrivées!T32,"0")))) -> 7.3 | Q32: =IF(O32=Arrivées!G32,Arrivées!I32,IF(O32=Arrivées!K32,Arrivées!M32,IF(O32=Arrivées!O32,Arrivées!Q32,IF(O32=Arrivées!S32,Arrivées!U32,"0")))) -> 2.8 | R32: =Arrivées!F32 -> 1 | S32: 8 | T32: =IF(S32=Arrivées!G32,Arrivées!H32,IF(S32=Arrivées!K32,Arrivées!L32,IF(S32=Arrivées!O32,Arrivées!P32,IF(S32=Arrivées!S32,Arrivées!T32,"0")))) -> 0 | U32: =IF(S32=Arrivées!G32,Arrivées!I32,IF(S32=Arrivées!K32,Arrivées!M32,IF(S32=Arrivées!O32,Arrivées!Q32,IF(S32=Arrivées!S32,Arrivées!U32,"0")))) -> 0 | W32: =Arrivées!W32 -> HIRON | X32: =Arrivées!X32 -> R3C8
A33: =Arrivées!A33 -> 2017-01-03 | B33: =Arrivées!B33 -> PORNICHET BAULE | C33: =Arrivées!C33 -> MAIDEN | D33: =Arrivées!D33 -> NON | E33: =Arrivées!E33 -> 10 | F33: =Arrivées!F33 -> 1 | G33: 3 | H33: =IF(G33=Arrivées!G33,Arrivées!H33,IF(G33=Arrivées!K33,Arrivées!L33,IF(G33=Arrivées!O33,Arrivées!P33,IF(G33=Arrivées!S33,Arrivées!T33,"0")))) -> 1.8 | I33: =IF(G33=Arrivées!G33,Arrivées!I33,IF(G33=Arrivées!K33,Arrivées!M33,IF(G33=Arrivées!O33,Arrivées!Q33,IF(G33=Arrivées!S33,Arrivées!U33,"0")))) -> 1.1 | K33: 8 | L33: =IF(K33=Arrivées!G33,Arrivées!H33,IF(K33=Arrivées!K33,Arrivées!L33,IF(G33=Arrivées!O33,Arrivées!P33,IF(K33=Arrivées!S33,Arrivées!T33,"0")))) -> 0 | M33: =IF(K33=Arrivées!G33,Arrivées!I33,IF(K33=Arrivées!K33,Arrivées!M33,IF(K33=Arrivées!O33,Arrivées!Q33,IF(K33=Arrivées!S33,Arrivées!U33,"0")))) -> 1.3 | N33: =Arrivées!F33 -> 1 | O33: 7 | P33: =IF(O33=Arrivées!G33,Arrivées!H33,IF(O33=Arrivées!K33,Arrivées!L33,IF(O33=Arrivées!O33,Arrivées!P33,IF(O33=Arrivées!S33,Arrivées!T33,"0")))) -> 0 | Q33: =IF(O33=Arrivées!G33,Arrivées!I33,IF(O33=Arrivées!K33,Arrivées!M33,IF(O33=Arrivées!O33,Arrivées!Q33,IF(O33=Arrivées!S33,Arrivées!U33,"0")))) -> 1.9 | R33: =Arrivées!F33 -> 1 | S33: 5 | T33: =IF(S33=Arrivées!G33,Arrivées!H33,IF(S33=Arrivées!K33,Arrivées!L33,IF(S33=Arrivées!O33,Arrivées!P33,IF(S33=Arrivées!S33,Arrivées!T33,"0")))) -> 0 | U33: =IF(S33=Arrivées!G33,Arrivées!I33,IF(S33=Arrivées!K33,Arrivées!M33,IF(S33=Arrivées!O33,Arrivées!Q33,IF(S33=Arrivées!S33,Arrivées!U33,"0")))) -> 0 | W33: =Arrivées!W33 -> HIRON | X33: =Arrivées!X33 -> R3C9
A34: =Arrivées!A34 -> 2017-01-04 | B34: =Arrivées!B34 -> PAU | C34: =Arrivées!C34 -> H | D34: =Arrivées!D34 -> E | E34: =Arrivées!E34 -> 12 | F34: =Arrivées!F34 -> 1 | G34: 2 | H34: =IF(G34=Arrivées!G34,Arrivées!H34,IF(G34=Arrivées!K34,Arrivées!L34,IF(G34=Arrivées!O34,Arrivées!P34,IF(G34=Arrivées!S34,Arrivées!T34,"0")))) -> 0 | I34: =IF(G34=Arrivées!G34,Arrivées!I34,IF(G34=Arrivées!K34,Arrivées!M34,IF(G34=Arrivées!O34,Arrivées!Q34,IF(G34=Arrivées!S34,Arrivées!U34,"0")))) -> 0 | K34: 1 | L34: =IF(K34=Arrivées!G34,Arrivées!H34,IF(K34=Arrivées!K34,Arrivées!L34,IF(G34=Arrivées!O34,Arrivées!P34,IF(K34=Arrivées!S34,Arrivées!T34,"0")))) -> 0 | M34: =IF(K34=Arrivées!G34,Arrivées!I34,IF(K34=Arrivées!K34,Arrivées!M34,IF(K34=Arrivées!O34,Arrivées!Q34,IF(K34=Arrivées!S34,Arrivées!U34,"0")))) -> 0 | N34: =Arrivées!F34 -> 1 | O34: 5 | P34: =IF(O34=Arrivées!G34,Arrivées!H34,IF(O34=Arrivées!K34,Arrivées!L34,IF(O34=Arrivées!O34,Arrivées!P34,IF(O34=Arrivées!S34,Arrivées!T34,"0")))) -> 0 | Q34: =IF(O34=Arrivées!G34,Arrivées!I34,IF(O34=Arrivées!K34,Arrivées!M34,IF(O34=Arrivées!O34,Arrivées!Q34,IF(O34=Arrivées!S34,Arrivées!U34,"0")))) -> 0 | R34: =Arrivées!F34 -> 1 | S34: 3 | T34: =IF(S34=Arrivées!G34,Arrivées!H34,IF(S34=Arrivées!K34,Arrivées!L34,IF(S34=Arrivées!O34,Arrivées!P34,IF(S34=Arrivées!S34,Arrivées!T34,"0")))) -> 0 | U34: =IF(S34=Arrivées!G34,Arrivées!I34,IF(S34=Arrivées!K34,Arrivées!M34,IF(S34=Arrivées!O34,Arrivées!Q34,IF(S34=Arrivées!S34,Arrivées!U34,"0")))) -> 0 | W34: =Arrivées!W34 -> DOMANCHE | X34: =Arrivées!X34 -> R1C3
A35: =Arrivées!A35 -> 2017-01-04 | B35: =Arrivées!B35 -> PAU | C35: =Arrivées!C35 -> HD | D35: =Arrivées!D35 -> R | E35: =Arrivées!E35 -> 12 | F35: =Arrivées!F35 -> 1 | G35: 8 | H35: =IF(G35=Arrivées!G35,Arrivées!H35,IF(G35=Arrivées!K35,Arrivées!L35,IF(G35=Arrivées!O35,Arrivées!P35,IF(G35=Arrivées!S35,Arrivées!T35,"0")))) -> 3 | I35: =IF(G35=Arrivées!G35,Arrivées!I35,IF(G35=Arrivées!K35,Arrivées!M35,IF(G35=Arrivées!O35,Arrivées!Q35,IF(G35=Arrivées!S35,Arrivées!U35,"0")))) -> 1.3 | K35: 2 | L35: =IF(K35=Arrivées!G35,Arrivées!H35,IF(K35=Arrivées!K35,Arrivées!L35,IF(G35=Arrivées!O35,Arrivées!P35,IF(K35=Arrivées!S35,Arrivées!T35,"0")))) -> 0 | M35: =IF(K35=Arrivées!G35,Arrivées!I35,IF(K35=Arrivées!K35,Arrivées!M35,IF(K35=Arrivées!O35,Arrivées!Q35,IF(K35=Arrivées!S35,Arrivées!U35,"0")))) -> 0 | N35: =Arrivées!F35 -> 1 | O35: 1 | P35: =IF(O35=Arrivées!G35,Arrivées!H35,IF(O35=Arrivées!K35,Arrivées!L35,IF(O35=Arrivées!O35,Arrivées!P35,IF(O35=Arrivées!S35,Arrivées!T35,"0")))) -> 0 | Q35: =IF(O35=Arrivées!G35,Arrivées!I35,IF(O35=Arrivées!K35,Arrivées!M35,IF(O35=Arrivées!O35,Arrivées!Q35,IF(O35=Arrivées!S35,Arrivées!U35,"0")))) -> 1.5 | R35: =Arrivées!F35 -> 1 | S35: 7 | T35: =IF(S35=Arrivées!G35,Arrivées!H35,IF(S35=Arrivées!K35,Arrivées!L35,IF(S35=Arrivées!O35,Arrivées!P35,IF(S35=Arrivées!S35,Arrivées!T35,"0")))) -> 0 | U35: =IF(S35=Arrivées!G35,Arrivées!I35,IF(S35=Arrivées!K35,Arrivées!M35,IF(S35=Arrivées!O35,Arrivées!Q35,IF(S35=Arrivées!S35,Arrivées!U35,"0")))) -> 0 | W35: =Arrivées!W35 -> DOMANCHE | X35: =Arrivées!X35 -> R1C5
A36: =Arrivées!A36 -> 2017-01-04 | B36: =Arrivées!B36 -> PAU | C36: =Arrivées!C36 -> HD | D36: =Arrivées!D36 -> E | E36: =Arrivées!E36 -> 17 | F36: =Arrivées!F36 -> 1 | G36: 9 | H36: =IF(G36=Arrivées!G36,Arrivées!H36,IF(G36=Arrivées!K36,Arrivées!L36,IF(G36=Arrivées!O36,Arrivées!P36,IF(G36=Arrivées!S36,Arrivées!T36,"0")))) -> 0 | I36: =IF(G36=Arrivées!G36,Arrivées!I36,IF(G36=Arrivées!K36,Arrivées!M36,IF(G36=Arrivées!O36,Arrivées!Q36,IF(G36=Arrivées!S36,Arrivées!U36,"0")))) -> 0 | K36: 1 | L36: =IF(K36=Arrivées!G36,Arrivées!H36,IF(K36=Arrivées!K36,Arrivées!L36,IF(G36=Arrivées!O36,Arrivées!P36,IF(K36=Arrivées!S36,Arrivées!T36,"0")))) -> 0 | M36: =IF(K36=Arrivées!G36,Arrivées!I36,IF(K36=Arrivées!K36,Arrivées!M36,IF(K36=Arrivées!O36,Arrivées!Q36,IF(K36=Arrivées!S36,Arrivées!U36,"0")))) -> 0 | N36: =Arrivées!F36 -> 1 | O36: 2 | P36: =IF(O36=Arrivées!G36,Arrivées!H36,IF(O36=Arrivées!K36,Arrivées!L36,IF(O36=Arrivées!O36,Arrivées!P36,IF(O36=Arrivées!S36,Arrivées!T36,"0")))) -> 0 | Q36: =IF(O36=Arrivées!G36,Arrivées!I36,IF(O36=Arrivées!K36,Arrivées!M36,IF(O36=Arrivées!O36,Arrivées!Q36,IF(O36=Arrivées!S36,Arrivées!U36,"0")))) -> 0 | R36: =Arrivées!F36 -> 1 | S36: 13 | T36: =IF(S36=Arrivées!G36,Arrivées!H36,IF(S36=Arrivées!K36,Arrivées!L36,IF(S36=Arrivées!O36,Arrivées!P36,IF(S36=Arrivées!S36,Arrivées!T36,"0")))) -> 0 | U36: =IF(S36=Arrivées!G36,Arrivées!I36,IF(S36=Arrivées!K36,Arrivées!M36,IF(S36=Arrivées!O36,Arrivées!Q36,IF(S36=Arrivées!S36,Arrivées!U36,"0")))) -> 0 | W36: =Arrivées!W36 -> DOMANCHE | X36: =Arrivées!X36 -> R1C7
A37: =Arrivées!A37 -> 2017-01-04 | B37: =Arrivées!B37 -> FAIRFIEW | C37: =Arrivées!C37 -> NON | D37: =Arrivées!D37 -> NON | E37: =Arrivées!E37 -> 13 | F37: =Arrivées!F37 -> 1 | G37: 1 | H37: =IF(G37=Arrivées!G37,Arrivées!H37,IF(G37=Arrivées!K37,Arrivées!L37,IF(G37=Arrivées!O37,Arrivées!P37,IF(G37=Arrivées!S37,Arrivées!T37,"0")))) -> 0 | I37: =IF(G37=Arrivées!G37,Arrivées!I37,IF(G37=Arrivées!K37,Arrivées!M37,IF(G37=Arrivées!O37,Arrivées!Q37,IF(G37=Arrivées!S37,Arrivées!U37,"0")))) -> 0 | K37: 4 | L37: =IF(K37=Arrivées!G37,Arrivées!H37,IF(K37=Arrivées!K37,Arrivées!L37,IF(G37=Arrivées!O37,Arrivées!P37,IF(K37=Arrivées!S37,Arrivées!T37,"0")))) -> 0 | M37: =IF(K37=Arrivées!G37,Arrivées!I37,IF(K37=Arrivées!K37,Arrivées!M37,IF(K37=Arrivées!O37,Arrivées!Q37,IF(K37=Arrivées!S37,Arrivées!U37,"0")))) -> 2.1 | N37: =Arrivées!F37 -> 1 | O37: 11 | P37: =IF(O37=Arrivées!G37,Arrivées!H37,IF(O37=Arrivées!K37,Arrivées!L37,IF(O37=Arrivées!O37,Arrivées!P37,IF(O37=Arrivées!S37,Arrivées!T37,"0")))) -> 0 | Q37: =IF(O37=Arrivées!G37,Arrivées!I37,IF(O37=Arrivées!K37,Arrivées!M37,IF(O37=Arrivées!O37,Arrivées!Q37,IF(O37=Arrivées!S37,Arrivées!U37,"0")))) -> 2.5 | R37: =Arrivées!F37 -> 1 | S37: 3 | T37: =IF(S37=Arrivées!G37,Arrivées!H37,IF(S37=Arrivées!K37,Arrivées!L37,IF(S37=Arrivées!O37,Arrivées!P37,IF(S37=Arrivées!S37,Arrivées!T37,"0")))) -> 0 | U37: =IF(S37=Arrivées!G37,Arrivées!I37,IF(S37=Arrivées!K37,Arrivées!M37,IF(S37=Arrivées!O37,Arrivées!Q37,IF(S37=Arrivées!S37,Arrivées!U37,"0")))) -> 0 | W37: =Arrivées!W37 -> BOUGOUIN | X37: =Arrivées!X37 -> R2C1
A38: =Arrivées!A38 -> 2017-01-04 | B38: =Arrivées!B38 -> FAIRFIEW | C38: =Arrivées!C38 -> NON | D38: =Arrivées!D38 -> FEMELLE | E38: =Arrivées!E38 -> 12 | F38: =Arrivées!F38 -> 1 | G38: 6 | H38: =IF(G38=Arrivées!G38,Arrivées!H38,IF(G38=Arrivées!K38,Arrivées!L38,IF(G38=Arrivées!O38,Arrivées!P38,IF(G38=Arrivées!S38,Arrivées!T38,"0")))) -> 0 | I38: =IF(G38=Arrivées!G38,Arrivées!I38,IF(G38=Arrivées!K38,Arrivées!M38,IF(G38=Arrivées!O38,Arrivées!Q38,IF(G38=Arrivées!S38,Arrivées!U38,"0")))) -> 0 | K38: 7 | L38: =IF(K38=Arrivées!G38,Arrivées!H38,IF(K38=Arrivées!K38,Arrivées!L38,IF(G38=Arrivées!O38,Arrivées!P38,IF(K38=Arrivées!S38,Arrivées!T38,"0")))) -> 0 | M38: =IF(K38=Arrivées!G38,Arrivées!I38,IF(K38=Arrivées!K38,Arrivées!M38,IF(K38=Arrivées!O38,Arrivées!Q38,IF(K38=Arrivées!S38,Arrivées!U38,"0")))) -> 2.2 | N38: =Arrivées!F38 -> 1 | O38: 2 | P38: =IF(O38=Arrivées!G38,Arrivées!H38,IF(O38=Arrivées!K38,Arrivées!L38,IF(O38=Arrivées!O38,Arrivées!P38,IF(O38=Arrivées!S38,Arrivées!T38,"0")))) -> 0 | Q38: =IF(O38=Arrivées!G38,Arrivées!I38,IF(O38=Arrivées!K38,Arrivées!M38,IF(O38=Arrivées!O38,Arrivées!Q38,IF(O38=Arrivées!S38,Arrivées!U38,"0")))) -> 0 | R38: =Arrivées!F38 -> 1 | S38: 1 | T38: =IF(S38=Arrivées!G38,Arrivées!H38,IF(S38=Arrivées!K38,Arrivées!L38,IF(S38=Arrivées!O38,Arrivées!P38,IF(S38=Arrivées!S38,Arrivées!T38,"0")))) -> 0 | U38: =IF(S38=Arrivées!G38,Arrivées!I38,IF(S38=Arrivées!K38,Arrivées!M38,IF(S38=Arrivées!O38,Arrivées!Q38,IF(S38=Arrivées!S38,Arrivées!U38,"0")))) -> 0 | W38: =Arrivées!W38 -> BOUGOUIN | X38: =Arrivées!X38 -> R2C2
A39: =Arrivées!A39 -> 2017-01-04 | B39: =Arrivées!B39 -> FAIRFIEW | C39: =Arrivées!C39 -> H | D39: =Arrivées!D39 -> FEMELLE | E39: =Arrivées!E39 -> 10 | F39: =Arrivées!F39 -> 1 | G39: 4 | H39: =IF(G39=Arrivées!G39,Arrivées!H39,IF(G39=Arrivées!K39,Arrivées!L39,IF(G39=Arrivées!O39,Arrivées!P39,IF(G39=Arrivées!S39,Arrivées!T39,"0")))) -> 0 | I39: =IF(G39=Arrivées!G39,Arrivées!I39,IF(G39=Arrivées!K39,Arrivées!M39,IF(G39=Arrivées!O39,Arrivées!Q39,IF(G39=Arrivées!S39,Arrivées!U39,"0")))) -> 0 | K39: 8 | L39: =IF(K39=Arrivées!G39,Arrivées!H39,IF(K39=Arrivées!K39,Arrivées!L39,IF(G39=Arrivées!O39,Arrivées!P39,IF(K39=Arrivées!S39,Arrivées!T39,"0")))) -> 0 | M39: =IF(K39=Arrivées!G39,Arrivées!I39,IF(K39=Arrivées!K39,Arrivées!M39,IF(K39=Arrivées!O39,Arrivées!Q39,IF(K39=Arrivées!S39,Arrivées!U39,"0")))) -> 2.6 | N39: =Arrivées!F39 -> 1 | O39: 1 | P39: =IF(O39=Arrivées!G39,Arrivées!H39,IF(O39=Arrivées!K39,Arrivées!L39,IF(O39=Arrivées!O39,Arrivées!P39,IF(O39=Arrivées!S39,Arrivées!T39,"0")))) -> 0 | Q39: =IF(O39=Arrivées!G39,Arrivées!I39,IF(O39=Arrivées!K39,Arrivées!M39,IF(O39=Arrivées!O39,Arrivées!Q39,IF(O39=Arrivées!S39,Arrivées!U39,"0")))) -> 0 | R39: =Arrivées!F39 -> 1 | S39: 6 | T39: =IF(S39=Arrivées!G39,Arrivées!H39,IF(S39=Arrivées!K39,Arrivées!L39,IF(S39=Arrivées!O39,Arrivées!P39,IF(S39=Arrivées!S39,Arrivées!T39,"0")))) -> 3.9 | U39: =IF(S39=Arrivées!G39,Arrivées!I39,IF(S39=Arrivées!K39,Arrivées!M39,IF(S39=Arrivées!O39,Arrivées!Q39,IF(S39=Arrivées!S39,Arrivées!U39,"0")))) -> 1.6 | W39: =Arrivées!W39 -> BOUGOUIN | X39: =Arrivées!X39 -> R2C3
A40: =Arrivées!A40 -> 2017-01-04 | B40: =Arrivées!B40 -> HAPPY VALLEY | C40: =Arrivées!C40 -> H | D40: =Arrivées!D40 -> NON | E40: =Arrivées!E40 -> 12 | F40: =Arrivées!F40 -> 1 | G40: 7 | H40: =IF(G40=Arrivées!G40,Arrivées!H40,IF(G40=Arrivées!K40,Arrivées!L40,IF(G40=Arrivées!O40,Arrivées!P40,IF(G40=Arrivées!S40,Arrivées!T40,"0")))) -> 0 | I40: =IF(G40=Arrivées!G40,Arrivées!I40,IF(G40=Arrivées!K40,Arrivées!M40,IF(G40=Arrivées!O40,Arrivées!Q40,IF(G40=Arrivées!S40,Arrivées!U40,"0")))) -> 0 | K40: 1 | L40: =IF(K40=Arrivées!G40,Arrivées!H40,IF(K40=Arrivées!K40,Arrivées!L40,IF(G40=Arrivées!O40,Arrivées!P40,IF(K40=Arrivées!S40,Arrivées!T40,"0")))) -> 0 | M40: =IF(K40=Arrivées!G40,Arrivées!I40,IF(K40=Arrivées!K40,Arrivées!M40,IF(K40=Arrivées!O40,Arrivées!Q40,IF(K40=Arrivées!S40,Arrivées!U40,"0")))) -> 0 | N40: =Arrivées!F40 -> 1 | O40: 3 | P40: =IF(O40=Arrivées!G40,Arrivées!H40,IF(O40=Arrivées!K40,Arrivées!L40,IF(O40=Arrivées!O40,Arrivées!P40,IF(O40=Arrivées!S40,Arrivées!T40,"0")))) -> 17.3 | Q40: =IF(O40=Arrivées!G40,Arrivées!I40,IF(O40=Arrivées!K40,Arrivées!M40,IF(O40=Arrivées!O40,Arrivées!Q40,IF(O40=Arrivées!S40,Arrivées!U40,"0")))) -> 7.2 | R40: =Arrivées!F40 -> 1 | S40: 6 | T40: =IF(S40=Arrivées!G40,Arrivées!H40,IF(S40=Arrivées!K40,Arrivées!L40,IF(S40=Arrivées!O40,Arrivées!P40,IF(S40=Arrivées!S40,Arrivées!T40,"0")))) -> 0 | U40: =IF(S40=Arrivées!G40,Arrivées!I40,IF(S40=Arrivées!K40,Arrivées!M40,IF(S40=Arrivées!O40,Arrivées!Q40,IF(S40=Arrivées!S40,Arrivées!U40,"0")))) -> 0 | W40: =Arrivées!W40 -> BOUGOUIN | X40: =Arrivées!X40 -> R3C1
A41: =Arrivées!A41 -> 2017-01-04 | B41: =Arrivées!B41 -> HAPPY VALLEY | C41: =Arrivées!C41 -> H | D41: =Arrivées!D41 -> NON | E41: =Arrivées!E41 -> 12 | F41: =Arrivées!F41 -> 1 | G41: 2 | H41: =IF(G41=Arrivées!G41,Arrivées!H41,IF(G41=Arrivées!K41,Arrivées!L41,IF(G41=Arrivées!O41,Arrivées!P41,IF(G41=Arrivées!S41,Arrivées!T41,"0")))) -> 0 | I41: =IF(G41=Arrivées!G41,Arrivées!I41,IF(G41=Arrivées!K41,Arrivées!M41,IF(G41=Arrivées!O41,Arrivées!Q41,IF(G41=Arrivées!S41,Arrivées!U41,"0")))) -> 1.2 | K41: 8 | L41: =IF(K41=Arrivées!G41,Arrivées!H41,IF(K41=Arrivées!K41,Arrivées!L41,IF(G41=Arrivées!O41,Arrivées!P41,IF(K41=Arrivées!S41,Arrivées!T41,"0")))) -> 0 | M41: =IF(K41=Arrivées!G41,Arrivées!I41,IF(K41=Arrivées!K41,Arrivées!M41,IF(K41=Arrivées!O41,Arrivées!Q41,IF(K41=Arrivées!S41,Arrivées!U41,"0")))) -> 1.6 | N41: =Arrivées!F41 -> 1 | O41: 3 | P41: =IF(O41=Arrivées!G41,Arrivées!H41,IF(O41=Arrivées!K41,Arrivées!L41,IF(O41=Arrivées!O41,Arrivées!P41,IF(O41=Arrivées!S41,Arrivées!T41,"0")))) -> 8 | Q41: =IF(O41=Arrivées!G41,Arrivées!I41,IF(O41=Arrivées!K41,Arrivées!M41,IF(O41=Arrivées!O41,Arrivées!Q41,IF(O41=Arrivées!S41,Arrivées!U41,"0")))) -> 1.8 | R41: =Arrivées!F41 -> 1 | S41: 6 | T41: =IF(S41=Arrivées!G41,Arrivées!H41,IF(S41=Arrivées!K41,Arrivées!L41,IF(S41=Arrivées!O41,Arrivées!P41,IF(S41=Arrivées!S41,Arrivées!T41,"0")))) -> 0 | U41: =IF(S41=Arrivées!G41,Arrivées!I41,IF(S41=Arrivées!K41,Arrivées!M41,IF(S41=Arrivées!O41,Arrivées!Q41,IF(S41=Arrivées!S41,Arrivées!U41,"0")))) -> 0 | W41: =Arrivées!W41 -> BOUGOUIN | X41: =Arrivées!X41 -> R3C2
A42: =Arrivées!A42 -> 2017-01-04 | B42: =Arrivées!B42 -> HAPPY VALLEY | C42: =Arrivées!C42 -> H | D42: =Arrivées!D42 -> NON | E42: =Arrivées!E42 -> 12 | F42: =Arrivées!F42 -> 1 | G42: 5 | H42: =IF(G42=Arrivées!G42,Arrivées!H42,IF(G42=Arrivées!K42,Arrivées!L42,IF(G42=Arrivées!O42,Arrivées!P42,IF(G42=Arrivées!S42,Arrivées!T42,"0")))) -> 2.5 | I42: =IF(G42=Arrivées!G42,Arrivées!I42,IF(G42=Arrivées!K42,Arrivées!M42,IF(G42=Arrivées!O42,Arrivées!Q42,IF(G42=Arrivées!S42,Arrivées!U42,"0")))) -> 1.3 | K42: 7 | L42: =IF(K42=Arrivées!G42,Arrivées!H42,IF(K42=Arrivées!K42,Arrivées!L42,IF(G42=Arrivées!O42,Arrivées!P42,IF(K42=Arrivées!S42,Arrivées!T42,"0")))) -> 0 | M42: =IF(K42=Arrivées!G42,Arrivées!I42,IF(K42=Arrivées!K42,Arrivées!M42,IF(K42=Arrivées!O42,Arrivées!Q42,IF(K42=Arrivées!S42,Arrivées!U42,"0")))) -> 0 | N42: =Arrivées!F42 -> 1 | O42: 12 | P42: =IF(O42=Arrivées!G42,Arrivées!H42,IF(O42=Arrivées!K42,Arrivées!L42,IF(O42=Arrivées!O42,Arrivées!P42,IF(O42=Arrivées!S42,Arrivées!T42,"0")))) -> 0 | Q42: =IF(O42=Arrivées!G42,Arrivées!I42,IF(O42=Arrivées!K42,Arrivées!M42,IF(O42=Arrivées!O42,Arrivées!Q42,IF(O42=Arrivées!S42,Arrivées!U42,"0")))) -> 1.7 | R42: =Arrivées!F42 -> 1 | S42: 2 | T42: =IF(S42=Arrivées!G42,Arrivées!H42,IF(S42=Arrivées!K42,Arrivées!L42,IF(S42=Arrivées!O42,Arrivées!P42,IF(S42=Arrivées!S42,Arrivées!T42,"0")))) -> 0 | U42: =IF(S42=Arrivées!G42,Arrivées!I42,IF(S42=Arrivées!K42,Arrivées!M42,IF(S42=Arrivées!O42,Arrivées!Q42,IF(S42=Arrivées!S42,Arrivées!U42,"0")))) -> 2.3 | W42: =Arrivées!W42 -> BOUGOUIN | X42: =Arrivées!X42 -> R3C3
A43: =Arrivées!A43 -> 2017-01-04 | B43: =Arrivées!B43 -> HAPPY VALLEY | C43: =Arrivées!C43 -> H | D43: =Arrivées!D43 -> NON | E43: =Arrivées!E43 -> 12 | F43: =Arrivées!F43 -> 1 | G43: 4 | H43: =IF(G43=Arrivées!G43,Arrivées!H43,IF(G43=Arrivées!K43,Arrivées!L43,IF(G43=Arrivées!O43,Arrivées!P43,IF(G43=Arrivées!S43,Arrivées!T43,"0")))) -> 0 | I43: =IF(G43=Arrivées!G43,Arrivées!I43,IF(G43=Arrivées!K43,Arrivées!M43,IF(G43=Arrivées!O43,Arrivées!Q43,IF(G43=Arrivées!S43,Arrivées!U43,"0")))) -> 1.4 | K43: 1 | L43: =IF(K43=Arrivées!G43,Arrivées!H43,IF(K43=Arrivées!K43,Arrivées!L43,IF(G43=Arrivées!O43,Arrivées!P43,IF(K43=Arrivées!S43,Arrivées!T43,"0")))) -> 0 | M43: =IF(K43=Arrivées!G43,Arrivées!I43,IF(K43=Arrivées!K43,Arrivées!M43,IF(K43=Arrivées!O43,Arrivées!Q43,IF(K43=Arrivées!S43,Arrivées!U43,"0")))) -> 0 | N43: =Arrivées!F43 -> 1 | O43: 7 | P43: =IF(O43=Arrivées!G43,Arrivées!H43,IF(O43=Arrivées!K43,Arrivées!L43,IF(O43=Arrivées!O43,Arrivées!P43,IF(O43=Arrivées!S43,Arrivées!T43,"0")))) -> 0 | Q43: =IF(O43=Arrivées!G43,Arrivées!I43,IF(O43=Arrivées!K43,Arrivées!M43,IF(O43=Arrivées!O43,Arrivées!Q43,IF(O43=Arrivées!S43,Arrivées!U43,"0")))) -> 2.5 | R43: =Arrivées!F43 -> 1 | S43: 3 | T43: =IF(S43=Arrivées!G43,Arrivées!H43,IF(S43=Arrivées!K43,Arrivées!L43,IF(S43=Arrivées!O43,Arrivées!P43,IF(S43=Arrivées!S43,Arrivées!T43,"0")))) -> 0 | U43: =IF(S43=Arrivées!G43,Arrivées!I43,IF(S43=Arrivées!K43,Arrivées!M43,IF(S43=Arrivées!O43,Arrivées!Q43,IF(S43=Arrivées!S43,Arrivées!U43,"0")))) -> 0 | W43: =Arrivées!W43 -> BOUGOUIN | X43: =Arrivées!X43 -> R3C4
A44: =Arrivées!A44 -> 2017-01-04 | B44: =Arrivées!B44 -> HAPPY VALLEY | C44: =Arrivées!C44 -> H | D44: =Arrivées!D44 -> NON | E44: =Arrivées!E44 -> 12 | F44: =Arrivées!F44 -> 1 | G44: 2 | H44: =IF(G44=Arrivées!G44,Arrivées!H44,IF(G44=Arrivées!K44,Arrivées!L44,IF(G44=Arrivées!O44,Arrivées!P44,IF(G44=Arrivées!S44,Arrivées!T44,"0")))) -> 0 | I44: =IF(G44=Arrivées!G44,Arrivées!I44,IF(G44=Arrivées!K44,Arrivées!M44,IF(G44=Arrivées!O44,Arrivées!Q44,IF(G44=Arrivées!S44,Arrivées!U44,"0")))) -> 0 | K44: 12 | L44: =IF(K44=Arrivées!G44,Arrivées!H44,IF(K44=Arrivées!K44,Arrivées!L44,IF(G44=Arrivées!O44,Arrivées!P44,IF(K44=Arrivées!S44,Arrivées!T44,"0")))) -> 4.2 | M44: =IF(K44=Arrivées!G44,Arrivées!I44,IF(K44=Arrivées!K44,Arrivées!M44,IF(K44=Arrivées!O44,Arrivées!Q44,IF(K44=Arrivées!S44,Arrivées!U44,"0")))) -> 1.7 | N44: =Arrivées!F44 -> 1 | O44: 3 | P44: =IF(O44=Arrivées!G44,Arrivées!H44,IF(O44=Arrivées!K44,Arrivées!L44,IF(O44=Arrivées!O44,Arrivées!P44,IF(O44=Arrivées!S44,Arrivées!T44,"0")))) -> 0 | Q44: =IF(O44=Arrivées!G44,Arrivées!I44,IF(O44=Arrivées!K44,Arrivées!M44,IF(O44=Arrivées!O44,Arrivées!Q44,IF(O44=Arrivées!S44,Arrivées!U44,"0")))) -> 2.5 | R44: =Arrivées!F44 -> 1 | S44: 9 | T44: =IF(S44=Arrivées!G44,Arrivées!H44,IF(S44=Arrivées!K44,Arrivées!L44,IF(S44=Arrivées!O44,Arrivées!P44,IF(S44=Arrivées!S44,Arrivées!T44,"0")))) -> 0 | U44: =IF(S44=Arrivées!G44,Arrivées!I44,IF(S44=Arrivées!K44,Arrivées!M44,IF(S44=Arrivées!O44,Arrivées!Q44,IF(S44=Arrivées!S44,Arrivées!U44,"0")))) -> 0 | W44: =Arrivées!W44 -> BOUGOUIN | X44: =Arrivées!X44 -> R3C5
A45: =Arrivées!A45 -> 2017-01-04 | B45: =Arrivées!B45 -> HAPPY VALLEY | C45: =Arrivées!C45 -> H | D45: =Arrivées!D45 -> NON | E45: =Arrivées!E45 -> 12 | F45: =Arrivées!F45 -> 1 | G45: 12 | H45: =IF(G45=Arrivées!G45,Arrivées!H45,IF(G45=Arrivées!K45,Arrivées!L45,IF(G45=Arrivées!O45,Arrivées!P45,IF(G45=Arrivées!S45,Arrivées!T45,"0")))) -> 0 | I45: =IF(G45=Arrivées!G45,Arrivées!I45,IF(G45=Arrivées!K45,Arrivées!M45,IF(G45=Arrivées!O45,Arrivées!Q45,IF(G45=Arrivées!S45,Arrivées!U45,"0")))) -> 0 | K45: 10 | L45: =IF(K45=Arrivées!G45,Arrivées!H45,IF(K45=Arrivées!K45,Arrivées!L45,IF(G45=Arrivées!O45,Arrivées!P45,IF(K45=Arrivées!S45,Arrivées!T45,"0")))) -> 0 | M45: =IF(K45=Arrivées!G45,Arrivées!I45,IF(K45=Arrivées!K45,Arrivées!M45,IF(K45=Arrivées!O45,Arrivées!Q45,IF(K45=Arrivées!S45,Arrivées!U45,"0")))) -> 0 | N45: =Arrivées!F45 -> 1 | O45: 5 | P45: =IF(O45=Arrivées!G45,Arrivées!H45,IF(O45=Arrivées!K45,Arrivées!L45,IF(O45=Arrivées!O45,Arrivées!P45,IF(O45=Arrivées!S45,Arrivées!T45,"0")))) -> 0 | Q45: =IF(O45=Arrivées!G45,Arrivées!I45,IF(O45=Arrivées!K45,Arrivées!M45,IF(O45=Arrivées!O45,Arrivées!Q45,IF(O45=Arrivées!S45,Arrivées!U45,"0")))) -> 3 | R45: =Arrivées!F45 -> 1 | S45: 3 | T45: =IF(S45=Arrivées!G45,Arrivées!H45,IF(S45=Arrivées!K45,Arrivées!L45,IF(S45=Arrivées!O45,Arrivées!P45,IF(S45=Arrivées!S45,Arrivées!T45,"0")))) -> 0 | U45: =IF(S45=Arrivées!G45,Arrivées!I45,IF(S45=Arrivées!K45,Arrivées!M45,IF(S45=Arrivées!O45,Arrivées!Q45,IF(S45=Arrivées!S45,Arrivées!U45,"0")))) -> 0 | W45: =Arrivées!W45 -> BOUGOUIN | X45: =Arrivées!X45 -> R3C6
A46: =Arrivées!A46 -> 2017-01-04 | B46: =Arrivées!B46 -> HAPPY VALLEY | C46: =Arrivées!C46 -> H | D46: =Arrivées!D46 -> III | E46: =Arrivées!E46 -> 12 | F46: =Arrivées!F46 -> 1 | G46: 1 | H46: =IF(G46=Arrivées!G46,Arrivées!H46,IF(G46=Arrivées!K46,Arrivées!L46,IF(G46=Arrivées!O46,Arrivées!P46,IF(G46=Arrivées!S46,Arrivées!T46,"0")))) -> 0 | I46: =IF(G46=Arrivées!G46,Arrivées!I46,IF(G46=Arrivées!K46,Arrivées!M46,IF(G46=Arrivées!O46,Arrivées!Q46,IF(G46=Arrivées!S46,Arrivées!U46,"0")))) -> 0 | K46: 8 | L46: =IF(K46=Arrivées!G46,Arrivées!H46,IF(K46=Arrivées!K46,Arrivées!L46,IF(G46=Arrivées!O46,Arrivées!P46,IF(K46=Arrivées!S46,Arrivées!T46,"0")))) -> 0 | M46: =IF(K46=Arrivées!G46,Arrivées!I46,IF(K46=Arrivées!K46,Arrivées!M46,IF(K46=Arrivées!O46,Arrivées!Q46,IF(K46=Arrivées!S46,Arrivées!U46,"0")))) -> 0 | N46: =Arrivées!F46 -> 1 | O46: 2 | P46: =IF(O46=Arrivées!G46,Arrivées!H46,IF(O46=Arrivées!K46,Arrivées!L46,IF(O46=Arrivées!O46,Arrivées!P46,IF(O46=Arrivées!S46,Arrivées!T46,"0")))) -> 0 | Q46: =IF(O46=Arrivées!G46,Arrivées!I46,IF(O46=Arrivées!K46,Arrivées!M46,IF(O46=Arrivées!O46,Arrivées!Q46,IF(O46=Arrivées!S46,Arrivées!U46,"0")))) -> 0 | R46: =Arrivées!F46 -> 1 | S46: 11 | T46: =IF(S46=Arrivées!G46,Arrivées!H46,IF(S46=Arrivées!K46,Arrivées!L46,IF(S46=Arrivées!O46,Arrivées!P46,IF(S46=Arrivées!S46,Arrivées!T46,"0")))) -> 0 | U46: =IF(S46=Arrivées!G46,Arrivées!I46,IF(S46=Arrivées!K46,Arrivées!M46,IF(S46=Arrivées!O46,Arrivées!Q46,IF(S46=Arrivées!S46,Arrivées!U46,"0")))) -> 2.2 | W46: =Arrivées!W46 -> BOUGOUIN | X46: =Arrivées!X46 -> R3C7
A47: =Arrivées!A47 -> 2017-01-04 | B47: =Arrivées!B47 -> HAPPY VALLEY | C47: =Arrivées!C47 -> H | D47: =Arrivées!D47 -> NON | E47: =Arrivées!E47 -> 12 | F47: =Arrivées!F47 -> 1 | G47: 7 | H47: =IF(G47=Arrivées!G47,Arrivées!H47,IF(G47=Arrivées!K47,Arrivées!L47,IF(G47=Arrivées!O47,Arrivées!P47,IF(G47=Arrivées!S47,Arrivées!T47,"0")))) -> 0 | I47: =IF(G47=Arrivées!G47,Arrivées!I47,IF(G47=Arrivées!K47,Arrivées!M47,IF(G47=Arrivées!O47,Arrivées!Q47,IF(G47=Arrivées!S47,Arrivées!U47,"0")))) -> 1.6 | K47: 4 | L47: =IF(K47=Arrivées!G47,Arrivées!H47,IF(K47=Arrivées!K47,Arrivées!L47,IF(G47=Arrivées!O47,Arrivées!P47,IF(K47=Arrivées!S47,Arrivées!T47,"0")))) -> 6.2 | M47: =IF(K47=Arrivées!G47,Arrivées!I47,IF(K47=Arrivées!K47,Arrivées!M47,IF(K47=Arrivées!O47,Arrivées!Q47,IF(K47=Arrivées!S47,Arrivées!U47,"0")))) -> 2.7 | N47: =Arrivées!F47 -> 1 | O47: 8 | P47: =IF(O47=Arrivées!G47,Arrivées!H47,IF(O47=Arrivées!K47,Arrivées!L47,IF(O47=Arrivées!O47,Arrivées!P47,IF(O47=Arrivées!S47,Arrivées!T47,"0")))) -> 0 | Q47: =IF(O47=Arrivées!G47,Arrivées!I47,IF(O47=Arrivées!K47,Arrivées!M47,IF(O47=Arrivées!O47,Arrivées!Q47,IF(O47=Arrivées!S47,Arrivées!U47,"0")))) -> 0 | R47: =Arrivées!F47 -> 1 | S47: 12 | T47: =IF(S47=Arrivées!G47,Arrivées!H47,IF(S47=Arrivées!K47,Arrivées!L47,IF(S47=Arrivées!O47,Arrivées!P47,IF(S47=Arrivées!S47,Arrivées!T47,"0")))) -> 0 | U47: =IF(S47=Arrivées!G47,Arrivées!I47,IF(S47=Arrivées!K47,Arrivées!M47,IF(S47=Arrivées!O47,Arrivées!Q47,IF(S47=Arrivées!S47,Arrivées!U47,"0")))) -> 0 | W47: =Arrivées!W47 -> BOUGOUIN | X47: =Arrivées!X47 -> R3C8
A48: =Arrivées!A48 -> 2017-01-04 | B48: =Arrivées!B48 -> MARSEILLE VIVAUX | C48: =Arrivées!C48 -> HD | D48: =Arrivées!D48 -> E | E48: =Arrivées!E48 -> 11 | F48: =Arrivées!F48 -> 1 | G48: 2 | H48: =IF(G48=Arrivées!G48,Arrivées!H48,IF(G48=Arrivées!K48,Arrivées!L48,IF(G48=Arrivées!O48,Arrivées!P48,IF(G48=Arrivées!S48,Arrivées!T48,"0")))) -> 0 | I48: =IF(G48=Arrivées!G48,Arrivées!I48,IF(G48=Arrivées!K48,Arrivées!M48,IF(G48=Arrivées!O48,Arrivées!Q48,IF(G48=Arrivées!S48,Arrivées!U48,"0")))) -> 0 | K48: 8 | L48: =IF(K48=Arrivées!G48,Arrivées!H48,IF(K48=Arrivées!K48,Arrivées!L48,IF(G48=Arrivées!O48,Arrivées!P48,IF(K48=Arrivées!S48,Arrivées!T48,"0")))) -> 0 | M48: =IF(K48=Arrivées!G48,Arrivées!I48,IF(K48=Arrivées!K48,Arrivées!M48,IF(K48=Arrivées!O48,Arrivées!Q48,IF(K48=Arrivées!S48,Arrivées!U48,"0")))) -> 0 | N48: =Arrivées!F48 -> 1 | O48: 4 | P48: =IF(O48=Arrivées!G48,Arrivées!H48,IF(O48=Arrivées!K48,Arrivées!L48,IF(O48=Arrivées!O48,Arrivées!P48,IF(O48=Arrivées!S48,Arrivées!T48,"0")))) -> 0 | Q48: =IF(O48=Arrivées!G48,Arrivées!I48,IF(O48=Arrivées!K48,Arrivées!M48,IF(O48=Arrivées!O48,Arrivées!Q48,IF(O48=Arrivées!S48,Arrivées!U48,"0")))) -> 0 | R48: =Arrivées!F48 -> 1 | S48: 1 | T48: =IF(S48=Arrivées!G48,Arrivées!H48,IF(S48=Arrivées!K48,Arrivées!L48,IF(S48=Arrivées!O48,Arrivées!P48,IF(S48=Arrivées!S48,Arrivées!T48,"0")))) -> 9.8 | U48: =IF(S48=Arrivées!G48,Arrivées!I48,IF(S48=Arrivées!K48,Arrivées!M48,IF(S48=Arrivées!O48,Arrivées!Q48,IF(S48=Arrivées!S48,Arrivées!U48,"0")))) -> 3.3 | W48: =Arrivées!W48 -> GINDRE | X48: =Arrivées!X48 -> R5C1
A49: =Arrivées!A49 -> 2017-01-04 | B49: =Arrivées!B49 -> MARSEILLE VIVAUX | C49: =Arrivées!C49 -> HD | D49: =Arrivées!D49 -> G | E49: =Arrivées!E49 -> 13 | F49: =Arrivées!F49 -> 1 | G49: 3 | H49: =IF(G49=Arrivées!G49,Arrivées!H49,IF(G49=Arrivées!K49,Arrivées!L49,IF(G49=Arrivées!O49,Arrivées!P49,IF(G49=Arrivées!S49,Arrivées!T49,"0")))) -> 0 | I49: =IF(G49=Arrivées!G49,Arrivées!I49,IF(G49=Arrivées!K49,Arrivées!M49,IF(G49=Arrivées!O49,Arrivées!Q49,IF(G49=Arrivées!S49,Arrivées!U49,"0")))) -> 0 | K49: 2 | L49: =IF(K49=Arrivées!G49,Arrivées!H49,IF(K49=Arrivées!K49,Arrivées!L49,IF(G49=Arrivées!O49,Arrivées!P49,IF(K49=Arrivées!S49,Arrivées!T49,"0")))) -> 0 | M49: =IF(K49=Arrivées!G49,Arrivées!I49,IF(K49=Arrivées!K49,Arrivées!M49,IF(K49=Arrivées!O49,Arrivées!Q49,IF(K49=Arrivées!S49,Arrivées!U49,"0")))) -> 1.6 | N49: =Arrivées!F49 -> 1 | O49: 5 | P49: =IF(O49=Arrivées!G49,Arrivées!H49,IF(O49=Arrivées!K49,Arrivées!L49,IF(O49=Arrivées!O49,Arrivées!P49,IF(O49=Arrivées!S49,Arrivées!T49,"0")))) -> 0 | Q49: =IF(O49=Arrivées!G49,Arrivées!I49,IF(O49=Arrivées!K49,Arrivées!M49,IF(O49=Arrivées!O49,Arrivées!Q49,IF(O49=Arrivées!S49,Arrivées!U49,"0")))) -> 0 | R49: =Arrivées!F49 -> 1 | S49: 1 | T49: =IF(S49=Arrivées!G49,Arrivées!H49,IF(S49=Arrivées!K49,Arrivées!L49,IF(S49=Arrivées!O49,Arrivées!P49,IF(S49=Arrivées!S49,Arrivées!T49,"0")))) -> 0 | U49: =IF(S49=Arrivées!G49,Arrivées!I49,IF(S49=Arrivées!K49,Arrivées!M49,IF(S49=Arrivées!O49,Arrivées!Q49,IF(S49=Arrivées!S49,Arrivées!U49,"0")))) -> 0 | W49: =Arrivées!W49 -> GINDRE | X49: =Arrivées!X49 -> R5C2
A50: =Arrivées!A50 -> 2017-01-04 | B50: =Arrivées!B50 -> MARSEILLE VIVAUX | C50: =Arrivées!C50 -> HD | D50: =Arrivées!D50 -> G | E50: =Arrivées!E50 -> 14 | F50: =Arrivées!F50 -> 1 | G50: 3 | H50: =IF(G50=Arrivées!G50,Arrivées!H50,IF(G50=Arrivées!K50,Arrivées!L50,IF(G50=Arrivées!O50,Arrivées!P50,IF(G50=Arrivées!S50,Arrivées!T50,"0")))) -> 0 | I50: =IF(G50=Arrivées!G50,Arrivées!I50,IF(G50=Arrivées!K50,Arrivées!M50,IF(G50=Arrivées!O50,Arrivées!Q50,IF(G50=Arrivées!S50,Arrivées!U50,"0")))) -> 2 | K50: 7 | L50: =IF(K50=Arrivées!G50,Arrivées!H50,IF(K50=Arrivées!K50,Arrivées!L50,IF(G50=Arrivées!O50,Arrivées!P50,IF(K50=Arrivées!S50,Arrivées!T50,"0")))) -> 0 | M50: =IF(K50=Arrivées!G50,Arrivées!I50,IF(K50=Arrivées!K50,Arrivées!M50,IF(K50=Arrivées!O50,Arrivées!Q50,IF(K50=Arrivées!S50,Arrivées!U50,"0")))) -> 0 | N50: =Arrivées!F50 -> 1 | O50: 6 | P50: =IF(O50=Arrivées!G50,Arrivées!H50,IF(O50=Arrivées!K50,Arrivées!L50,IF(O50=Arrivées!O50,Arrivées!P50,IF(O50=Arrivées!S50,Arrivées!T50,"0")))) -> 0 | Q50: =IF(O50=Arrivées!G50,Arrivées!I50,IF(O50=Arrivées!K50,Arrivées!M50,IF(O50=Arrivées!O50,Arrivées!Q50,IF(O50=Arrivées!S50,Arrivées!U50,"0")))) -> 0 | R50: =Arrivées!F50 -> 1 | S50: 10 | T50: =IF(S50=Arrivées!G50,Arrivées!H50,IF(S50=Arrivées!K50,Arrivées!L50,IF(S50=Arrivées!O50,Arrivées!P50,IF(S50=Arrivées!S50,Arrivées!T50,"0")))) -> 0 | U50: =IF(S50=Arrivées!G50,Arrivées!I50,IF(S50=Arrivées!K50,Arrivées!M50,IF(S50=Arrivées!O50,Arrivées!Q50,IF(S50=Arrivées!S50,Arrivées!U50,"0")))) -> 0 | W50: =Arrivées!W50 -> GINDRE | X50: =Arrivées!X50 -> R5C3
A51: =Arrivées!A51 -> 2017-01-04 | B51: =Arrivées!B51 -> MARSEILLE VIVAUX | C51: =Arrivées!C51 -> MAIDEN | D51: =Arrivées!D51 -> NON | E51: =Arrivées!E51 -> 8 | F51: =Arrivées!F51 -> 1 | G51: 3 | H51: =IF(G51=Arrivées!G51,Arrivées!H51,IF(G51=Arrivées!K51,Arrivées!L51,IF(G51=Arrivées!O51,Arrivées!P51,IF(G51=Arrivées!S51,Arrivées!T51,"0")))) -> 0 | I51: =IF(G51=Arrivées!G51,Arrivées!I51,IF(G51=Arrivées!K51,Arrivées!M51,IF(G51=Arrivées!O51,Arrivées!Q51,IF(G51=Arrivées!S51,Arrivées!U51,"0")))) -> 1.2 | K51: 5 | L51: =IF(K51=Arrivées!G51,Arrivées!H51,IF(K51=Arrivées!K51,Arrivées!L51,IF(G51=Arrivées!O51,Arrivées!P51,IF(K51=Arrivées!S51,Arrivées!T51,"0")))) -> 2.3 | M51: =IF(K51=Arrivées!G51,Arrivées!I51,IF(K51=Arrivées!K51,Arrivées!M51,IF(K51=Arrivées!O51,Arrivées!Q51,IF(K51=Arrivées!S51,Arrivées!U51,"0")))) -> 1.1 | N51: =Arrivées!F51 -> 1 | O51: 8 | P51: =IF(O51=Arrivées!G51,Arrivées!H51,IF(O51=Arrivées!K51,Arrivées!L51,IF(O51=Arrivées!O51,Arrivées!P51,IF(O51=Arrivées!S51,Arrivées!T51,"0")))) -> 0 | Q51: =IF(O51=Arrivées!G51,Arrivées!I51,IF(O51=Arrivées!K51,Arrivées!M51,IF(O51=Arrivées!O51,Arrivées!Q51,IF(O51=Arrivées!S51,Arrivées!U51,"0")))) -> 0 | R51: =Arrivées!F51 -> 1 | S51: 2 | T51: =IF(S51=Arrivées!G51,Arrivées!H51,IF(S51=Arrivées!K51,Arrivées!L51,IF(S51=Arrivées!O51,Arrivées!P51,IF(S51=Arrivées!S51,Arrivées!T51,"0")))) -> 0 | U51: =IF(S51=Arrivées!G51,Arrivées!I51,IF(S51=Arrivées!K51,Arrivées!M51,IF(S51=Arrivées!O51,Arrivées!Q51,IF(S51=Arrivées!S51,Arrivées!U51,"0")))) -> 1.1 | W51: =Arrivées!W51 -> GINDRE | X51: =Arrivées!X51 -> R5C4
A52: =Arrivées!A52 -> 2017-01-04 | B52: =Arrivées!B52 -> MARSEILLE VIVAUX | C52: =Arrivées!C52 -> HD | D52: =Arrivées!D52 -> E | E52: =Arrivées!E52 -> 10 | F52: =Arrivées!F52 -> 1 | G52: 7 | H52: =IF(G52=Arrivées!G52,Arrivées!H52,IF(G52=Arrivées!K52,Arrivées!L52,IF(G52=Arrivées!O52,Arrivées!P52,IF(G52=Arrivées!S52,Arrivées!T52,"0")))) -> 0 | I52: =IF(G52=Arrivées!G52,Arrivées!I52,IF(G52=Arrivées!K52,Arrivées!M52,IF(G52=Arrivées!O52,Arrivées!Q52,IF(G52=Arrivées!S52,Arrivées!U52,"0")))) -> 0 | K52: 4 | L52: =IF(K52=Arrivées!G52,Arrivées!H52,IF(K52=Arrivées!K52,Arrivées!L52,IF(G52=Arrivées!O52,Arrivées!P52,IF(K52=Arrivées!S52,Arrivées!T52,"0")))) -> 0 | M52: =IF(K52=Arrivées!G52,Arrivées!I52,IF(K52=Arrivées!K52,Arrivées!M52,IF(K52=Arrivées!O52,Arrivées!Q52,IF(K52=Arrivées!S52,Arrivées!U52,"0")))) -> 3.6 | N52: =Arrivées!F52 -> 1 | O52: 6 | P52: =IF(O52=Arrivées!G52,Arrivées!H52,IF(O52=Arrivées!K52,Arrivées!L52,IF(O52=Arrivées!O52,Arrivées!P52,IF(O52=Arrivées!S52,Arrivées!T52,"0")))) -> 0 | Q52: =IF(O52=Arrivées!G52,Arrivées!I52,IF(O52=Arrivées!K52,Arrivées!M52,IF(O52=Arrivées!O52,Arrivées!Q52,IF(O52=Arrivées!S52,Arrivées!U52,"0")))) -> 0 | R52: =Arrivées!F52 -> 1 | S52: 1 | T52: =IF(S52=Arrivées!G52,Arrivées!H52,IF(S52=Arrivées!K52,Arrivées!L52,IF(S52=Arrivées!O52,Arrivées!P52,IF(S52=Arrivées!S52,Arrivées!T52,"0")))) -> 5.7 | U52: =IF(S52=Arrivées!G52,Arrivées!I52,IF(S52=Arrivées!K52,Arrivées!M52,IF(S52=Arrivées!O52,Arrivées!Q52,IF(S52=Arrivées!S52,Arrivées!U52,"0")))) -> 3.3 | W52: =Arrivées!W52 -> GINDRE | X52: =Arrivées!X52 -> R5C5
A53: =Arrivées!A53 -> 2017-01-04 | B53: =Arrivées!B53 -> MARSEILLE VIVAUX | C53: =Arrivées!C53 -> RECLAMER | D53: =Arrivées!D53 -> NON | E53: =Arrivées!E53 -> 9 | F53: =Arrivées!F53 -> 1 | G53: 5 | H53: =IF(G53=Arrivées!G53,Arrivées!H53,IF(G53=Arrivées!K53,Arrivées!L53,IF(G53=Arrivées!O53,Arrivées!P53,IF(G53=Arrivées!S53,Arrivées!T53,"0")))) -> 0 | I53: =IF(G53=Arrivées!G53,Arrivées!I53,IF(G53=Arrivées!K53,Arrivées!M53,IF(G53=Arrivées!O53,Arrivées!Q53,IF(G53=Arrivées!S53,Arrivées!U53,"0")))) -> 0 | K53: 4 | L53: =IF(K53=Arrivées!G53,Arrivées!H53,IF(K53=Arrivées!K53,Arrivées!L53,IF(G53=Arrivées!O53,Arrivées!P53,IF(K53=Arrivées!S53,Arrivées!T53,"0")))) -> 0 | M53: =IF(K53=Arrivées!G53,Arrivées!I53,IF(K53=Arrivées!K53,Arrivées!M53,IF(K53=Arrivées!O53,Arrivées!Q53,IF(K53=Arrivées!S53,Arrivées!U53,"0")))) -> 0 | N53: =Arrivées!F53 -> 1 | O53: 3 | P53: =IF(O53=Arrivées!G53,Arrivées!H53,IF(O53=Arrivées!K53,Arrivées!L53,IF(O53=Arrivées!O53,Arrivées!P53,IF(O53=Arrivées!S53,Arrivées!T53,"0")))) -> 0 | Q53: =IF(O53=Arrivées!G53,Arrivées!I53,IF(O53=Arrivées!K53,Arrivées!M53,IF(O53=Arrivées!O53,Arrivées!Q53,IF(O53=Arrivées!S53,Arrivées!U53,"0")))) -> 2.9 | R53: =Arrivées!F53 -> 1 | S53: 8 | T53: =IF(S53=Arrivées!G53,Arrivées!H53,IF(S53=Arrivées!K53,Arrivées!L53,IF(S53=Arrivées!O53,Arrivées!P53,IF(S53=Arrivées!S53,Arrivées!T53,"0")))) -> 6.7 | U53: =IF(S53=Arrivées!G53,Arrivées!I53,IF(S53=Arrivées!K53,Arrivées!M53,IF(S53=Arrivées!O53,Arrivées!Q53,IF(S53=Arrivées!S53,Arrivées!U53,"0")))) -> 2.2 | W53: =Arrivées!W53 -> GINDRE | X53: =Arrivées!X53 -> R5C6
A54: =Arrivées!A54 -> 2017-01-04 | B54: =Arrivées!B54 -> MARSEILLE VIVAUX | C54: =Arrivées!C54 -> NON | D54: =Arrivées!D54 -> E | E54: =Arrivées!E54 -> 9 | F54: =Arrivées!F54 -> 1 | G54: 2 | H54: =IF(G54=Arrivées!G54,Arrivées!H54,IF(G54=Arrivées!K54,Arrivées!L54,IF(G54=Arrivées!O54,Arrivées!P54,IF(G54=Arrivées!S54,Arrivées!T54,"0")))) -> 0 | I54: =IF(G54=Arrivées!G54,Arrivées!I54,IF(G54=Arrivées!K54,Arrivées!M54,IF(G54=Arrivées!O54,Arrivées!Q54,IF(G54=Arrivées!S54,Arrivées!U54,"0")))) -> 1.5 | K54: 5 | L54: =IF(K54=Arrivées!G54,Arrivées!H54,IF(K54=Arrivées!K54,Arrivées!L54,IF(G54=Arrivées!O54,Arrivées!P54,IF(K54=Arrivées!S54,Arrivées!T54,"0")))) -> 0 | M54: =IF(K54=Arrivées!G54,Arrivées!I54,IF(K54=Arrivées!K54,Arrivées!M54,IF(K54=Arrivées!O54,Arrivées!Q54,IF(K54=Arrivées!S54,Arrivées!U54,"0")))) -> 0 | N54: =Arrivées!F54 -> 1 | O54: 1 | P54: =IF(O54=Arrivées!G54,Arrivées!H54,IF(O54=Arrivées!K54,Arrivées!L54,IF(O54=Arrivées!O54,Arrivées!P54,IF(O54=Arrivées!S54,Arrivées!T54,"0")))) -> 6.8 | Q54: =IF(O54=Arrivées!G54,Arrivées!I54,IF(O54=Arrivées!K54,Arrivées!M54,IF(O54=Arrivées!O54,Arrivées!Q54,IF(O54=Arrivées!S54,Arrivées!U54,"0")))) -> 1.4 | R54: =Arrivées!F54 -> 1 | S54: 7 | T54: =IF(S54=Arrivées!G54,Arrivées!H54,IF(S54=Arrivées!K54,Arrivées!L54,IF(S54=Arrivées!O54,Arrivées!P54,IF(S54=Arrivées!S54,Arrivées!T54,"0")))) -> 0 | U54: =IF(S54=Arrivées!G54,Arrivées!I54,IF(S54=Arrivées!K54,Arrivées!M54,IF(S54=Arrivées!O54,Arrivées!Q54,IF(S54=Arrivées!S54,Arrivées!U54,"0")))) -> 0 | W54: =Arrivées!W54 -> GINDRE | X54: =Arrivées!X54 -> R5C7
A55: =Arrivées!A55 -> 2017-01-04 | B55: =Arrivées!B55 -> MARSEILLE VIVAUX | C55: =Arrivées!C55 -> NON | D55: =Arrivées!D55 -> E | E55: =Arrivées!E55 -> 7 | F55: =Arrivées!F55 -> 1 | G55: 1 | H55: =IF(G55=Arrivées!G55,Arrivées!H55,IF(G55=Arrivées!K55,Arrivées!L55,IF(G55=Arrivées!O55,Arrivées!P55,IF(G55=Arrivées!S55,Arrivées!T55,"0")))) -> 0 | I55: =IF(G55=Arrivées!G55,Arrivées!I55,IF(G55=Arrivées!K55,Arrivées!M55,IF(G55=Arrivées!O55,Arrivées!Q55,IF(G55=Arrivées!S55,Arrivées!U55,"0")))) -> 0 | K55: 3 | L55: =IF(K55=Arrivées!G55,Arrivées!H55,IF(K55=Arrivées!K55,Arrivées!L55,IF(G55=Arrivées!O55,Arrivées!P55,IF(K55=Arrivées!S55,Arrivées!T55,"0")))) -> 0 | M55: =IF(K55=Arrivées!G55,Arrivées!I55,IF(K55=Arrivées!K55,Arrivées!M55,IF(K55=Arrivées!O55,Arrivées!Q55,IF(K55=Arrivées!S55,Arrivées!U55,"0")))) -> 0 | N55: =Arrivées!F55 -> 1 | O55: 2 | P55: =IF(O55=Arrivées!G55,Arrivées!H55,IF(O55=Arrivées!K55,Arrivées!L55,IF(O55=Arrivées!O55,Arrivées!P55,IF(O55=Arrivées!S55,Arrivées!T55,"0")))) -> 0 | Q55: =IF(O55=Arrivées!G55,Arrivées!I55,IF(O55=Arrivées!K55,Arrivées!M55,IF(O55=Arrivées!O55,Arrivées!Q55,IF(O55=Arrivées!S55,Arrivées!U55,"0")))) -> 1.9 | R55: =Arrivées!F55 -> 1 | S55: 6 | T55: =IF(S55=Arrivées!G55,Arrivées!H55,IF(S55=Arrivées!K55,Arrivées!L55,IF(S55=Arrivées!O55,Arrivées!P55,IF(S55=Arrivées!S55,Arrivées!T55,"0")))) -> 0 | U55: =IF(S55=Arrivées!G55,Arrivées!I55,IF(S55=Arrivées!K55,Arrivées!M55,IF(S55=Arrivées!O55,Arrivées!Q55,IF(S55=Arrivées!S55,Arrivées!U55,"0")))) -> 1.7 | W55: =Arrivées!W55 -> GINDRE | X55: =Arrivées!X55 -> R5C8
A56: =Arrivées!A56 -> 2017-01-05 | B56: =Arrivées!B56 -> VAAL | C56: =Arrivées!C56 -> NON | D56: =Arrivées!D56 -> FEMELLE | E56: =Arrivées!E56 -> 7 | F56: =Arrivées!F56 -> 1 | G56: 2 | H56: =IF(G56=Arrivées!G56,Arrivées!H56,IF(G56=Arrivées!K56,Arrivées!L56,IF(G56=Arrivées!O56,Arrivées!P56,IF(G56=Arrivées!S56,Arrivées!T56,"0")))) -> 0 | I56: =IF(G56=Arrivées!G56,Arrivées!I56,IF(G56=Arrivées!K56,Arrivées!M56,IF(G56=Arrivées!O56,Arrivées!Q56,IF(G56=Arrivées!S56,Arrivées!U56,"0")))) -> 1.1 | K56: 4 | L56: =IF(K56=Arrivées!G56,Arrivées!H56,IF(K56=Arrivées!K56,Arrivées!L56,IF(G56=Arrivées!O56,Arrivées!P56,IF(K56=Arrivées!S56,Arrivées!T56,"0")))) -> 6.7 | M56: =IF(K56=Arrivées!G56,Arrivées!I56,IF(K56=Arrivées!K56,Arrivées!M56,IF(K56=Arrivées!O56,Arrivées!Q56,IF(K56=Arrivées!S56,Arrivées!U56,"0")))) -> 1.4 | N56: =Arrivées!F56 -> 1 | O56: 8 | P56: =IF(O56=Arrivées!G56,Arrivées!H56,IF(O56=Arrivées!K56,Arrivées!L56,IF(O56=Arrivées!O56,Arrivées!P56,IF(O56=Arrivées!S56,Arrivées!T56,"0")))) -> 0 | Q56: =IF(O56=Arrivées!G56,Arrivées!I56,IF(O56=Arrivées!K56,Arrivées!M56,IF(O56=Arrivées!O56,Arrivées!Q56,IF(O56=Arrivées!S56,Arrivées!U56,"0")))) -> 0 | R56: =Arrivées!F56 -> 1 | S56: 0 | T56: =IF(S56=Arrivées!G56,Arrivées!H56,IF(S56=Arrivées!K56,Arrivées!L56,IF(S56=Arrivées!O56,Arrivées!P56,IF(S56=Arrivées!S56,Arrivées!T56,"0")))) -> 0 | U56: =IF(S56=Arrivées!G56,Arrivées!I56,IF(S56=Arrivées!K56,Arrivées!M56,IF(S56=Arrivées!O56,Arrivées!Q56,IF(S56=Arrivées!S56,Arrivées!U56,"0")))) -> 0 | W56: =Arrivées!W56 -> HIRON | X56: =Arrivées!X56 -> R2C1
A57: =Arrivées!A57 -> 2017-01-05 | B57: =Arrivées!B57 -> VAAL | C57: =Arrivées!C57 -> NON | D57: =Arrivées!D57 -> FEMELLE | E57: =Arrivées!E57 -> 13 | F57: =Arrivées!F57 -> 1 | G57: 13 | H57: =IF(G57=Arrivées!G57,Arrivées!H57,IF(G57=Arrivées!K57,Arrivées!L57,IF(G57=Arrivées!O57,Arrivées!P57,IF(G57=Arrivées!S57,Arrivées!T57,"0")))) -> 0 | I57: =IF(G57=Arrivées!G57,Arrivées!I57,IF(G57=Arrivées!K57,Arrivées!M57,IF(G57=Arrivées!O57,Arrivées!Q57,IF(G57=Arrivées!S57,Arrivées!U57,"0")))) -> 1.3 | K57: 14 | L57: =IF(K57=Arrivées!G57,Arrivées!H57,IF(K57=Arrivées!K57,Arrivées!L57,IF(G57=Arrivées!O57,Arrivées!P57,IF(K57=Arrivées!S57,Arrivées!T57,"0")))) -> 1.6 | M57: =IF(K57=Arrivées!G57,Arrivées!I57,IF(K57=Arrivées!K57,Arrivées!M57,IF(K57=Arrivées!O57,Arrivées!Q57,IF(K57=Arrivées!S57,Arrivées!U57,"0")))) -> 1.1 | N57: =Arrivées!F57 -> 1 | O57: 4 | P57: =IF(O57=Arrivées!G57,Arrivées!H57,IF(O57=Arrivées!K57,Arrivées!L57,IF(O57=Arrivées!O57,Arrivées!P57,IF(O57=Arrivées!S57,Arrivées!T57,"0")))) -> 0 | Q57: =IF(O57=Arrivées!G57,Arrivées!I57,IF(O57=Arrivées!K57,Arrivées!M57,IF(O57=Arrivées!O57,Arrivées!Q57,IF(O57=Arrivées!S57,Arrivées!U57,"0")))) -> 0 | R57: =Arrivées!F57 -> 1 | S57: 10 | T57: =IF(S57=Arrivées!G57,Arrivées!H57,IF(S57=Arrivées!K57,Arrivées!L57,IF(S57=Arrivées!O57,Arrivées!P57,IF(S57=Arrivées!S57,Arrivées!T57,"0")))) -> 0 | U57: =IF(S57=Arrivées!G57,Arrivées!I57,IF(S57=Arrivées!K57,Arrivées!M57,IF(S57=Arrivées!O57,Arrivées!Q57,IF(S57=Arrivées!S57,Arrivées!U57,"0")))) -> 0 | W57: =Arrivées!W57 -> HIRON | X57: =Arrivées!X57 -> R2C2
A58: =Arrivées!A58 -> 2017-01-05 | B58: =Arrivées!B58 -> VAAL | C58: =Arrivées!C58 -> H | D58: =Arrivées!D58 -> FEMELLE | E58: =Arrivées!E58 -> 8 | F58: =Arrivées!F58 -> 1 | G58: 6 | H58: =IF(G58=Arrivées!G58,Arrivées!H58,IF(G58=Arrivées!K58,Arrivées!L58,IF(G58=Arrivées!O58,Arrivées!P58,IF(G58=Arrivées!S58,Arrivées!T58,"0")))) -> 0 | I58: =IF(G58=Arrivées!G58,Arrivées!I58,IF(G58=Arrivées!K58,Arrivées!M58,IF(G58=Arrivées!O58,Arrivées!Q58,IF(G58=Arrivées!S58,Arrivées!U58,"0")))) -> 0 | K58: 1 | L58: =IF(K58=Arrivées!G58,Arrivées!H58,IF(K58=Arrivées!K58,Arrivées!L58,IF(G58=Arrivées!O58,Arrivées!P58,IF(K58=Arrivées!S58,Arrivées!T58,"0")))) -> 0 | M58: =IF(K58=Arrivées!G58,Arrivées!I58,IF(K58=Arrivées!K58,Arrivées!M58,IF(K58=Arrivées!O58,Arrivées!Q58,IF(K58=Arrivées!S58,Arrivées!U58,"0")))) -> 0 | N58: =Arrivées!F58 -> 1 | O58: 3 | P58: =IF(O58=Arrivées!G58,Arrivées!H58,IF(O58=Arrivées!K58,Arrivées!L58,IF(O58=Arrivées!O58,Arrivées!P58,IF(O58=Arrivées!S58,Arrivées!T58,"0")))) -> 3.8 | Q58: =IF(O58=Arrivées!G58,Arrivées!I58,IF(O58=Arrivées!K58,Arrivées!M58,IF(O58=Arrivées!O58,Arrivées!Q58,IF(O58=Arrivées!S58,Arrivées!U58,"0")))) -> 1.9 | R58: =Arrivées!F58 -> 1 | S58: 4 | T58: =IF(S58=Arrivées!G58,Arrivées!H58,IF(S58=Arrivées!K58,Arrivées!L58,IF(S58=Arrivées!O58,Arrivées!P58,IF(S58=Arrivées!S58,Arrivées!T58,"0")))) -> 0 | U58: =IF(S58=Arrivées!G58,Arrivées!I58,IF(S58=Arrivées!K58,Arrivées!M58,IF(S58=Arrivées!O58,Arrivées!Q58,IF(S58=Arrivées!S58,Arrivées!U58,"0")))) -> 0 | W58: =Arrivées!W58 -> HIRON | X58: =Arrivées!X58 -> R2C3
A59: =Arrivées!A59 -> 2017-01-05 | B59: =Arrivées!B59 -> VAAL | C59: =Arrivées!C59 -> NON | D59: =Arrivées!D59 -> NON | E59: =Arrivées!E59 -> 8 | F59: =Arrivées!F59 -> 1 | G59: 1 | H59: =IF(G59=Arrivées!G59,Arrivées!H59,IF(G59=Arrivées!K59,Arrivées!L59,IF(G59=Arrivées!O59,Arrivées!P59,IF(G59=Arrivées!S59,Arrivées!T59,"0")))) -> 1.5 | I59: =IF(G59=Arrivées!G59,Arrivées!I59,IF(G59=Arrivées!K59,Arrivées!M59,IF(G59=Arrivées!O59,Arrivées!Q59,IF(G59=Arrivées!S59,Arrivées!U59,"0")))) -> 1.1 | K59: 2 | L59: =IF(K59=Arrivées!G59,Arrivées!H59,IF(K59=Arrivées!K59,Arrivées!L59,IF(G59=Arrivées!O59,Arrivées!P59,IF(K59=Arrivées!S59,Arrivées!T59,"0")))) -> 0 | M59: =IF(K59=Arrivées!G59,Arrivées!I59,IF(K59=Arrivées!K59,Arrivées!M59,IF(K59=Arrivées!O59,Arrivées!Q59,IF(K59=Arrivées!S59,Arrivées!U59,"0")))) -> 1.3 | N59: =Arrivées!F59 -> 1 | O59: 4 | P59: =IF(O59=Arrivées!G59,Arrivées!H59,IF(O59=Arrivées!K59,Arrivées!L59,IF(O59=Arrivées!O59,Arrivées!P59,IF(O59=Arrivées!S59,Arrivées!T59,"0")))) -> 0 | Q59: =IF(O59=Arrivées!G59,Arrivées!I59,IF(O59=Arrivées!K59,Arrivées!M59,IF(O59=Arrivées!O59,Arrivées!Q59,IF(O59=Arrivées!S59,Arrivées!U59,"0")))) -> 0 | R59: =Arrivées!F59 -> 1 | S59: 3 | T59: =IF(S59=Arrivées!G59,Arrivées!H59,IF(S59=Arrivées!K59,Arrivées!L59,IF(S59=Arrivées!O59,Arrivées!P59,IF(S59=Arrivées!S59,Arrivées!T59,"0")))) -> 0 | U59: =IF(S59=Arrivées!G59,Arrivées!I59,IF(S59=Arrivées!K59,Arrivées!M59,IF(S59=Arrivées!O59,Arrivées!Q59,IF(S59=Arrivées!S59,Arrivées!U59,"0")))) -> 1.5 | W59: =Arrivées!W59 -> HIRON | X59: =Arrivées!X59 -> R2C4
A60: =Arrivées!A60 -> 2017-01-05 | B60: =Arrivées!B60 -> VAAL | C60: =Arrivées!C60 -> H | D60: =Arrivées!D60 -> NON | E60: =Arrivées!E60 -> 14 | F60: =Arrivées!F60 -> 1 | G60: 2 | H60: =IF(G60=Arrivées!G60,Arrivées!H60,IF(G60=Arrivées!K60,Arrivées!L60,IF(G60=Arrivées!O60,Arrivées!P60,IF(G60=Arrivées!S60,Arrivées!T60,"0")))) -> 0 | I60: =IF(G60=Arrivées!G60,Arrivées!I60,IF(G60=Arrivées!K60,Arrivées!M60,IF(G60=Arrivées!O60,Arrivées!Q60,IF(G60=Arrivées!S60,Arrivées!U60,"0")))) -> 0 | K60: 3 | L60: =IF(K60=Arrivées!G60,Arrivées!H60,IF(K60=Arrivées!K60,Arrivées!L60,IF(G60=Arrivées!O60,Arrivées!P60,IF(K60=Arrivées!S60,Arrivées!T60,"0")))) -> 0 | M60: =IF(K60=Arrivées!G60,Arrivées!I60,IF(K60=Arrivées!K60,Arrivées!M60,IF(K60=Arrivées!O60,Arrivées!Q60,IF(K60=Arrivées!S60,Arrivées!U60,"0")))) -> 0 | N60: =Arrivées!F60 -> 1 | O60: 4 | P60: =IF(O60=Arrivées!G60,Arrivées!H60,IF(O60=Arrivées!K60,Arrivées!L60,IF(O60=Arrivées!O60,Arrivées!P60,IF(O60=Arrivées!S60,Arrivées!T60,"0")))) -> 0 | Q60: =IF(O60=Arrivées!G60,Arrivées!I60,IF(O60=Arrivées!K60,Arrivées!M60,IF(O60=Arrivées!O60,Arrivées!Q60,IF(O60=Arrivées!S60,Arrivées!U60,"0")))) -> 0 | R60: =Arrivées!F60 -> 1 | S60: 9 | T60: =IF(S60=Arrivées!G60,Arrivées!H60,IF(S60=Arrivées!K60,Arrivées!L60,IF(S60=Arrivées!O60,Arrivées!P60,IF(S60=Arrivées!S60,Arrivées!T60,"0")))) -> 0 | U60: =IF(S60=Arrivées!G60,Arrivées!I60,IF(S60=Arrivées!K60,Arrivées!M60,IF(S60=Arrivées!O60,Arrivées!Q60,IF(S60=Arrivées!S60,Arrivées!U60,"0")))) -> 0 | W60: =Arrivées!W60 -> HIRON | X60: =Arrivées!X60 -> R2C5
A61: =Arrivées!A61 -> 2017-01-05 | B61: =Arrivées!B61 -> DEAUVILLE | C61: =Arrivées!C61 -> NON | D61: =Arrivées!D61 -> D | E61: =Arrivées!E61 -> 8 | F61: =Arrivées!F61 -> 1 | G61: 5 | H61: =IF(G61=Arrivées!G61,Arrivées!H61,IF(G61=Arrivées!K61,Arrivées!L61,IF(G61=Arrivées!O61,Arrivées!P61,IF(G61=Arrivées!S61,Arrivées!T61,"0")))) -> 0 | I61: =IF(G61=Arrivées!G61,Arrivées!I61,IF(G61=Arrivées!K61,Arrivées!M61,IF(G61=Arrivées!O61,Arrivées!Q61,IF(G61=Arrivées!S61,Arrivées!U61,"0")))) -> 0 | K61: 3 | L61: =IF(K61=Arrivées!G61,Arrivées!H61,IF(K61=Arrivées!K61,Arrivées!L61,IF(G61=Arrivées!O61,Arrivées!P61,IF(K61=Arrivées!S61,Arrivées!T61,"0")))) -> 3.2 | M61: =IF(K61=Arrivées!G61,Arrivées!I61,IF(K61=Arrivées!K61,Arrivées!M61,IF(K61=Arrivées!O61,Arrivées!Q61,IF(K61=Arrivées!S61,Arrivées!U61,"0")))) -> 1.4 | N61: =Arrivées!F61 -> 1 | O61: 1 | P61: =IF(O61=Arrivées!G61,Arrivées!H61,IF(O61=Arrivées!K61,Arrivées!L61,IF(O61=Arrivées!O61,Arrivées!P61,IF(O61=Arrivées!S61,Arrivées!T61,"0")))) -> 0 | Q61: =IF(O61=Arrivées!G61,Arrivées!I61,IF(O61=Arrivées!K61,Arrivées!M61,IF(O61=Arrivées!O61,Arrivées!Q61,IF(O61=Arrivées!S61,Arrivées!U61,"0")))) -> 0 | R61: =Arrivées!F61 -> 1 | S61: 7 | T61: =IF(S61=Arrivées!G61,Arrivées!H61,IF(S61=Arrivées!K61,Arrivées!L61,IF(S61=Arrivées!O61,Arrivées!P61,IF(S61=Arrivées!S61,Arrivées!T61,"0")))) -> 0 | U61: =IF(S61=Arrivées!G61,Arrivées!I61,IF(S61=Arrivées!K61,Arrivées!M61,IF(S61=Arrivées!O61,Arrivées!Q61,IF(S61=Arrivées!S61,Arrivées!U61,"0")))) -> 2.1 | W61: =Arrivées!W61 -> PELLEGRINO | X61: =Arrivées!X61 -> R3C1
A62: =Arrivées!A62 -> 2017-01-05 | B62: =Arrivées!B62 -> DEAUVILLE | C62: =Arrivées!C62 -> NON | D62: =Arrivées!D62 -> D | E62: =Arrivées!E62 -> 9 | F62: =Arrivées!F62 -> 1 | G62: 4 | H62: =IF(G62=Arrivées!G62,Arrivées!H62,IF(G62=Arrivées!K62,Arrivées!L62,IF(G62=Arrivées!O62,Arrivées!P62,IF(G62=Arrivées!S62,Arrivées!T62,"0")))) -> 0 | I62: =IF(G62=Arrivées!G62,Arrivées!I62,IF(G62=Arrivées!K62,Arrivées!M62,IF(G62=Arrivées!O62,Arrivées!Q62,IF(G62=Arrivées!S62,Arrivées!U62,"0")))) -> 0 | K62: 5 | L62: =IF(K62=Arrivées!G62,Arrivées!H62,IF(K62=Arrivées!K62,Arrivées!L62,IF(G62=Arrivées!O62,Arrivées!P62,IF(K62=Arrivées!S62,Arrivées!T62,"0")))) -> 0 | M62: =IF(K62=Arrivées!G62,Arrivées!I62,IF(K62=Arrivées!K62,Arrivées!M62,IF(K62=Arrivées!O62,Arrivées!Q62,IF(K62=Arrivées!S62,Arrivées!U62,"0")))) -> 1.6 | N62: =Arrivées!F62 -> 1 | O62: 6 | P62: =IF(O62=Arrivées!G62,Arrivées!H62,IF(O62=Arrivées!K62,Arrivées!L62,IF(O62=Arrivées!O62,Arrivées!P62,IF(O62=Arrivées!S62,Arrivées!T62,"0")))) -> 7.4 | Q62: =IF(O62=Arrivées!G62,Arrivées!I62,IF(O62=Arrivées!K62,Arrivées!M62,IF(O62=Arrivées!O62,Arrivées!Q62,IF(O62=Arrivées!S62,Arrivées!U62,"0")))) -> 2.6 | R62: =Arrivées!F62 -> 1 | S62: 3 | T62: =IF(S62=Arrivées!G62,Arrivées!H62,IF(S62=Arrivées!K62,Arrivées!L62,IF(S62=Arrivées!O62,Arrivées!P62,IF(S62=Arrivées!S62,Arrivées!T62,"0")))) -> 0 | U62: =IF(S62=Arrivées!G62,Arrivées!I62,IF(S62=Arrivées!K62,Arrivées!M62,IF(S62=Arrivées!O62,Arrivées!Q62,IF(S62=Arrivées!S62,Arrivées!U62,"0")))) -> 0 | W62: =Arrivées!W62 -> PELLEGRINO | X62: =Arrivées!X62 -> R3C2
A63: =Arrivées!A63 -> 2017-01-05 | B63: =Arrivées!B63 -> DEAUVILLE | C63: =Arrivées!C63 -> NON | D63: =Arrivées!D63 -> E | E63: =Arrivées!E63 -> 11 | F63: =Arrivées!F63 -> 1 | G63: 2 | H63: =IF(G63=Arrivées!G63,Arrivées!H63,IF(G63=Arrivées!K63,Arrivées!L63,IF(G63=Arrivées!O63,Arrivées!P63,IF(G63=Arrivées!S63,Arrivées!T63,"0")))) -> 0 | I63: =IF(G63=Arrivées!G63,Arrivées!I63,IF(G63=Arrivées!K63,Arrivées!M63,IF(G63=Arrivées!O63,Arrivées!Q63,IF(G63=Arrivées!S63,Arrivées!U63,"0")))) -> 0 | K63: 12 | L63: =IF(K63=Arrivées!G63,Arrivées!H63,IF(K63=Arrivées!K63,Arrivées!L63,IF(G63=Arrivées!O63,Arrivées!P63,IF(K63=Arrivées!S63,Arrivées!T63,"0")))) -> 7.9 | M63: =IF(K63=Arrivées!G63,Arrivées!I63,IF(K63=Arrivées!K63,Arrivées!M63,IF(K63=Arrivées!O63,Arrivées!Q63,IF(K63=Arrivées!S63,Arrivées!U63,"0")))) -> 1.8 | N63: =Arrivées!F63 -> 1 | O63: 1 | P63: =IF(O63=Arrivées!G63,Arrivées!H63,IF(O63=Arrivées!K63,Arrivées!L63,IF(O63=Arrivées!O63,Arrivées!P63,IF(O63=Arrivées!S63,Arrivées!T63,"0")))) -> 0 | Q63: =IF(O63=Arrivées!G63,Arrivées!I63,IF(O63=Arrivées!K63,Arrivées!M63,IF(O63=Arrivées!O63,Arrivées!Q63,IF(O63=Arrivées!S63,Arrivées!U63,"0")))) -> 0 | R63: =Arrivées!F63 -> 1 | S63: 7 | T63: =IF(S63=Arrivées!G63,Arrivées!H63,IF(S63=Arrivées!K63,Arrivées!L63,IF(S63=Arrivées!O63,Arrivées!P63,IF(S63=Arrivées!S63,Arrivées!T63,"0")))) -> 0 | U63: =IF(S63=Arrivées!G63,Arrivées!I63,IF(S63=Arrivées!K63,Arrivées!M63,IF(S63=Arrivées!O63,Arrivées!Q63,IF(S63=Arrivées!S63,Arrivées!U63,"0")))) -> 1.7 | W63: =Arrivées!W63 -> PELLEGRINO | X63: =Arrivées!X63 -> R3C3
A64: =Arrivées!A64 -> 2017-01-05 | B64: =Arrivées!B64 -> DEAUVILLE | C64: =Arrivées!C64 -> NON | D64: =Arrivées!D64 -> E | E64: =Arrivées!E64 -> 16 | F64: =Arrivées!F64 -> 1 | G64: 5 | H64: =IF(G64=Arrivées!G64,Arrivées!H64,IF(G64=Arrivées!K64,Arrivées!L64,IF(G64=Arrivées!O64,Arrivées!P64,IF(G64=Arrivées!S64,Arrivées!T64,"0")))) -> 0 | I64: =IF(G64=Arrivées!G64,Arrivées!I64,IF(G64=Arrivées!K64,Arrivées!M64,IF(G64=Arrivées!O64,Arrivées!Q64,IF(G64=Arrivées!S64,Arrivées!U64,"0")))) -> 0 | K64: 1 | L64: =IF(K64=Arrivées!G64,Arrivées!H64,IF(K64=Arrivées!K64,Arrivées!L64,IF(G64=Arrivées!O64,Arrivées!P64,IF(K64=Arrivées!S64,Arrivées!T64,"0")))) -> 8.4 | M64: =IF(K64=Arrivées!G64,Arrivées!I64,IF(K64=Arrivées!K64,Arrivées!M64,IF(K64=Arrivées!O64,Arrivées!Q64,IF(K64=Arrivées!S64,Arrivées!U64,"0")))) -> 2.5 | N64: =Arrivées!F64 -> 1 | O64: 11 | P64: =IF(O64=Arrivées!G64,Arrivées!H64,IF(O64=Arrivées!K64,Arrivées!L64,IF(O64=Arrivées!O64,Arrivées!P64,IF(O64=Arrivées!S64,Arrivées!T64,"0")))) -> 0 | Q64: =IF(O64=Arrivées!G64,Arrivées!I64,IF(O64=Arrivées!K64,Arrivées!M64,IF(O64=Arrivées!O64,Arrivées!Q64,IF(O64=Arrivées!S64,Arrivées!U64,"0")))) -> 2.1 | R64: =Arrivées!F64 -> 1 | S64: 4 | T64: =IF(S64=Arrivées!G64,Arrivées!H64,IF(S64=Arrivées!K64,Arrivées!L64,IF(S64=Arrivées!O64,Arrivées!P64,IF(S64=Arrivées!S64,Arrivées!T64,"0")))) -> 0 | U64: =IF(S64=Arrivées!G64,Arrivées!I64,IF(S64=Arrivées!K64,Arrivées!M64,IF(S64=Arrivées!O64,Arrivées!Q64,IF(S64=Arrivées!S64,Arrivées!U64,"0")))) -> 2.8 | W64: =Arrivées!W64 -> PELLEGRINO | X64: =Arrivées!X64 -> R3C4
A65: =Arrivées!A65 -> 2017-01-05 | B65: =Arrivées!B65 -> DEAUVILLE | C65: =Arrivées!C65 -> RECLAMER | D65: =Arrivées!D65 -> G | E65: =Arrivées!E65 -> 14 | F65: =Arrivées!F65 -> 1 | G65: 8 | H65: =IF(G65=Arrivées!G65,Arrivées!H65,IF(G65=Arrivées!K65,Arrivées!L65,IF(G65=Arrivées!O65,Arrivées!P65,IF(G65=Arrivées!S65,Arrivées!T65,"0")))) -> 0 | I65: =IF(G65=Arrivées!G65,Arrivées!I65,IF(G65=Arrivées!K65,Arrivées!M65,IF(G65=Arrivées!O65,Arrivées!Q65,IF(G65=Arrivées!S65,Arrivées!U65,"0")))) -> 0 | K65: 5 | L65: =IF(K65=Arrivées!G65,Arrivées!H65,IF(K65=Arrivées!K65,Arrivées!L65,IF(G65=Arrivées!O65,Arrivées!P65,IF(K65=Arrivées!S65,Arrivées!T65,"0")))) -> 0 | M65: =IF(K65=Arrivées!G65,Arrivées!I65,IF(K65=Arrivées!K65,Arrivées!M65,IF(K65=Arrivées!O65,Arrivées!Q65,IF(K65=Arrivées!S65,Arrivées!U65,"0")))) -> 0 | N65: =Arrivées!F65 -> 1 | O65: 2 | P65: =IF(O65=Arrivées!G65,Arrivées!H65,IF(O65=Arrivées!K65,Arrivées!L65,IF(O65=Arrivées!O65,Arrivées!P65,IF(O65=Arrivées!S65,Arrivées!T65,"0")))) -> 0 | Q65: =IF(O65=Arrivées!G65,Arrivées!I65,IF(O65=Arrivées!K65,Arrivées!M65,IF(O65=Arrivées!O65,Arrivées!Q65,IF(O65=Arrivées!S65,Arrivées!U65,"0")))) -> 0 | R65: =Arrivées!F65 -> 1 | S65: 6 | T65: =IF(S65=Arrivées!G65,Arrivées!H65,IF(S65=Arrivées!K65,Arrivées!L65,IF(S65=Arrivées!O65,Arrivées!P65,IF(S65=Arrivées!S65,Arrivées!T65,"0")))) -> 0 | U65: =IF(S65=Arrivées!G65,Arrivées!I65,IF(S65=Arrivées!K65,Arrivées!M65,IF(S65=Arrivées!O65,Arrivées!Q65,IF(S65=Arrivées!S65,Arrivées!U65,"0")))) -> 2.8 | W65: =Arrivées!W65 -> PELLEGRINO | X65: =Arrivées!X65 -> R3C5
A66: =Arrivées!A66 -> 2017-01-05 | B66: =Arrivées!B66 -> DEAUVILLE | C66: =Arrivées!C66 -> H | D66: =Arrivées!D66 -> NON | E66: =Arrivées!E66 -> 16 | F66: =Arrivées!F66 -> 1 | G66: 1 | H66: =IF(G66=Arrivées!G66,Arrivées!H66,IF(G66=Arrivées!K66,Arrivées!L66,IF(G66=Arrivées!O66,Arrivées!P66,IF(G66=Arrivées!S66,Arrivées!T66,"0")))) -> 4.1 | I66: =IF(G66=Arrivées!G66,Arrivées!I66,IF(G66=Arrivées!K66,Arrivées!M66,IF(G66=Arrivées!O66,Arrivées!Q66,IF(G66=Arrivées!S66,Arrivées!U66,"0")))) -> 2.1 | K66: 3 | L66: =IF(K66=Arrivées!G66,Arrivées!H66,IF(K66=Arrivées!K66,Arrivées!L66,IF(G66=Arrivées!O66,Arrivées!P66,IF(K66=Arrivées!S66,Arrivées!T66,"0")))) -> 0 | M66: =IF(K66=Arrivées!G66,Arrivées!I66,IF(K66=Arrivées!K66,Arrivées!M66,IF(K66=Arrivées!O66,Arrivées!Q66,IF(K66=Arrivées!S66,Arrivées!U66,"0")))) -> 0 | N66: =Arrivées!F66 -> 1 | O66: 5 | P66: =IF(O66=Arrivées!G66,Arrivées!H66,IF(O66=Arrivées!K66,Arrivées!L66,IF(O66=Arrivées!O66,Arrivées!P66,IF(O66=Arrivées!S66,Arrivées!T66,"0")))) -> 0 | Q66: =IF(O66=Arrivées!G66,Arrivées!I66,IF(O66=Arrivées!K66,Arrivées!M66,IF(O66=Arrivées!O66,Arrivées!Q66,IF(O66=Arrivées!S66,Arrivées!U66,"0")))) -> 0 | R66: =Arrivées!F66 -> 1 | S66: 7 | T66: =IF(S66=Arrivées!G66,Arrivées!H66,IF(S66=Arrivées!K66,Arrivées!L66,IF(S66=Arrivées!O66,Arrivées!P66,IF(S66=Arrivées!S66,Arrivées!T66,"0")))) -> 0 | U66: =IF(S66=Arrivées!G66,Arrivées!I66,IF(S66=Arrivées!K66,Arrivées!M66,IF(S66=Arrivées!O66,Arrivées!Q66,IF(S66=Arrivées!S66,Arrivées!U66,"0")))) -> 0 | W66: =Arrivées!W66 -> PELLEGRINO | X66: =Arrivées!X66 -> R3C6
A67: =Arrivées!A67 -> 2017-01-05 | B67: =Arrivées!B67 -> DEAUVILLE | C67: =Arrivées!C67 -> RECLAMER | D67: =Arrivées!D67 -> G | E67: =Arrivées!E67 -> 16 | F67: =Arrivées!F67 -> 1 | G67: 2 | H67: =IF(G67=Arrivées!G67,Arrivées!H67,IF(G67=Arrivées!K67,Arrivées!L67,IF(G67=Arrivées!O67,Arrivées!P67,IF(G67=Arrivées!S67,Arrivées!T67,"0")))) -> 0 | I67: =IF(G67=Arrivées!G67,Arrivées!I67,IF(G67=Arrivées!K67,Arrivées!M67,IF(G67=Arrivées!O67,Arrivées!Q67,IF(G67=Arrivées!S67,Arrivées!U67,"0")))) -> 0 | K67: 3 | L67: =IF(K67=Arrivées!G67,Arrivées!H67,IF(K67=Arrivées!K67,Arrivées!L67,IF(G67=Arrivées!O67,Arrivées!P67,IF(K67=Arrivées!S67,Arrivées!T67,"0")))) -> 0 | M67: =IF(K67=Arrivées!G67,Arrivées!I67,IF(K67=Arrivées!K67,Arrivées!M67,IF(K67=Arrivées!O67,Arrivées!Q67,IF(K67=Arrivées!S67,Arrivées!U67,"0")))) -> 0 | N67: =Arrivées!F67 -> 1 | O67: 14 | P67: =IF(O67=Arrivées!G67,Arrivées!H67,IF(O67=Arrivées!K67,Arrivées!L67,IF(O67=Arrivées!O67,Arrivées!P67,IF(O67=Arrivées!S67,Arrivées!T67,"0")))) -> 0 | Q67: =IF(O67=Arrivées!G67,Arrivées!I67,IF(O67=Arrivées!K67,Arrivées!M67,IF(O67=Arrivées!O67,Arrivées!Q67,IF(O67=Arrivées!S67,Arrivées!U67,"0")))) -> 6.4 | R67: =Arrivées!F67 -> 1 | S67: 12 | T67: =IF(S67=Arrivées!G67,Arrivées!H67,IF(S67=Arrivées!K67,Arrivées!L67,IF(S67=Arrivées!O67,Arrivées!P67,IF(S67=Arrivées!S67,Arrivées!T67,"0")))) -> 0 | U67: =IF(S67=Arrivées!G67,Arrivées!I67,IF(S67=Arrivées!K67,Arrivées!M67,IF(S67=Arrivées!O67,Arrivées!Q67,IF(S67=Arrivées!S67,Arrivées!U67,"0")))) -> 4 | W67: =Arrivées!W67 -> PELLEGRINO | X67: =Arrivées!X67 -> R3C7
A68: =Arrivées!A68 -> 2017-01-05 | B68: =Arrivées!B68 -> DEAUVILLE | C68: =Arrivées!C68 -> HD | D68: =Arrivées!D68 -> E | E68: =Arrivées!E68 -> 16 | F68: =Arrivées!F68 -> 1 | G68: 6 | H68: =IF(G68=Arrivées!G68,Arrivées!H68,IF(G68=Arrivées!K68,Arrivées!L68,IF(G68=Arrivées!O68,Arrivées!P68,IF(G68=Arrivées!S68,Arrivées!T68,"0")))) -> 0 | I68: =IF(G68=Arrivées!G68,Arrivées!I68,IF(G68=Arrivées!K68,Arrivées!M68,IF(G68=Arrivées!O68,Arrivées!Q68,IF(G68=Arrivées!S68,Arrivées!U68,"0")))) -> 0 | K68: 8 | L68: =IF(K68=Arrivées!G68,Arrivées!H68,IF(K68=Arrivées!K68,Arrivées!L68,IF(G68=Arrivées!O68,Arrivées!P68,IF(K68=Arrivées!S68,Arrivées!T68,"0")))) -> 0 | M68: =IF(K68=Arrivées!G68,Arrivées!I68,IF(K68=Arrivées!K68,Arrivées!M68,IF(K68=Arrivées!O68,Arrivées!Q68,IF(K68=Arrivées!S68,Arrivées!U68,"0")))) -> 0 | N68: =Arrivées!F68 -> 1 | O68: 12 | P68: =IF(O68=Arrivées!G68,Arrivées!H68,IF(O68=Arrivées!K68,Arrivées!L68,IF(O68=Arrivées!O68,Arrivées!P68,IF(O68=Arrivées!S68,Arrivées!T68,"0")))) -> 10.1 | Q68: =IF(O68=Arrivées!G68,Arrivées!I68,IF(O68=Arrivées!K68,Arrivées!M68,IF(O68=Arrivées!O68,Arrivées!Q68,IF(O68=Arrivées!S68,Arrivées!U68,"0")))) -> 3.1 | R68: =Arrivées!F68 -> 1 | S68: 5 | T68: =IF(S68=Arrivées!G68,Arrivées!H68,IF(S68=Arrivées!K68,Arrivées!L68,IF(S68=Arrivées!O68,Arrivées!P68,IF(S68=Arrivées!S68,Arrivées!T68,"0")))) -> 0 | U68: =IF(S68=Arrivées!G68,Arrivées!I68,IF(S68=Arrivées!K68,Arrivées!M68,IF(S68=Arrivées!O68,Arrivées!Q68,IF(S68=Arrivées!S68,Arrivées!U68,"0")))) -> 4.6 | W68: =Arrivées!W68 -> PELLEGRINO | X68: =Arrivées!X68 -> R3C8
A69: =Arrivées!A69 -> 2017-01-05 | B69: =Arrivées!B69 -> DEAUVILLE | C69: =Arrivées!C69 -> HD | D69: =Arrivées!D69 -> E | E69: =Arrivées!E69 -> 16 | F69: =Arrivées!F69 -> 1 | G69: 1 | H69: =IF(G69=Arrivées!G69,Arrivées!H69,IF(G69=Arrivées!K69,Arrivées!L69,IF(G69=Arrivées!O69,Arrivées!P69,IF(G69=Arrivées!S69,Arrivées!T69,"0")))) -> 0 | I69: =IF(G69=Arrivées!G69,Arrivées!I69,IF(G69=Arrivées!K69,Arrivées!M69,IF(G69=Arrivées!O69,Arrivées!Q69,IF(G69=Arrivées!S69,Arrivées!U69,"0")))) -> 0 | K69: 3 | L69: =IF(K69=Arrivées!G69,Arrivées!H69,IF(K69=Arrivées!K69,Arrivées!L69,IF(G69=Arrivées!O69,Arrivées!P69,IF(K69=Arrivées!S69,Arrivées!T69,"0")))) -> 3.4 | M69: =IF(K69=Arrivées!G69,Arrivées!I69,IF(K69=Arrivées!K69,Arrivées!M69,IF(K69=Arrivées!O69,Arrivées!Q69,IF(K69=Arrivées!S69,Arrivées!U69,"0")))) -> 1.6 | N69: =Arrivées!F69 -> 1 | O69: 2 | P69: =IF(O69=Arrivées!G69,Arrivées!H69,IF(O69=Arrivées!K69,Arrivées!L69,IF(O69=Arrivées!O69,Arrivées!P69,IF(O69=Arrivées!S69,Arrivées!T69,"0")))) -> 0 | Q69: =IF(O69=Arrivées!G69,Arrivées!I69,IF(O69=Arrivées!K69,Arrivées!M69,IF(O69=Arrivées!O69,Arrivées!Q69,IF(O69=Arrivées!S69,Arrivées!U69,"0")))) -> 0 | R69: =Arrivées!F69 -> 1 | S69: 6 | T69: =IF(S69=Arrivées!G69,Arrivées!H69,IF(S69=Arrivées!K69,Arrivées!L69,IF(S69=Arrivées!O69,Arrivées!P69,IF(S69=Arrivées!S69,Arrivées!T69,"0")))) -> 0 | U69: =IF(S69=Arrivées!G69,Arrivées!I69,IF(S69=Arrivées!K69,Arrivées!M69,IF(S69=Arrivées!O69,Arrivées!Q69,IF(S69=Arrivées!S69,Arrivées!U69,"0")))) -> 0 | W69: =Arrivées!W69 -> PELLEGRINO | X69: =Arrivées!X69 -> R3C9
A70: =Arrivées!A70 -> 2017-01-05 | B70: =Arrivées!B70 -> MEYDAN | C70: =Arrivées!C70 -> ARABES | D70: =Arrivées!D70 -> I | E70: =Arrivées!E70 -> 11 | F70: =Arrivées!F70 -> 1 | G70: 6 | H70: =IF(G70=Arrivées!G70,Arrivées!H70,IF(G70=Arrivées!K70,Arrivées!L70,IF(G70=Arrivées!O70,Arrivées!P70,IF(G70=Arrivées!S70,Arrivées!T70,"0")))) -> 0 | I70: =IF(G70=Arrivées!G70,Arrivées!I70,IF(G70=Arrivées!K70,Arrivées!M70,IF(G70=Arrivées!O70,Arrivées!Q70,IF(G70=Arrivées!S70,Arrivées!U70,"0")))) -> 1.3 | K70: 10 | L70: =IF(K70=Arrivées!G70,Arrivées!H70,IF(K70=Arrivées!K70,Arrivées!L70,IF(G70=Arrivées!O70,Arrivées!P70,IF(K70=Arrivées!S70,Arrivées!T70,"0")))) -> 0 | M70: =IF(K70=Arrivées!G70,Arrivées!I70,IF(K70=Arrivées!K70,Arrivées!M70,IF(K70=Arrivées!O70,Arrivées!Q70,IF(K70=Arrivées!S70,Arrivées!U70,"0")))) -> 1.8 | N70: =Arrivées!F70 -> 1 | O70: 2 | P70: =IF(O70=Arrivées!G70,Arrivées!H70,IF(O70=Arrivées!K70,Arrivées!L70,IF(O70=Arrivées!O70,Arrivées!P70,IF(O70=Arrivées!S70,Arrivées!T70,"0")))) -> 1.8 | Q70: =IF(O70=Arrivées!G70,Arrivées!I70,IF(O70=Arrivées!K70,Arrivées!M70,IF(O70=Arrivées!O70,Arrivées!Q70,IF(O70=Arrivées!S70,Arrivées!U70,"0")))) -> 1.2 | R70: =Arrivées!F70 -> 1 | S70: 1 | T70: =IF(S70=Arrivées!G70,Arrivées!H70,IF(S70=Arrivées!K70,Arrivées!L70,IF(S70=Arrivées!O70,Arrivées!P70,IF(S70=Arrivées!S70,Arrivées!T70,"0")))) -> 0 | U70: =IF(S70=Arrivées!G70,Arrivées!I70,IF(S70=Arrivées!K70,Arrivées!M70,IF(S70=Arrivées!O70,Arrivées!Q70,IF(S70=Arrivées!S70,Arrivées!U70,"0")))) -> 0 | W70: =Arrivées!W70 -> BOUGOUIN | X70: =Arrivées!X70 -> R4C1
A71: =Arrivées!A71 -> 2017-01-05 | B71: =Arrivées!B71 -> MEYDAN | C71: =Arrivées!C71 -> H | D71: =Arrivées!D71 -> NON | E71: =Arrivées!E71 -> 11 | F71: =Arrivées!F71 -> 1 | G71: 5 | H71: =IF(G71=Arrivées!G71,Arrivées!H71,IF(G71=Arrivées!K71,Arrivées!L71,IF(G71=Arrivées!O71,Arrivées!P71,IF(G71=Arrivées!S71,Arrivées!T71,"0")))) -> 0 | I71: =IF(G71=Arrivées!G71,Arrivées!I71,IF(G71=Arrivées!K71,Arrivées!M71,IF(G71=Arrivées!O71,Arrivées!Q71,IF(G71=Arrivées!S71,Arrivées!U71,"0")))) -> 0 | K71: 1 | L71: =IF(K71=Arrivées!G71,Arrivées!H71,IF(K71=Arrivées!K71,Arrivées!L71,IF(G71=Arrivées!O71,Arrivées!P71,IF(K71=Arrivées!S71,Arrivées!T71,"0")))) -> 0 | M71: =IF(K71=Arrivées!G71,Arrivées!I71,IF(K71=Arrivées!K71,Arrivées!M71,IF(K71=Arrivées!O71,Arrivées!Q71,IF(K71=Arrivées!S71,Arrivées!U71,"0")))) -> 0 | N71: =Arrivées!F71 -> 1 | O71: 9 | P71: =IF(O71=Arrivées!G71,Arrivées!H71,IF(O71=Arrivées!K71,Arrivées!L71,IF(O71=Arrivées!O71,Arrivées!P71,IF(O71=Arrivées!S71,Arrivées!T71,"0")))) -> 0 | Q71: =IF(O71=Arrivées!G71,Arrivées!I71,IF(O71=Arrivées!K71,Arrivées!M71,IF(O71=Arrivées!O71,Arrivées!Q71,IF(O71=Arrivées!S71,Arrivées!U71,"0")))) -> 2.4 | R71: =Arrivées!F71 -> 1 | S71: 2 | T71: =IF(S71=Arrivées!G71,Arrivées!H71,IF(S71=Arrivées!K71,Arrivées!L71,IF(S71=Arrivées!O71,Arrivées!P71,IF(S71=Arrivées!S71,Arrivées!T71,"0")))) -> 0 | U71: =IF(S71=Arrivées!G71,Arrivées!I71,IF(S71=Arrivées!K71,Arrivées!M71,IF(S71=Arrivées!O71,Arrivées!Q71,IF(S71=Arrivées!S71,Arrivées!U71,"0")))) -> 0 | W71: =Arrivées!W71 -> BOUGOUIN | X71: =Arrivées!X71 -> R4C2
A72: =Arrivées!A72 -> 2017-01-05 | B72: =Arrivées!B72 -> MEYDAN | C72: =Arrivées!C72 -> H | D72: =Arrivées!D72 -> NON | E72: =Arrivées!E72 -> 9 | F72: =Arrivées!F72 -> 1 | G72: 1 | H72: =IF(G72=Arrivées!G72,Arrivées!H72,IF(G72=Arrivées!K72,Arrivées!L72,IF(G72=Arrivées!O72,Arrivées!P72,IF(G72=Arrivées!S72,Arrivées!T72,"0")))) -> 0 | I72: =IF(G72=Arrivées!G72,Arrivées!I72,IF(G72=Arrivées!K72,Arrivées!M72,IF(G72=Arrivées!O72,Arrivées!Q72,IF(G72=Arrivées!S72,Arrivées!U72,"0")))) -> 0 | K72: 2 | L72: =IF(K72=Arrivées!G72,Arrivées!H72,IF(K72=Arrivées!K72,Arrivées!L72,IF(G72=Arrivées!O72,Arrivées!P72,IF(K72=Arrivées!S72,Arrivées!T72,"0")))) -> 0 | M72: =IF(K72=Arrivées!G72,Arrivées!I72,IF(K72=Arrivées!K72,Arrivées!M72,IF(K72=Arrivées!O72,Arrivées!Q72,IF(K72=Arrivées!S72,Arrivées!U72,"0")))) -> 0 | N72: =Arrivées!F72 -> 1 | O72: 3 | P72: =IF(O72=Arrivées!G72,Arrivées!H72,IF(O72=Arrivées!K72,Arrivées!L72,IF(O72=Arrivées!O72,Arrivées!P72,IF(O72=Arrivées!S72,Arrivées!T72,"0")))) -> 0 | Q72: =IF(O72=Arrivées!G72,Arrivées!I72,IF(O72=Arrivées!K72,Arrivées!M72,IF(O72=Arrivées!O72,Arrivées!Q72,IF(O72=Arrivées!S72,Arrivées!U72,"0")))) -> 4 | R72: =Arrivées!F72 -> 1 | S72: 6 | T72: =IF(S72=Arrivées!G72,Arrivées!H72,IF(S72=Arrivées!K72,Arrivées!L72,IF(S72=Arrivées!O72,Arrivées!P72,IF(S72=Arrivées!S72,Arrivées!T72,"0")))) -> 15.8 | U72: =IF(S72=Arrivées!G72,Arrivées!I72,IF(S72=Arrivées!K72,Arrivées!M72,IF(S72=Arrivées!O72,Arrivées!Q72,IF(S72=Arrivées!S72,Arrivées!U72,"0")))) -> 3.5 | W72: =Arrivées!W72 -> BOUGOUIN | X72: =Arrivées!X72 -> R4C3
A73: =Arrivées!A73 -> 2017-01-05 | B73: =Arrivées!B73 -> MEYDAN | C73: =Arrivées!C73 -> H | D73: =Arrivées!D73 -> NON | E73: =Arrivées!E73 -> 16 | F73: =Arrivées!F73 -> 1 | G73: 1 | H73: =IF(G73=Arrivées!G73,Arrivées!H73,IF(G73=Arrivées!K73,Arrivées!L73,IF(G73=Arrivées!O73,Arrivées!P73,IF(G73=Arrivées!S73,Arrivées!T73,"0")))) -> 1.5 | I73: =IF(G73=Arrivées!G73,Arrivées!I73,IF(G73=Arrivées!K73,Arrivées!M73,IF(G73=Arrivées!O73,Arrivées!Q73,IF(G73=Arrivées!S73,Arrivées!U73,"0")))) -> 1.2 | K73: 6 | L73: =IF(K73=Arrivées!G73,Arrivées!H73,IF(K73=Arrivées!K73,Arrivées!L73,IF(G73=Arrivées!O73,Arrivées!P73,IF(K73=Arrivées!S73,Arrivées!T73,"0")))) -> 0 | M73: =IF(K73=Arrivées!G73,Arrivées!I73,IF(K73=Arrivées!K73,Arrivées!M73,IF(K73=Arrivées!O73,Arrivées!Q73,IF(K73=Arrivées!S73,Arrivées!U73,"0")))) -> 0 | N73: =Arrivées!F73 -> 1 | O73: 13 | P73: =IF(O73=Arrivées!G73,Arrivées!H73,IF(O73=Arrivées!K73,Arrivées!L73,IF(O73=Arrivées!O73,Arrivées!P73,IF(O73=Arrivées!S73,Arrivées!T73,"0")))) -> 0 | Q73: =IF(O73=Arrivées!G73,Arrivées!I73,IF(O73=Arrivées!K73,Arrivées!M73,IF(O73=Arrivées!O73,Arrivées!Q73,IF(O73=Arrivées!S73,Arrivées!U73,"0")))) -> 0 | R73: =Arrivées!F73 -> 1 | S73: 3 | T73: =IF(S73=Arrivées!G73,Arrivées!H73,IF(S73=Arrivées!K73,Arrivées!L73,IF(S73=Arrivées!O73,Arrivées!P73,IF(S73=Arrivées!S73,Arrivées!T73,"0")))) -> 0 | U73: =IF(S73=Arrivées!G73,Arrivées!I73,IF(S73=Arrivées!K73,Arrivées!M73,IF(S73=Arrivées!O73,Arrivées!Q73,IF(S73=Arrivées!S73,Arrivées!U73,"0")))) -> 2.8 | W73: =Arrivées!W73 -> BOUGOUIN | X73: =Arrivées!X73 -> R4C4
A74: =Arrivées!A74 -> 2017-01-05 | B74: =Arrivées!B74 -> MEYDAN | C74: =Arrivées!C74 -> NON | D74: =Arrivées!D74 -> II | E74: =Arrivées!E74 -> 10 | F74: =Arrivées!F74 -> 1 | G74: 4 | H74: =IF(G74=Arrivées!G74,Arrivées!H74,IF(G74=Arrivées!K74,Arrivées!L74,IF(G74=Arrivées!O74,Arrivées!P74,IF(G74=Arrivées!S74,Arrivées!T74,"0")))) -> 0 | I74: =IF(G74=Arrivées!G74,Arrivées!I74,IF(G74=Arrivées!K74,Arrivées!M74,IF(G74=Arrivées!O74,Arrivées!Q74,IF(G74=Arrivées!S74,Arrivées!U74,"0")))) -> 0 | K74: 8 | L74: =IF(K74=Arrivées!G74,Arrivées!H74,IF(K74=Arrivées!K74,Arrivées!L74,IF(G74=Arrivées!O74,Arrivées!P74,IF(K74=Arrivées!S74,Arrivées!T74,"0")))) -> 0 | M74: =IF(K74=Arrivées!G74,Arrivées!I74,IF(K74=Arrivées!K74,Arrivées!M74,IF(K74=Arrivées!O74,Arrivées!Q74,IF(K74=Arrivées!S74,Arrivées!U74,"0")))) -> 0 | N74: =Arrivées!F74 -> 1 | O74: 7 | P74: =IF(O74=Arrivées!G74,Arrivées!H74,IF(O74=Arrivées!K74,Arrivées!L74,IF(O74=Arrivées!O74,Arrivées!P74,IF(O74=Arrivées!S74,Arrivées!T74,"0")))) -> 0 | Q74: =IF(O74=Arrivées!G74,Arrivées!I74,IF(O74=Arrivées!K74,Arrivées!M74,IF(O74=Arrivées!O74,Arrivées!Q74,IF(O74=Arrivées!S74,Arrivées!U74,"0")))) -> 0 | R74: =Arrivées!F74 -> 1 | S74: 1 | T74: =IF(S74=Arrivées!G74,Arrivées!H74,IF(S74=Arrivées!K74,Arrivées!L74,IF(S74=Arrivées!O74,Arrivées!P74,IF(S74=Arrivées!S74,Arrivées!T74,"0")))) -> 9 | U74: =IF(S74=Arrivées!G74,Arrivées!I74,IF(S74=Arrivées!K74,Arrivées!M74,IF(S74=Arrivées!O74,Arrivées!Q74,IF(S74=Arrivées!S74,Arrivées!U74,"0")))) -> 2.8 | W74: =Arrivées!W74 -> BOUGOUIN | X74: =Arrivées!X74 -> R4C5
A75: =Arrivées!A75 -> 2017-01-05 | B75: =Arrivées!B75 -> MEYDAN | C75: =Arrivées!C75 -> LISTE RACED | D75: =Arrivées!D75 -> NON | E75: =Arrivées!E75 -> 12 | F75: =Arrivées!F75 -> 1 | G75: 1 | H75: =IF(G75=Arrivées!G75,Arrivées!H75,IF(G75=Arrivées!K75,Arrivées!L75,IF(G75=Arrivées!O75,Arrivées!P75,IF(G75=Arrivées!S75,Arrivées!T75,"0")))) -> 0 | I75: =IF(G75=Arrivées!G75,Arrivées!I75,IF(G75=Arrivées!K75,Arrivées!M75,IF(G75=Arrivées!O75,Arrivées!Q75,IF(G75=Arrivées!S75,Arrivées!U75,"0")))) -> 0 | K75: 9 | L75: =IF(K75=Arrivées!G75,Arrivées!H75,IF(K75=Arrivées!K75,Arrivées!L75,IF(G75=Arrivées!O75,Arrivées!P75,IF(K75=Arrivées!S75,Arrivées!T75,"0")))) -> 0 | M75: =IF(K75=Arrivées!G75,Arrivées!I75,IF(K75=Arrivées!K75,Arrivées!M75,IF(K75=Arrivées!O75,Arrivées!Q75,IF(K75=Arrivées!S75,Arrivées!U75,"0")))) -> 0 | N75: =Arrivées!F75 -> 1 | O75: 2 | P75: =IF(O75=Arrivées!G75,Arrivées!H75,IF(O75=Arrivées!K75,Arrivées!L75,IF(O75=Arrivées!O75,Arrivées!P75,IF(O75=Arrivées!S75,Arrivées!T75,"0")))) -> 6.6 | Q75: =IF(O75=Arrivées!G75,Arrivées!I75,IF(O75=Arrivées!K75,Arrivées!M75,IF(O75=Arrivées!O75,Arrivées!Q75,IF(O75=Arrivées!S75,Arrivées!U75,"0")))) -> 1.8 | R75: =Arrivées!F75 -> 1 | S75: 5 | T75: =IF(S75=Arrivées!G75,Arrivées!H75,IF(S75=Arrivées!K75,Arrivées!L75,IF(S75=Arrivées!O75,Arrivées!P75,IF(S75=Arrivées!S75,Arrivées!T75,"0")))) -> 0 | U75: =IF(S75=Arrivées!G75,Arrivées!I75,IF(S75=Arrivées!K75,Arrivées!M75,IF(S75=Arrivées!O75,Arrivées!Q75,IF(S75=Arrivées!S75,Arrivées!U75,"0")))) -> 0 | W75: =Arrivées!W75 -> BOUGOUIN | X75: =Arrivées!X75 -> R4C6
A76: =Arrivées!A76 -> 2017-01-05 | B76: =Arrivées!B76 -> MEYDAN | C76: =Arrivées!C76 -> H | D76: =Arrivées!D76 -> NON | E76: =Arrivées!E76 -> 16 | F76: =Arrivées!F76 -> 1 | G76: 5 | H76: =IF(G76=Arrivées!G76,Arrivées!H76,IF(G76=Arrivées!K76,Arrivées!L76,IF(G76=Arrivées!O76,Arrivées!P76,IF(G76=Arrivées!S76,Arrivées!T76,"0")))) -> 0 | I76: =IF(G76=Arrivées!G76,Arrivées!I76,IF(G76=Arrivées!K76,Arrivées!M76,IF(G76=Arrivées!O76,Arrivées!Q76,IF(G76=Arrivées!S76,Arrivées!U76,"0")))) -> 0 | K76: 16 | L76: =IF(K76=Arrivées!G76,Arrivées!H76,IF(K76=Arrivées!K76,Arrivées!L76,IF(G76=Arrivées!O76,Arrivées!P76,IF(K76=Arrivées!S76,Arrivées!T76,"0")))) -> 0 | M76: =IF(K76=Arrivées!G76,Arrivées!I76,IF(K76=Arrivées!K76,Arrivées!M76,IF(K76=Arrivées!O76,Arrivées!Q76,IF(K76=Arrivées!S76,Arrivées!U76,"0")))) -> 0 | N76: =Arrivées!F76 -> 1 | O76: 1 | P76: =IF(O76=Arrivées!G76,Arrivées!H76,IF(O76=Arrivées!K76,Arrivées!L76,IF(O76=Arrivées!O76,Arrivées!P76,IF(O76=Arrivées!S76,Arrivées!T76,"0")))) -> 0 | Q76: =IF(O76=Arrivées!G76,Arrivées!I76,IF(O76=Arrivées!K76,Arrivées!M76,IF(O76=Arrivées!O76,Arrivées!Q76,IF(O76=Arrivées!S76,Arrivées!U76,"0")))) -> 2.2 | R76: =Arrivées!F76 -> 1 | S76: 10 | T76: =IF(S76=Arrivées!G76,Arrivées!H76,IF(S76=Arrivées!K76,Arrivées!L76,IF(S76=Arrivées!O76,Arrivées!P76,IF(S76=Arrivées!S76,Arrivées!T76,"0")))) -> 0 | U76: =IF(S76=Arrivées!G76,Arrivées!I76,IF(S76=Arrivées!K76,Arrivées!M76,IF(S76=Arrivées!O76,Arrivées!Q76,IF(S76=Arrivées!S76,Arrivées!U76,"0")))) -> 0 | W76: =Arrivées!W76 -> BOUGOUIN | X76: =Arrivées!X76 -> R4C7
A77: =Arrivées!A77 -> 2017-01-06 | B77: =Arrivées!B77 -> DEAUVILLE | C77: =Arrivées!C77 -> MAIDEN | D77: =Arrivées!D77 -> MALE | E77: =Arrivées!E77 -> 10 | F77: =Arrivées!F77 -> 1 | G77: 8 | H77: =IF(G77=Arrivées!G77,Arrivées!H77,IF(G77=Arrivées!K77,Arrivées!L77,IF(G77=Arrivées!O77,Arrivées!P77,IF(G77=Arrivées!S77,Arrivées!T77,"0")))) -> 0 | I77: =IF(G77=Arrivées!G77,Arrivées!I77,IF(G77=Arrivées!K77,Arrivées!M77,IF(G77=Arrivées!O77,Arrivées!Q77,IF(G77=Arrivées!S77,Arrivées!U77,"0")))) -> 0 | K77: 2 | L77: =IF(K77=Arrivées!G77,Arrivées!H77,IF(K77=Arrivées!K77,Arrivées!L77,IF(G77=Arrivées!O77,Arrivées!P77,IF(K77=Arrivées!S77,Arrivées!T77,"0")))) -> 0 | M77: =IF(K77=Arrivées!G77,Arrivées!I77,IF(K77=Arrivées!K77,Arrivées!M77,IF(K77=Arrivées!O77,Arrivées!Q77,IF(K77=Arrivées!S77,Arrivées!U77,"0")))) -> 1.2 | N77: =Arrivées!F77 -> 1 | O77: 4 | P77: =IF(O77=Arrivées!G77,Arrivées!H77,IF(O77=Arrivées!K77,Arrivées!L77,IF(O77=Arrivées!O77,Arrivées!P77,IF(O77=Arrivées!S77,Arrivées!T77,"0")))) -> 0 | Q77: =IF(O77=Arrivées!G77,Arrivées!I77,IF(O77=Arrivées!K77,Arrivées!M77,IF(O77=Arrivées!O77,Arrivées!Q77,IF(O77=Arrivées!S77,Arrivées!U77,"0")))) -> 2.3 | R77: =Arrivées!F77 -> 1 | S77: 1 | T77: =IF(S77=Arrivées!G77,Arrivées!H77,IF(S77=Arrivées!K77,Arrivées!L77,IF(S77=Arrivées!O77,Arrivées!P77,IF(S77=Arrivées!S77,Arrivées!T77,"0")))) -> 0 | U77: =IF(S77=Arrivées!G77,Arrivées!I77,IF(S77=Arrivées!K77,Arrivées!M77,IF(S77=Arrivées!O77,Arrivées!Q77,IF(S77=Arrivées!S77,Arrivées!U77,"0")))) -> 0 | W77: =Arrivées!W77 -> ESPEJO-AMAR | X77: =Arrivées!X77 -> R1C1
A78: =Arrivées!A78 -> 2017-01-06 | B78: =Arrivées!B78 -> DEAUVILLE | C78: =Arrivées!C78 -> MAIDEN | D78: =Arrivées!D78 -> FEMELLE | E78: =Arrivées!E78 -> 16 | F78: =Arrivées!F78 -> 1 | G78: 5 | H78: =IF(G78=Arrivées!G78,Arrivées!H78,IF(G78=Arrivées!K78,Arrivées!L78,IF(G78=Arrivées!O78,Arrivées!P78,IF(G78=Arrivées!S78,Arrivées!T78,"0")))) -> 1.7 | I78: =IF(G78=Arrivées!G78,Arrivées!I78,IF(G78=Arrivées!K78,Arrivées!M78,IF(G78=Arrivées!O78,Arrivées!Q78,IF(G78=Arrivées!S78,Arrivées!U78,"0")))) -> 1.2 | K78: 2 | L78: =IF(K78=Arrivées!G78,Arrivées!H78,IF(K78=Arrivées!K78,Arrivées!L78,IF(G78=Arrivées!O78,Arrivées!P78,IF(K78=Arrivées!S78,Arrivées!T78,"0")))) -> 0 | M78: =IF(K78=Arrivées!G78,Arrivées!I78,IF(K78=Arrivées!K78,Arrivées!M78,IF(K78=Arrivées!O78,Arrivées!Q78,IF(K78=Arrivées!S78,Arrivées!U78,"0")))) -> 0 | N78: =Arrivées!F78 -> 1 | O78: 4 | P78: =IF(O78=Arrivées!G78,Arrivées!H78,IF(O78=Arrivées!K78,Arrivées!L78,IF(O78=Arrivées!O78,Arrivées!P78,IF(O78=Arrivées!S78,Arrivées!T78,"0")))) -> 0 | Q78: =IF(O78=Arrivées!G78,Arrivées!I78,IF(O78=Arrivées!K78,Arrivées!M78,IF(O78=Arrivées!O78,Arrivées!Q78,IF(O78=Arrivées!S78,Arrivées!U78,"0")))) -> 0 | R78: =Arrivées!F78 -> 1 | S78: 16 | T78: =IF(S78=Arrivées!G78,Arrivées!H78,IF(S78=Arrivées!K78,Arrivées!L78,IF(S78=Arrivées!O78,Arrivées!P78,IF(S78=Arrivées!S78,Arrivées!T78,"0")))) -> 0 | U78: =IF(S78=Arrivées!G78,Arrivées!I78,IF(S78=Arrivées!K78,Arrivées!M78,IF(S78=Arrivées!O78,Arrivées!Q78,IF(S78=Arrivées!S78,Arrivées!U78,"0")))) -> 0 | W78: =Arrivées!W78 -> ESPEJO-AMAR | X78: =Arrivées!X78 -> R1C2
A79: =Arrivées!A79 -> 2017-01-06 | B79: =Arrivées!B79 -> DEAUVILLE | C79: =Arrivées!C79 -> HD | D79: =Arrivées!D79 -> D | E79: =Arrivées!E79 -> 16 | F79: =Arrivées!F79 -> 1 | G79: 11 | H79: =IF(G79=Arrivées!G79,Arrivées!H79,IF(G79=Arrivées!K79,Arrivées!L79,IF(G79=Arrivées!O79,Arrivées!P79,IF(G79=Arrivées!S79,Arrivées!T79,"0")))) -> 0 | I79: =IF(G79=Arrivées!G79,Arrivées!I79,IF(G79=Arrivées!K79,Arrivées!M79,IF(G79=Arrivées!O79,Arrivées!Q79,IF(G79=Arrivées!S79,Arrivées!U79,"0")))) -> 0 | K79: 9 | L79: =IF(K79=Arrivées!G79,Arrivées!H79,IF(K79=Arrivées!K79,Arrivées!L79,IF(G79=Arrivées!O79,Arrivées!P79,IF(K79=Arrivées!S79,Arrivées!T79,"0")))) -> 0 | M79: =IF(K79=Arrivées!G79,Arrivées!I79,IF(K79=Arrivées!K79,Arrivées!M79,IF(K79=Arrivées!O79,Arrivées!Q79,IF(K79=Arrivées!S79,Arrivées!U79,"0")))) -> 0 | N79: =Arrivées!F79 -> 1 | O79: 5 | P79: =IF(O79=Arrivées!G79,Arrivées!H79,IF(O79=Arrivées!K79,Arrivées!L79,IF(O79=Arrivées!O79,Arrivées!P79,IF(O79=Arrivées!S79,Arrivées!T79,"0")))) -> 0 | Q79: =IF(O79=Arrivées!G79,Arrivées!I79,IF(O79=Arrivées!K79,Arrivées!M79,IF(O79=Arrivées!O79,Arrivées!Q79,IF(O79=Arrivées!S79,Arrivées!U79,"0")))) -> 0 | R79: =Arrivées!F79 -> 1 | S79: 3 | T79: =IF(S79=Arrivées!G79,Arrivées!H79,IF(S79=Arrivées!K79,Arrivées!L79,IF(S79=Arrivées!O79,Arrivées!P79,IF(S79=Arrivées!S79,Arrivées!T79,"0")))) -> 0 | U79: =IF(S79=Arrivées!G79,Arrivées!I79,IF(S79=Arrivées!K79,Arrivées!M79,IF(S79=Arrivées!O79,Arrivées!Q79,IF(S79=Arrivées!S79,Arrivées!U79,"0")))) -> 0 | W79: =Arrivées!W79 -> ESPEJO-AMAR | X79: =Arrivées!X79 -> R1C3
A80: =Arrivées!A80 -> 2017-01-06 | B80: =Arrivées!B80 -> DEAUVILLE | C80: =Arrivées!C80 -> RECLAMER | D80: =Arrivées!D80 -> NON | E80: =Arrivées!E80 -> 10 | F80: =Arrivées!F80 -> 1 | G80: 5 | H80: =IF(G80=Arrivées!G80,Arrivées!H80,IF(G80=Arrivées!K80,Arrivées!L80,IF(G80=Arrivées!O80,Arrivées!P80,IF(G80=Arrivées!S80,Arrivées!T80,"0")))) -> 0 | I80: =IF(G80=Arrivées!G80,Arrivées!I80,IF(G80=Arrivées!K80,Arrivées!M80,IF(G80=Arrivées!O80,Arrivées!Q80,IF(G80=Arrivées!S80,Arrivées!U80,"0")))) -> 1.5 | K80: 6 | L80: =IF(K80=Arrivées!G80,Arrivées!H80,IF(K80=Arrivées!K80,Arrivées!L80,IF(G80=Arrivées!O80,Arrivées!P80,IF(K80=Arrivées!S80,Arrivées!T80,"0")))) -> 0 | M80: =IF(K80=Arrivées!G80,Arrivées!I80,IF(K80=Arrivées!K80,Arrivées!M80,IF(K80=Arrivées!O80,Arrivées!Q80,IF(K80=Arrivées!S80,Arrivées!U80,"0")))) -> 0 | N80: =Arrivées!F80 -> 1 | O80: 1 | P80: =IF(O80=Arrivées!G80,Arrivées!H80,IF(O80=Arrivées!K80,Arrivées!L80,IF(O80=Arrivées!O80,Arrivées!P80,IF(O80=Arrivées!S80,Arrivées!T80,"0")))) -> 0 | Q80: =IF(O80=Arrivées!G80,Arrivées!I80,IF(O80=Arrivées!K80,Arrivées!M80,IF(O80=Arrivées!O80,Arrivées!Q80,IF(O80=Arrivées!S80,Arrivées!U80,"0")))) -> 2.4 | R80: =Arrivées!F80 -> 1 | S80: 4 | T80: =IF(S80=Arrivées!G80,Arrivées!H80,IF(S80=Arrivées!K80,Arrivées!L80,IF(S80=Arrivées!O80,Arrivées!P80,IF(S80=Arrivées!S80,Arrivées!T80,"0")))) -> 0 | U80: =IF(S80=Arrivées!G80,Arrivées!I80,IF(S80=Arrivées!K80,Arrivées!M80,IF(S80=Arrivées!O80,Arrivées!Q80,IF(S80=Arrivées!S80,Arrivées!U80,"0")))) -> 0 | W80: =Arrivées!W80 -> ESPEJO-AMAR | X80: =Arrivées!X80 -> R1C4
A81: =Arrivées!A81 -> 2017-01-06 | B81: =Arrivées!B81 -> DEAUVILLE | C81: =Arrivées!C81 -> HD | D81: =Arrivées!D81 -> E | E81: =Arrivées!E81 -> 16 | F81: =Arrivées!F81 -> 1 | G81: 4 | H81: =IF(G81=Arrivées!G81,Arrivées!H81,IF(G81=Arrivées!K81,Arrivées!L81,IF(G81=Arrivées!O81,Arrivées!P81,IF(G81=Arrivées!S81,Arrivées!T81,"0")))) -> 0 | I81: =IF(G81=Arrivées!G81,Arrivées!I81,IF(G81=Arrivées!K81,Arrivées!M81,IF(G81=Arrivées!O81,Arrivées!Q81,IF(G81=Arrivées!S81,Arrivées!U81,"0")))) -> 2.2 | K81: 12 | L81: =IF(K81=Arrivées!G81,Arrivées!H81,IF(K81=Arrivées!K81,Arrivées!L81,IF(G81=Arrivées!O81,Arrivées!P81,IF(K81=Arrivées!S81,Arrivées!T81,"0")))) -> 0 | M81: =IF(K81=Arrivées!G81,Arrivées!I81,IF(K81=Arrivées!K81,Arrivées!M81,IF(K81=Arrivées!O81,Arrivées!Q81,IF(K81=Arrivées!S81,Arrivées!U81,"0")))) -> 1.8 | N81: =Arrivées!F81 -> 1 | O81: 7 | P81: =IF(O81=Arrivées!G81,Arrivées!H81,IF(O81=Arrivées!K81,Arrivées!L81,IF(O81=Arrivées!O81,Arrivées!P81,IF(O81=Arrivées!S81,Arrivées!T81,"0")))) -> 0 | Q81: =IF(O81=Arrivées!G81,Arrivées!I81,IF(O81=Arrivées!K81,Arrivées!M81,IF(O81=Arrivées!O81,Arrivées!Q81,IF(O81=Arrivées!S81,Arrivées!U81,"0")))) -> 0 | R81: =Arrivées!F81 -> 1 | S81: 2 | T81: =IF(S81=Arrivées!G81,Arrivées!H81,IF(S81=Arrivées!K81,Arrivées!L81,IF(S81=Arrivées!O81,Arrivées!P81,IF(S81=Arrivées!S81,Arrivées!T81,"0")))) -> 0 | U81: =IF(S81=Arrivées!G81,Arrivées!I81,IF(S81=Arrivées!K81,Arrivées!M81,IF(S81=Arrivées!O81,Arrivées!Q81,IF(S81=Arrivées!S81,Arrivées!U81,"0")))) -> 0 | W81: =Arrivées!W81 -> ESPEJO-AMAR | X81: =Arrivées!X81 -> R1C5
A82: =Arrivées!A82 -> 2017-01-06 | B82: =Arrivées!B82 -> DEAUVILLE | C82: =Arrivées!C82 -> RECLAMER | D82: =Arrivées!D82 -> G | E82: =Arrivées!E82 -> 15 | F82: =Arrivées!F82 -> 1 | G82: 1 | H82: =IF(G82=Arrivées!G82,Arrivées!H82,IF(G82=Arrivées!K82,Arrivées!L82,IF(G82=Arrivées!O82,Arrivées!P82,IF(G82=Arrivées!S82,Arrivées!T82,"0")))) -> 0 | I82: =IF(G82=Arrivées!G82,Arrivées!I82,IF(G82=Arrivées!K82,Arrivées!M82,IF(G82=Arrivées!O82,Arrivées!Q82,IF(G82=Arrivées!S82,Arrivées!U82,"0")))) -> 1.8 | K82: 9 | L82: =IF(K82=Arrivées!G82,Arrivées!H82,IF(K82=Arrivées!K82,Arrivées!L82,IF(G82=Arrivées!O82,Arrivées!P82,IF(K82=Arrivées!S82,Arrivées!T82,"0")))) -> 0 | M82: =IF(K82=Arrivées!G82,Arrivées!I82,IF(K82=Arrivées!K82,Arrivées!M82,IF(K82=Arrivées!O82,Arrivées!Q82,IF(K82=Arrivées!S82,Arrivées!U82,"0")))) -> 2.7 | N82: =Arrivées!F82 -> 1 | O82: 13 | P82: =IF(O82=Arrivées!G82,Arrivées!H82,IF(O82=Arrivées!K82,Arrivées!L82,IF(O82=Arrivées!O82,Arrivées!P82,IF(O82=Arrivées!S82,Arrivées!T82,"0")))) -> 11.3 | Q82: =IF(O82=Arrivées!G82,Arrivées!I82,IF(O82=Arrivées!K82,Arrivées!M82,IF(O82=Arrivées!O82,Arrivées!Q82,IF(O82=Arrivées!S82,Arrivées!U82,"0")))) -> 3.7 | R82: =Arrivées!F82 -> 1 | S82: 7 | T82: =IF(S82=Arrivées!G82,Arrivées!H82,IF(S82=Arrivées!K82,Arrivées!L82,IF(S82=Arrivées!O82,Arrivées!P82,IF(S82=Arrivées!S82,Arrivées!T82,"0")))) -> 0 | U82: =IF(S82=Arrivées!G82,Arrivées!I82,IF(S82=Arrivées!K82,Arrivées!M82,IF(S82=Arrivées!O82,Arrivées!Q82,IF(S82=Arrivées!S82,Arrivées!U82,"0")))) -> 0 | W82: =Arrivées!W82 -> ESPEJO-AMAR | X82: =Arrivées!X82 -> R1C6
A83: =Arrivées!A83 -> 2017-01-06 | B83: =Arrivées!B83 -> DEAUVILLE | C83: =Arrivées!C83 -> HD | D83: =Arrivées!D83 -> E | E83: =Arrivées!E83 -> 16 | F83: =Arrivées!F83 -> 1 | G83: 6 | H83: =IF(G83=Arrivées!G83,Arrivées!H83,IF(G83=Arrivées!K83,Arrivées!L83,IF(G83=Arrivées!O83,Arrivées!P83,IF(G83=Arrivées!S83,Arrivées!T83,"0")))) -> 0 | I83: =IF(G83=Arrivées!G83,Arrivées!I83,IF(G83=Arrivées!K83,Arrivées!M83,IF(G83=Arrivées!O83,Arrivées!Q83,IF(G83=Arrivées!S83,Arrivées!U83,"0")))) -> 0 | K83: 8 | L83: =IF(K83=Arrivées!G83,Arrivées!H83,IF(K83=Arrivées!K83,Arrivées!L83,IF(G83=Arrivées!O83,Arrivées!P83,IF(K83=Arrivées!S83,Arrivées!T83,"0")))) -> 0 | M83: =IF(K83=Arrivées!G83,Arrivées!I83,IF(K83=Arrivées!K83,Arrivées!M83,IF(K83=Arrivées!O83,Arrivées!Q83,IF(K83=Arrivées!S83,Arrivées!U83,"0")))) -> 2.1 | N83: =Arrivées!F83 -> 1 | O83: 4 | P83: =IF(O83=Arrivées!G83,Arrivées!H83,IF(O83=Arrivées!K83,Arrivées!L83,IF(O83=Arrivées!O83,Arrivées!P83,IF(O83=Arrivées!S83,Arrivées!T83,"0")))) -> 0 | Q83: =IF(O83=Arrivées!G83,Arrivées!I83,IF(O83=Arrivées!K83,Arrivées!M83,IF(O83=Arrivées!O83,Arrivées!Q83,IF(O83=Arrivées!S83,Arrivées!U83,"0")))) -> 0 | R83: =Arrivées!F83 -> 1 | S83: 12 | T83: =IF(S83=Arrivées!G83,Arrivées!H83,IF(S83=Arrivées!K83,Arrivées!L83,IF(S83=Arrivées!O83,Arrivées!P83,IF(S83=Arrivées!S83,Arrivées!T83,"0")))) -> 0 | U83: =IF(S83=Arrivées!G83,Arrivées!I83,IF(S83=Arrivées!K83,Arrivées!M83,IF(S83=Arrivées!O83,Arrivées!Q83,IF(S83=Arrivées!S83,Arrivées!U83,"0")))) -> 0 | W83: =Arrivées!W83 -> ESPEJO-AMAR | X83: =Arrivées!X83 -> R1C7
A84: =Arrivées!A84 -> 2017-01-06 | B84: =Arrivées!B84 -> DEAUVILLE | C84: =Arrivées!C84 -> RECLAMER | D84: =Arrivées!D84 -> NON | E84: =Arrivées!E84 -> 14 | F84: =Arrivées!F84 -> 1 | G84: 11 | H84: =IF(G84=Arrivées!G84,Arrivées!H84,IF(G84=Arrivées!K84,Arrivées!L84,IF(G84=Arrivées!O84,Arrivées!P84,IF(G84=Arrivées!S84,Arrivées!T84,"0")))) -> 2.2 | I84: =IF(G84=Arrivées!G84,Arrivées!I84,IF(G84=Arrivées!K84,Arrivées!M84,IF(G84=Arrivées!O84,Arrivées!Q84,IF(G84=Arrivées!S84,Arrivées!U84,"0")))) -> 1.3 | K84: 2 | L84: =IF(K84=Arrivées!G84,Arrivées!H84,IF(K84=Arrivées!K84,Arrivées!L84,IF(G84=Arrivées!O84,Arrivées!P84,IF(K84=Arrivées!S84,Arrivées!T84,"0")))) -> 0 | M84: =IF(K84=Arrivées!G84,Arrivées!I84,IF(K84=Arrivées!K84,Arrivées!M84,IF(K84=Arrivées!O84,Arrivées!Q84,IF(K84=Arrivées!S84,Arrivées!U84,"0")))) -> 0 | N84: =Arrivées!F84 -> 1 | O84: 1 | P84: =IF(O84=Arrivées!G84,Arrivées!H84,IF(O84=Arrivées!K84,Arrivées!L84,IF(O84=Arrivées!O84,Arrivées!P84,IF(O84=Arrivées!S84,Arrivées!T84,"0")))) -> 0 | Q84: =IF(O84=Arrivées!G84,Arrivées!I84,IF(O84=Arrivées!K84,Arrivées!M84,IF(O84=Arrivées!O84,Arrivées!Q84,IF(O84=Arrivées!S84,Arrivées!U84,"0")))) -> 0 | R84: =Arrivées!F84 -> 1 | S84: 10 | T84: =IF(S84=Arrivées!G84,Arrivées!H84,IF(S84=Arrivées!K84,Arrivées!L84,IF(S84=Arrivées!O84,Arrivées!P84,IF(S84=Arrivées!S84,Arrivées!T84,"0")))) -> 0 | U84: =IF(S84=Arrivées!G84,Arrivées!I84,IF(S84=Arrivées!K84,Arrivées!M84,IF(S84=Arrivées!O84,Arrivées!Q84,IF(S84=Arrivées!S84,Arrivées!U84,"0")))) -> 0 | W84: =Arrivées!W84 -> ESPEJO-AMAR | X84: =Arrivées!X84 -> R1C8
A85: =Arrivées!A85 -> 2017-01-06 | B85: =Arrivées!B85 -> DEAUVILLE | C85: =Arrivées!C85 -> HD | D85: =Arrivées!D85 -> E | E85: =Arrivées!E85 -> 15 | F85: =Arrivées!F85 -> 1 | G85: 5 | H85: =IF(G85=Arrivées!G85,Arrivées!H85,IF(G85=Arrivées!K85,Arrivées!L85,IF(G85=Arrivées!O85,Arrivées!P85,IF(G85=Arrivées!S85,Arrivées!T85,"0")))) -> 4.2 | I85: =IF(G85=Arrivées!G85,Arrivées!I85,IF(G85=Arrivées!K85,Arrivées!M85,IF(G85=Arrivées!O85,Arrivées!Q85,IF(G85=Arrivées!S85,Arrivées!U85,"0")))) -> 2.1 | K85: 3 | L85: =IF(K85=Arrivées!G85,Arrivées!H85,IF(K85=Arrivées!K85,Arrivées!L85,IF(G85=Arrivées!O85,Arrivées!P85,IF(K85=Arrivées!S85,Arrivées!T85,"0")))) -> 0 | M85: =IF(K85=Arrivées!G85,Arrivées!I85,IF(K85=Arrivées!K85,Arrivées!M85,IF(K85=Arrivées!O85,Arrivées!Q85,IF(K85=Arrivées!S85,Arrivées!U85,"0")))) -> 0 | N85: =Arrivées!F85 -> 1 | O85: 1 | P85: =IF(O85=Arrivées!G85,Arrivées!H85,IF(O85=Arrivées!K85,Arrivées!L85,IF(O85=Arrivées!O85,Arrivées!P85,IF(O85=Arrivées!S85,Arrivées!T85,"0")))) -> 0 | Q85: =IF(O85=Arrivées!G85,Arrivées!I85,IF(O85=Arrivées!K85,Arrivées!M85,IF(O85=Arrivées!O85,Arrivées!Q85,IF(O85=Arrivées!S85,Arrivées!U85,"0")))) -> 0 | R85: =Arrivées!F85 -> 1 | S85: 13 | T85: =IF(S85=Arrivées!G85,Arrivées!H85,IF(S85=Arrivées!K85,Arrivées!L85,IF(S85=Arrivées!O85,Arrivées!P85,IF(S85=Arrivées!S85,Arrivées!T85,"0")))) -> 0 | U85: =IF(S85=Arrivées!G85,Arrivées!I85,IF(S85=Arrivées!K85,Arrivées!M85,IF(S85=Arrivées!O85,Arrivées!Q85,IF(S85=Arrivées!S85,Arrivées!U85,"0")))) -> 0 | W85: =Arrivées!W85 -> ESPEJO-AMAR | X85: =Arrivées!X85 -> R1C9
A86: =Arrivées!A86 -> 2017-01-06 | B86: =Arrivées!B86 -> KENILWORTH | C86: =Arrivées!C86 -> NON | D86: =Arrivées!D86 -> FEMELLE | E86: =Arrivées!E86 -> 10 | F86: =Arrivées!F86 -> 1 | G86: 1 | H86: =IF(G86=Arrivées!G86,Arrivées!H86,IF(G86=Arrivées!K86,Arrivées!L86,IF(G86=Arrivées!O86,Arrivées!P86,IF(G86=Arrivées!S86,Arrivées!T86,"0")))) -> 0 | I86: =IF(G86=Arrivées!G86,Arrivées!I86,IF(G86=Arrivées!K86,Arrivées!M86,IF(G86=Arrivées!O86,Arrivées!Q86,IF(G86=Arrivées!S86,Arrivées!U86,"0")))) -> 0 | K86: 10 | L86: =IF(K86=Arrivées!G86,Arrivées!H86,IF(K86=Arrivées!K86,Arrivées!L86,IF(G86=Arrivées!O86,Arrivées!P86,IF(K86=Arrivées!S86,Arrivées!T86,"0")))) -> 0 | M86: =IF(K86=Arrivées!G86,Arrivées!I86,IF(K86=Arrivées!K86,Arrivées!M86,IF(K86=Arrivées!O86,Arrivées!Q86,IF(K86=Arrivées!S86,Arrivées!U86,"0")))) -> 0 | N86: =Arrivées!F86 -> 1 | O86: 5 | P86: =IF(O86=Arrivées!G86,Arrivées!H86,IF(O86=Arrivées!K86,Arrivées!L86,IF(O86=Arrivées!O86,Arrivées!P86,IF(O86=Arrivées!S86,Arrivées!T86,"0")))) -> 6.2 | Q86: =IF(O86=Arrivées!G86,Arrivées!I86,IF(O86=Arrivées!K86,Arrivées!M86,IF(O86=Arrivées!O86,Arrivées!Q86,IF(O86=Arrivées!S86,Arrivées!U86,"0")))) -> 2 | R86: =Arrivées!F86 -> 1 | S86: 7 | T86: =IF(S86=Arrivées!G86,Arrivées!H86,IF(S86=Arrivées!K86,Arrivées!L86,IF(S86=Arrivées!O86,Arrivées!P86,IF(S86=Arrivées!S86,Arrivées!T86,"0")))) -> 0 | U86: =IF(S86=Arrivées!G86,Arrivées!I86,IF(S86=Arrivées!K86,Arrivées!M86,IF(S86=Arrivées!O86,Arrivées!Q86,IF(S86=Arrivées!S86,Arrivées!U86,"0")))) -> 0 | W86: =Arrivées!W86 -> HIRON | X86: =Arrivées!X86 -> R2C1
A87: =Arrivées!A87 -> 2017-01-06 | B87: =Arrivées!B87 -> KENILWORTH | C87: =Arrivées!C87 -> NON | D87: =Arrivées!D87 -> NON | E87: =Arrivées!E87 -> 16 | F87: =Arrivées!F87 -> 1 | G87: 8 | H87: =IF(G87=Arrivées!G87,Arrivées!H87,IF(G87=Arrivées!K87,Arrivées!L87,IF(G87=Arrivées!O87,Arrivées!P87,IF(G87=Arrivées!S87,Arrivées!T87,"0")))) -> 0 | I87: =IF(G87=Arrivées!G87,Arrivées!I87,IF(G87=Arrivées!K87,Arrivées!M87,IF(G87=Arrivées!O87,Arrivées!Q87,IF(G87=Arrivées!S87,Arrivées!U87,"0")))) -> 0 | K87: 10 | L87: =IF(K87=Arrivées!G87,Arrivées!H87,IF(K87=Arrivées!K87,Arrivées!L87,IF(G87=Arrivées!O87,Arrivées!P87,IF(K87=Arrivées!S87,Arrivées!T87,"0")))) -> 6 | M87: =IF(K87=Arrivées!G87,Arrivées!I87,IF(K87=Arrivées!K87,Arrivées!M87,IF(K87=Arrivées!O87,Arrivées!Q87,IF(K87=Arrivées!S87,Arrivées!U87,"0")))) -> 2 | N87: =Arrivées!F87 -> 1 | O87: 9 | P87: =IF(O87=Arrivées!G87,Arrivées!H87,IF(O87=Arrivées!K87,Arrivées!L87,IF(O87=Arrivées!O87,Arrivées!P87,IF(O87=Arrivées!S87,Arrivées!T87,"0")))) -> 0 | Q87: =IF(O87=Arrivées!G87,Arrivées!I87,IF(O87=Arrivées!K87,Arrivées!M87,IF(O87=Arrivées!O87,Arrivées!Q87,IF(O87=Arrivées!S87,Arrivées!U87,"0")))) -> 0 | R87: =Arrivées!F87 -> 1 | S87: 6 | T87: =IF(S87=Arrivées!G87,Arrivées!H87,IF(S87=Arrivées!K87,Arrivées!L87,IF(S87=Arrivées!O87,Arrivées!P87,IF(S87=Arrivées!S87,Arrivées!T87,"0")))) -> 0 | U87: =IF(S87=Arrivées!G87,Arrivées!I87,IF(S87=Arrivées!K87,Arrivées!M87,IF(S87=Arrivées!O87,Arrivées!Q87,IF(S87=Arrivées!S87,Arrivées!U87,"0")))) -> 2.2 | W87: =Arrivées!W87 -> HIRON | X87: =Arrivées!X87 -> R2C2
A88: =Arrivées!A88 -> 2017-01-06 | B88: =Arrivées!B88 -> KENILWORTH | C88: =Arrivées!C88 -> NON | D88: =Arrivées!D88 -> FEMELLE | E88: =Arrivées!E88 -> 14 | F88: =Arrivées!F88 -> 1 | G88: 3 | H88: =IF(G88=Arrivées!G88,Arrivées!H88,IF(G88=Arrivées!K88,Arrivées!L88,IF(G88=Arrivées!O88,Arrivées!P88,IF(G88=Arrivées!S88,Arrivées!T88,"0")))) -> 0 | I88: =IF(G88=Arrivées!G88,Arrivées!I88,IF(G88=Arrivées!K88,Arrivées!M88,IF(G88=Arrivées!O88,Arrivées!Q88,IF(G88=Arrivées!S88,Arrivées!U88,"0")))) -> 0 | K88: 2 | L88: =IF(K88=Arrivées!G88,Arrivées!H88,IF(K88=Arrivées!K88,Arrivées!L88,IF(G88=Arrivées!O88,Arrivées!P88,IF(K88=Arrivées!S88,Arrivées!T88,"0")))) -> 4.1 | M88: =IF(K88=Arrivées!G88,Arrivées!I88,IF(K88=Arrivées!K88,Arrivées!M88,IF(K88=Arrivées!O88,Arrivées!Q88,IF(K88=Arrivées!S88,Arrivées!U88,"0")))) -> 1.7 | N88: =Arrivées!F88 -> 1 | O88: 4 | P88: =IF(O88=Arrivées!G88,Arrivées!H88,IF(O88=Arrivées!K88,Arrivées!L88,IF(O88=Arrivées!O88,Arrivées!P88,IF(O88=Arrivées!S88,Arrivées!T88,"0")))) -> 0 | Q88: =IF(O88=Arrivées!G88,Arrivées!I88,IF(O88=Arrivées!K88,Arrivées!M88,IF(O88=Arrivées!O88,Arrivées!Q88,IF(O88=Arrivées!S88,Arrivées!U88,"0")))) -> 0 | R88: =Arrivées!F88 -> 1 | S88: 12 | T88: =IF(S88=Arrivées!G88,Arrivées!H88,IF(S88=Arrivées!K88,Arrivées!L88,IF(S88=Arrivées!O88,Arrivées!P88,IF(S88=Arrivées!S88,Arrivées!T88,"0")))) -> 0 | U88: =IF(S88=Arrivées!G88,Arrivées!I88,IF(S88=Arrivées!K88,Arrivées!M88,IF(S88=Arrivées!O88,Arrivées!Q88,IF(S88=Arrivées!S88,Arrivées!U88,"0")))) -> 2.1 | W88: =Arrivées!W88 -> HIRON | X88: =Arrivées!X88 -> R2C3
A89: =Arrivées!A89 -> 2017-01-06 | B89: =Arrivées!B89 -> GREYVILLE | C89: =Arrivées!C89 -> NON | D89: =Arrivées!D89 -> FEMELLE | E89: =Arrivées!E89 -> 12 | F89: =Arrivées!F89 -> 1 | G89: 1 | H89: =IF(G89=Arrivées!G89,Arrivées!H89,IF(G89=Arrivées!K89,Arrivées!L89,IF(G89=Arrivées!O89,Arrivées!P89,IF(G89=Arrivées!S89,Arrivées!T89,"0")))) -> 1.8 | I89: =IF(G89=Arrivées!G89,Arrivées!I89,IF(G89=Arrivées!K89,Arrivées!M89,IF(G89=Arrivées!O89,Arrivées!Q89,IF(G89=Arrivées!S89,Arrivées!U89,"0")))) -> 1.2 | K89: 6 | L89: =IF(K89=Arrivées!G89,Arrivées!H89,IF(K89=Arrivées!K89,Arrivées!L89,IF(G89=Arrivées!O89,Arrivées!P89,IF(K89=Arrivées!S89,Arrivées!T89,"0")))) -> 0 | M89: =IF(K89=Arrivées!G89,Arrivées!I89,IF(K89=Arrivées!K89,Arrivées!M89,IF(K89=Arrivées!O89,Arrivées!Q89,IF(K89=Arrivées!S89,Arrivées!U89,"0")))) -> 0 | N89: =Arrivées!F89 -> 1 | O89: 7 | P89: =IF(O89=Arrivées!G89,Arrivées!H89,IF(O89=Arrivées!K89,Arrivées!L89,IF(O89=Arrivées!O89,Arrivées!P89,IF(O89=Arrivées!S89,Arrivées!T89,"0")))) -> 0 | Q89: =IF(O89=Arrivées!G89,Arrivées!I89,IF(O89=Arrivées!K89,Arrivées!M89,IF(O89=Arrivées!O89,Arrivées!Q89,IF(O89=Arrivées!S89,Arrivées!U89,"0")))) -> 0 | R89: =Arrivées!F89 -> 1 | S89: 11 | T89: =IF(S89=Arrivées!G89,Arrivées!H89,IF(S89=Arrivées!K89,Arrivées!L89,IF(S89=Arrivées!O89,Arrivées!P89,IF(S89=Arrivées!S89,Arrivées!T89,"0")))) -> 0 | U89: =IF(S89=Arrivées!G89,Arrivées!I89,IF(S89=Arrivées!K89,Arrivées!M89,IF(S89=Arrivées!O89,Arrivées!Q89,IF(S89=Arrivées!S89,Arrivées!U89,"0")))) -> 1.6 | W89: =Arrivées!W89 -> HIRON | X89: =Arrivées!X89 -> R5C2
A90: =Arrivées!A90 -> 2017-01-06 | B90: =Arrivées!B90 -> GREYVILLE | C90: =Arrivées!C90 -> NON | D90: =Arrivées!D90 -> FEMELLE | E90: =Arrivées!E90 -> 9 | F90: =Arrivées!F90 -> 1 | G90: 1 | H90: =IF(G90=Arrivées!G90,Arrivées!H90,IF(G90=Arrivées!K90,Arrivées!L90,IF(G90=Arrivées!O90,Arrivées!P90,IF(G90=Arrivées!S90,Arrivées!T90,"0")))) -> 0 | I90: =IF(G90=Arrivées!G90,Arrivées!I90,IF(G90=Arrivées!K90,Arrivées!M90,IF(G90=Arrivées!O90,Arrivées!Q90,IF(G90=Arrivées!S90,Arrivées!U90,"0")))) -> 0 | K90: 2 | L90: =IF(K90=Arrivées!G90,Arrivées!H90,IF(K90=Arrivées!K90,Arrivées!L90,IF(G90=Arrivées!O90,Arrivées!P90,IF(K90=Arrivées!S90,Arrivées!T90,"0")))) -> 0 | M90: =IF(K90=Arrivées!G90,Arrivées!I90,IF(K90=Arrivées!K90,Arrivées!M90,IF(K90=Arrivées!O90,Arrivées!Q90,IF(K90=Arrivées!S90,Arrivées!U90,"0")))) -> 0 | N90: =Arrivées!F90 -> 1 | O90: 7 | P90: =IF(O90=Arrivées!G90,Arrivées!H90,IF(O90=Arrivées!K90,Arrivées!L90,IF(O90=Arrivées!O90,Arrivées!P90,IF(O90=Arrivées!S90,Arrivées!T90,"0")))) -> 0 | Q90: =IF(O90=Arrivées!G90,Arrivées!I90,IF(O90=Arrivées!K90,Arrivées!M90,IF(O90=Arrivées!O90,Arrivées!Q90,IF(O90=Arrivées!S90,Arrivées!U90,"0")))) -> 1.7 | R90: =Arrivées!F90 -> 1 | S90: 5 | T90: =IF(S90=Arrivées!G90,Arrivées!H90,IF(S90=Arrivées!K90,Arrivées!L90,IF(S90=Arrivées!O90,Arrivées!P90,IF(S90=Arrivées!S90,Arrivées!T90,"0")))) -> 0 | U90: =IF(S90=Arrivées!G90,Arrivées!I90,IF(S90=Arrivées!K90,Arrivées!M90,IF(S90=Arrivées!O90,Arrivées!Q90,IF(S90=Arrivées!S90,Arrivées!U90,"0")))) -> 0 | W90: =Arrivées!W90 -> HIRON | X90: =Arrivées!X90 -> R5C3
A91: =Arrivées!A91 -> 2017-01-06 | B91: =Arrivées!B91 -> GREYVILLE | C91: =Arrivées!C91 -> H | D91: =Arrivées!D91 -> FEMELLE | E91: =Arrivées!E91 -> 12 | F91: =Arrivées!F91 -> 1 | G91: 2 | H91: =IF(G91=Arrivées!G91,Arrivées!H91,IF(G91=Arrivées!K91,Arrivées!L91,IF(G91=Arrivées!O91,Arrivées!P91,IF(G91=Arrivées!S91,Arrivées!T91,"0")))) -> 0 | I91: =IF(G91=Arrivées!G91,Arrivées!I91,IF(G91=Arrivées!K91,Arrivées!M91,IF(G91=Arrivées!O91,Arrivées!Q91,IF(G91=Arrivées!S91,Arrivées!U91,"0")))) -> 0 | K91: 1 | L91: =IF(K91=Arrivées!G91,Arrivées!H91,IF(K91=Arrivées!K91,Arrivées!L91,IF(G91=Arrivées!O91,Arrivées!P91,IF(K91=Arrivées!S91,Arrivées!T91,"0")))) -> 0 | M91: =IF(K91=Arrivées!G91,Arrivées!I91,IF(K91=Arrivées!K91,Arrivées!M91,IF(K91=Arrivées!O91,Arrivées!Q91,IF(K91=Arrivées!S91,Arrivées!U91,"0")))) -> 0 | N91: =Arrivées!F91 -> 1 | O91: 11 | P91: =IF(O91=Arrivées!G91,Arrivées!H91,IF(O91=Arrivées!K91,Arrivées!L91,IF(O91=Arrivées!O91,Arrivées!P91,IF(O91=Arrivées!S91,Arrivées!T91,"0")))) -> 0 | Q91: =IF(O91=Arrivées!G91,Arrivées!I91,IF(O91=Arrivées!K91,Arrivées!M91,IF(O91=Arrivées!O91,Arrivées!Q91,IF(O91=Arrivées!S91,Arrivées!U91,"0")))) -> 0 | R91: =Arrivées!F91 -> 1 | S91: 5 | T91: =IF(S91=Arrivées!G91,Arrivées!H91,IF(S91=Arrivées!K91,Arrivées!L91,IF(S91=Arrivées!O91,Arrivées!P91,IF(S91=Arrivées!S91,Arrivées!T91,"0")))) -> 0 | U91: =IF(S91=Arrivées!G91,Arrivées!I91,IF(S91=Arrivées!K91,Arrivées!M91,IF(S91=Arrivées!O91,Arrivées!Q91,IF(S91=Arrivées!S91,Arrivées!U91,"0")))) -> 0 | W91: =Arrivées!W91 -> HIRON | X91: =Arrivées!X91 -> R5C4
A92: =Arrivées!A92 -> 2017-01-06 | B92: =Arrivées!B92 -> GREYVILLE | C92: =Arrivées!C92 -> H | D92: =Arrivées!D92 -> NON | E92: =Arrivées!E92 -> 12 | F92: =Arrivées!F92 -> 1 | G92: 1 | H92: =IF(G92=Arrivées!G92,Arrivées!H92,IF(G92=Arrivées!K92,Arrivées!L92,IF(G92=Arrivées!O92,Arrivées!P92,IF(G92=Arrivées!S92,Arrivées!T92,"0")))) -> 0 | I92: =IF(G92=Arrivées!G92,Arrivées!I92,IF(G92=Arrivées!K92,Arrivées!M92,IF(G92=Arrivées!O92,Arrivées!Q92,IF(G92=Arrivées!S92,Arrivées!U92,"0")))) -> 0 | K92: 6 | L92: =IF(K92=Arrivées!G92,Arrivées!H92,IF(K92=Arrivées!K92,Arrivées!L92,IF(G92=Arrivées!O92,Arrivées!P92,IF(K92=Arrivées!S92,Arrivées!T92,"0")))) -> 5.9 | M92: =IF(K92=Arrivées!G92,Arrivées!I92,IF(K92=Arrivées!K92,Arrivées!M92,IF(K92=Arrivées!O92,Arrivées!Q92,IF(K92=Arrivées!S92,Arrivées!U92,"0")))) -> 4 | N92: =Arrivées!F92 -> 1 | O92: 3 | P92: =IF(O92=Arrivées!G92,Arrivées!H92,IF(O92=Arrivées!K92,Arrivées!L92,IF(O92=Arrivées!O92,Arrivées!P92,IF(O92=Arrivées!S92,Arrivées!T92,"0")))) -> 0 | Q92: =IF(O92=Arrivées!G92,Arrivées!I92,IF(O92=Arrivées!K92,Arrivées!M92,IF(O92=Arrivées!O92,Arrivées!Q92,IF(O92=Arrivées!S92,Arrivées!U92,"0")))) -> 0 | R92: =Arrivées!F92 -> 1 | S92: 11 | T92: =IF(S92=Arrivées!G92,Arrivées!H92,IF(S92=Arrivées!K92,Arrivées!L92,IF(S92=Arrivées!O92,Arrivées!P92,IF(S92=Arrivées!S92,Arrivées!T92,"0")))) -> 0 | U92: =IF(S92=Arrivées!G92,Arrivées!I92,IF(S92=Arrivées!K92,Arrivées!M92,IF(S92=Arrivées!O92,Arrivées!Q92,IF(S92=Arrivées!S92,Arrivées!U92,"0")))) -> 0 | W92: =Arrivées!W92 -> HIRON | X92: =Arrivées!X92 -> R5C5
A93: =Arrivées!A93 -> 2017-01-06 | B93: =Arrivées!B93 -> GREYVILLE | C93: =Arrivées!C93 -> H | D93: =Arrivées!D93 -> FEMELLE | E93: =Arrivées!E93 -> 9 | F93: =Arrivées!F93 -> 1 | G93: 3 | H93: =IF(G93=Arrivées!G93,Arrivées!H93,IF(G93=Arrivées!K93,Arrivées!L93,IF(G93=Arrivées!O93,Arrivées!P93,IF(G93=Arrivées!S93,Arrivées!T93,"0")))) -> 0 | I93: =IF(G93=Arrivées!G93,Arrivées!I93,IF(G93=Arrivées!K93,Arrivées!M93,IF(G93=Arrivées!O93,Arrivées!Q93,IF(G93=Arrivées!S93,Arrivées!U93,"0")))) -> 0 | K93: 8 | L93: =IF(K93=Arrivées!G93,Arrivées!H93,IF(K93=Arrivées!K93,Arrivées!L93,IF(G93=Arrivées!O93,Arrivées!P93,IF(K93=Arrivées!S93,Arrivées!T93,"0")))) -> 0 | M93: =IF(K93=Arrivées!G93,Arrivées!I93,IF(K93=Arrivées!K93,Arrivées!M93,IF(K93=Arrivées!O93,Arrivées!Q93,IF(K93=Arrivées!S93,Arrivées!U93,"0")))) -> 0 | N93: =Arrivées!F93 -> 1 | O93: 6 | P93: =IF(O93=Arrivées!G93,Arrivées!H93,IF(O93=Arrivées!K93,Arrivées!L93,IF(O93=Arrivées!O93,Arrivées!P93,IF(O93=Arrivées!S93,Arrivées!T93,"0")))) -> 0 | Q93: =IF(O93=Arrivées!G93,Arrivées!I93,IF(O93=Arrivées!K93,Arrivées!M93,IF(O93=Arrivées!O93,Arrivées!Q93,IF(O93=Arrivées!S93,Arrivées!U93,"0")))) -> 2.2 | R93: =Arrivées!F93 -> 1 | S93: 2 | T93: =IF(S93=Arrivées!G93,Arrivées!H93,IF(S93=Arrivées!K93,Arrivées!L93,IF(S93=Arrivées!O93,Arrivées!P93,IF(S93=Arrivées!S93,Arrivées!T93,"0")))) -> 0 | U93: =IF(S93=Arrivées!G93,Arrivées!I93,IF(S93=Arrivées!K93,Arrivées!M93,IF(S93=Arrivées!O93,Arrivées!Q93,IF(S93=Arrivées!S93,Arrivées!U93,"0")))) -> 0 | W93: =Arrivées!W93 -> HIRON | X93: =Arrivées!X93 -> R5C6
A94: =Arrivées!A94 -> 2017-01-06 | B94: =Arrivées!B94 -> GREYVILLE | C94: =Arrivées!C94 -> NON | D94: =Arrivées!D94 -> NON | E94: =Arrivées!E94 -> 9 | F94: =Arrivées!F94 -> 1 | G94: 2 | H94: =IF(G94=Arrivées!G94,Arrivées!H94,IF(G94=Arrivées!K94,Arrivées!L94,IF(G94=Arrivées!O94,Arrivées!P94,IF(G94=Arrivées!S94,Arrivées!T94,"0")))) -> 1.4 | I94: =IF(G94=Arrivées!G94,Arrivées!I94,IF(G94=Arrivées!K94,Arrivées!M94,IF(G94=Arrivées!O94,Arrivées!Q94,IF(G94=Arrivées!S94,Arrivées!U94,"0")))) -> 1.4 | K94: 5 | L94: =IF(K94=Arrivées!G94,Arrivées!H94,IF(K94=Arrivées!K94,Arrivées!L94,IF(G94=Arrivées!O94,Arrivées!P94,IF(K94=Arrivées!S94,Arrivées!T94,"0")))) -> 0 | M94: =IF(K94=Arrivées!G94,Arrivées!I94,IF(K94=Arrivées!K94,Arrivées!M94,IF(K94=Arrivées!O94,Arrivées!Q94,IF(K94=Arrivées!S94,Arrivées!U94,"0")))) -> 0 | N94: =Arrivées!F94 -> 1 | O94: 7 | P94: =IF(O94=Arrivées!G94,Arrivées!H94,IF(O94=Arrivées!K94,Arrivées!L94,IF(O94=Arrivées!O94,Arrivées!P94,IF(O94=Arrivées!S94,Arrivées!T94,"0")))) -> 0 | Q94: =IF(O94=Arrivées!G94,Arrivées!I94,IF(O94=Arrivées!K94,Arrivées!M94,IF(O94=Arrivées!O94,Arrivées!Q94,IF(O94=Arrivées!S94,Arrivées!U94,"0")))) -> 1.7 | R94: =Arrivées!F94 -> 1 | S94: 1 | T94: =IF(S94=Arrivées!G94,Arrivées!H94,IF(S94=Arrivées!K94,Arrivées!L94,IF(S94=Arrivées!O94,Arrivées!P94,IF(S94=Arrivées!S94,Arrivées!T94,"0")))) -> 1.4 | U94: =IF(S94=Arrivées!G94,Arrivées!I94,IF(S94=Arrivées!K94,Arrivées!M94,IF(S94=Arrivées!O94,Arrivées!Q94,IF(S94=Arrivées!S94,Arrivées!U94,"0")))) -> 1.3 | W94: =Arrivées!W94 -> HIRON | X94: =Arrivées!X94 -> R5C7
A95: =Arrivées!A95 -> 2017-01-06 | B95: =Arrivées!B95 -> GREYVILLE | C95: =Arrivées!C95 -> NON | D95: =Arrivées!D95 -> NON | E95: =Arrivées!E95 -> 12 | F95: =Arrivées!F95 -> 1 | G95: 12 | H95: =IF(G95=Arrivées!G95,Arrivées!H95,IF(G95=Arrivées!K95,Arrivées!L95,IF(G95=Arrivées!O95,Arrivées!P95,IF(G95=Arrivées!S95,Arrivées!T95,"0")))) -> 0 | I95: =IF(G95=Arrivées!G95,Arrivées!I95,IF(G95=Arrivées!K95,Arrivées!M95,IF(G95=Arrivées!O95,Arrivées!Q95,IF(G95=Arrivées!S95,Arrivées!U95,"0")))) -> 0 | K95: 1 | L95: =IF(K95=Arrivées!G95,Arrivées!H95,IF(K95=Arrivées!K95,Arrivées!L95,IF(G95=Arrivées!O95,Arrivées!P95,IF(K95=Arrivées!S95,Arrivées!T95,"0")))) -> 8.6 | M95: =IF(K95=Arrivées!G95,Arrivées!I95,IF(K95=Arrivées!K95,Arrivées!M95,IF(K95=Arrivées!O95,Arrivées!Q95,IF(K95=Arrivées!S95,Arrivées!U95,"0")))) -> 2.2 | N95: =Arrivées!F95 -> 1 | O95: 2 | P95: =IF(O95=Arrivées!G95,Arrivées!H95,IF(O95=Arrivées!K95,Arrivées!L95,IF(O95=Arrivées!O95,Arrivées!P95,IF(O95=Arrivées!S95,Arrivées!T95,"0")))) -> 0 | Q95: =IF(O95=Arrivées!G95,Arrivées!I95,IF(O95=Arrivées!K95,Arrivées!M95,IF(O95=Arrivées!O95,Arrivées!Q95,IF(O95=Arrivées!S95,Arrivées!U95,"0")))) -> 1.7 | R95: =Arrivées!F95 -> 1 | S95: 6 | T95: =IF(S95=Arrivées!G95,Arrivées!H95,IF(S95=Arrivées!K95,Arrivées!L95,IF(S95=Arrivées!O95,Arrivées!P95,IF(S95=Arrivées!S95,Arrivées!T95,"0")))) -> 0 | U95: =IF(S95=Arrivées!G95,Arrivées!I95,IF(S95=Arrivées!K95,Arrivées!M95,IF(S95=Arrivées!O95,Arrivées!Q95,IF(S95=Arrivées!S95,Arrivées!U95,"0")))) -> 0 | W95: =Arrivées!W95 -> HIRON | X95: =Arrivées!X95 -> R5C8
A96: =Arrivées!A96 -> 2017-01-07 | B96: =Arrivées!B96 -> DEAUVILLE | C96: =Arrivées!C96 -> NON | D96: =Arrivées!D96 -> NON | E96: =Arrivées!E96 -> 9 | F96: =Arrivées!F96 -> 1 | G96: 4 | H96: =IF(G96=Arrivées!G96,Arrivées!H96,IF(G96=Arrivées!K96,Arrivées!L96,IF(G96=Arrivées!O96,Arrivées!P96,IF(G96=Arrivées!S96,Arrivées!T96,"0")))) -> 0 | I96: =IF(G96=Arrivées!G96,Arrivées!I96,IF(G96=Arrivées!K96,Arrivées!M96,IF(G96=Arrivées!O96,Arrivées!Q96,IF(G96=Arrivées!S96,Arrivées!U96,"0")))) -> 0 | K96: 2 | L96: =IF(K96=Arrivées!G96,Arrivées!H96,IF(K96=Arrivées!K96,Arrivées!L96,IF(G96=Arrivées!O96,Arrivées!P96,IF(K96=Arrivées!S96,Arrivées!T96,"0")))) -> 0 | M96: =IF(K96=Arrivées!G96,Arrivées!I96,IF(K96=Arrivées!K96,Arrivées!M96,IF(K96=Arrivées!O96,Arrivées!Q96,IF(K96=Arrivées!S96,Arrivées!U96,"0")))) -> 1.2 | N96: =Arrivées!F96 -> 1 | O96: 9 | P96: =IF(O96=Arrivées!G96,Arrivées!H96,IF(O96=Arrivées!K96,Arrivées!L96,IF(O96=Arrivées!O96,Arrivées!P96,IF(O96=Arrivées!S96,Arrivées!T96,"0")))) -> 5.3 | Q96: =IF(O96=Arrivées!G96,Arrivées!I96,IF(O96=Arrivées!K96,Arrivées!M96,IF(O96=Arrivées!O96,Arrivées!Q96,IF(O96=Arrivées!S96,Arrivées!U96,"0")))) -> 1.7 | R96: =Arrivées!F96 -> 1 | S96: 1 | T96: =IF(S96=Arrivées!G96,Arrivées!H96,IF(S96=Arrivées!K96,Arrivées!L96,IF(S96=Arrivées!O96,Arrivées!P96,IF(S96=Arrivées!S96,Arrivées!T96,"0")))) -> 0 | U96: =IF(S96=Arrivées!G96,Arrivées!I96,IF(S96=Arrivées!K96,Arrivées!M96,IF(S96=Arrivées!O96,Arrivées!Q96,IF(S96=Arrivées!S96,Arrivées!U96,"0")))) -> 2.5 | W96: =Arrivées!W96 -> DOMANCHE | X96: =Arrivées!X96 -> R3C1
A97: =Arrivées!A97 -> 2017-01-07 | B97: =Arrivées!B97 -> DEAUVILLE | C97: =Arrivées!C97 -> NON | D97: =Arrivées!D97 -> E | E97: =Arrivées!E97 -> 13 | F97: =Arrivées!F97 -> 1 | G97: 4 | H97: =IF(G97=Arrivées!G97,Arrivées!H97,IF(G97=Arrivées!K97,Arrivées!L97,IF(G97=Arrivées!O97,Arrivées!P97,IF(G97=Arrivées!S97,Arrivées!T97,"0")))) -> 0 | I97: =IF(G97=Arrivées!G97,Arrivées!I97,IF(G97=Arrivées!K97,Arrivées!M97,IF(G97=Arrivées!O97,Arrivées!Q97,IF(G97=Arrivées!S97,Arrivées!U97,"0")))) -> 1.3 | K97: 1 | L97: =IF(K97=Arrivées!G97,Arrivées!H97,IF(K97=Arrivées!K97,Arrivées!L97,IF(G97=Arrivées!O97,Arrivées!P97,IF(K97=Arrivées!S97,Arrivées!T97,"0")))) -> 4.4 | M97: =IF(K97=Arrivées!G97,Arrivées!I97,IF(K97=Arrivées!K97,Arrivées!M97,IF(K97=Arrivées!O97,Arrivées!Q97,IF(K97=Arrivées!S97,Arrivées!U97,"0")))) -> 1.4 | N97: =Arrivées!F97 -> 1 | O97: 3 | P97: =IF(O97=Arrivées!G97,Arrivées!H97,IF(O97=Arrivées!K97,Arrivées!L97,IF(O97=Arrivées!O97,Arrivées!P97,IF(O97=Arrivées!S97,Arrivées!T97,"0")))) -> 0 | Q97: =IF(O97=Arrivées!G97,Arrivées!I97,IF(O97=Arrivées!K97,Arrivées!M97,IF(O97=Arrivées!O97,Arrivées!Q97,IF(O97=Arrivées!S97,Arrivées!U97,"0")))) -> 0 | R97: =Arrivées!F97 -> 1 | S97: 2 | T97: =IF(S97=Arrivées!G97,Arrivées!H97,IF(S97=Arrivées!K97,Arrivées!L97,IF(S97=Arrivées!O97,Arrivées!P97,IF(S97=Arrivées!S97,Arrivées!T97,"0")))) -> 0 | U97: =IF(S97=Arrivées!G97,Arrivées!I97,IF(S97=Arrivées!K97,Arrivées!M97,IF(S97=Arrivées!O97,Arrivées!Q97,IF(S97=Arrivées!S97,Arrivées!U97,"0")))) -> 1.5 | W97: =Arrivées!W97 -> DOMANCHE | X97: =Arrivées!X97 -> R3C2
A98: =Arrivées!A98 -> 2017-01-07 | B98: =Arrivées!B98 -> DEAUVILLE | C98: =Arrivées!C98 -> HD | D98: =Arrivées!D98 -> E | E98: =Arrivées!E98 -> 12 | F98: =Arrivées!F98 -> 1 | G98: 3 | H98: =IF(G98=Arrivées!G98,Arrivées!H98,IF(G98=Arrivées!K98,Arrivées!L98,IF(G98=Arrivées!O98,Arrivées!P98,IF(G98=Arrivées!S98,Arrivées!T98,"0")))) -> 0 | I98: =IF(G98=Arrivées!G98,Arrivées!I98,IF(G98=Arrivées!K98,Arrivées!M98,IF(G98=Arrivées!O98,Arrivées!Q98,IF(G98=Arrivées!S98,Arrivées!U98,"0")))) -> 0 | K98: 8 | L98: =IF(K98=Arrivées!G98,Arrivées!H98,IF(K98=Arrivées!K98,Arrivées!L98,IF(G98=Arrivées!O98,Arrivées!P98,IF(K98=Arrivées!S98,Arrivées!T98,"0")))) -> 0 | M98: =IF(K98=Arrivées!G98,Arrivées!I98,IF(K98=Arrivées!K98,Arrivées!M98,IF(K98=Arrivées!O98,Arrivées!Q98,IF(K98=Arrivées!S98,Arrivées!U98,"0")))) -> 1.7 | N98: =Arrivées!F98 -> 1 | O98: 6 | P98: =IF(O98=Arrivées!G98,Arrivées!H98,IF(O98=Arrivées!K98,Arrivées!L98,IF(O98=Arrivées!O98,Arrivées!P98,IF(O98=Arrivées!S98,Arrivées!T98,"0")))) -> 0 | Q98: =IF(O98=Arrivées!G98,Arrivées!I98,IF(O98=Arrivées!K98,Arrivées!M98,IF(O98=Arrivées!O98,Arrivées!Q98,IF(O98=Arrivées!S98,Arrivées!U98,"0")))) -> 0 | R98: =Arrivées!F98 -> 1 | S98: 2 | T98: =IF(S98=Arrivées!G98,Arrivées!H98,IF(S98=Arrivées!K98,Arrivées!L98,IF(S98=Arrivées!O98,Arrivées!P98,IF(S98=Arrivées!S98,Arrivées!T98,"0")))) -> 8.3 | U98: =IF(S98=Arrivées!G98,Arrivées!I98,IF(S98=Arrivées!K98,Arrivées!M98,IF(S98=Arrivées!O98,Arrivées!Q98,IF(S98=Arrivées!S98,Arrivées!U98,"0")))) -> 2.6 | W98: =Arrivées!W98 -> DOMANCHE | X98: =Arrivées!X98 -> R3C3
A99: =Arrivées!A99 -> 2017-01-07 | B99: =Arrivées!B99 -> DEAUVILLE | C99: =Arrivées!C99 -> HD | D99: =Arrivées!D99 -> E | E99: =Arrivées!E99 -> 12 | F99: =Arrivées!F99 -> 1 | G99: 8 | H99: =IF(G99=Arrivées!G99,Arrivées!H99,IF(G99=Arrivées!K99,Arrivées!L99,IF(G99=Arrivées!O99,Arrivées!P99,IF(G99=Arrivées!S99,Arrivées!T99,"0")))) -> 0 | I99: =IF(G99=Arrivées!G99,Arrivées!I99,IF(G99=Arrivées!K99,Arrivées!M99,IF(G99=Arrivées!O99,Arrivées!Q99,IF(G99=Arrivées!S99,Arrivées!U99,"0")))) -> 1.8 | K99: 1 | L99: =IF(K99=Arrivées!G99,Arrivées!H99,IF(K99=Arrivées!K99,Arrivées!L99,IF(G99=Arrivées!O99,Arrivées!P99,IF(K99=Arrivées!S99,Arrivées!T99,"0")))) -> 0 | M99: =IF(K99=Arrivées!G99,Arrivées!I99,IF(K99=Arrivées!K99,Arrivées!M99,IF(K99=Arrivées!O99,Arrivées!Q99,IF(K99=Arrivées!S99,Arrivées!U99,"0")))) -> 0 | N99: =Arrivées!F99 -> 1 | O99: 3 | P99: =IF(O99=Arrivées!G99,Arrivées!H99,IF(O99=Arrivées!K99,Arrivées!L99,IF(O99=Arrivées!O99,Arrivées!P99,IF(O99=Arrivées!S99,Arrivées!T99,"0")))) -> 0 | Q99: =IF(O99=Arrivées!G99,Arrivées!I99,IF(O99=Arrivées!K99,Arrivées!M99,IF(O99=Arrivées!O99,Arrivées!Q99,IF(O99=Arrivées!S99,Arrivées!U99,"0")))) -> 0 | R99: =Arrivées!F99 -> 1 | S99: 6 | T99: =IF(S99=Arrivées!G99,Arrivées!H99,IF(S99=Arrivées!K99,Arrivées!L99,IF(S99=Arrivées!O99,Arrivées!P99,IF(S99=Arrivées!S99,Arrivées!T99,"0")))) -> 0 | U99: =IF(S99=Arrivées!G99,Arrivées!I99,IF(S99=Arrivées!K99,Arrivées!M99,IF(S99=Arrivées!O99,Arrivées!Q99,IF(S99=Arrivées!S99,Arrivées!U99,"0")))) -> 0 | W99: =Arrivées!W99 -> DOMANCHE | X99: =Arrivées!X99 -> R3C4
A100: =Arrivées!A100 -> 2017-01-07 | B100: =Arrivées!B100 -> DEAUVILLE | C100: =Arrivées!C100 -> HD | D100: =Arrivées!D100 -> E | E100: =Arrivées!E100 -> 14 | F100: =Arrivées!F100 -> 1 | G100: 4 | H100: =IF(G100=Arrivées!G100,Arrivées!H100,IF(G100=Arrivées!K100,Arrivées!L100,IF(G100=Arrivées!O100,Arrivées!P100,IF(G100=Arrivées!S100,Arrivées!T100,"0")))) -> 0 | I100: =IF(G100=Arrivées!G100,Arrivées!I100,IF(G100=Arrivées!K100,Arrivées!M100,IF(G100=Arrivées!O100,Arrivées!Q100,IF(G100=Arrivées!S100,Arrivées!U100,"0")))) -> 2.7 | K100: 2 | L100: =IF(K100=Arrivées!G100,Arrivées!H100,IF(K100=Arrivées!K100,Arrivées!L100,IF(G100=Arrivées!O100,Arrivées!P100,IF(K100=Arrivées!S100,Arrivées!T100,"0")))) -> 0 | M100: =IF(K100=Arrivées!G100,Arrivées!I100,IF(K100=Arrivées!K100,Arrivées!M100,IF(K100=Arrivées!O100,Arrivées!Q100,IF(K100=Arrivées!S100,Arrivées!U100,"0")))) -> 0 | N100: =Arrivées!F100 -> 1 | O100: 8 | P100: =IF(O100=Arrivées!G100,Arrivées!H100,IF(O100=Arrivées!K100,Arrivées!L100,IF(O100=Arrivées!O100,Arrivées!P100,IF(O100=Arrivées!S100,Arrivées!T100,"0")))) -> 0 | Q100: =IF(O100=Arrivées!G100,Arrivées!I100,IF(O100=Arrivées!K100,Arrivées!M100,IF(O100=Arrivées!O100,Arrivées!Q100,IF(O100=Arrivées!S100,Arrivées!U100,"0")))) -> 0 | R100: =Arrivées!F100 -> 1 | S100: 11 | T100: =IF(S100=Arrivées!G100,Arrivées!H100,IF(S100=Arrivées!K100,Arrivées!L100,IF(S100=Arrivées!O100,Arrivées!P100,IF(S100=Arrivées!S100,Arrivées!T100,"0")))) -> 4.5 | U100: =IF(S100=Arrivées!G100,Arrivées!I100,IF(S100=Arrivées!K100,Arrivées!M100,IF(S100=Arrivées!O100,Arrivées!Q100,IF(S100=Arrivées!S100,Arrivées!U100,"0")))) -> 1.9 | W100: =Arrivées!W100 -> DOMANCHE | X100: =Arrivées!X100 -> R3C5
A101: =Arrivées!A101 -> 2017-01-07 | B101: =Arrivées!B101 -> DEAUVILLE | C101: =Arrivées!C101 -> HD | D101: =Arrivées!D101 -> G | E101: =Arrivées!E101 -> 16 | F101: =Arrivées!F101 -> 1 | G101: 16 | H101: =IF(G101=Arrivées!G101,Arrivées!H101,IF(G101=Arrivées!K101,Arrivées!L101,IF(G101=Arrivées!O101,Arrivées!P101,IF(G101=Arrivées!S101,Arrivées!T101,"0")))) -> 0 | I101: =IF(G101=Arrivées!G101,Arrivées!I101,IF(G101=Arrivées!K101,Arrivées!M101,IF(G101=Arrivées!O101,Arrivées!Q101,IF(G101=Arrivées!S101,Arrivées!U101,"0")))) -> 0 | K101: 3 | L101: =IF(K101=Arrivées!G101,Arrivées!H101,IF(K101=Arrivées!K101,Arrivées!L101,IF(G101=Arrivées!O101,Arrivées!P101,IF(K101=Arrivées!S101,Arrivées!T101,"0")))) -> 0 | M101: =IF(K101=Arrivées!G101,Arrivées!I101,IF(K101=Arrivées!K101,Arrivées!M101,IF(K101=Arrivées!O101,Arrivées!Q101,IF(K101=Arrivées!S101,Arrivées!U101,"0")))) -> 0 | N101: =Arrivées!F101 -> 1 | O101: 7 | P101: =IF(O101=Arrivées!G101,Arrivées!H101,IF(O101=Arrivées!K101,Arrivées!L101,IF(O101=Arrivées!O101,Arrivées!P101,IF(O101=Arrivées!S101,Arrivées!T101,"0")))) -> 0 | Q101: =IF(O101=Arrivées!G101,Arrivées!I101,IF(O101=Arrivées!K101,Arrivées!M101,IF(O101=Arrivées!O101,Arrivées!Q101,IF(O101=Arrivées!S101,Arrivées!U101,"0")))) -> 0 | R101: =Arrivées!F101 -> 1 | S101: 14 | T101: =IF(S101=Arrivées!G101,Arrivées!H101,IF(S101=Arrivées!K101,Arrivées!L101,IF(S101=Arrivées!O101,Arrivées!P101,IF(S101=Arrivées!S101,Arrivées!T101,"0")))) -> 0 | U101: =IF(S101=Arrivées!G101,Arrivées!I101,IF(S101=Arrivées!K101,Arrivées!M101,IF(S101=Arrivées!O101,Arrivées!Q101,IF(S101=Arrivées!S101,Arrivées!U101,"0")))) -> 0 | W101: =Arrivées!W101 -> DOMANCHE | X101: =Arrivées!X101 -> R3C6
A102: =Arrivées!A102 -> 2017-01-07 | B102: =Arrivées!B102 -> DEAUVILLE | C102: =Arrivées!C102 -> HD | D102: =Arrivées!D102 -> G | E102: =Arrivées!E102 -> 16 | F102: =Arrivées!F102 -> 1 | G102: 12 | H102: =IF(G102=Arrivées!G102,Arrivées!H102,IF(G102=Arrivées!K102,Arrivées!L102,IF(G102=Arrivées!O102,Arrivées!P102,IF(G102=Arrivées!S102,Arrivées!T102,"0")))) -> 7 | I102: =IF(G102=Arrivées!G102,Arrivées!I102,IF(G102=Arrivées!K102,Arrivées!M102,IF(G102=Arrivées!O102,Arrivées!Q102,IF(G102=Arrivées!S102,Arrivées!U102,"0")))) -> 2.2 | K102: 13 | L102: =IF(K102=Arrivées!G102,Arrivées!H102,IF(K102=Arrivées!K102,Arrivées!L102,IF(G102=Arrivées!O102,Arrivées!P102,IF(K102=Arrivées!S102,Arrivées!T102,"0")))) -> 0 | M102: =IF(K102=Arrivées!G102,Arrivées!I102,IF(K102=Arrivées!K102,Arrivées!M102,IF(K102=Arrivées!O102,Arrivées!Q102,IF(K102=Arrivées!S102,Arrivées!U102,"0")))) -> 0 | N102: =Arrivées!F102 -> 1 | O102: 2 | P102: =IF(O102=Arrivées!G102,Arrivées!H102,IF(O102=Arrivées!K102,Arrivées!L102,IF(O102=Arrivées!O102,Arrivées!P102,IF(O102=Arrivées!S102,Arrivées!T102,"0")))) -> 0 | Q102: =IF(O102=Arrivées!G102,Arrivées!I102,IF(O102=Arrivées!K102,Arrivées!M102,IF(O102=Arrivées!O102,Arrivées!Q102,IF(O102=Arrivées!S102,Arrivées!U102,"0")))) -> 2.3 | R102: =Arrivées!F102 -> 1 | S102: 1 | T102: =IF(S102=Arrivées!G102,Arrivées!H102,IF(S102=Arrivées!K102,Arrivées!L102,IF(S102=Arrivées!O102,Arrivées!P102,IF(S102=Arrivées!S102,Arrivées!T102,"0")))) -> 0 | U102: =IF(S102=Arrivées!G102,Arrivées!I102,IF(S102=Arrivées!K102,Arrivées!M102,IF(S102=Arrivées!O102,Arrivées!Q102,IF(S102=Arrivées!S102,Arrivées!U102,"0")))) -> 3.7 | W102: =Arrivées!W102 -> DOMANCHE | X102: =Arrivées!X102 -> R3C7
A103: =Arrivées!A103 -> 2017-01-07 | B103: =Arrivées!B103 -> DEAUVILLE | C103: =Arrivées!C103 -> HD | D103: =Arrivées!D103 -> E | E103: =Arrivées!E103 -> 13 | F103: =Arrivées!F103 -> 1 | G103: 1 | H103: =IF(G103=Arrivées!G103,Arrivées!H103,IF(G103=Arrivées!K103,Arrivées!L103,IF(G103=Arrivées!O103,Arrivées!P103,IF(G103=Arrivées!S103,Arrivées!T103,"0")))) -> 0 | I103: =IF(G103=Arrivées!G103,Arrivées!I103,IF(G103=Arrivées!K103,Arrivées!M103,IF(G103=Arrivées!O103,Arrivées!Q103,IF(G103=Arrivées!S103,Arrivées!U103,"0")))) -> 5.1 | K103: 2 | L103: =IF(K103=Arrivées!G103,Arrivées!H103,IF(K103=Arrivées!K103,Arrivées!L103,IF(G103=Arrivées!O103,Arrivées!P103,IF(K103=Arrivées!S103,Arrivées!T103,"0")))) -> 0 | M103: =IF(K103=Arrivées!G103,Arrivées!I103,IF(K103=Arrivées!K103,Arrivées!M103,IF(K103=Arrivées!O103,Arrivées!Q103,IF(K103=Arrivées!S103,Arrivées!U103,"0")))) -> 0 | N103: =Arrivées!F103 -> 1 | O103: 3 | P103: =IF(O103=Arrivées!G103,Arrivées!H103,IF(O103=Arrivées!K103,Arrivées!L103,IF(O103=Arrivées!O103,Arrivées!P103,IF(O103=Arrivées!S103,Arrivées!T103,"0")))) -> 7.9 | Q103: =IF(O103=Arrivées!G103,Arrivées!I103,IF(O103=Arrivées!K103,Arrivées!M103,IF(O103=Arrivées!O103,Arrivées!Q103,IF(O103=Arrivées!S103,Arrivées!U103,"0")))) -> 2.3 | R103: =Arrivées!F103 -> 1 | S103: 12 | T103: =IF(S103=Arrivées!G103,Arrivées!H103,IF(S103=Arrivées!K103,Arrivées!L103,IF(S103=Arrivées!O103,Arrivées!P103,IF(S103=Arrivées!S103,Arrivées!T103,"0")))) -> 0 | U103: =IF(S103=Arrivées!G103,Arrivées!I103,IF(S103=Arrivées!K103,Arrivées!M103,IF(S103=Arrivées!O103,Arrivées!Q103,IF(S103=Arrivées!S103,Arrivées!U103,"0")))) -> 0 | W103: =Arrivées!W103 -> DOMANCHE | X103: =Arrivées!X103 -> R3C8
A104: =Arrivées!A104 -> 2017-01-07 | B104: =Arrivées!B104 -> DEAUVILLE | C104: =Arrivées!C104 -> HD | D104: =Arrivées!D104 -> E | E104: =Arrivées!E104 -> 15 | F104: =Arrivées!F104 -> 1 | G104: 1 | H104: =IF(G104=Arrivées!G104,Arrivées!H104,IF(G104=Arrivées!K104,Arrivées!L104,IF(G104=Arrivées!O104,Arrivées!P104,IF(G104=Arrivées!S104,Arrivées!T104,"0")))) -> 0 | I104: =IF(G104=Arrivées!G104,Arrivées!I104,IF(G104=Arrivées!K104,Arrivées!M104,IF(G104=Arrivées!O104,Arrivées!Q104,IF(G104=Arrivées!S104,Arrivées!U104,"0")))) -> 2.1 | K104: 1 | L104: =IF(K104=Arrivées!G104,Arrivées!H104,IF(K104=Arrivées!K104,Arrivées!L104,IF(G104=Arrivées!O104,Arrivées!P104,IF(K104=Arrivées!S104,Arrivées!T104,"0")))) -> 0 | M104: =IF(K104=Arrivées!G104,Arrivées!I104,IF(K104=Arrivées!K104,Arrivées!M104,IF(K104=Arrivées!O104,Arrivées!Q104,IF(K104=Arrivées!S104,Arrivées!U104,"0")))) -> 2.1 | N104: =Arrivées!F104 -> 1 | O104: 1 | P104: =IF(O104=Arrivées!G104,Arrivées!H104,IF(O104=Arrivées!K104,Arrivées!L104,IF(O104=Arrivées!O104,Arrivées!P104,IF(O104=Arrivées!S104,Arrivées!T104,"0")))) -> 0 | Q104: =IF(O104=Arrivées!G104,Arrivées!I104,IF(O104=Arrivées!K104,Arrivées!M104,IF(O104=Arrivées!O104,Arrivées!Q104,IF(O104=Arrivées!S104,Arrivées!U104,"0")))) -> 2.1 | R104: =Arrivées!F104 -> 1 | S104: 1 | T104: =IF(S104=Arrivées!G104,Arrivées!H104,IF(S104=Arrivées!K104,Arrivées!L104,IF(S104=Arrivées!O104,Arrivées!P104,IF(S104=Arrivées!S104,Arrivées!T104,"0")))) -> 0 | U104: =IF(S104=Arrivées!G104,Arrivées!I104,IF(S104=Arrivées!K104,Arrivées!M104,IF(S104=Arrivées!O104,Arrivées!Q104,IF(S104=Arrivées!S104,Arrivées!U104,"0")))) -> 2.1 | W104: =Arrivées!W104 -> DOMANCHE | X104: =Arrivées!X104 -> R3C9
A105: =Arrivées!A105 -> 2017-01-07 | B105: =Arrivées!B105 -> LYON LA SOIE | C105: =Arrivées!C105 -> H | D105: =Arrivées!D105 -> E | E105: =Arrivées!E105 -> 14 | F105: =Arrivées!F105 -> 1 | G105: 11 | H105: =IF(G105=Arrivées!G105,Arrivées!H105,IF(G105=Arrivées!K105,Arrivées!L105,IF(G105=Arrivées!O105,Arrivées!P105,IF(G105=Arrivées!S105,Arrivées!T105,"0")))) -> 0 | I105: =IF(G105=Arrivées!G105,Arrivées!I105,IF(G105=Arrivées!K105,Arrivées!M105,IF(G105=Arrivées!O105,Arrivées!Q105,IF(G105=Arrivées!S105,Arrivées!U105,"0")))) -> 0 | K105: 6 | L105: =IF(K105=Arrivées!G105,Arrivées!H105,IF(K105=Arrivées!K105,Arrivées!L105,IF(G105=Arrivées!O105,Arrivées!P105,IF(K105=Arrivées!S105,Arrivées!T105,"0")))) -> 0 | M105: =IF(K105=Arrivées!G105,Arrivées!I105,IF(K105=Arrivées!K105,Arrivées!M105,IF(K105=Arrivées!O105,Arrivées!Q105,IF(K105=Arrivées!S105,Arrivées!U105,"0")))) -> 0 | N105: =Arrivées!F105 -> 1 | O105: 8 | P105: =IF(O105=Arrivées!G105,Arrivées!H105,IF(O105=Arrivées!K105,Arrivées!L105,IF(O105=Arrivées!O105,Arrivées!P105,IF(O105=Arrivées!S105,Arrivées!T105,"0")))) -> 0 | Q105: =IF(O105=Arrivées!G105,Arrivées!I105,IF(O105=Arrivées!K105,Arrivées!M105,IF(O105=Arrivées!O105,Arrivées!Q105,IF(O105=Arrivées!S105,Arrivées!U105,"0")))) -> 0 | R105: =Arrivées!F105 -> 1 | S105: 2 | T105: =IF(S105=Arrivées!G105,Arrivées!H105,IF(S105=Arrivées!K105,Arrivées!L105,IF(S105=Arrivées!O105,Arrivées!P105,IF(S105=Arrivées!S105,Arrivées!T105,"0")))) -> 4.8 | U105: =IF(S105=Arrivées!G105,Arrivées!I105,IF(S105=Arrivées!K105,Arrivées!M105,IF(S105=Arrivées!O105,Arrivées!Q105,IF(S105=Arrivées!S105,Arrivées!U105,"0")))) -> 1.6 | W105: =Arrivées!W105 -> GINDRE | X105: =Arrivées!X105 -> R4C1
A106: =Arrivées!A106 -> 2017-01-07 | B106: =Arrivées!B106 -> LYON LA SOIE | C106: =Arrivées!C106 -> HD | D106: =Arrivées!D106 -> E | E106: =Arrivées!E106 -> 11 | F106: =Arrivées!F106 -> 1 | G106: 1 | H106: =IF(G106=Arrivées!G106,Arrivées!H106,IF(G106=Arrivées!K106,Arrivées!L106,IF(G106=Arrivées!O106,Arrivées!P106,IF(G106=Arrivées!S106,Arrivées!T106,"0")))) -> 0 | I106: =IF(G106=Arrivées!G106,Arrivées!I106,IF(G106=Arrivées!K106,Arrivées!M106,IF(G106=Arrivées!O106,Arrivées!Q106,IF(G106=Arrivées!S106,Arrivées!U106,"0")))) -> 5.3 | K106: 7 | L106: =IF(K106=Arrivées!G106,Arrivées!H106,IF(K106=Arrivées!K106,Arrivées!L106,IF(G106=Arrivées!O106,Arrivées!P106,IF(K106=Arrivées!S106,Arrivées!T106,"0")))) -> 0 | M106: =IF(K106=Arrivées!G106,Arrivées!I106,IF(K106=Arrivées!K106,Arrivées!M106,IF(K106=Arrivées!O106,Arrivées!Q106,IF(K106=Arrivées!S106,Arrivées!U106,"0")))) -> 0 | N106: =Arrivées!F106 -> 1 | O106: 2 | P106: =IF(O106=Arrivées!G106,Arrivées!H106,IF(O106=Arrivées!K106,Arrivées!L106,IF(O106=Arrivées!O106,Arrivées!P106,IF(O106=Arrivées!S106,Arrivées!T106,"0")))) -> 0 | Q106: =IF(O106=Arrivées!G106,Arrivées!I106,IF(O106=Arrivées!K106,Arrivées!M106,IF(O106=Arrivées!O106,Arrivées!Q106,IF(O106=Arrivées!S106,Arrivées!U106,"0")))) -> 0 | R106: =Arrivées!F106 -> 1 | S106: 5 | T106: =IF(S106=Arrivées!G106,Arrivées!H106,IF(S106=Arrivées!K106,Arrivées!L106,IF(S106=Arrivées!O106,Arrivées!P106,IF(S106=Arrivées!S106,Arrivées!T106,"0")))) -> 0 | U106: =IF(S106=Arrivées!G106,Arrivées!I106,IF(S106=Arrivées!K106,Arrivées!M106,IF(S106=Arrivées!O106,Arrivées!Q106,IF(S106=Arrivées!S106,Arrivées!U106,"0")))) -> 0 | W106: =Arrivées!W106 -> GINDRE | X106: =Arrivées!X106 -> R4C2
A107: =Arrivées!A107 -> 2017-01-07 | B107: =Arrivées!B107 -> LYON LA SOIE | C107: =Arrivées!C107 -> HD | D107: =Arrivées!D107 -> G | E107: =Arrivées!E107 -> 11 | F107: =Arrivées!F107 -> 1 | G107: 5 | H107: =IF(G107=Arrivées!G107,Arrivées!H107,IF(G107=Arrivées!K107,Arrivées!L107,IF(G107=Arrivées!O107,Arrivées!P107,IF(G107=Arrivées!S107,Arrivées!T107,"0")))) -> 0 | I107: =IF(G107=Arrivées!G107,Arrivées!I107,IF(G107=Arrivées!K107,Arrivées!M107,IF(G107=Arrivées!O107,Arrivées!Q107,IF(G107=Arrivées!S107,Arrivées!U107,"0")))) -> 6.3 | K107: 4 | L107: =IF(K107=Arrivées!G107,Arrivées!H107,IF(K107=Arrivées!K107,Arrivées!L107,IF(G107=Arrivées!O107,Arrivées!P107,IF(K107=Arrivées!S107,Arrivées!T107,"0")))) -> 0 | M107: =IF(K107=Arrivées!G107,Arrivées!I107,IF(K107=Arrivées!K107,Arrivées!M107,IF(K107=Arrivées!O107,Arrivées!Q107,IF(K107=Arrivées!S107,Arrivées!U107,"0")))) -> 0 | N107: =Arrivées!F107 -> 1 | O107: 10 | P107: =IF(O107=Arrivées!G107,Arrivées!H107,IF(O107=Arrivées!K107,Arrivées!L107,IF(O107=Arrivées!O107,Arrivées!P107,IF(O107=Arrivées!S107,Arrivées!T107,"0")))) -> 4.9 | Q107: =IF(O107=Arrivées!G107,Arrivées!I107,IF(O107=Arrivées!K107,Arrivées!M107,IF(O107=Arrivées!O107,Arrivées!Q107,IF(O107=Arrivées!S107,Arrivées!U107,"0")))) -> 1.5 | R107: =Arrivées!F107 -> 1 | S107: 1 | T107: =IF(S107=Arrivées!G107,Arrivées!H107,IF(S107=Arrivées!K107,Arrivées!L107,IF(S107=Arrivées!O107,Arrivées!P107,IF(S107=Arrivées!S107,Arrivées!T107,"0")))) -> 0 | U107: =IF(S107=Arrivées!G107,Arrivées!I107,IF(S107=Arrivées!K107,Arrivées!M107,IF(S107=Arrivées!O107,Arrivées!Q107,IF(S107=Arrivées!S107,Arrivées!U107,"0")))) -> 0 | W107: =Arrivées!W107 -> GINDRE | X107: =Arrivées!X107 -> R4C3
A108: =Arrivées!A108 -> 2017-01-07 | B108: =Arrivées!B108 -> LYON LA SOIE | C108: =Arrivées!C108 -> H | D108: =Arrivées!D108 -> E | E108: =Arrivées!E108 -> 13 | F108: =Arrivées!F108 -> 1 | G108: 11 | H108: =IF(G108=Arrivées!G108,Arrivées!H108,IF(G108=Arrivées!K108,Arrivées!L108,IF(G108=Arrivées!O108,Arrivées!P108,IF(G108=Arrivées!S108,Arrivées!T108,"0")))) -> 0 | I108: =IF(G108=Arrivées!G108,Arrivées!I108,IF(G108=Arrivées!K108,Arrivées!M108,IF(G108=Arrivées!O108,Arrivées!Q108,IF(G108=Arrivées!S108,Arrivées!U108,"0")))) -> 0 | K108: 5 | L108: =IF(K108=Arrivées!G108,Arrivées!H108,IF(K108=Arrivées!K108,Arrivées!L108,IF(G108=Arrivées!O108,Arrivées!P108,IF(K108=Arrivées!S108,Arrivées!T108,"0")))) -> 0 | M108: =IF(K108=Arrivées!G108,Arrivées!I108,IF(K108=Arrivées!K108,Arrivées!M108,IF(K108=Arrivées!O108,Arrivées!Q108,IF(K108=Arrivées!S108,Arrivées!U108,"0")))) -> 2.9 | N108: =Arrivées!F108 -> 1 | O108: 4 | P108: =IF(O108=Arrivées!G108,Arrivées!H108,IF(O108=Arrivées!K108,Arrivées!L108,IF(O108=Arrivées!O108,Arrivées!P108,IF(O108=Arrivées!S108,Arrivées!T108,"0")))) -> 7.1 | Q108: =IF(O108=Arrivées!G108,Arrivées!I108,IF(O108=Arrivées!K108,Arrivées!M108,IF(O108=Arrivées!O108,Arrivées!Q108,IF(O108=Arrivées!S108,Arrivées!U108,"0")))) -> 3.6 | R108: =Arrivées!F108 -> 1 | S108: 8 | T108: =IF(S108=Arrivées!G108,Arrivées!H108,IF(S108=Arrivées!K108,Arrivées!L108,IF(S108=Arrivées!O108,Arrivées!P108,IF(S108=Arrivées!S108,Arrivées!T108,"0")))) -> 0 | U108: =IF(S108=Arrivées!G108,Arrivées!I108,IF(S108=Arrivées!K108,Arrivées!M108,IF(S108=Arrivées!O108,Arrivées!Q108,IF(S108=Arrivées!S108,Arrivées!U108,"0")))) -> 0 | W108: =Arrivées!W108 -> GINDRE | X108: =Arrivées!X108 -> R4C4
A109: =Arrivées!A109 -> 2017-01-07 | B109: =Arrivées!B109 -> LYON LA SOIE | C109: =Arrivées!C109 -> RECLAMER | D109: =Arrivées!D109 -> NON | E109: =Arrivées!E109 -> 12 | F109: =Arrivées!F109 -> 1 | G109: 6 | H109: =IF(G109=Arrivées!G109,Arrivées!H109,IF(G109=Arrivées!K109,Arrivées!L109,IF(G109=Arrivées!O109,Arrivées!P109,IF(G109=Arrivées!S109,Arrivées!T109,"0")))) -> 0 | I109: =IF(G109=Arrivées!G109,Arrivées!I109,IF(G109=Arrivées!K109,Arrivées!M109,IF(G109=Arrivées!O109,Arrivées!Q109,IF(G109=Arrivées!S109,Arrivées!U109,"0")))) -> 1.7 | K109: 7 | L109: =IF(K109=Arrivées!G109,Arrivées!H109,IF(K109=Arrivées!K109,Arrivées!L109,IF(G109=Arrivées!O109,Arrivées!P109,IF(K109=Arrivées!S109,Arrivées!T109,"0")))) -> 0 | M109: =IF(K109=Arrivées!G109,Arrivées!I109,IF(K109=Arrivées!K109,Arrivées!M109,IF(K109=Arrivées!O109,Arrivées!Q109,IF(K109=Arrivées!S109,Arrivées!U109,"0")))) -> 0 | N109: =Arrivées!F109 -> 1 | O109: 3 | P109: =IF(O109=Arrivées!G109,Arrivées!H109,IF(O109=Arrivées!K109,Arrivées!L109,IF(O109=Arrivées!O109,Arrivées!P109,IF(O109=Arrivées!S109,Arrivées!T109,"0")))) -> 0 | Q109: =IF(O109=Arrivées!G109,Arrivées!I109,IF(O109=Arrivées!K109,Arrivées!M109,IF(O109=Arrivées!O109,Arrivées!Q109,IF(O109=Arrivées!S109,Arrivées!U109,"0")))) -> 0 | R109: =Arrivées!F109 -> 1 | S109: 8 | T109: =IF(S109=Arrivées!G109,Arrivées!H109,IF(S109=Arrivées!K109,Arrivées!L109,IF(S109=Arrivées!O109,Arrivées!P109,IF(S109=Arrivées!S109,Arrivées!T109,"0")))) -> 9.4 | U109: =IF(S109=Arrivées!G109,Arrivées!I109,IF(S109=Arrivées!K109,Arrivées!M109,IF(S109=Arrivées!O109,Arrivées!Q109,IF(S109=Arrivées!S109,Arrivées!U109,"0")))) -> 3.7 | W109: =Arrivées!W109 -> GINDRE | X109: =Arrivées!X109 -> R4C5
A110: =Arrivées!A110 -> 2017-01-07 | B110: =Arrivées!B110 -> LYON LA SOIE | C110: =Arrivées!C110 -> MAIDEN | D110: =Arrivées!D110 -> FEMELLE | E110: =Arrivées!E110 -> 7 | F110: =Arrivées!F110 -> 1 | G110: 8 | H110: =IF(G110=Arrivées!G110,Arrivées!H110,IF(G110=Arrivées!K110,Arrivées!L110,IF(G110=Arrivées!O110,Arrivées!P110,IF(G110=Arrivées!S110,Arrivées!T110,"0")))) -> 1.6 | I110: =IF(G110=Arrivées!G110,Arrivées!I110,IF(G110=Arrivées!K110,Arrivées!M110,IF(G110=Arrivées!O110,Arrivées!Q110,IF(G110=Arrivées!S110,Arrivées!U110,"0")))) -> 1.1 | K110: 3 | L110: =IF(K110=Arrivées!G110,Arrivées!H110,IF(K110=Arrivées!K110,Arrivées!L110,IF(G110=Arrivées!O110,Arrivées!P110,IF(K110=Arrivées!S110,Arrivées!T110,"0")))) -> 0 | M110: =IF(K110=Arrivées!G110,Arrivées!I110,IF(K110=Arrivées!K110,Arrivées!M110,IF(K110=Arrivées!O110,Arrivées!Q110,IF(K110=Arrivées!S110,Arrivées!U110,"0")))) -> 1.5 | N110: =Arrivées!F110 -> 1 | O110: 4 | P110: =IF(O110=Arrivées!G110,Arrivées!H110,IF(O110=Arrivées!K110,Arrivées!L110,IF(O110=Arrivées!O110,Arrivées!P110,IF(O110=Arrivées!S110,Arrivées!T110,"0")))) -> 0 | Q110: =IF(O110=Arrivées!G110,Arrivées!I110,IF(O110=Arrivées!K110,Arrivées!M110,IF(O110=Arrivées!O110,Arrivées!Q110,IF(O110=Arrivées!S110,Arrivées!U110,"0")))) -> 1.4 | R110: =Arrivées!F110 -> 1 | S110: 9 | T110: =IF(S110=Arrivées!G110,Arrivées!H110,IF(S110=Arrivées!K110,Arrivées!L110,IF(S110=Arrivées!O110,Arrivées!P110,IF(S110=Arrivées!S110,Arrivées!T110,"0")))) -> 0 | U110: =IF(S110=Arrivées!G110,Arrivées!I110,IF(S110=Arrivées!K110,Arrivées!M110,IF(S110=Arrivées!O110,Arrivées!Q110,IF(S110=Arrivées!S110,Arrivées!U110,"0")))) -> 0 | W110: =Arrivées!W110 -> GINDRE | X110: =Arrivées!X110 -> R4C6
A111: =Arrivées!A111 -> 2017-01-07 | B111: =Arrivées!B111 -> LYON LA SOIE | C111: =Arrivées!C111 -> MAIDEN | D111: =Arrivées!D111 -> MALE | E111: =Arrivées!E111 -> 8 | F111: =Arrivées!F111 -> 1 | G111: 4 | H111: =IF(G111=Arrivées!G111,Arrivées!H111,IF(G111=Arrivées!K111,Arrivées!L111,IF(G111=Arrivées!O111,Arrivées!P111,IF(G111=Arrivées!S111,Arrivées!T111,"0")))) -> 0 | I111: =IF(G111=Arrivées!G111,Arrivées!I111,IF(G111=Arrivées!K111,Arrivées!M111,IF(G111=Arrivées!O111,Arrivées!Q111,IF(G111=Arrivées!S111,Arrivées!U111,"0")))) -> 0 | K111: 5 | L111: =IF(K111=Arrivées!G111,Arrivées!H111,IF(K111=Arrivées!K111,Arrivées!L111,IF(G111=Arrivées!O111,Arrivées!P111,IF(K111=Arrivées!S111,Arrivées!T111,"0")))) -> 0 | M111: =IF(K111=Arrivées!G111,Arrivées!I111,IF(K111=Arrivées!K111,Arrivées!M111,IF(K111=Arrivées!O111,Arrivées!Q111,IF(K111=Arrivées!S111,Arrivées!U111,"0")))) -> 0 | N111: =Arrivées!F111 -> 1 | O111: 7 | P111: =IF(O111=Arrivées!G111,Arrivées!H111,IF(O111=Arrivées!K111,Arrivées!L111,IF(O111=Arrivées!O111,Arrivées!P111,IF(O111=Arrivées!S111,Arrivées!T111,"0")))) -> 0 | Q111: =IF(O111=Arrivées!G111,Arrivées!I111,IF(O111=Arrivées!K111,Arrivées!M111,IF(O111=Arrivées!O111,Arrivées!Q111,IF(O111=Arrivées!S111,Arrivées!U111,"0")))) -> 0 | R111: =Arrivées!F111 -> 1 | S111: 2 | T111: =IF(S111=Arrivées!G111,Arrivées!H111,IF(S111=Arrivées!K111,Arrivées!L111,IF(S111=Arrivées!O111,Arrivées!P111,IF(S111=Arrivées!S111,Arrivées!T111,"0")))) -> 0 | U111: =IF(S111=Arrivées!G111,Arrivées!I111,IF(S111=Arrivées!K111,Arrivées!M111,IF(S111=Arrivées!O111,Arrivées!Q111,IF(S111=Arrivées!S111,Arrivées!U111,"0")))) -> 0 | W111: =Arrivées!W111 -> GINDRE | X111: =Arrivées!X111 -> R4C7
A112: =Arrivées!A112 -> 2017-01-07 | B112: =Arrivées!B112 -> NEUSS | C112: =Arrivées!C112 -> H | D112: =Arrivées!D112 -> NON | E112: =Arrivées!E112 -> 12 | F112: =Arrivées!F112 -> 1 | G112: 3 | H112: =IF(G112=Arrivées!G112,Arrivées!H112,IF(G112=Arrivées!K112,Arrivées!L112,IF(G112=Arrivées!O112,Arrivées!P112,IF(G112=Arrivées!S112,Arrivées!T112,"0")))) -> 0 | I112: =IF(G112=Arrivées!G112,Arrivées!I112,IF(G112=Arrivées!K112,Arrivées!M112,IF(G112=Arrivées!O112,Arrivées!Q112,IF(G112=Arrivées!S112,Arrivées!U112,"0")))) -> 0 | K112: 9 | L112: =IF(K112=Arrivées!G112,Arrivées!H112,IF(K112=Arrivées!K112,Arrivées!L112,IF(G112=Arrivées!O112,Arrivées!P112,IF(K112=Arrivées!S112,Arrivées!T112,"0")))) -> 0 | M112: =IF(K112=Arrivées!G112,Arrivées!I112,IF(K112=Arrivées!K112,Arrivées!M112,IF(K112=Arrivées!O112,Arrivées!Q112,IF(K112=Arrivées!S112,Arrivées!U112,"0")))) -> 2 | N112: =Arrivées!F112 -> 1 | O112: 11 | P112: =IF(O112=Arrivées!G112,Arrivées!H112,IF(O112=Arrivées!K112,Arrivées!L112,IF(O112=Arrivées!O112,Arrivées!P112,IF(O112=Arrivées!S112,Arrivées!T112,"0")))) -> 0 | Q112: =IF(O112=Arrivées!G112,Arrivées!I112,IF(O112=Arrivées!K112,Arrivées!M112,IF(O112=Arrivées!O112,Arrivées!Q112,IF(O112=Arrivées!S112,Arrivées!U112,"0")))) -> 0 | R112: =Arrivées!F112 -> 1 | S112: 12 | T112: =IF(S112=Arrivées!G112,Arrivées!H112,IF(S112=Arrivées!K112,Arrivées!L112,IF(S112=Arrivées!O112,Arrivées!P112,IF(S112=Arrivées!S112,Arrivées!T112,"0")))) -> 0 | U112: =IF(S112=Arrivées!G112,Arrivées!I112,IF(S112=Arrivées!K112,Arrivées!M112,IF(S112=Arrivées!O112,Arrivées!Q112,IF(S112=Arrivées!S112,Arrivées!U112,"0")))) -> 0 | W112: =Arrivées!W112 -> BOUGOUIN | X112: =Arrivées!X112 -> R5C1
A113: =Arrivées!A113 -> 2017-01-07 | B113: =Arrivées!B113 -> NEUSS | C113: =Arrivées!C113 -> H | D113: =Arrivées!D113 -> NON | E113: =Arrivées!E113 -> 13 | F113: =Arrivées!F113 -> 1 | G113: 4 | H113: =IF(G113=Arrivées!G113,Arrivées!H113,IF(G113=Arrivées!K113,Arrivées!L113,IF(G113=Arrivées!O113,Arrivées!P113,IF(G113=Arrivées!S113,Arrivées!T113,"0")))) -> 0 | I113: =IF(G113=Arrivées!G113,Arrivées!I113,IF(G113=Arrivées!K113,Arrivées!M113,IF(G113=Arrivées!O113,Arrivées!Q113,IF(G113=Arrivées!S113,Arrivées!U113,"0")))) -> 0 | K113: 6 | L113: =IF(K113=Arrivées!G113,Arrivées!H113,IF(K113=Arrivées!K113,Arrivées!L113,IF(G113=Arrivées!O113,Arrivées!P113,IF(K113=Arrivées!S113,Arrivées!T113,"0")))) -> 0 | M113: =IF(K113=Arrivées!G113,Arrivées!I113,IF(K113=Arrivées!K113,Arrivées!M113,IF(K113=Arrivées!O113,Arrivées!Q113,IF(K113=Arrivées!S113,Arrivées!U113,"0")))) -> 2.8 | N113: =Arrivées!F113 -> 1 | O113: 3 | P113: =IF(O113=Arrivées!G113,Arrivées!H113,IF(O113=Arrivées!K113,Arrivées!L113,IF(O113=Arrivées!O113,Arrivées!P113,IF(O113=Arrivées!S113,Arrivées!T113,"0")))) -> 0 | Q113: =IF(O113=Arrivées!G113,Arrivées!I113,IF(O113=Arrivées!K113,Arrivées!M113,IF(O113=Arrivées!O113,Arrivées!Q113,IF(O113=Arrivées!S113,Arrivées!U113,"0")))) -> 0 | R113: =Arrivées!F113 -> 1 | S113: 5 | T113: =IF(S113=Arrivées!G113,Arrivées!H113,IF(S113=Arrivées!K113,Arrivées!L113,IF(S113=Arrivées!O113,Arrivées!P113,IF(S113=Arrivées!S113,Arrivées!T113,"0")))) -> 0 | U113: =IF(S113=Arrivées!G113,Arrivées!I113,IF(S113=Arrivées!K113,Arrivées!M113,IF(S113=Arrivées!O113,Arrivées!Q113,IF(S113=Arrivées!S113,Arrivées!U113,"0")))) -> 0 | W113: =Arrivées!W113 -> BOUGOUIN | X113: =Arrivées!X113 -> R5C2
A114: =Arrivées!A114 -> 2017-01-07 | B114: =Arrivées!B114 -> NEUSS | C114: =Arrivées!C114 -> H | D114: =Arrivées!D114 -> NON | E114: =Arrivées!E114 -> 11 | F114: =Arrivées!F114 -> 1 | G114: 7 | H114: =IF(G114=Arrivées!G114,Arrivées!H114,IF(G114=Arrivées!K114,Arrivées!L114,IF(G114=Arrivées!O114,Arrivées!P114,IF(G114=Arrivées!S114,Arrivées!T114,"0")))) -> 0 | I114: =IF(G114=Arrivées!G114,Arrivées!I114,IF(G114=Arrivées!K114,Arrivées!M114,IF(G114=Arrivées!O114,Arrivées!Q114,IF(G114=Arrivées!S114,Arrivées!U114,"0")))) -> 1.4 | K114: 12 | L114: =IF(K114=Arrivées!G114,Arrivées!H114,IF(K114=Arrivées!K114,Arrivées!L114,IF(G114=Arrivées!O114,Arrivées!P114,IF(K114=Arrivées!S114,Arrivées!T114,"0")))) -> 0 | M114: =IF(K114=Arrivées!G114,Arrivées!I114,IF(K114=Arrivées!K114,Arrivées!M114,IF(K114=Arrivées!O114,Arrivées!Q114,IF(K114=Arrivées!S114,Arrivées!U114,"0")))) -> 0 | N114: =Arrivées!F114 -> 1 | O114: 14 | P114: =IF(O114=Arrivées!G114,Arrivées!H114,IF(O114=Arrivées!K114,Arrivées!L114,IF(O114=Arrivées!O114,Arrivées!P114,IF(O114=Arrivées!S114,Arrivées!T114,"0")))) -> 0 | Q114: =IF(O114=Arrivées!G114,Arrivées!I114,IF(O114=Arrivées!K114,Arrivées!M114,IF(O114=Arrivées!O114,Arrivées!Q114,IF(O114=Arrivées!S114,Arrivées!U114,"0")))) -> 0 | R114: =Arrivées!F114 -> 1 | S114: 1 | T114: =IF(S114=Arrivées!G114,Arrivées!H114,IF(S114=Arrivées!K114,Arrivées!L114,IF(S114=Arrivées!O114,Arrivées!P114,IF(S114=Arrivées!S114,Arrivées!T114,"0")))) -> 0 | U114: =IF(S114=Arrivées!G114,Arrivées!I114,IF(S114=Arrivées!K114,Arrivées!M114,IF(S114=Arrivées!O114,Arrivées!Q114,IF(S114=Arrivées!S114,Arrivées!U114,"0")))) -> 0 | W114: =Arrivées!W114 -> BOUGOUIN | X114: =Arrivées!X114 -> R5C3
A115: =Arrivées!A115 -> 2017-01-07 | B115: =Arrivées!B115 -> NEUSS | C115: =Arrivées!C115 -> NON | D115: =Arrivées!D115 -> NON | E115: =Arrivées!E115 -> 11 | F115: =Arrivées!F115 -> 1 | G115: 1 | H115: =IF(G115=Arrivées!G115,Arrivées!H115,IF(G115=Arrivées!K115,Arrivées!L115,IF(G115=Arrivées!O115,Arrivées!P115,IF(G115=Arrivées!S115,Arrivées!T115,"0")))) -> 0 | I115: =IF(G115=Arrivées!G115,Arrivées!I115,IF(G115=Arrivées!K115,Arrivées!M115,IF(G115=Arrivées!O115,Arrivées!Q115,IF(G115=Arrivées!S115,Arrivées!U115,"0")))) -> 0 | K115: 9 | L115: =IF(K115=Arrivées!G115,Arrivées!H115,IF(K115=Arrivées!K115,Arrivées!L115,IF(G115=Arrivées!O115,Arrivées!P115,IF(K115=Arrivées!S115,Arrivées!T115,"0")))) -> 0 | M115: =IF(K115=Arrivées!G115,Arrivées!I115,IF(K115=Arrivées!K115,Arrivées!M115,IF(K115=Arrivées!O115,Arrivées!Q115,IF(K115=Arrivées!S115,Arrivées!U115,"0")))) -> 0 | N115: =Arrivées!F115 -> 1 | O115: 8 | P115: =IF(O115=Arrivées!G115,Arrivées!H115,IF(O115=Arrivées!K115,Arrivées!L115,IF(O115=Arrivées!O115,Arrivées!P115,IF(O115=Arrivées!S115,Arrivées!T115,"0")))) -> 0 | Q115: =IF(O115=Arrivées!G115,Arrivées!I115,IF(O115=Arrivées!K115,Arrivées!M115,IF(O115=Arrivées!O115,Arrivées!Q115,IF(O115=Arrivées!S115,Arrivées!U115,"0")))) -> 0 | R115: =Arrivées!F115 -> 1 | S115: 10 | T115: =IF(S115=Arrivées!G115,Arrivées!H115,IF(S115=Arrivées!K115,Arrivées!L115,IF(S115=Arrivées!O115,Arrivées!P115,IF(S115=Arrivées!S115,Arrivées!T115,"0")))) -> 0 | U115: =IF(S115=Arrivées!G115,Arrivées!I115,IF(S115=Arrivées!K115,Arrivées!M115,IF(S115=Arrivées!O115,Arrivées!Q115,IF(S115=Arrivées!S115,Arrivées!U115,"0")))) -> 4.7 | W115: =Arrivées!W115 -> BOUGOUIN | X115: =Arrivées!X115 -> R5C4
A116: =Arrivées!A116 -> 2017-01-07 | B116: =Arrivées!B116 -> NEUSS | C116: =Arrivées!C116 -> H | D116: =Arrivées!D116 -> NON | E116: =Arrivées!E116 -> 9 | F116: =Arrivées!F116 -> 1 | G116: 2 | H116: =IF(G116=Arrivées!G116,Arrivées!H116,IF(G116=Arrivées!K116,Arrivées!L116,IF(G116=Arrivées!O116,Arrivées!P116,IF(G116=Arrivées!S116,Arrivées!T116,"0")))) -> 5 | I116: =IF(G116=Arrivées!G116,Arrivées!I116,IF(G116=Arrivées!K116,Arrivées!M116,IF(G116=Arrivées!O116,Arrivées!Q116,IF(G116=Arrivées!S116,Arrivées!U116,"0")))) -> 1.6 | K116: 4 | L116: =IF(K116=Arrivées!G116,Arrivées!H116,IF(K116=Arrivées!K116,Arrivées!L116,IF(G116=Arrivées!O116,Arrivées!P116,IF(K116=Arrivées!S116,Arrivées!T116,"0")))) -> 0 | M116: =IF(K116=Arrivées!G116,Arrivées!I116,IF(K116=Arrivées!K116,Arrivées!M116,IF(K116=Arrivées!O116,Arrivées!Q116,IF(K116=Arrivées!S116,Arrivées!U116,"0")))) -> 1.4 | N116: =Arrivées!F116 -> 1 | O116: 7 | P116: =IF(O116=Arrivées!G116,Arrivées!H116,IF(O116=Arrivées!K116,Arrivées!L116,IF(O116=Arrivées!O116,Arrivées!P116,IF(O116=Arrivées!S116,Arrivées!T116,"0")))) -> 0 | Q116: =IF(O116=Arrivées!G116,Arrivées!I116,IF(O116=Arrivées!K116,Arrivées!M116,IF(O116=Arrivées!O116,Arrivées!Q116,IF(O116=Arrivées!S116,Arrivées!U116,"0")))) -> 0 | R116: =Arrivées!F116 -> 1 | S116: 10 | T116: =IF(S116=Arrivées!G116,Arrivées!H116,IF(S116=Arrivées!K116,Arrivées!L116,IF(S116=Arrivées!O116,Arrivées!P116,IF(S116=Arrivées!S116,Arrivées!T116,"0")))) -> 0 | U116: =IF(S116=Arrivées!G116,Arrivées!I116,IF(S116=Arrivées!K116,Arrivées!M116,IF(S116=Arrivées!O116,Arrivées!Q116,IF(S116=Arrivées!S116,Arrivées!U116,"0")))) -> 0 | W116: =Arrivées!W116 -> BOUGOUIN | X116: =Arrivées!X116 -> R5C5
A117: =Arrivées!A117 -> 2017-01-07 | B117: =Arrivées!B117 -> NEUSS | C117: =Arrivées!C117 -> NON | D117: =Arrivées!D117 -> NON | E117: =Arrivées!E117 -> 9 | F117: =Arrivées!F117 -> 1 | G117: 9 | H117: =IF(G117=Arrivées!G117,Arrivées!H117,IF(G117=Arrivées!K117,Arrivées!L117,IF(G117=Arrivées!O117,Arrivées!P117,IF(G117=Arrivées!S117,Arrivées!T117,"0")))) -> 1.5 | I117: =IF(G117=Arrivées!G117,Arrivées!I117,IF(G117=Arrivées!K117,Arrivées!M117,IF(G117=Arrivées!O117,Arrivées!Q117,IF(G117=Arrivées!S117,Arrivées!U117,"0")))) -> 1.1 | K117: 5 | L117: =IF(K117=Arrivées!G117,Arrivées!H117,IF(K117=Arrivées!K117,Arrivées!L117,IF(G117=Arrivées!O117,Arrivées!P117,IF(K117=Arrivées!S117,Arrivées!T117,"0")))) -> 0 | M117: =IF(K117=Arrivées!G117,Arrivées!I117,IF(K117=Arrivées!K117,Arrivées!M117,IF(K117=Arrivées!O117,Arrivées!Q117,IF(K117=Arrivées!S117,Arrivées!U117,"0")))) -> 0 | N117: =Arrivées!F117 -> 1 | O117: 1 | P117: =IF(O117=Arrivées!G117,Arrivées!H117,IF(O117=Arrivées!K117,Arrivées!L117,IF(O117=Arrivées!O117,Arrivées!P117,IF(O117=Arrivées!S117,Arrivées!T117,"0")))) -> 0 | Q117: =IF(O117=Arrivées!G117,Arrivées!I117,IF(O117=Arrivées!K117,Arrivées!M117,IF(O117=Arrivées!O117,Arrivées!Q117,IF(O117=Arrivées!S117,Arrivées!U117,"0")))) -> 2.3 | R117: =Arrivées!F117 -> 1 | S117: 8 | T117: =IF(S117=Arrivées!G117,Arrivées!H117,IF(S117=Arrivées!K117,Arrivées!L117,IF(S117=Arrivées!O117,Arrivées!P117,IF(S117=Arrivées!S117,Arrivées!T117,"0")))) -> 0 | U117: =IF(S117=Arrivées!G117,Arrivées!I117,IF(S117=Arrivées!K117,Arrivées!M117,IF(S117=Arrivées!O117,Arrivées!Q117,IF(S117=Arrivées!S117,Arrivées!U117,"0")))) -> 2.2 | W117: =Arrivées!W117 -> BOUGOUIN | X117: =Arrivées!X117 -> R5C6
A118: =Arrivées!A118 -> 2017-01-07 | B118: =Arrivées!B118 -> NEUSS | C118: =Arrivées!C118 -> H | D118: =Arrivées!D118 -> NON | E118: =Arrivées!E118 -> 6 | F118: =Arrivées!F118 -> 1 | G118: 1 | H118: =IF(G118=Arrivées!G118,Arrivées!H118,IF(G118=Arrivées!K118,Arrivées!L118,IF(G118=Arrivées!O118,Arrivées!P118,IF(G118=Arrivées!S118,Arrivées!T118,"0")))) -> 0 | I118: =IF(G118=Arrivées!G118,Arrivées!I118,IF(G118=Arrivées!K118,Arrivées!M118,IF(G118=Arrivées!O118,Arrivées!Q118,IF(G118=Arrivées!S118,Arrivées!U118,"0")))) -> 0 | K118: 7 | L118: =IF(K118=Arrivées!G118,Arrivées!H118,IF(K118=Arrivées!K118,Arrivées!L118,IF(G118=Arrivées!O118,Arrivées!P118,IF(K118=Arrivées!S118,Arrivées!T118,"0")))) -> 0 | M118: =IF(K118=Arrivées!G118,Arrivées!I118,IF(K118=Arrivées!K118,Arrivées!M118,IF(K118=Arrivées!O118,Arrivées!Q118,IF(K118=Arrivées!S118,Arrivées!U118,"0")))) -> 0 | N118: =Arrivées!F118 -> 1 | O118: 5 | P118: =IF(O118=Arrivées!G118,Arrivées!H118,IF(O118=Arrivées!K118,Arrivées!L118,IF(O118=Arrivées!O118,Arrivées!P118,IF(O118=Arrivées!S118,Arrivées!T118,"0")))) -> 0 | Q118: =IF(O118=Arrivées!G118,Arrivées!I118,IF(O118=Arrivées!K118,Arrivées!M118,IF(O118=Arrivées!O118,Arrivées!Q118,IF(O118=Arrivées!S118,Arrivées!U118,"0")))) -> 1.2 | R118: =Arrivées!F118 -> 1 | S118: 2 | T118: =IF(S118=Arrivées!G118,Arrivées!H118,IF(S118=Arrivées!K118,Arrivées!L118,IF(S118=Arrivées!O118,Arrivées!P118,IF(S118=Arrivées!S118,Arrivées!T118,"0")))) -> 0 | U118: =IF(S118=Arrivées!G118,Arrivées!I118,IF(S118=Arrivées!K118,Arrivées!M118,IF(S118=Arrivées!O118,Arrivées!Q118,IF(S118=Arrivées!S118,Arrivées!U118,"0")))) -> 0 | W118: =Arrivées!W118 -> BOUGOUIN | X118: =Arrivées!X118 -> R5C7
A119: =Arrivées!A119 -> 2017-01-07 | B119: =Arrivées!B119 -> NEUSS | C119: =Arrivées!C119 -> H | D119: =Arrivées!D119 -> NON | E119: =Arrivées!E119 -> 8 | F119: =Arrivées!F119 -> 1 | G119: 9 | H119: =IF(G119=Arrivées!G119,Arrivées!H119,IF(G119=Arrivées!K119,Arrivées!L119,IF(G119=Arrivées!O119,Arrivées!P119,IF(G119=Arrivées!S119,Arrivées!T119,"0")))) -> 0 | I119: =IF(G119=Arrivées!G119,Arrivées!I119,IF(G119=Arrivées!K119,Arrivées!M119,IF(G119=Arrivées!O119,Arrivées!Q119,IF(G119=Arrivées!S119,Arrivées!U119,"0")))) -> 0 | K119: 2 | L119: =IF(K119=Arrivées!G119,Arrivées!H119,IF(K119=Arrivées!K119,Arrivées!L119,IF(G119=Arrivées!O119,Arrivées!P119,IF(K119=Arrivées!S119,Arrivées!T119,"0")))) -> 4 | M119: =IF(K119=Arrivées!G119,Arrivées!I119,IF(K119=Arrivées!K119,Arrivées!M119,IF(K119=Arrivées!O119,Arrivées!Q119,IF(K119=Arrivées!S119,Arrivées!U119,"0")))) -> 1.4 | N119: =Arrivées!F119 -> 1 | O119: 5 | P119: =IF(O119=Arrivées!G119,Arrivées!H119,IF(O119=Arrivées!K119,Arrivées!L119,IF(O119=Arrivées!O119,Arrivées!P119,IF(O119=Arrivées!S119,Arrivées!T119,"0")))) -> 0 | Q119: =IF(O119=Arrivées!G119,Arrivées!I119,IF(O119=Arrivées!K119,Arrivées!M119,IF(O119=Arrivées!O119,Arrivées!Q119,IF(O119=Arrivées!S119,Arrivées!U119,"0")))) -> 0 | R119: =Arrivées!F119 -> 1 | S119: 7 | T119: =IF(S119=Arrivées!G119,Arrivées!H119,IF(S119=Arrivées!K119,Arrivées!L119,IF(S119=Arrivées!O119,Arrivées!P119,IF(S119=Arrivées!S119,Arrivées!T119,"0")))) -> 0 | U119: =IF(S119=Arrivées!G119,Arrivées!I119,IF(S119=Arrivées!K119,Arrivées!M119,IF(S119=Arrivées!O119,Arrivées!Q119,IF(S119=Arrivées!S119,Arrivées!U119,"0")))) -> 1.8 | W119: =Arrivées!W119 -> BOUGOUIN | X119: =Arrivées!X119 -> R5C8
A120: =Arrivées!A120 -> 2017-01-08 | B120: =Arrivées!B120 -> CARRERE | C120: =Arrivées!C120 -> H | D120: =Arrivées!D120 -> NON | E120: =Arrivées!E120 -> 12 | F120: =Arrivées!F120 -> 1 | G120: 3 | H120: =IF(G120=Arrivées!G120,Arrivées!H120,IF(G120=Arrivées!K120,Arrivées!L120,IF(G120=Arrivées!O120,Arrivées!P120,IF(G120=Arrivées!S120,Arrivées!T120,"0")))) -> 0 | I120: =IF(G120=Arrivées!G120,Arrivées!I120,IF(G120=Arrivées!K120,Arrivées!M120,IF(G120=Arrivées!O120,Arrivées!Q120,IF(G120=Arrivées!S120,Arrivées!U120,"0")))) -> 1.2 | K120: 7 | L120: =IF(K120=Arrivées!G120,Arrivées!H120,IF(K120=Arrivées!K120,Arrivées!L120,IF(G120=Arrivées!O120,Arrivées!P120,IF(K120=Arrivées!S120,Arrivées!T120,"0")))) -> 0 | M120: =IF(K120=Arrivées!G120,Arrivées!I120,IF(K120=Arrivées!K120,Arrivées!M120,IF(K120=Arrivées!O120,Arrivées!Q120,IF(K120=Arrivées!S120,Arrivées!U120,"0")))) -> 0 | N120: =Arrivées!F120 -> 1 | O120: 5 | P120: =IF(O120=Arrivées!G120,Arrivées!H120,IF(O120=Arrivées!K120,Arrivées!L120,IF(O120=Arrivées!O120,Arrivées!P120,IF(O120=Arrivées!S120,Arrivées!T120,"0")))) -> 0 | Q120: =IF(O120=Arrivées!G120,Arrivées!I120,IF(O120=Arrivées!K120,Arrivées!M120,IF(O120=Arrivées!O120,Arrivées!Q120,IF(O120=Arrivées!S120,Arrivées!U120,"0")))) -> 0 | R120: =Arrivées!F120 -> 1 | S120: 9 | T120: =IF(S120=Arrivées!G120,Arrivées!H120,IF(S120=Arrivées!K120,Arrivées!L120,IF(S120=Arrivées!O120,Arrivées!P120,IF(S120=Arrivées!S120,Arrivées!T120,"0")))) -> 0 | U120: =IF(S120=Arrivées!G120,Arrivées!I120,IF(S120=Arrivées!K120,Arrivées!M120,IF(S120=Arrivées!O120,Arrivées!Q120,IF(S120=Arrivées!S120,Arrivées!U120,"0")))) -> 0 | W120: =Arrivées!W120 -> BOUGOUIN | X120: =Arrivées!X120 -> R4C1
A121: =Arrivées!A121 -> 2017-01-08 | B121: =Arrivées!B121 -> CARRERE | C121: =Arrivées!C121 -> H | D121: =Arrivées!D121 -> NON | E121: =Arrivées!E121 -> 14 | F121: =Arrivées!F121 -> 1 | G121: 2 | H121: =IF(G121=Arrivées!G121,Arrivées!H121,IF(G121=Arrivées!K121,Arrivées!L121,IF(G121=Arrivées!O121,Arrivées!P121,IF(G121=Arrivées!S121,Arrivées!T121,"0")))) -> 0 | I121: =IF(G121=Arrivées!G121,Arrivées!I121,IF(G121=Arrivées!K121,Arrivées!M121,IF(G121=Arrivées!O121,Arrivées!Q121,IF(G121=Arrivées!S121,Arrivées!U121,"0")))) -> 2.3 | K121: 11 | L121: =IF(K121=Arrivées!G121,Arrivées!H121,IF(K121=Arrivées!K121,Arrivées!L121,IF(G121=Arrivées!O121,Arrivées!P121,IF(K121=Arrivées!S121,Arrivées!T121,"0")))) -> 0 | M121: =IF(K121=Arrivées!G121,Arrivées!I121,IF(K121=Arrivées!K121,Arrivées!M121,IF(K121=Arrivées!O121,Arrivées!Q121,IF(K121=Arrivées!S121,Arrivées!U121,"0")))) -> 0 | N121: =Arrivées!F121 -> 1 | O121: 10 | P121: =IF(O121=Arrivées!G121,Arrivées!H121,IF(O121=Arrivées!K121,Arrivées!L121,IF(O121=Arrivées!O121,Arrivées!P121,IF(O121=Arrivées!S121,Arrivées!T121,"0")))) -> 0 | Q121: =IF(O121=Arrivées!G121,Arrivées!I121,IF(O121=Arrivées!K121,Arrivées!M121,IF(O121=Arrivées!O121,Arrivées!Q121,IF(O121=Arrivées!S121,Arrivées!U121,"0")))) -> 0 | R121: =Arrivées!F121 -> 1 | S121: 5 | T121: =IF(S121=Arrivées!G121,Arrivées!H121,IF(S121=Arrivées!K121,Arrivées!L121,IF(S121=Arrivées!O121,Arrivées!P121,IF(S121=Arrivées!S121,Arrivées!T121,"0")))) -> 10.6 | U121: =IF(S121=Arrivées!G121,Arrivées!I121,IF(S121=Arrivées!K121,Arrivées!M121,IF(S121=Arrivées!O121,Arrivées!Q121,IF(S121=Arrivées!S121,Arrivées!U121,"0")))) -> 5 | W121: =Arrivées!W121 -> BOUGOUIN | X121: =Arrivées!X121 -> R4C2
A122: =Arrivées!A122 -> 2017-01-08 | B122: =Arrivées!B122 -> CARRERE | C122: =Arrivées!C122 -> NON | D122: =Arrivées!D122 -> NON | E122: =Arrivées!E122 -> 12 | F122: =Arrivées!F122 -> 1 | G122: 1 | H122: =IF(G122=Arrivées!G122,Arrivées!H122,IF(G122=Arrivées!K122,Arrivées!L122,IF(G122=Arrivées!O122,Arrivées!P122,IF(G122=Arrivées!S122,Arrivées!T122,"0")))) -> 0 | I122: =IF(G122=Arrivées!G122,Arrivées!I122,IF(G122=Arrivées!K122,Arrivées!M122,IF(G122=Arrivées!O122,Arrivées!Q122,IF(G122=Arrivées!S122,Arrivées!U122,"0")))) -> 0 | K122: 5 | L122: =IF(K122=Arrivées!G122,Arrivées!H122,IF(K122=Arrivées!K122,Arrivées!L122,IF(G122=Arrivées!O122,Arrivées!P122,IF(K122=Arrivées!S122,Arrivées!T122,"0")))) -> 0 | M122: =IF(K122=Arrivées!G122,Arrivées!I122,IF(K122=Arrivées!K122,Arrivées!M122,IF(K122=Arrivées!O122,Arrivées!Q122,IF(K122=Arrivées!S122,Arrivées!U122,"0")))) -> 0 | N122: =Arrivées!F122 -> 1 | O122: 8 | P122: =IF(O122=Arrivées!G122,Arrivées!H122,IF(O122=Arrivées!K122,Arrivées!L122,IF(O122=Arrivées!O122,Arrivées!P122,IF(O122=Arrivées!S122,Arrivées!T122,"0")))) -> 0 | Q122: =IF(O122=Arrivées!G122,Arrivées!I122,IF(O122=Arrivées!K122,Arrivées!M122,IF(O122=Arrivées!O122,Arrivées!Q122,IF(O122=Arrivées!S122,Arrivées!U122,"0")))) -> 0 | R122: =Arrivées!F122 -> 1 | S122: 13 | T122: =IF(S122=Arrivées!G122,Arrivées!H122,IF(S122=Arrivées!K122,Arrivées!L122,IF(S122=Arrivées!O122,Arrivées!P122,IF(S122=Arrivées!S122,Arrivées!T122,"0")))) -> 0 | U122: =IF(S122=Arrivées!G122,Arrivées!I122,IF(S122=Arrivées!K122,Arrivées!M122,IF(S122=Arrivées!O122,Arrivées!Q122,IF(S122=Arrivées!S122,Arrivées!U122,"0")))) -> 9.5 | W122: =Arrivées!W122 -> BOUGOUIN | X122: =Arrivées!X122 -> R4C3
A123: =Arrivées!A123 -> 2017-01-08 | B123: =Arrivées!B123 -> CARRERE | C123: =Arrivées!C123 -> NON | D123: =Arrivées!D123 -> NON | E123: =Arrivées!E123 -> 14 | F123: =Arrivées!F123 -> 1 | G123: 5 | H123: =IF(G123=Arrivées!G123,Arrivées!H123,IF(G123=Arrivées!K123,Arrivées!L123,IF(G123=Arrivées!O123,Arrivées!P123,IF(G123=Arrivées!S123,Arrivées!T123,"0")))) -> 0 | I123: =IF(G123=Arrivées!G123,Arrivées!I123,IF(G123=Arrivées!K123,Arrivées!M123,IF(G123=Arrivées!O123,Arrivées!Q123,IF(G123=Arrivées!S123,Arrivées!U123,"0")))) -> 0 | K123: 7 | L123: =IF(K123=Arrivées!G123,Arrivées!H123,IF(K123=Arrivées!K123,Arrivées!L123,IF(G123=Arrivées!O123,Arrivées!P123,IF(K123=Arrivées!S123,Arrivées!T123,"0")))) -> 0 | M123: =IF(K123=Arrivées!G123,Arrivées!I123,IF(K123=Arrivées!K123,Arrivées!M123,IF(K123=Arrivées!O123,Arrivées!Q123,IF(K123=Arrivées!S123,Arrivées!U123,"0")))) -> 0 | N123: =Arrivées!F123 -> 1 | O123: 6 | P123: =IF(O123=Arrivées!G123,Arrivées!H123,IF(O123=Arrivées!K123,Arrivées!L123,IF(O123=Arrivées!O123,Arrivées!P123,IF(O123=Arrivées!S123,Arrivées!T123,"0")))) -> 0 | Q123: =IF(O123=Arrivées!G123,Arrivées!I123,IF(O123=Arrivées!K123,Arrivées!M123,IF(O123=Arrivées!O123,Arrivées!Q123,IF(O123=Arrivées!S123,Arrivées!U123,"0")))) -> 2.9 | R123: =Arrivées!F123 -> 1 | S123: 12 | T123: =IF(S123=Arrivées!G123,Arrivées!H123,IF(S123=Arrivées!K123,Arrivées!L123,IF(S123=Arrivées!O123,Arrivées!P123,IF(S123=Arrivées!S123,Arrivées!T123,"0")))) -> 0 | U123: =IF(S123=Arrivées!G123,Arrivées!I123,IF(S123=Arrivées!K123,Arrivées!M123,IF(S123=Arrivées!O123,Arrivées!Q123,IF(S123=Arrivées!S123,Arrivées!U123,"0")))) -> 0 | W123: =Arrivées!W123 -> BOUGOUIN | X123: =Arrivées!X123 -> R4C4
A124: =Arrivées!A124 -> 2017-01-08 | B124: =Arrivées!B124 -> CARRERE | C124: =Arrivées!C124 -> NON | D124: =Arrivées!D124 -> NON | E124: =Arrivées!E124 -> 9 | F124: =Arrivées!F124 -> 1 | G124: 10 | H124: =IF(G124=Arrivées!G124,Arrivées!H124,IF(G124=Arrivées!K124,Arrivées!L124,IF(G124=Arrivées!O124,Arrivées!P124,IF(G124=Arrivées!S124,Arrivées!T124,"0")))) -> 0 | I124: =IF(G124=Arrivées!G124,Arrivées!I124,IF(G124=Arrivées!K124,Arrivées!M124,IF(G124=Arrivées!O124,Arrivées!Q124,IF(G124=Arrivées!S124,Arrivées!U124,"0")))) -> 0 | K124: 5 | L124: =IF(K124=Arrivées!G124,Arrivées!H124,IF(K124=Arrivées!K124,Arrivées!L124,IF(G124=Arrivées!O124,Arrivées!P124,IF(K124=Arrivées!S124,Arrivées!T124,"0")))) -> 0 | M124: =IF(K124=Arrivées!G124,Arrivées!I124,IF(K124=Arrivées!K124,Arrivées!M124,IF(K124=Arrivées!O124,Arrivées!Q124,IF(K124=Arrivées!S124,Arrivées!U124,"0")))) -> 3.1 | N124: =Arrivées!F124 -> 1 | O124: 8 | P124: =IF(O124=Arrivées!G124,Arrivées!H124,IF(O124=Arrivées!K124,Arrivées!L124,IF(O124=Arrivées!O124,Arrivées!P124,IF(O124=Arrivées!S124,Arrivées!T124,"0")))) -> 0 | Q124: =IF(O124=Arrivées!G124,Arrivées!I124,IF(O124=Arrivées!K124,Arrivées!M124,IF(O124=Arrivées!O124,Arrivées!Q124,IF(O124=Arrivées!S124,Arrivées!U124,"0")))) -> 0 | R124: =Arrivées!F124 -> 1 | S124: 1 | T124: =IF(S124=Arrivées!G124,Arrivées!H124,IF(S124=Arrivées!K124,Arrivées!L124,IF(S124=Arrivées!O124,Arrivées!P124,IF(S124=Arrivées!S124,Arrivées!T124,"0")))) -> 0 | U124: =IF(S124=Arrivées!G124,Arrivées!I124,IF(S124=Arrivées!K124,Arrivées!M124,IF(S124=Arrivées!O124,Arrivées!Q124,IF(S124=Arrivées!S124,Arrivées!U124,"0")))) -> 2.1 | W124: =Arrivées!W124 -> BOUGOUIN | X124: =Arrivées!X124 -> R4C5
A125: =Arrivées!A125 -> 2017-01-08 | B125: =Arrivées!B125 -> CARRERE | C125: =Arrivées!C125 -> NON | D125: =Arrivées!D125 -> NON | E125: =Arrivées!E125 -> 7 | F125: =Arrivées!F125 -> 1 | G125: 3 | H125: =IF(G125=Arrivées!G125,Arrivées!H125,IF(G125=Arrivées!K125,Arrivées!L125,IF(G125=Arrivées!O125,Arrivées!P125,IF(G125=Arrivées!S125,Arrivées!T125,"0")))) -> 0 | I125: =IF(G125=Arrivées!G125,Arrivées!I125,IF(G125=Arrivées!K125,Arrivées!M125,IF(G125=Arrivées!O125,Arrivées!Q125,IF(G125=Arrivées!S125,Arrivées!U125,"0")))) -> 0 | K125: 4 | L125: =IF(K125=Arrivées!G125,Arrivées!H125,IF(K125=Arrivées!K125,Arrivées!L125,IF(G125=Arrivées!O125,Arrivées!P125,IF(K125=Arrivées!S125,Arrivées!T125,"0")))) -> 2.8 | M125: =IF(K125=Arrivées!G125,Arrivées!I125,IF(K125=Arrivées!K125,Arrivées!M125,IF(K125=Arrivées!O125,Arrivées!Q125,IF(K125=Arrivées!S125,Arrivées!U125,"0")))) -> 1.8 | N125: =Arrivées!F125 -> 1 | O125: 6 | P125: =IF(O125=Arrivées!G125,Arrivées!H125,IF(O125=Arrivées!K125,Arrivées!L125,IF(O125=Arrivées!O125,Arrivées!P125,IF(O125=Arrivées!S125,Arrivées!T125,"0")))) -> 0 | Q125: =IF(O125=Arrivées!G125,Arrivées!I125,IF(O125=Arrivées!K125,Arrivées!M125,IF(O125=Arrivées!O125,Arrivées!Q125,IF(O125=Arrivées!S125,Arrivées!U125,"0")))) -> 0 | R125: =Arrivées!F125 -> 1 | S125: 2 | T125: =IF(S125=Arrivées!G125,Arrivées!H125,IF(S125=Arrivées!K125,Arrivées!L125,IF(S125=Arrivées!O125,Arrivées!P125,IF(S125=Arrivées!S125,Arrivées!T125,"0")))) -> 0 | U125: =IF(S125=Arrivées!G125,Arrivées!I125,IF(S125=Arrivées!K125,Arrivées!M125,IF(S125=Arrivées!O125,Arrivées!Q125,IF(S125=Arrivées!S125,Arrivées!U125,"0")))) -> 2.6 | W125: =Arrivées!W125 -> BOUGOUIN | X125: =Arrivées!X125 -> R4C6
A126: =Arrivées!A126 -> 2017-01-10 | B126: =Arrivées!B126 -> MARSEILLE VIVAUX | C126: =Arrivées!C126 -> HD | D126: =Arrivées!D126 -> E | E126: =Arrivées!E126 -> 11 | F126: =Arrivées!F126 -> 1 | G126: 2 | H126: =IF(G126=Arrivées!G126,Arrivées!H126,IF(G126=Arrivées!K126,Arrivées!L126,IF(G126=Arrivées!O126,Arrivées!P126,IF(G126=Arrivées!S126,Arrivées!T126,"0")))) -> 0 | I126: =IF(G126=Arrivées!G126,Arrivées!I126,IF(G126=Arrivées!K126,Arrivées!M126,IF(G126=Arrivées!O126,Arrivées!Q126,IF(G126=Arrivées!S126,Arrivées!U126,"0")))) -> 0 | K126: 5 | L126: =IF(K126=Arrivées!G126,Arrivées!H126,IF(K126=Arrivées!K126,Arrivées!L126,IF(G126=Arrivées!O126,Arrivées!P126,IF(K126=Arrivées!S126,Arrivées!T126,"0")))) -> 5.1 | M126: =IF(K126=Arrivées!G126,Arrivées!I126,IF(K126=Arrivées!K126,Arrivées!M126,IF(K126=Arrivées!O126,Arrivées!Q126,IF(K126=Arrivées!S126,Arrivées!U126,"0")))) -> 1.9 | N126: =Arrivées!F126 -> 1 | O126: 4 | P126: =IF(O126=Arrivées!G126,Arrivées!H126,IF(O126=Arrivées!K126,Arrivées!L126,IF(O126=Arrivées!O126,Arrivées!P126,IF(O126=Arrivées!S126,Arrivées!T126,"0")))) -> 0 | Q126: =IF(O126=Arrivées!G126,Arrivées!I126,IF(O126=Arrivées!K126,Arrivées!M126,IF(O126=Arrivées!O126,Arrivées!Q126,IF(O126=Arrivées!S126,Arrivées!U126,"0")))) -> 2.5 | R126: =Arrivées!F126 -> 1 | S126: 9 | T126: =IF(S126=Arrivées!G126,Arrivées!H126,IF(S126=Arrivées!K126,Arrivées!L126,IF(S126=Arrivées!O126,Arrivées!P126,IF(S126=Arrivées!S126,Arrivées!T126,"0")))) -> 0 | U126: =IF(S126=Arrivées!G126,Arrivées!I126,IF(S126=Arrivées!K126,Arrivées!M126,IF(S126=Arrivées!O126,Arrivées!Q126,IF(S126=Arrivées!S126,Arrivées!U126,"0")))) -> 0 | W126: =Arrivées!W126 -> ESPEJO-AMAR | X126: =Arrivées!X126 -> R3C1
A127: =Arrivées!A127 -> 2017-01-10 | B127: =Arrivées!B127 -> MARSEILLE VIVAUX | C127: =Arrivées!C127 -> HD | D127: =Arrivées!D127 -> G | E127: =Arrivées!E127 -> 10 | F127: =Arrivées!F127 -> 1 | G127: 8 | H127: =IF(G127=Arrivées!G127,Arrivées!H127,IF(G127=Arrivées!K127,Arrivées!L127,IF(G127=Arrivées!O127,Arrivées!P127,IF(G127=Arrivées!S127,Arrivées!T127,"0")))) -> 0 | I127: =IF(G127=Arrivées!G127,Arrivées!I127,IF(G127=Arrivées!K127,Arrivées!M127,IF(G127=Arrivées!O127,Arrivées!Q127,IF(G127=Arrivées!S127,Arrivées!U127,"0")))) -> 0 | K127: 4 | L127: =IF(K127=Arrivées!G127,Arrivées!H127,IF(K127=Arrivées!K127,Arrivées!L127,IF(G127=Arrivées!O127,Arrivées!P127,IF(K127=Arrivées!S127,Arrivées!T127,"0")))) -> 0 | M127: =IF(K127=Arrivées!G127,Arrivées!I127,IF(K127=Arrivées!K127,Arrivées!M127,IF(K127=Arrivées!O127,Arrivées!Q127,IF(K127=Arrivées!S127,Arrivées!U127,"0")))) -> 0 | N127: =Arrivées!F127 -> 1 | O127: 3 | P127: =IF(O127=Arrivées!G127,Arrivées!H127,IF(O127=Arrivées!K127,Arrivées!L127,IF(O127=Arrivées!O127,Arrivées!P127,IF(O127=Arrivées!S127,Arrivées!T127,"0")))) -> 0 | Q127: =IF(O127=Arrivées!G127,Arrivées!I127,IF(O127=Arrivées!K127,Arrivées!M127,IF(O127=Arrivées!O127,Arrivées!Q127,IF(O127=Arrivées!S127,Arrivées!U127,"0")))) -> 0 | R127: =Arrivées!F127 -> 1 | S127: 9 | T127: =IF(S127=Arrivées!G127,Arrivées!H127,IF(S127=Arrivées!K127,Arrivées!L127,IF(S127=Arrivées!O127,Arrivées!P127,IF(S127=Arrivées!S127,Arrivées!T127,"0")))) -> 0 | U127: =IF(S127=Arrivées!G127,Arrivées!I127,IF(S127=Arrivées!K127,Arrivées!M127,IF(S127=Arrivées!O127,Arrivées!Q127,IF(S127=Arrivées!S127,Arrivées!U127,"0")))) -> 3.5 | W127: =Arrivées!W127 -> ESPEJO-AMAR | X127: =Arrivées!X127 -> R3C2
A128: =Arrivées!A128 -> 2017-01-10 | B128: =Arrivées!B128 -> MARSEILLE VIVAUX | C128: =Arrivées!C128 -> HD | D128: =Arrivées!D128 -> G | E128: =Arrivées!E128 -> 10 | F128: =Arrivées!F128 -> 1 | G128: 7 | H128: =IF(G128=Arrivées!G128,Arrivées!H128,IF(G128=Arrivées!K128,Arrivées!L128,IF(G128=Arrivées!O128,Arrivées!P128,IF(G128=Arrivées!S128,Arrivées!T128,"0")))) -> 0 | I128: =IF(G128=Arrivées!G128,Arrivées!I128,IF(G128=Arrivées!K128,Arrivées!M128,IF(G128=Arrivées!O128,Arrivées!Q128,IF(G128=Arrivées!S128,Arrivées!U128,"0")))) -> 1.9 | K128: 2 | L128: =IF(K128=Arrivées!G128,Arrivées!H128,IF(K128=Arrivées!K128,Arrivées!L128,IF(G128=Arrivées!O128,Arrivées!P128,IF(K128=Arrivées!S128,Arrivées!T128,"0")))) -> 2.5 | M128: =IF(K128=Arrivées!G128,Arrivées!I128,IF(K128=Arrivées!K128,Arrivées!M128,IF(K128=Arrivées!O128,Arrivées!Q128,IF(K128=Arrivées!S128,Arrivées!U128,"0")))) -> 1.2 | N128: =Arrivées!F128 -> 1 | O128: 8 | P128: =IF(O128=Arrivées!G128,Arrivées!H128,IF(O128=Arrivées!K128,Arrivées!L128,IF(O128=Arrivées!O128,Arrivées!P128,IF(O128=Arrivées!S128,Arrivées!T128,"0")))) -> 0 | Q128: =IF(O128=Arrivées!G128,Arrivées!I128,IF(O128=Arrivées!K128,Arrivées!M128,IF(O128=Arrivées!O128,Arrivées!Q128,IF(O128=Arrivées!S128,Arrivées!U128,"0")))) -> 1.6 | R128: =Arrivées!F128 -> 1 | S128: 9 | T128: =IF(S128=Arrivées!G128,Arrivées!H128,IF(S128=Arrivées!K128,Arrivées!L128,IF(S128=Arrivées!O128,Arrivées!P128,IF(S128=Arrivées!S128,Arrivées!T128,"0")))) -> 0 | U128: =IF(S128=Arrivées!G128,Arrivées!I128,IF(S128=Arrivées!K128,Arrivées!M128,IF(S128=Arrivées!O128,Arrivées!Q128,IF(S128=Arrivées!S128,Arrivées!U128,"0")))) -> 0 | W128: =Arrivées!W128 -> ESPEJO-AMAR | X128: =Arrivées!X128 -> R3C3
A129: =Arrivées!A129 -> 2017-01-10 | B129: =Arrivées!B129 -> MARSEILLE VIVAUX | C129: =Arrivées!C129 -> MAIDEN | D129: =Arrivées!D129 -> NON | E129: =Arrivées!E129 -> 9 | F129: =Arrivées!F129 -> 1 | G129: 3 | H129: =IF(G129=Arrivées!G129,Arrivées!H129,IF(G129=Arrivées!K129,Arrivées!L129,IF(G129=Arrivées!O129,Arrivées!P129,IF(G129=Arrivées!S129,Arrivées!T129,"0")))) -> 0 | I129: =IF(G129=Arrivées!G129,Arrivées!I129,IF(G129=Arrivées!K129,Arrivées!M129,IF(G129=Arrivées!O129,Arrivées!Q129,IF(G129=Arrivées!S129,Arrivées!U129,"0")))) -> 1.5 | K129: 7 | L129: =IF(K129=Arrivées!G129,Arrivées!H129,IF(K129=Arrivées!K129,Arrivées!L129,IF(G129=Arrivées!O129,Arrivées!P129,IF(K129=Arrivées!S129,Arrivées!T129,"0")))) -> 0 | M129: =IF(K129=Arrivées!G129,Arrivées!I129,IF(K129=Arrivées!K129,Arrivées!M129,IF(K129=Arrivées!O129,Arrivées!Q129,IF(K129=Arrivées!S129,Arrivées!U129,"0")))) -> 0 | N129: =Arrivées!F129 -> 1 | O129: 5 | P129: =IF(O129=Arrivées!G129,Arrivées!H129,IF(O129=Arrivées!K129,Arrivées!L129,IF(O129=Arrivées!O129,Arrivées!P129,IF(O129=Arrivées!S129,Arrivées!T129,"0")))) -> 0 | Q129: =IF(O129=Arrivées!G129,Arrivées!I129,IF(O129=Arrivées!K129,Arrivées!M129,IF(O129=Arrivées!O129,Arrivées!Q129,IF(O129=Arrivées!S129,Arrivées!U129,"0")))) -> 0 | R129: =Arrivées!F129 -> 1 | S129: 1 | T129: =IF(S129=Arrivées!G129,Arrivées!H129,IF(S129=Arrivées!K129,Arrivées!L129,IF(S129=Arrivées!O129,Arrivées!P129,IF(S129=Arrivées!S129,Arrivées!T129,"0")))) -> 0 | U129: =IF(S129=Arrivées!G129,Arrivées!I129,IF(S129=Arrivées!K129,Arrivées!M129,IF(S129=Arrivées!O129,Arrivées!Q129,IF(S129=Arrivées!S129,Arrivées!U129,"0")))) -> 2 | W129: =Arrivées!W129 -> ESPEJO-AMAR | X129: =Arrivées!X129 -> R3C4
A130: =Arrivées!A130 -> 2017-01-10 | B130: =Arrivées!B130 -> MARSEILLE VIVAUX | C130: =Arrivées!C130 -> RECLAMER | D130: =Arrivées!D130 -> NON | E130: =Arrivées!E130 -> 9 | F130: =Arrivées!F130 -> 1 | G130: 5 | H130: =IF(G130=Arrivées!G130,Arrivées!H130,IF(G130=Arrivées!K130,Arrivées!L130,IF(G130=Arrivées!O130,Arrivées!P130,IF(G130=Arrivées!S130,Arrivées!T130,"0")))) -> 2.9 | I130: =IF(G130=Arrivées!G130,Arrivées!I130,IF(G130=Arrivées!K130,Arrivées!M130,IF(G130=Arrivées!O130,Arrivées!Q130,IF(G130=Arrivées!S130,Arrivées!U130,"0")))) -> 1.2 | K130: 4 | L130: =IF(K130=Arrivées!G130,Arrivées!H130,IF(K130=Arrivées!K130,Arrivées!L130,IF(G130=Arrivées!O130,Arrivées!P130,IF(K130=Arrivées!S130,Arrivées!T130,"0")))) -> 0 | M130: =IF(K130=Arrivées!G130,Arrivées!I130,IF(K130=Arrivées!K130,Arrivées!M130,IF(K130=Arrivées!O130,Arrivées!Q130,IF(K130=Arrivées!S130,Arrivées!U130,"0")))) -> 1.6 | N130: =Arrivées!F130 -> 1 | O130: 2 | P130: =IF(O130=Arrivées!G130,Arrivées!H130,IF(O130=Arrivées!K130,Arrivées!L130,IF(O130=Arrivées!O130,Arrivées!P130,IF(O130=Arrivées!S130,Arrivées!T130,"0")))) -> 0 | Q130: =IF(O130=Arrivées!G130,Arrivées!I130,IF(O130=Arrivées!K130,Arrivées!M130,IF(O130=Arrivées!O130,Arrivées!Q130,IF(O130=Arrivées!S130,Arrivées!U130,"0")))) -> 0 | R130: =Arrivées!F130 -> 1 | S130: 3 | T130: =IF(S130=Arrivées!G130,Arrivées!H130,IF(S130=Arrivées!K130,Arrivées!L130,IF(S130=Arrivées!O130,Arrivées!P130,IF(S130=Arrivées!S130,Arrivées!T130,"0")))) -> 0 | U130: =IF(S130=Arrivées!G130,Arrivées!I130,IF(S130=Arrivées!K130,Arrivées!M130,IF(S130=Arrivées!O130,Arrivées!Q130,IF(S130=Arrivées!S130,Arrivées!U130,"0")))) -> 2.6 | W130: =Arrivées!W130 -> ESPEJO-AMAR | X130: =Arrivées!X130 -> R3C5
A131: =Arrivées!A131 -> 2017-01-10 | B131: =Arrivées!B131 -> MARSEILLE VIVAUX | C131: =Arrivées!C131 -> RECLAMER | D131: =Arrivées!D131 -> G | E131: =Arrivées!E131 -> 9 | F131: =Arrivées!F131 -> 1 | G131: 3 | H131: =IF(G131=Arrivées!G131,Arrivées!H131,IF(G131=Arrivées!K131,Arrivées!L131,IF(G131=Arrivées!O131,Arrivées!P131,IF(G131=Arrivées!S131,Arrivées!T131,"0")))) -> 0 | I131: =IF(G131=Arrivées!G131,Arrivées!I131,IF(G131=Arrivées!K131,Arrivées!M131,IF(G131=Arrivées!O131,Arrivées!Q131,IF(G131=Arrivées!S131,Arrivées!U131,"0")))) -> 0 | K131: 1 | L131: =IF(K131=Arrivées!G131,Arrivées!H131,IF(K131=Arrivées!K131,Arrivées!L131,IF(G131=Arrivées!O131,Arrivées!P131,IF(K131=Arrivées!S131,Arrivées!T131,"0")))) -> 4.3 | M131: =IF(K131=Arrivées!G131,Arrivées!I131,IF(K131=Arrivées!K131,Arrivées!M131,IF(K131=Arrivées!O131,Arrivées!Q131,IF(K131=Arrivées!S131,Arrivées!U131,"0")))) -> 1.6 | N131: =Arrivées!F131 -> 1 | O131: 2 | P131: =IF(O131=Arrivées!G131,Arrivées!H131,IF(O131=Arrivées!K131,Arrivées!L131,IF(O131=Arrivées!O131,Arrivées!P131,IF(O131=Arrivées!S131,Arrivées!T131,"0")))) -> 0 | Q131: =IF(O131=Arrivées!G131,Arrivées!I131,IF(O131=Arrivées!K131,Arrivées!M131,IF(O131=Arrivées!O131,Arrivées!Q131,IF(O131=Arrivées!S131,Arrivées!U131,"0")))) -> 2.7 | R131: =Arrivées!F131 -> 1 | S131: 4 | T131: =IF(S131=Arrivées!G131,Arrivées!H131,IF(S131=Arrivées!K131,Arrivées!L131,IF(S131=Arrivées!O131,Arrivées!P131,IF(S131=Arrivées!S131,Arrivées!T131,"0")))) -> 0 | U131: =IF(S131=Arrivées!G131,Arrivées!I131,IF(S131=Arrivées!K131,Arrivées!M131,IF(S131=Arrivées!O131,Arrivées!Q131,IF(S131=Arrivées!S131,Arrivées!U131,"0")))) -> 0 | W131: =Arrivées!W131 -> ESPEJO-AMAR | X131: =Arrivées!X131 -> R3C6
A132: =Arrivées!A132 -> 2017-01-10 | B132: =Arrivées!B132 -> MARSEILLE VIVAUX | C132: =Arrivées!C132 -> RECLAMER | D132: =Arrivées!D132 -> G | E132: =Arrivées!E132 -> 10 | F132: =Arrivées!F132 -> 1 | G132: 1 | H132: =IF(G132=Arrivées!G132,Arrivées!H132,IF(G132=Arrivées!K132,Arrivées!L132,IF(G132=Arrivées!O132,Arrivées!P132,IF(G132=Arrivées!S132,Arrivées!T132,"0")))) -> 0 | I132: =IF(G132=Arrivées!G132,Arrivées!I132,IF(G132=Arrivées!K132,Arrivées!M132,IF(G132=Arrivées!O132,Arrivées!Q132,IF(G132=Arrivées!S132,Arrivées!U132,"0")))) -> 1.3 | K132: 2 | L132: =IF(K132=Arrivées!G132,Arrivées!H132,IF(K132=Arrivées!K132,Arrivées!L132,IF(G132=Arrivées!O132,Arrivées!P132,IF(K132=Arrivées!S132,Arrivées!T132,"0")))) -> 0 | M132: =IF(K132=Arrivées!G132,Arrivées!I132,IF(K132=Arrivées!K132,Arrivées!M132,IF(K132=Arrivées!O132,Arrivées!Q132,IF(K132=Arrivées!S132,Arrivées!U132,"0")))) -> 0 | N132: =Arrivées!F132 -> 1 | O132: 3 | P132: =IF(O132=Arrivées!G132,Arrivées!H132,IF(O132=Arrivées!K132,Arrivées!L132,IF(O132=Arrivées!O132,Arrivées!P132,IF(O132=Arrivées!S132,Arrivées!T132,"0")))) -> 0 | Q132: =IF(O132=Arrivées!G132,Arrivées!I132,IF(O132=Arrivées!K132,Arrivées!M132,IF(O132=Arrivées!O132,Arrivées!Q132,IF(O132=Arrivées!S132,Arrivées!U132,"0")))) -> 0 | R132: =Arrivées!F132 -> 1 | S132: 5 | T132: =IF(S132=Arrivées!G132,Arrivées!H132,IF(S132=Arrivées!K132,Arrivées!L132,IF(S132=Arrivées!O132,Arrivées!P132,IF(S132=Arrivées!S132,Arrivées!T132,"0")))) -> 0 | U132: =IF(S132=Arrivées!G132,Arrivées!I132,IF(S132=Arrivées!K132,Arrivées!M132,IF(S132=Arrivées!O132,Arrivées!Q132,IF(S132=Arrivées!S132,Arrivées!U132,"0")))) -> 0 | W132: =Arrivées!W132 -> ESPEJO-AMAR | X132: =Arrivées!X132 -> R3C7
A133: =Arrivées!A133 -> 2017-01-10 | B133: =Arrivées!B133 -> MARSEILLE VIVAUX | C133: =Arrivées!C133 -> NON | D133: =Arrivées!D133 -> E | E133: =Arrivées!E133 -> 7 | F133: =Arrivées!F133 -> 1 | G133: 1 | H133: =IF(G133=Arrivées!G133,Arrivées!H133,IF(G133=Arrivées!K133,Arrivées!L133,IF(G133=Arrivées!O133,Arrivées!P133,IF(G133=Arrivées!S133,Arrivées!T133,"0")))) -> 1.3 | I133: =IF(G133=Arrivées!G133,Arrivées!I133,IF(G133=Arrivées!K133,Arrivées!M133,IF(G133=Arrivées!O133,Arrivées!Q133,IF(G133=Arrivées!S133,Arrivées!U133,"0")))) -> 1.3 | K133: 5 | L133: =IF(K133=Arrivées!G133,Arrivées!H133,IF(K133=Arrivées!K133,Arrivées!L133,IF(G133=Arrivées!O133,Arrivées!P133,IF(K133=Arrivées!S133,Arrivées!T133,"0")))) -> 0 | M133: =IF(K133=Arrivées!G133,Arrivées!I133,IF(K133=Arrivées!K133,Arrivées!M133,IF(K133=Arrivées!O133,Arrivées!Q133,IF(K133=Arrivées!S133,Arrivées!U133,"0")))) -> 0 | N133: =Arrivées!F133 -> 1 | O133: 4 | P133: =IF(O133=Arrivées!G133,Arrivées!H133,IF(O133=Arrivées!K133,Arrivées!L133,IF(O133=Arrivées!O133,Arrivées!P133,IF(O133=Arrivées!S133,Arrivées!T133,"0")))) -> 0 | Q133: =IF(O133=Arrivées!G133,Arrivées!I133,IF(O133=Arrivées!K133,Arrivées!M133,IF(O133=Arrivées!O133,Arrivées!Q133,IF(O133=Arrivées!S133,Arrivées!U133,"0")))) -> 0 | R133: =Arrivées!F133 -> 1 | S133: 0 | T133: =IF(S133=Arrivées!G133,Arrivées!H133,IF(S133=Arrivées!K133,Arrivées!L133,IF(S133=Arrivées!O133,Arrivées!P133,IF(S133=Arrivées!S133,Arrivées!T133,"0")))) -> 0 | U133: =IF(S133=Arrivées!G133,Arrivées!I133,IF(S133=Arrivées!K133,Arrivées!M133,IF(S133=Arrivées!O133,Arrivées!Q133,IF(S133=Arrivées!S133,Arrivées!U133,"0")))) -> 0 | W133: =Arrivées!W133 -> ESPEJO-AMAR | X133: =Arrivées!X133 -> R3C8
A134: =Arrivées!A134 -> 2017-01-11 | B134: =Arrivées!B134 -> KENILWORTH | C134: =Arrivées!C134 -> NON | D134: =Arrivées!D134 -> NON | E134: =Arrivées!E134 -> 9 | F134: =Arrivées!F134 -> 1 | G134: 7 | H134: =IF(G134=Arrivées!G134,Arrivées!H134,IF(G134=Arrivées!K134,Arrivées!L134,IF(G134=Arrivées!O134,Arrivées!P134,IF(G134=Arrivées!S134,Arrivées!T134,"0")))) -> 1.5 | I134: =IF(G134=Arrivées!G134,Arrivées!I134,IF(G134=Arrivées!K134,Arrivées!M134,IF(G134=Arrivées!O134,Arrivées!Q134,IF(G134=Arrivées!S134,Arrivées!U134,"0")))) -> 1.1 | K134: 1 | L134: =IF(K134=Arrivées!G134,Arrivées!H134,IF(K134=Arrivées!K134,Arrivées!L134,IF(G134=Arrivées!O134,Arrivées!P134,IF(K134=Arrivées!S134,Arrivées!T134,"0")))) -> 0 | M134: =IF(K134=Arrivées!G134,Arrivées!I134,IF(K134=Arrivées!K134,Arrivées!M134,IF(K134=Arrivées!O134,Arrivées!Q134,IF(K134=Arrivées!S134,Arrivées!U134,"0")))) -> 0 | N134: =Arrivées!F134 -> 1 | O134: 2 | P134: =IF(O134=Arrivées!G134,Arrivées!H134,IF(O134=Arrivées!K134,Arrivées!L134,IF(O134=Arrivées!O134,Arrivées!P134,IF(O134=Arrivées!S134,Arrivées!T134,"0")))) -> 0 | Q134: =IF(O134=Arrivées!G134,Arrivées!I134,IF(O134=Arrivées!K134,Arrivées!M134,IF(O134=Arrivées!O134,Arrivées!Q134,IF(O134=Arrivées!S134,Arrivées!U134,"0")))) -> 1.6 | R134: =Arrivées!F134 -> 1 | S134: 8 | T134: =IF(S134=Arrivées!G134,Arrivées!H134,IF(S134=Arrivées!K134,Arrivées!L134,IF(S134=Arrivées!O134,Arrivées!P134,IF(S134=Arrivées!S134,Arrivées!T134,"0")))) -> 0 | U134: =IF(S134=Arrivées!G134,Arrivées!I134,IF(S134=Arrivées!K134,Arrivées!M134,IF(S134=Arrivées!O134,Arrivées!Q134,IF(S134=Arrivées!S134,Arrivées!U134,"0")))) -> 0 | W134: =Arrivées!W134 -> BOUGOUIN | X134: =Arrivées!X134 -> R2C1
A135: =Arrivées!A135 -> 2017-01-11 | B135: =Arrivées!B135 -> KENILWORTH | C135: =Arrivées!C135 -> NON | D135: =Arrivées!D135 -> FEMELLE | E135: =Arrivées!E135 -> 11 | F135: =Arrivées!F135 -> 1 | G135: 10 | H135: =IF(G135=Arrivées!G135,Arrivées!H135,IF(G135=Arrivées!K135,Arrivées!L135,IF(G135=Arrivées!O135,Arrivées!P135,IF(G135=Arrivées!S135,Arrivées!T135,"0")))) -> 4.7 | I135: =IF(G135=Arrivées!G135,Arrivées!I135,IF(G135=Arrivées!K135,Arrivées!M135,IF(G135=Arrivées!O135,Arrivées!Q135,IF(G135=Arrivées!S135,Arrivées!U135,"0")))) -> 1.7 | K135: 1 | L135: =IF(K135=Arrivées!G135,Arrivées!H135,IF(K135=Arrivées!K135,Arrivées!L135,IF(G135=Arrivées!O135,Arrivées!P135,IF(K135=Arrivées!S135,Arrivées!T135,"0")))) -> 0 | M135: =IF(K135=Arrivées!G135,Arrivées!I135,IF(K135=Arrivées!K135,Arrivées!M135,IF(K135=Arrivées!O135,Arrivées!Q135,IF(K135=Arrivées!S135,Arrivées!U135,"0")))) -> 0 | N135: =Arrivées!F135 -> 1 | O135: 4 | P135: =IF(O135=Arrivées!G135,Arrivées!H135,IF(O135=Arrivées!K135,Arrivées!L135,IF(O135=Arrivées!O135,Arrivées!P135,IF(O135=Arrivées!S135,Arrivées!T135,"0")))) -> 0 | Q135: =IF(O135=Arrivées!G135,Arrivées!I135,IF(O135=Arrivées!K135,Arrivées!M135,IF(O135=Arrivées!O135,Arrivées!Q135,IF(O135=Arrivées!S135,Arrivées!U135,"0")))) -> 0 | R135: =Arrivées!F135 -> 1 | S135: 3 | T135: =IF(S135=Arrivées!G135,Arrivées!H135,IF(S135=Arrivées!K135,Arrivées!L135,IF(S135=Arrivées!O135,Arrivées!P135,IF(S135=Arrivées!S135,Arrivées!T135,"0")))) -> 0 | U135: =IF(S135=Arrivées!G135,Arrivées!I135,IF(S135=Arrivées!K135,Arrivées!M135,IF(S135=Arrivées!O135,Arrivées!Q135,IF(S135=Arrivées!S135,Arrivées!U135,"0")))) -> 2 | W135: =Arrivées!W135 -> BOUGOUIN | X135: =Arrivées!X135 -> R2C2
A136: =Arrivées!A136 -> 2017-01-11 | B136: =Arrivées!B136 -> KENILWORTH | C136: =Arrivées!C136 -> NON | D136: =Arrivées!D136 -> NON | E136: =Arrivées!E136 -> 10 | F136: =Arrivées!F136 -> 1 | G136: 1 | H136: =IF(G136=Arrivées!G136,Arrivées!H136,IF(G136=Arrivées!K136,Arrivées!L136,IF(G136=Arrivées!O136,Arrivées!P136,IF(G136=Arrivées!S136,Arrivées!T136,"0")))) -> 0 | I136: =IF(G136=Arrivées!G136,Arrivées!I136,IF(G136=Arrivées!K136,Arrivées!M136,IF(G136=Arrivées!O136,Arrivées!Q136,IF(G136=Arrivées!S136,Arrivées!U136,"0")))) -> 0 | K136: 10 | L136: =IF(K136=Arrivées!G136,Arrivées!H136,IF(K136=Arrivées!K136,Arrivées!L136,IF(G136=Arrivées!O136,Arrivées!P136,IF(K136=Arrivées!S136,Arrivées!T136,"0")))) -> 0 | M136: =IF(K136=Arrivées!G136,Arrivées!I136,IF(K136=Arrivées!K136,Arrivées!M136,IF(K136=Arrivées!O136,Arrivées!Q136,IF(K136=Arrivées!S136,Arrivées!U136,"0")))) -> 1.5 | N136: =Arrivées!F136 -> 1 | O136: 3 | P136: =IF(O136=Arrivées!G136,Arrivées!H136,IF(O136=Arrivées!K136,Arrivées!L136,IF(O136=Arrivées!O136,Arrivées!P136,IF(O136=Arrivées!S136,Arrivées!T136,"0")))) -> 3.8 | Q136: =IF(O136=Arrivées!G136,Arrivées!I136,IF(O136=Arrivées!K136,Arrivées!M136,IF(O136=Arrivées!O136,Arrivées!Q136,IF(O136=Arrivées!S136,Arrivées!U136,"0")))) -> 1.9 | R136: =Arrivées!F136 -> 1 | S136: 2 | T136: =IF(S136=Arrivées!G136,Arrivées!H136,IF(S136=Arrivées!K136,Arrivées!L136,IF(S136=Arrivées!O136,Arrivées!P136,IF(S136=Arrivées!S136,Arrivées!T136,"0")))) -> 0 | U136: =IF(S136=Arrivées!G136,Arrivées!I136,IF(S136=Arrivées!K136,Arrivées!M136,IF(S136=Arrivées!O136,Arrivées!Q136,IF(S136=Arrivées!S136,Arrivées!U136,"0")))) -> 0 | W136: =Arrivées!W136 -> BOUGOUIN | X136: =Arrivées!X136 -> R2C3
A137: =Arrivées!A137 -> 2017-01-11 | B137: =Arrivées!B137 -> HAPPY VALLEY | C137: =Arrivées!C137 -> H | D137: =Arrivées!D137 -> NON | E137: =Arrivées!E137 -> 12 | F137: =Arrivées!F137 -> 1 | G137: 1 | H137: =IF(G137=Arrivées!G137,Arrivées!H137,IF(G137=Arrivées!K137,Arrivées!L137,IF(G137=Arrivées!O137,Arrivées!P137,IF(G137=Arrivées!S137,Arrivées!T137,"0")))) -> 0 | I137: =IF(G137=Arrivées!G137,Arrivées!I137,IF(G137=Arrivées!K137,Arrivées!M137,IF(G137=Arrivées!O137,Arrivées!Q137,IF(G137=Arrivées!S137,Arrivées!U137,"0")))) -> 1.5 | K137: 4 | L137: =IF(K137=Arrivées!G137,Arrivées!H137,IF(K137=Arrivées!K137,Arrivées!L137,IF(G137=Arrivées!O137,Arrivées!P137,IF(K137=Arrivées!S137,Arrivées!T137,"0")))) -> 3.8 | M137: =IF(K137=Arrivées!G137,Arrivées!I137,IF(K137=Arrivées!K137,Arrivées!M137,IF(K137=Arrivées!O137,Arrivées!Q137,IF(K137=Arrivées!S137,Arrivées!U137,"0")))) -> 1.5 | N137: =Arrivées!F137 -> 1 | O137: 3 | P137: =IF(O137=Arrivées!G137,Arrivées!H137,IF(O137=Arrivées!K137,Arrivées!L137,IF(O137=Arrivées!O137,Arrivées!P137,IF(O137=Arrivées!S137,Arrivées!T137,"0")))) -> 0 | Q137: =IF(O137=Arrivées!G137,Arrivées!I137,IF(O137=Arrivées!K137,Arrivées!M137,IF(O137=Arrivées!O137,Arrivées!Q137,IF(O137=Arrivées!S137,Arrivées!U137,"0")))) -> 0 | R137: =Arrivées!F137 -> 1 | S137: 7 | T137: =IF(S137=Arrivées!G137,Arrivées!H137,IF(S137=Arrivées!K137,Arrivées!L137,IF(S137=Arrivées!O137,Arrivées!P137,IF(S137=Arrivées!S137,Arrivées!T137,"0")))) -> 0 | U137: =IF(S137=Arrivées!G137,Arrivées!I137,IF(S137=Arrivées!K137,Arrivées!M137,IF(S137=Arrivées!O137,Arrivées!Q137,IF(S137=Arrivées!S137,Arrivées!U137,"0")))) -> 0 | W137: =Arrivées!W137 -> HIRON | X137: =Arrivées!X137 -> R3C1
A138: =Arrivées!A138 -> 2017-01-11 | B138: =Arrivées!B138 -> HAPPY VALLEY | C138: =Arrivées!C138 -> H | D138: =Arrivées!D138 -> NON | E138: =Arrivées!E138 -> 11 | F138: =Arrivées!F138 -> 1 | G138: 1 | H138: =IF(G138=Arrivées!G138,Arrivées!H138,IF(G138=Arrivées!K138,Arrivées!L138,IF(G138=Arrivées!O138,Arrivées!P138,IF(G138=Arrivées!S138,Arrivées!T138,"0")))) -> 0 | I138: =IF(G138=Arrivées!G138,Arrivées!I138,IF(G138=Arrivées!K138,Arrivées!M138,IF(G138=Arrivées!O138,Arrivées!Q138,IF(G138=Arrivées!S138,Arrivées!U138,"0")))) -> 0 | K138: 2 | L138: =IF(K138=Arrivées!G138,Arrivées!H138,IF(K138=Arrivées!K138,Arrivées!L138,IF(G138=Arrivées!O138,Arrivées!P138,IF(K138=Arrivées!S138,Arrivées!T138,"0")))) -> 0 | M138: =IF(K138=Arrivées!G138,Arrivées!I138,IF(K138=Arrivées!K138,Arrivées!M138,IF(K138=Arrivées!O138,Arrivées!Q138,IF(K138=Arrivées!S138,Arrivées!U138,"0")))) -> 0 | N138: =Arrivées!F138 -> 1 | O138: 5 | P138: =IF(O138=Arrivées!G138,Arrivées!H138,IF(O138=Arrivées!K138,Arrivées!L138,IF(O138=Arrivées!O138,Arrivées!P138,IF(O138=Arrivées!S138,Arrivées!T138,"0")))) -> 0 | Q138: =IF(O138=Arrivées!G138,Arrivées!I138,IF(O138=Arrivées!K138,Arrivées!M138,IF(O138=Arrivées!O138,Arrivées!Q138,IF(O138=Arrivées!S138,Arrivées!U138,"0")))) -> 0 | R138: =Arrivées!F138 -> 1 | S138: 11 | T138: =IF(S138=Arrivées!G138,Arrivées!H138,IF(S138=Arrivées!K138,Arrivées!L138,IF(S138=Arrivées!O138,Arrivées!P138,IF(S138=Arrivées!S138,Arrivées!T138,"0")))) -> 0 | U138: =IF(S138=Arrivées!G138,Arrivées!I138,IF(S138=Arrivées!K138,Arrivées!M138,IF(S138=Arrivées!O138,Arrivées!Q138,IF(S138=Arrivées!S138,Arrivées!U138,"0")))) -> 0 | W138: =Arrivées!W138 -> HIRON | X138: =Arrivées!X138 -> R3C2
A139: =Arrivées!A139 -> 2017-01-11 | B139: =Arrivées!B139 -> HAPPY VALLEY | C139: =Arrivées!C139 -> H | D139: =Arrivées!D139 -> NON | E139: =Arrivées!E139 -> 12 | F139: =Arrivées!F139 -> 1 | G139: 7 | H139: =IF(G139=Arrivées!G139,Arrivées!H139,IF(G139=Arrivées!K139,Arrivées!L139,IF(G139=Arrivées!O139,Arrivées!P139,IF(G139=Arrivées!S139,Arrivées!T139,"0")))) -> 0 | I139: =IF(G139=Arrivées!G139,Arrivées!I139,IF(G139=Arrivées!K139,Arrivées!M139,IF(G139=Arrivées!O139,Arrivées!Q139,IF(G139=Arrivées!S139,Arrivées!U139,"0")))) -> 0 | K139: 3 | L139: =IF(K139=Arrivées!G139,Arrivées!H139,IF(K139=Arrivées!K139,Arrivées!L139,IF(G139=Arrivées!O139,Arrivées!P139,IF(K139=Arrivées!S139,Arrivées!T139,"0")))) -> 0 | M139: =IF(K139=Arrivées!G139,Arrivées!I139,IF(K139=Arrivées!K139,Arrivées!M139,IF(K139=Arrivées!O139,Arrivées!Q139,IF(K139=Arrivées!S139,Arrivées!U139,"0")))) -> 1.7 | N139: =Arrivées!F139 -> 1 | O139: 2 | P139: =IF(O139=Arrivées!G139,Arrivées!H139,IF(O139=Arrivées!K139,Arrivées!L139,IF(O139=Arrivées!O139,Arrivées!P139,IF(O139=Arrivées!S139,Arrivées!T139,"0")))) -> 0 | Q139: =IF(O139=Arrivées!G139,Arrivées!I139,IF(O139=Arrivées!K139,Arrivées!M139,IF(O139=Arrivées!O139,Arrivées!Q139,IF(O139=Arrivées!S139,Arrivées!U139,"0")))) -> 3.3 | R139: =Arrivées!F139 -> 1 | S139: 5 | T139: =IF(S139=Arrivées!G139,Arrivées!H139,IF(S139=Arrivées!K139,Arrivées!L139,IF(S139=Arrivées!O139,Arrivées!P139,IF(S139=Arrivées!S139,Arrivées!T139,"0")))) -> 6.2 | U139: =IF(S139=Arrivées!G139,Arrivées!I139,IF(S139=Arrivées!K139,Arrivées!M139,IF(S139=Arrivées!O139,Arrivées!Q139,IF(S139=Arrivées!S139,Arrivées!U139,"0")))) -> 2.7 | W139: =Arrivées!W139 -> HIRON | X139: =Arrivées!X139 -> R3C3
A140: =Arrivées!A140 -> 2017-01-11 | B140: =Arrivées!B140 -> HAPPY VALLEY | C140: =Arrivées!C140 -> H | D140: =Arrivées!D140 -> NON | E140: =Arrivées!E140 -> 12 | F140: =Arrivées!F140 -> 1 | G140: 3 | H140: =IF(G140=Arrivées!G140,Arrivées!H140,IF(G140=Arrivées!K140,Arrivées!L140,IF(G140=Arrivées!O140,Arrivées!P140,IF(G140=Arrivées!S140,Arrivées!T140,"0")))) -> 0 | I140: =IF(G140=Arrivées!G140,Arrivées!I140,IF(G140=Arrivées!K140,Arrivées!M140,IF(G140=Arrivées!O140,Arrivées!Q140,IF(G140=Arrivées!S140,Arrivées!U140,"0")))) -> 0 | K140: 8 | L140: =IF(K140=Arrivées!G140,Arrivées!H140,IF(K140=Arrivées!K140,Arrivées!L140,IF(G140=Arrivées!O140,Arrivées!P140,IF(K140=Arrivées!S140,Arrivées!T140,"0")))) -> 0 | M140: =IF(K140=Arrivées!G140,Arrivées!I140,IF(K140=Arrivées!K140,Arrivées!M140,IF(K140=Arrivées!O140,Arrivées!Q140,IF(K140=Arrivées!S140,Arrivées!U140,"0")))) -> 0 | N140: =Arrivées!F140 -> 1 | O140: 6 | P140: =IF(O140=Arrivées!G140,Arrivées!H140,IF(O140=Arrivées!K140,Arrivées!L140,IF(O140=Arrivées!O140,Arrivées!P140,IF(O140=Arrivées!S140,Arrivées!T140,"0")))) -> 0 | Q140: =IF(O140=Arrivées!G140,Arrivées!I140,IF(O140=Arrivées!K140,Arrivées!M140,IF(O140=Arrivées!O140,Arrivées!Q140,IF(O140=Arrivées!S140,Arrivées!U140,"0")))) -> 0 | R140: =Arrivées!F140 -> 1 | S140: 4 | T140: =IF(S140=Arrivées!G140,Arrivées!H140,IF(S140=Arrivées!K140,Arrivées!L140,IF(S140=Arrivées!O140,Arrivées!P140,IF(S140=Arrivées!S140,Arrivées!T140,"0")))) -> 3.9 | U140: =IF(S140=Arrivées!G140,Arrivées!I140,IF(S140=Arrivées!K140,Arrivées!M140,IF(S140=Arrivées!O140,Arrivées!Q140,IF(S140=Arrivées!S140,Arrivées!U140,"0")))) -> 2.1 | W140: =Arrivées!W140 -> HIRON | X140: =Arrivées!X140 -> R3C4
A141: =Arrivées!A141 -> 2017-01-11 | B141: =Arrivées!B141 -> HAPPY VALLEY | C141: =Arrivées!C141 -> H | D141: =Arrivées!D141 -> NON | E141: =Arrivées!E141 -> 12 | F141: =Arrivées!F141 -> 1 | G141: 1 | H141: =IF(G141=Arrivées!G141,Arrivées!H141,IF(G141=Arrivées!K141,Arrivées!L141,IF(G141=Arrivées!O141,Arrivées!P141,IF(G141=Arrivées!S141,Arrivées!T141,"0")))) -> 0 | I141: =IF(G141=Arrivées!G141,Arrivées!I141,IF(G141=Arrivées!K141,Arrivées!M141,IF(G141=Arrivées!O141,Arrivées!Q141,IF(G141=Arrivées!S141,Arrivées!U141,"0")))) -> 0 | K141: 4 | L141: =IF(K141=Arrivées!G141,Arrivées!H141,IF(K141=Arrivées!K141,Arrivées!L141,IF(G141=Arrivées!O141,Arrivées!P141,IF(K141=Arrivées!S141,Arrivées!T141,"0")))) -> 0 | M141: =IF(K141=Arrivées!G141,Arrivées!I141,IF(K141=Arrivées!K141,Arrivées!M141,IF(K141=Arrivées!O141,Arrivées!Q141,IF(K141=Arrivées!S141,Arrivées!U141,"0")))) -> 0 | N141: =Arrivées!F141 -> 1 | O141: 7 | P141: =IF(O141=Arrivées!G141,Arrivées!H141,IF(O141=Arrivées!K141,Arrivées!L141,IF(O141=Arrivées!O141,Arrivées!P141,IF(O141=Arrivées!S141,Arrivées!T141,"0")))) -> 0 | Q141: =IF(O141=Arrivées!G141,Arrivées!I141,IF(O141=Arrivées!K141,Arrivées!M141,IF(O141=Arrivées!O141,Arrivées!Q141,IF(O141=Arrivées!S141,Arrivées!U141,"0")))) -> 0 | R141: =Arrivées!F141 -> 1 | S141: 2 | T141: =IF(S141=Arrivées!G141,Arrivées!H141,IF(S141=Arrivées!K141,Arrivées!L141,IF(S141=Arrivées!O141,Arrivées!P141,IF(S141=Arrivées!S141,Arrivées!T141,"0")))) -> 0 | U141: =IF(S141=Arrivées!G141,Arrivées!I141,IF(S141=Arrivées!K141,Arrivées!M141,IF(S141=Arrivées!O141,Arrivées!Q141,IF(S141=Arrivées!S141,Arrivées!U141,"0")))) -> 0 | W141: =Arrivées!W141 -> HIRON | X141: =Arrivées!X141 -> R3C5
A142: =Arrivées!A142 -> 2017-01-11 | B142: =Arrivées!B142 -> HAPPY VALLEY | C142: =Arrivées!C142 -> H | D142: =Arrivées!D142 -> NON | E142: =Arrivées!E142 -> 12 | F142: =Arrivées!F142 -> 1 | G142: 3 | H142: =IF(G142=Arrivées!G142,Arrivées!H142,IF(G142=Arrivées!K142,Arrivées!L142,IF(G142=Arrivées!O142,Arrivées!P142,IF(G142=Arrivées!S142,Arrivées!T142,"0")))) -> 0 | I142: =IF(G142=Arrivées!G142,Arrivées!I142,IF(G142=Arrivées!K142,Arrivées!M142,IF(G142=Arrivées!O142,Arrivées!Q142,IF(G142=Arrivées!S142,Arrivées!U142,"0")))) -> 1.2 | K142: 11 | L142: =IF(K142=Arrivées!G142,Arrivées!H142,IF(K142=Arrivées!K142,Arrivées!L142,IF(G142=Arrivées!O142,Arrivées!P142,IF(K142=Arrivées!S142,Arrivées!T142,"0")))) -> 3.1 | M142: =IF(K142=Arrivées!G142,Arrivées!I142,IF(K142=Arrivées!K142,Arrivées!M142,IF(K142=Arrivées!O142,Arrivées!Q142,IF(K142=Arrivées!S142,Arrivées!U142,"0")))) -> 1.5 | N142: =Arrivées!F142 -> 1 | O142: 5 | P142: =IF(O142=Arrivées!G142,Arrivées!H142,IF(O142=Arrivées!K142,Arrivées!L142,IF(O142=Arrivées!O142,Arrivées!P142,IF(O142=Arrivées!S142,Arrivées!T142,"0")))) -> 0 | Q142: =IF(O142=Arrivées!G142,Arrivées!I142,IF(O142=Arrivées!K142,Arrivées!M142,IF(O142=Arrivées!O142,Arrivées!Q142,IF(O142=Arrivées!S142,Arrivées!U142,"0")))) -> 0 | R142: =Arrivées!F142 -> 1 | S142: 8 | T142: =IF(S142=Arrivées!G142,Arrivées!H142,IF(S142=Arrivées!K142,Arrivées!L142,IF(S142=Arrivées!O142,Arrivées!P142,IF(S142=Arrivées!S142,Arrivées!T142,"0")))) -> 0 | U142: =IF(S142=Arrivées!G142,Arrivées!I142,IF(S142=Arrivées!K142,Arrivées!M142,IF(S142=Arrivées!O142,Arrivées!Q142,IF(S142=Arrivées!S142,Arrivées!U142,"0")))) -> 0 | W142: =Arrivées!W142 -> HIRON | X142: =Arrivées!X142 -> R3C6
A143: =Arrivées!A143 -> 2017-01-11 | B143: =Arrivées!B143 -> HAPPY VALLEY | C143: =Arrivées!C143 -> H | D143: =Arrivées!D143 -> NON | E143: =Arrivées!E143 -> 12 | F143: =Arrivées!F143 -> 1 | G143: 9 | H143: =IF(G143=Arrivées!G143,Arrivées!H143,IF(G143=Arrivées!K143,Arrivées!L143,IF(G143=Arrivées!O143,Arrivées!P143,IF(G143=Arrivées!S143,Arrivées!T143,"0")))) -> 0 | I143: =IF(G143=Arrivées!G143,Arrivées!I143,IF(G143=Arrivées!K143,Arrivées!M143,IF(G143=Arrivées!O143,Arrivées!Q143,IF(G143=Arrivées!S143,Arrivées!U143,"0")))) -> 0 | K143: 7 | L143: =IF(K143=Arrivées!G143,Arrivées!H143,IF(K143=Arrivées!K143,Arrivées!L143,IF(G143=Arrivées!O143,Arrivées!P143,IF(K143=Arrivées!S143,Arrivées!T143,"0")))) -> 0 | M143: =IF(K143=Arrivées!G143,Arrivées!I143,IF(K143=Arrivées!K143,Arrivées!M143,IF(K143=Arrivées!O143,Arrivées!Q143,IF(K143=Arrivées!S143,Arrivées!U143,"0")))) -> 0 | N143: =Arrivées!F143 -> 1 | O143: 2 | P143: =IF(O143=Arrivées!G143,Arrivées!H143,IF(O143=Arrivées!K143,Arrivées!L143,IF(O143=Arrivées!O143,Arrivées!P143,IF(O143=Arrivées!S143,Arrivées!T143,"0")))) -> 0 | Q143: =IF(O143=Arrivées!G143,Arrivées!I143,IF(O143=Arrivées!K143,Arrivées!M143,IF(O143=Arrivées!O143,Arrivées!Q143,IF(O143=Arrivées!S143,Arrivées!U143,"0")))) -> 0 | R143: =Arrivées!F143 -> 1 | S143: 3 | T143: =IF(S143=Arrivées!G143,Arrivées!H143,IF(S143=Arrivées!K143,Arrivées!L143,IF(S143=Arrivées!O143,Arrivées!P143,IF(S143=Arrivées!S143,Arrivées!T143,"0")))) -> 0 | U143: =IF(S143=Arrivées!G143,Arrivées!I143,IF(S143=Arrivées!K143,Arrivées!M143,IF(S143=Arrivées!O143,Arrivées!Q143,IF(S143=Arrivées!S143,Arrivées!U143,"0")))) -> 3.3 | W143: =Arrivées!W143 -> HIRON | X143: =Arrivées!X143 -> R3C7
A144: =Arrivées!A144 -> 2017-01-11 | B144: =Arrivées!B144 -> HAPPY VALLEY | C144: =Arrivées!C144 -> H | D144: =Arrivées!D144 -> NON | E144: =Arrivées!E144 -> 11 | F144: =Arrivées!F144 -> 1 | G144: 5 | H144: =IF(G144=Arrivées!G144,Arrivées!H144,IF(G144=Arrivées!K144,Arrivées!L144,IF(G144=Arrivées!O144,Arrivées!P144,IF(G144=Arrivées!S144,Arrivées!T144,"0")))) -> 0 | I144: =IF(G144=Arrivées!G144,Arrivées!I144,IF(G144=Arrivées!K144,Arrivées!M144,IF(G144=Arrivées!O144,Arrivées!Q144,IF(G144=Arrivées!S144,Arrivées!U144,"0")))) -> 1.2 | K144: 8 | L144: =IF(K144=Arrivées!G144,Arrivées!H144,IF(K144=Arrivées!K144,Arrivées!L144,IF(G144=Arrivées!O144,Arrivées!P144,IF(K144=Arrivées!S144,Arrivées!T144,"0")))) -> 0 | M144: =IF(K144=Arrivées!G144,Arrivées!I144,IF(K144=Arrivées!K144,Arrivées!M144,IF(K144=Arrivées!O144,Arrivées!Q144,IF(K144=Arrivées!S144,Arrivées!U144,"0")))) -> 0 | N144: =Arrivées!F144 -> 1 | O144: 7 | P144: =IF(O144=Arrivées!G144,Arrivées!H144,IF(O144=Arrivées!K144,Arrivées!L144,IF(O144=Arrivées!O144,Arrivées!P144,IF(O144=Arrivées!S144,Arrivées!T144,"0")))) -> 0 | Q144: =IF(O144=Arrivées!G144,Arrivées!I144,IF(O144=Arrivées!K144,Arrivées!M144,IF(O144=Arrivées!O144,Arrivées!Q144,IF(O144=Arrivées!S144,Arrivées!U144,"0")))) -> 0 | R144: =Arrivées!F144 -> 1 | S144: 2 | T144: =IF(S144=Arrivées!G144,Arrivées!H144,IF(S144=Arrivées!K144,Arrivées!L144,IF(S144=Arrivées!O144,Arrivées!P144,IF(S144=Arrivées!S144,Arrivées!T144,"0")))) -> 0 | U144: =IF(S144=Arrivées!G144,Arrivées!I144,IF(S144=Arrivées!K144,Arrivées!M144,IF(S144=Arrivées!O144,Arrivées!Q144,IF(S144=Arrivées!S144,Arrivées!U144,"0")))) -> 0 | W144: =Arrivées!W144 -> HIRON | X144: =Arrivées!X144 -> R3C8
A145: =Arrivées!A145 -> 2017-01-11 | B145: =Arrivées!B145 -> PAU | C145: =Arrivées!C145 -> NON | D145: =Arrivées!D145 -> E | E145: =Arrivées!E145 -> 6 | F145: =Arrivées!F145 -> 1 | G145: 2 | H145: =IF(G145=Arrivées!G145,Arrivées!H145,IF(G145=Arrivées!K145,Arrivées!L145,IF(G145=Arrivées!O145,Arrivées!P145,IF(G145=Arrivées!S145,Arrivées!T145,"0")))) -> 0 | I145: =IF(G145=Arrivées!G145,Arrivées!I145,IF(G145=Arrivées!K145,Arrivées!M145,IF(G145=Arrivées!O145,Arrivées!Q145,IF(G145=Arrivées!S145,Arrivées!U145,"0")))) -> 1.1 | K145: 1 | L145: =IF(K145=Arrivées!G145,Arrivées!H145,IF(K145=Arrivées!K145,Arrivées!L145,IF(G145=Arrivées!O145,Arrivées!P145,IF(K145=Arrivées!S145,Arrivées!T145,"0")))) -> 0 | M145: =IF(K145=Arrivées!G145,Arrivées!I145,IF(K145=Arrivées!K145,Arrivées!M145,IF(K145=Arrivées!O145,Arrivées!Q145,IF(K145=Arrivées!S145,Arrivées!U145,"0")))) -> 0 | N145: =Arrivées!F145 -> 1 | O145: 4 | P145: =IF(O145=Arrivées!G145,Arrivées!H145,IF(O145=Arrivées!K145,Arrivées!L145,IF(O145=Arrivées!O145,Arrivées!P145,IF(O145=Arrivées!S145,Arrivées!T145,"0")))) -> 5.1 | Q145: =IF(O145=Arrivées!G145,Arrivées!I145,IF(O145=Arrivées!K145,Arrivées!M145,IF(O145=Arrivées!O145,Arrivées!Q145,IF(O145=Arrivées!S145,Arrivées!U145,"0")))) -> 1.6 | R145: =Arrivées!F145 -> 1 | S145: 0 | T145: =IF(S145=Arrivées!G145,Arrivées!H145,IF(S145=Arrivées!K145,Arrivées!L145,IF(S145=Arrivées!O145,Arrivées!P145,IF(S145=Arrivées!S145,Arrivées!T145,"0")))) -> 0 | U145: =IF(S145=Arrivées!G145,Arrivées!I145,IF(S145=Arrivées!K145,Arrivées!M145,IF(S145=Arrivées!O145,Arrivées!Q145,IF(S145=Arrivées!S145,Arrivées!U145,"0")))) -> 0 | W145: =Arrivées!W145 -> PELLEGRINO | X145: =Arrivées!X145 -> R4C3
A146: =Arrivées!A146 -> 2017-01-11 | B146: =Arrivées!B146 -> PAU | C146: =Arrivées!C146 -> HD | D146: =Arrivées!D146 -> E | E146: =Arrivées!E146 -> 18 | F146: =Arrivées!F146 -> 1 | G146: 10 | H146: =IF(G146=Arrivées!G146,Arrivées!H146,IF(G146=Arrivées!K146,Arrivées!L146,IF(G146=Arrivées!O146,Arrivées!P146,IF(G146=Arrivées!S146,Arrivées!T146,"0")))) -> 3.6 | I146: =IF(G146=Arrivées!G146,Arrivées!I146,IF(G146=Arrivées!K146,Arrivées!M146,IF(G146=Arrivées!O146,Arrivées!Q146,IF(G146=Arrivées!S146,Arrivées!U146,"0")))) -> 1.3 | K146: 4 | L146: =IF(K146=Arrivées!G146,Arrivées!H146,IF(K146=Arrivées!K146,Arrivées!L146,IF(G146=Arrivées!O146,Arrivées!P146,IF(K146=Arrivées!S146,Arrivées!T146,"0")))) -> 0 | M146: =IF(K146=Arrivées!G146,Arrivées!I146,IF(K146=Arrivées!K146,Arrivées!M146,IF(K146=Arrivées!O146,Arrivées!Q146,IF(K146=Arrivées!S146,Arrivées!U146,"0")))) -> 0 | N146: =Arrivées!F146 -> 1 | O146: 16 | P146: =IF(O146=Arrivées!G146,Arrivées!H146,IF(O146=Arrivées!K146,Arrivées!L146,IF(O146=Arrivées!O146,Arrivées!P146,IF(O146=Arrivées!S146,Arrivées!T146,"0")))) -> 0 | Q146: =IF(O146=Arrivées!G146,Arrivées!I146,IF(O146=Arrivées!K146,Arrivées!M146,IF(O146=Arrivées!O146,Arrivées!Q146,IF(O146=Arrivées!S146,Arrivées!U146,"0")))) -> 3.6 | R146: =Arrivées!F146 -> 1 | S146: 12 | T146: =IF(S146=Arrivées!G146,Arrivées!H146,IF(S146=Arrivées!K146,Arrivées!L146,IF(S146=Arrivées!O146,Arrivées!P146,IF(S146=Arrivées!S146,Arrivées!T146,"0")))) -> 0 | U146: =IF(S146=Arrivées!G146,Arrivées!I146,IF(S146=Arrivées!K146,Arrivées!M146,IF(S146=Arrivées!O146,Arrivées!Q146,IF(S146=Arrivées!S146,Arrivées!U146,"0")))) -> 0 | W146: =Arrivées!W146 -> PELLEGRINO | X146: =Arrivées!X146 -> R4C5
A147: =Arrivées!A147 -> 2017-01-11 | B147: =Arrivées!B147 -> PAU | C147: =Arrivées!C147 -> HD | D147: =Arrivées!D147 -> E | E147: =Arrivées!E147 -> 16 | F147: =Arrivées!F147 -> 1 | G147: 3 | H147: =IF(G147=Arrivées!G147,Arrivées!H147,IF(G147=Arrivées!K147,Arrivées!L147,IF(G147=Arrivées!O147,Arrivées!P147,IF(G147=Arrivées!S147,Arrivées!T147,"0")))) -> 0 | I147: =IF(G147=Arrivées!G147,Arrivées!I147,IF(G147=Arrivées!K147,Arrivées!M147,IF(G147=Arrivées!O147,Arrivées!Q147,IF(G147=Arrivées!S147,Arrivées!U147,"0")))) -> 0 | K147: 6 | L147: =IF(K147=Arrivées!G147,Arrivées!H147,IF(K147=Arrivées!K147,Arrivées!L147,IF(G147=Arrivées!O147,Arrivées!P147,IF(K147=Arrivées!S147,Arrivées!T147,"0")))) -> 0 | M147: =IF(K147=Arrivées!G147,Arrivées!I147,IF(K147=Arrivées!K147,Arrivées!M147,IF(K147=Arrivées!O147,Arrivées!Q147,IF(K147=Arrivées!S147,Arrivées!U147,"0")))) -> 0 | N147: =Arrivées!F147 -> 1 | O147: 11 | P147: =IF(O147=Arrivées!G147,Arrivées!H147,IF(O147=Arrivées!K147,Arrivées!L147,IF(O147=Arrivées!O147,Arrivées!P147,IF(O147=Arrivées!S147,Arrivées!T147,"0")))) -> 0 | Q147: =IF(O147=Arrivées!G147,Arrivées!I147,IF(O147=Arrivées!K147,Arrivées!M147,IF(O147=Arrivées!O147,Arrivées!Q147,IF(O147=Arrivées!S147,Arrivées!U147,"0")))) -> 3.4 | R147: =Arrivées!F147 -> 1 | S147: 15 | T147: =IF(S147=Arrivées!G147,Arrivées!H147,IF(S147=Arrivées!K147,Arrivées!L147,IF(S147=Arrivées!O147,Arrivées!P147,IF(S147=Arrivées!S147,Arrivées!T147,"0")))) -> 0 | U147: =IF(S147=Arrivées!G147,Arrivées!I147,IF(S147=Arrivées!K147,Arrivées!M147,IF(S147=Arrivées!O147,Arrivées!Q147,IF(S147=Arrivées!S147,Arrivées!U147,"0")))) -> 3.1 | W147: =Arrivées!W147 -> PELLEGRINO | X147: =Arrivées!X147 -> R4C8
A148: =Arrivées!A148 -> 2017-01-12 | B148: =Arrivées!B148 -> VAAL | C148: =Arrivées!C148 -> NON | D148: =Arrivées!D148 -> NON | E148: =Arrivées!E148 -> 12 | F148: =Arrivées!F148 -> 1 | G148: 5 | H148: =IF(G148=Arrivées!G148,Arrivées!H148,IF(G148=Arrivées!K148,Arrivées!L148,IF(G148=Arrivées!O148,Arrivées!P148,IF(G148=Arrivées!S148,Arrivées!T148,"0")))) -> 0 | I148: =IF(G148=Arrivées!G148,Arrivées!I148,IF(G148=Arrivées!K148,Arrivées!M148,IF(G148=Arrivées!O148,Arrivées!Q148,IF(G148=Arrivées!S148,Arrivées!U148,"0")))) -> 1.1 | K148: 7 | L148: =IF(K148=Arrivées!G148,Arrivées!H148,IF(K148=Arrivées!K148,Arrivées!L148,IF(G148=Arrivées!O148,Arrivées!P148,IF(K148=Arrivées!S148,Arrivées!T148,"0")))) -> 2.5 | M148: =IF(K148=Arrivées!G148,Arrivées!I148,IF(K148=Arrivées!K148,Arrivées!M148,IF(K148=Arrivées!O148,Arrivées!Q148,IF(K148=Arrivées!S148,Arrivées!U148,"0")))) -> 1.2 | N148: =Arrivées!F148 -> 1 | O148: 6 | P148: =IF(O148=Arrivées!G148,Arrivées!H148,IF(O148=Arrivées!K148,Arrivées!L148,IF(O148=Arrivées!O148,Arrivées!P148,IF(O148=Arrivées!S148,Arrivées!T148,"0")))) -> 0 | Q148: =IF(O148=Arrivées!G148,Arrivées!I148,IF(O148=Arrivées!K148,Arrivées!M148,IF(O148=Arrivées!O148,Arrivées!Q148,IF(O148=Arrivées!S148,Arrivées!U148,"0")))) -> 1.4 | R148: =Arrivées!F148 -> 1 | S148: 12 | T148: =IF(S148=Arrivées!G148,Arrivées!H148,IF(S148=Arrivées!K148,Arrivées!L148,IF(S148=Arrivées!O148,Arrivées!P148,IF(S148=Arrivées!S148,Arrivées!T148,"0")))) -> 0 | U148: =IF(S148=Arrivées!G148,Arrivées!I148,IF(S148=Arrivées!K148,Arrivées!M148,IF(S148=Arrivées!O148,Arrivées!Q148,IF(S148=Arrivées!S148,Arrivées!U148,"0")))) -> 0 | W148: =Arrivées!W148 -> BOUGOUIN | X148: =Arrivées!X148 -> R2C1
A149: =Arrivées!A149 -> 2017-01-12 | B149: =Arrivées!B149 -> VAAL | C149: =Arrivées!C149 -> NON | D149: =Arrivées!D149 -> FEMELLE | E149: =Arrivées!E149 -> 7 | F149: =Arrivées!F149 -> 1 | G149: 1 | H149: =IF(G149=Arrivées!G149,Arrivées!H149,IF(G149=Arrivées!K149,Arrivées!L149,IF(G149=Arrivées!O149,Arrivées!P149,IF(G149=Arrivées!S149,Arrivées!T149,"0")))) -> 0 | I149: =IF(G149=Arrivées!G149,Arrivées!I149,IF(G149=Arrivées!K149,Arrivées!M149,IF(G149=Arrivées!O149,Arrivées!Q149,IF(G149=Arrivées!S149,Arrivées!U149,"0")))) -> 0 | K149: 2 | L149: =IF(K149=Arrivées!G149,Arrivées!H149,IF(K149=Arrivées!K149,Arrivées!L149,IF(G149=Arrivées!O149,Arrivées!P149,IF(K149=Arrivées!S149,Arrivées!T149,"0")))) -> 0 | M149: =IF(K149=Arrivées!G149,Arrivées!I149,IF(K149=Arrivées!K149,Arrivées!M149,IF(K149=Arrivées!O149,Arrivées!Q149,IF(K149=Arrivées!S149,Arrivées!U149,"0")))) -> 1.1 | N149: =Arrivées!F149 -> 1 | O149: 5 | P149: =IF(O149=Arrivées!G149,Arrivées!H149,IF(O149=Arrivées!K149,Arrivées!L149,IF(O149=Arrivées!O149,Arrivées!P149,IF(O149=Arrivées!S149,Arrivées!T149,"0")))) -> 0 | Q149: =IF(O149=Arrivées!G149,Arrivées!I149,IF(O149=Arrivées!K149,Arrivées!M149,IF(O149=Arrivées!O149,Arrivées!Q149,IF(O149=Arrivées!S149,Arrivées!U149,"0")))) -> 1.3 | R149: =Arrivées!F149 -> 1 | S149: 6 | T149: =IF(S149=Arrivées!G149,Arrivées!H149,IF(S149=Arrivées!K149,Arrivées!L149,IF(S149=Arrivées!O149,Arrivées!P149,IF(S149=Arrivées!S149,Arrivées!T149,"0")))) -> 4.3 | U149: =IF(S149=Arrivées!G149,Arrivées!I149,IF(S149=Arrivées!K149,Arrivées!M149,IF(S149=Arrivées!O149,Arrivées!Q149,IF(S149=Arrivées!S149,Arrivées!U149,"0")))) -> 1.2 | W149: =Arrivées!W149 -> BOUGOUIN | X149: =Arrivées!X149 -> R2C2
A150: =Arrivées!A150 -> 2017-01-12 | B150: =Arrivées!B150 -> VAAL | C150: =Arrivées!C150 -> NON | D150: =Arrivées!D150 -> FEMELLE | E150: =Arrivées!E150 -> 14 | F150: =Arrivées!F150 -> 1 | G150: 7 | H150: =IF(G150=Arrivées!G150,Arrivées!H150,IF(G150=Arrivées!K150,Arrivées!L150,IF(G150=Arrivées!O150,Arrivées!P150,IF(G150=Arrivées!S150,Arrivées!T150,"0")))) -> 0 | I150: =IF(G150=Arrivées!G150,Arrivées!I150,IF(G150=Arrivées!K150,Arrivées!M150,IF(G150=Arrivées!O150,Arrivées!Q150,IF(G150=Arrivées!S150,Arrivées!U150,"0")))) -> 0 | K150: 10 | L150: =IF(K150=Arrivées!G150,Arrivées!H150,IF(K150=Arrivées!K150,Arrivées!L150,IF(G150=Arrivées!O150,Arrivées!P150,IF(K150=Arrivées!S150,Arrivées!T150,"0")))) -> 0 | M150: =IF(K150=Arrivées!G150,Arrivées!I150,IF(K150=Arrivées!K150,Arrivées!M150,IF(K150=Arrivées!O150,Arrivées!Q150,IF(K150=Arrivées!S150,Arrivées!U150,"0")))) -> 1.5 | N150: =Arrivées!F150 -> 1 | O150: 1 | P150: =IF(O150=Arrivées!G150,Arrivées!H150,IF(O150=Arrivées!K150,Arrivées!L150,IF(O150=Arrivées!O150,Arrivées!P150,IF(O150=Arrivées!S150,Arrivées!T150,"0")))) -> 0 | Q150: =IF(O150=Arrivées!G150,Arrivées!I150,IF(O150=Arrivées!K150,Arrivées!M150,IF(O150=Arrivées!O150,Arrivées!Q150,IF(O150=Arrivées!S150,Arrivées!U150,"0")))) -> 1.7 | R150: =Arrivées!F150 -> 1 | S150: 2 | T150: =IF(S150=Arrivées!G150,Arrivées!H150,IF(S150=Arrivées!K150,Arrivées!L150,IF(S150=Arrivées!O150,Arrivées!P150,IF(S150=Arrivées!S150,Arrivées!T150,"0")))) -> 0 | U150: =IF(S150=Arrivées!G150,Arrivées!I150,IF(S150=Arrivées!K150,Arrivées!M150,IF(S150=Arrivées!O150,Arrivées!Q150,IF(S150=Arrivées!S150,Arrivées!U150,"0")))) -> 0 | W150: =Arrivées!W150 -> BOUGOUIN | X150: =Arrivées!X150 -> R2C3
A151: =Arrivées!A151 -> 2017-01-12 | B151: =Arrivées!B151 -> VAAL | C151: =Arrivées!C151 -> NON | D151: =Arrivées!D151 -> FEMELLE | E151: =Arrivées!E151 -> 12 | F151: =Arrivées!F151 -> 1 | G151: 7 | H151: =IF(G151=Arrivées!G151,Arrivées!H151,IF(G151=Arrivées!K151,Arrivées!L151,IF(G151=Arrivées!O151,Arrivées!P151,IF(G151=Arrivées!S151,Arrivées!T151,"0")))) -> 3.4 | I151: =IF(G151=Arrivées!G151,Arrivées!I151,IF(G151=Arrivées!K151,Arrivées!M151,IF(G151=Arrivées!O151,Arrivées!Q151,IF(G151=Arrivées!S151,Arrivées!U151,"0")))) -> 1.8 | K151: 8 | L151: =IF(K151=Arrivées!G151,Arrivées!H151,IF(K151=Arrivées!K151,Arrivées!L151,IF(G151=Arrivées!O151,Arrivées!P151,IF(K151=Arrivées!S151,Arrivées!T151,"0")))) -> 0 | M151: =IF(K151=Arrivées!G151,Arrivées!I151,IF(K151=Arrivées!K151,Arrivées!M151,IF(K151=Arrivées!O151,Arrivées!Q151,IF(K151=Arrivées!S151,Arrivées!U151,"0")))) -> 0 | N151: =Arrivées!F151 -> 1 | O151: 13 | P151: =IF(O151=Arrivées!G151,Arrivées!H151,IF(O151=Arrivées!K151,Arrivées!L151,IF(O151=Arrivées!O151,Arrivées!P151,IF(O151=Arrivées!S151,Arrivées!T151,"0")))) -> 0 | Q151: =IF(O151=Arrivées!G151,Arrivées!I151,IF(O151=Arrivées!K151,Arrivées!M151,IF(O151=Arrivées!O151,Arrivées!Q151,IF(O151=Arrivées!S151,Arrivées!U151,"0")))) -> 0 | R151: =Arrivées!F151 -> 1 | S151: 9 | T151: =IF(S151=Arrivées!G151,Arrivées!H151,IF(S151=Arrivées!K151,Arrivées!L151,IF(S151=Arrivées!O151,Arrivées!P151,IF(S151=Arrivées!S151,Arrivées!T151,"0")))) -> 0 | U151: =IF(S151=Arrivées!G151,Arrivées!I151,IF(S151=Arrivées!K151,Arrivées!M151,IF(S151=Arrivées!O151,Arrivées!Q151,IF(S151=Arrivées!S151,Arrivées!U151,"0")))) -> 0 | W151: =Arrivées!W151 -> BOUGOUIN | X151: =Arrivées!X151 -> R2C4
A152: =Arrivées!A152 -> 2017-01-12 | B152: =Arrivées!B152 -> VAAL | C152: =Arrivées!C152 -> H | D152: =Arrivées!D152 -> NON | E152: =Arrivées!E152 -> 9 | F152: =Arrivées!F152 -> 1 | G152: 8 | H152: =IF(G152=Arrivées!G152,Arrivées!H152,IF(G152=Arrivées!K152,Arrivées!L152,IF(G152=Arrivées!O152,Arrivées!P152,IF(G152=Arrivées!S152,Arrivées!T152,"0")))) -> 0 | I152: =IF(G152=Arrivées!G152,Arrivées!I152,IF(G152=Arrivées!K152,Arrivées!M152,IF(G152=Arrivées!O152,Arrivées!Q152,IF(G152=Arrivées!S152,Arrivées!U152,"0")))) -> 0 | K152: 9 | L152: =IF(K152=Arrivées!G152,Arrivées!H152,IF(K152=Arrivées!K152,Arrivées!L152,IF(G152=Arrivées!O152,Arrivées!P152,IF(K152=Arrivées!S152,Arrivées!T152,"0")))) -> 0 | M152: =IF(K152=Arrivées!G152,Arrivées!I152,IF(K152=Arrivées!K152,Arrivées!M152,IF(K152=Arrivées!O152,Arrivées!Q152,IF(K152=Arrivées!S152,Arrivées!U152,"0")))) -> 0 | N152: =Arrivées!F152 -> 1 | O152: 6 | P152: =IF(O152=Arrivées!G152,Arrivées!H152,IF(O152=Arrivées!K152,Arrivées!L152,IF(O152=Arrivées!O152,Arrivées!P152,IF(O152=Arrivées!S152,Arrivées!T152,"0")))) -> 0 | Q152: =IF(O152=Arrivées!G152,Arrivées!I152,IF(O152=Arrivées!K152,Arrivées!M152,IF(O152=Arrivées!O152,Arrivées!Q152,IF(O152=Arrivées!S152,Arrivées!U152,"0")))) -> 0 | R152: =Arrivées!F152 -> 1 | S152: 4 | T152: =IF(S152=Arrivées!G152,Arrivées!H152,IF(S152=Arrivées!K152,Arrivées!L152,IF(S152=Arrivées!O152,Arrivées!P152,IF(S152=Arrivées!S152,Arrivées!T152,"0")))) -> 0 | U152: =IF(S152=Arrivées!G152,Arrivées!I152,IF(S152=Arrivées!K152,Arrivées!M152,IF(S152=Arrivées!O152,Arrivées!Q152,IF(S152=Arrivées!S152,Arrivées!U152,"0")))) -> 0 | W152: =Arrivées!W152 -> BOUGOUIN | X152: =Arrivées!X152 -> R2C5
A153: =Arrivées!A153 -> 2017-01-12 | B153: =Arrivées!B153 -> MEYDAN | C153: =Arrivées!C153 -> NON | D153: =Arrivées!D153 -> NON | E153: =Arrivées!E153 -> 9 | F153: =Arrivées!F153 -> 1 | G153: 7 | H153: =IF(G153=Arrivées!G153,Arrivées!H153,IF(G153=Arrivées!K153,Arrivées!L153,IF(G153=Arrivées!O153,Arrivées!P153,IF(G153=Arrivées!S153,Arrivées!T153,"0")))) -> 0 | I153: =IF(G153=Arrivées!G153,Arrivées!I153,IF(G153=Arrivées!K153,Arrivées!M153,IF(G153=Arrivées!O153,Arrivées!Q153,IF(G153=Arrivées!S153,Arrivées!U153,"0")))) -> 1.2 | K153: 5 | L153: =IF(K153=Arrivées!G153,Arrivées!H153,IF(K153=Arrivées!K153,Arrivées!L153,IF(G153=Arrivées!O153,Arrivées!P153,IF(K153=Arrivées!S153,Arrivées!T153,"0")))) -> 3.2 | M153: =IF(K153=Arrivées!G153,Arrivées!I153,IF(K153=Arrivées!K153,Arrivées!M153,IF(K153=Arrivées!O153,Arrivées!Q153,IF(K153=Arrivées!S153,Arrivées!U153,"0")))) -> 1.7 | N153: =Arrivées!F153 -> 1 | O153: 1 | P153: =IF(O153=Arrivées!G153,Arrivées!H153,IF(O153=Arrivées!K153,Arrivées!L153,IF(O153=Arrivées!O153,Arrivées!P153,IF(O153=Arrivées!S153,Arrivées!T153,"0")))) -> 0 | Q153: =IF(O153=Arrivées!G153,Arrivées!I153,IF(O153=Arrivées!K153,Arrivées!M153,IF(O153=Arrivées!O153,Arrivées!Q153,IF(O153=Arrivées!S153,Arrivées!U153,"0")))) -> 1.3 | R153: =Arrivées!F153 -> 1 | S153: 3 | T153: =IF(S153=Arrivées!G153,Arrivées!H153,IF(S153=Arrivées!K153,Arrivées!L153,IF(S153=Arrivées!O153,Arrivées!P153,IF(S153=Arrivées!S153,Arrivées!T153,"0")))) -> 0 | U153: =IF(S153=Arrivées!G153,Arrivées!I153,IF(S153=Arrivées!K153,Arrivées!M153,IF(S153=Arrivées!O153,Arrivées!Q153,IF(S153=Arrivées!S153,Arrivées!U153,"0")))) -> 0 | W153: =Arrivées!W153 -> BOUGOUIN | X153: =Arrivées!X153 -> R4C1
A154: =Arrivées!A154 -> 2017-01-12 | B154: =Arrivées!B154 -> MEYDAN | C154: =Arrivées!C154 -> H | D154: =Arrivées!D154 -> NON | E154: =Arrivées!E154 -> 7 | F154: =Arrivées!F154 -> 1 | G154: 4 | H154: =IF(G154=Arrivées!G154,Arrivées!H154,IF(G154=Arrivées!K154,Arrivées!L154,IF(G154=Arrivées!O154,Arrivées!P154,IF(G154=Arrivées!S154,Arrivées!T154,"0")))) -> 0 | I154: =IF(G154=Arrivées!G154,Arrivées!I154,IF(G154=Arrivées!K154,Arrivées!M154,IF(G154=Arrivées!O154,Arrivées!Q154,IF(G154=Arrivées!S154,Arrivées!U154,"0")))) -> 1.6 | K154: 6 | L154: =IF(K154=Arrivées!G154,Arrivées!H154,IF(K154=Arrivées!K154,Arrivées!L154,IF(G154=Arrivées!O154,Arrivées!P154,IF(K154=Arrivées!S154,Arrivées!T154,"0")))) -> 4.3 | M154: =IF(K154=Arrivées!G154,Arrivées!I154,IF(K154=Arrivées!K154,Arrivées!M154,IF(K154=Arrivées!O154,Arrivées!Q154,IF(K154=Arrivées!S154,Arrivées!U154,"0")))) -> 2.1 | N154: =Arrivées!F154 -> 1 | O154: 1 | P154: =IF(O154=Arrivées!G154,Arrivées!H154,IF(O154=Arrivées!K154,Arrivées!L154,IF(O154=Arrivées!O154,Arrivées!P154,IF(O154=Arrivées!S154,Arrivées!T154,"0")))) -> 0 | Q154: =IF(O154=Arrivées!G154,Arrivées!I154,IF(O154=Arrivées!K154,Arrivées!M154,IF(O154=Arrivées!O154,Arrivées!Q154,IF(O154=Arrivées!S154,Arrivées!U154,"0")))) -> 0 | R154: =Arrivées!F154 -> 1 | S154: 2 | T154: =IF(S154=Arrivées!G154,Arrivées!H154,IF(S154=Arrivées!K154,Arrivées!L154,IF(S154=Arrivées!O154,Arrivées!P154,IF(S154=Arrivées!S154,Arrivées!T154,"0")))) -> 0 | U154: =IF(S154=Arrivées!G154,Arrivées!I154,IF(S154=Arrivées!K154,Arrivées!M154,IF(S154=Arrivées!O154,Arrivées!Q154,IF(S154=Arrivées!S154,Arrivées!U154,"0")))) -> 0 | W154: =Arrivées!W154 -> BOUGOUIN | X154: =Arrivées!X154 -> R4C2
